Workbook

Sheet Introduction
C4: Joint Monitoring Programme for Water Supply, Sanitation and Hygiene
C6: Estimates on household water, sanitation and hygiene by wealth quintile and sub-national region in
C7: =+Water!B5 -> Serbia
C9: Updated May 2021
C11: Follow the links below to find the following information:
C13: JMP Estimates
C14: WASH status and trends by wealth quintile (customized quintiles made without water and sanitation assets)
C15: Water
C16: Sanitation
C17: Hygiene
C19: Data inputs
C20: customized wealth quintiles and subnational data:
C21: =IF(INDIRECT(CONCATENATE("Water","!B105"))=0,"",INDIRECT(CONCATENATE("Water","!B105"))) -> MICS06
C22: =IF(INDIRECT(CONCATENATE("Water","!B106"))=0,"",INDIRECT(CONCATENATE("Water","!B106"))) -> MICS10
C23: =IF(INDIRECT(CONCATENATE("Water","!B107"))=0,"",INDIRECT(CONCATENATE("Water","!B107"))) -> MICS14
C24: =IF(INDIRECT(CONCATENATE("Water","!B108"))=0,"",INDIRECT(CONCATENATE("Water","!B108"))) -> MICS19
C25: =IF(INDIRECT(CONCATENATE("Water","!B109"))=0,"",INDIRECT(CONCATENATE("Water","!B109"))) -> 
C26: =IF(INDIRECT(CONCATENATE("Water","!B110"))=0,"",INDIRECT(CONCATENATE("Water","!B110"))) -> 
C27: =IF(INDIRECT(CONCATENATE("Water","!B111"))=0,"",INDIRECT(CONCATENATE("Water","!B111"))) -> 
C28: =IF(INDIRECT(CONCATENATE("Water","!B112"))=0,"",INDIRECT(CONCATENATE("Water","!B112"))) -> 
C29: =IF(INDIRECT(CONCATENATE("Water","!B113"))=0,"",INDIRECT(CONCATENATE("Water","!B113"))) -> 
C30: =IF(INDIRECT(CONCATENATE("Water","!B114"))=0,"",INDIRECT(CONCATENATE("Water","!B114"))) -> 
C31: =IF(INDIRECT(CONCATENATE("Water","!B115"))=0,"",INDIRECT(CONCATENATE("Water","!B115"))) -> 
C32: =IF(INDIRECT(CONCATENATE("Water","!B116"))=0,"",INDIRECT(CONCATENATE("Water","!B116"))) -> 
L55: =+IF(ISNUMBER(M48), "", "Insufficient data to estimate safely managed sanitation services at national level") -> Insufficient data to estimate safely managed sanitation services at national level

Sheet Water
A1: BGD
B4: Summary of trends in use of drinking water by wealth quintile (%)
B5: =IF(ISERROR(INDIRECT(CONCATENATE($B105,"!A2"))),"",INDIRECT(CONCATENATE($B105,"!A2"))) -> Serbia
B7: =B118 -> National use of drinking water sources, 2000–2020 | J7: =B218 -> Urban use of drinking water sources, 2000–2020 | R7: =B318 -> Rural use of drinking water sources, 2000–2020
B31: =IF(ISERROR(INDIRECT(CONCATENATE($B105,"!A2"))),"",INDIRECT(CONCATENATE($B105,"!A2"))) -> Serbia | F31: Poorest | J31: Poor | N31: Middle | R31: Rich | V31: Richest
F32: Basic | G32: Limited | H32: Unimproved | I32: Surface water | J32: Basic | K32: Limited | L32: Unimproved | M32: Surface water | N32: Basic | O32: Limited | P32: Unimproved | Q32: Surface water | R32: Basic | S32: Limited | T32: Unimproved | U32: Surface water | V32: Basic | W32: Limited | X32: Unimproved | Y32: Surface water
B33: NATIONAL | D33: Estimate | E33: =C99 -> 2000 | F33: =E99 -> 97.16003309 | G33: =F99 -> 0.7456170069 | H33: 2.094349902 | I33: 0 | J33: =J99 -> 99.17543859 | K33: =K99 -> 0.7376758248 | L33: 0.08688558796 | M33: 0 | N33: =O99 -> 98.7239901 | O33: =P99 -> 0.7483142 | P33: 0.5276956991 | Q33: 0 | R33: =T99 -> 98.85477223 | S33: =U99 -> 0.7501722639 | T33: 0.3950555077 | U33: 0 | V33: =Y99 -> 99.635897 | W33: =Z99 -> 0.3641030036 | X33: 0 | Y33: 0
E34: =C100 -> 2020 | F34: =E100 -> 98.20454147 | G34: 0.7536326815 | H34: 0.9122730165 | I34: 0.1295528332 | J34: =J100 -> 98.36500718 | K34: 0.7316477631 | L34: 0.9033450584 | M34: 0 | N34: =O100 -> 98.83605175 | O34: 0.7491636118 | P34: 0.4147846401 | Q34: 0 | R34: =T100 -> 98.85430676 | S34: 0.7501687316 | T34: 0.3955245062 | U34: 0 | V34: =Y100 -> 99.16041062 | W34: 0.3623654168 | X34: 0.4772239669 | Y34: 0
B36: URBAN | D36: Estimate | E36: =C199 -> 2000 | F36: =E199 -> 98.60249878 | G36: =F199 -> 0.7350563637 | H36: 0.6624448523 | I36: 0 | J36: =J199 -> 99.03006079 | K36: =K199 -> 0.9699392127 | L36: 0 | M36: 0 | N36: =O199 -> 99.0597695 | O36: =P199 -> 0.4809025789 | P36: 0.4593279241 | Q36: 0 | R36: =T199 -> 99.42919509 | S36: =U199 -> 0.5363665351 | T36: 0.03443837615 | U36: 0 | V36: =Y199 -> 99.53642022 | W36: =Z199 -> 0.3376257835 | X36: 0.1259539975 | Y36: 0
E37: =C200 -> 2020 | F37: =E200 -> 99.0226744 | G37: 0.7381886652 | H37: 0.2391369377 | I37: 0 | J37: =J200 -> 98.64447196 | K37: 0.9661626047 | L37: 0.3893654348 | M37: 0 | N37: =O200 -> 99.51687831 | O37: 0.4831216917 | P37: 0 | Q37: 0 | R37: =T200 -> 99.10692085 | S37: 0.5346280405 | T37: 0.3584511067 | U37: 0 | V37: =Y200 -> 99.66194843 | W37: 0.3380515729 | X37: 0 | Y37: 0
B39: RURAL | D39: Estimate | E39: =C299 -> 2000 | F39: =E299 -> 96.23369578 | G39: =F299 -> 0.7703503874 | H39: 2.995953832 | I39: 0 | J39: =J299 -> 98.39084482 | K39: =K299 -> 0.6298183559 | L39: 0.9793368212 | M39: 0 | N39: =O299 -> 98.61567008 | O39: =P299 -> 0.7912502827 | P39: 0.593079639 | Q39: 0 | R39: =T299 -> 98.72420707 | S39: =U299 -> 0.6166759311 | T39: 0.6591170038 | U39: 0 | V39: =Y299 -> 99.10562871 | W39: =Z299 -> 0.8943712863 | X39: 0 | Y39: 0
E40: =C300 -> 2020 | F40: =E300 -> 97.75644341 | G40: 0.7825399766 | H40: 1.355345187 | I40: 0.1056714277 | J40: =J300 -> 98.3931777 | K40: 0.6298332891 | L40: 0.7687001046 | M40: 0.2082889099 | N40: =O300 -> 98.81273772 | O40: 0.7928314699 | P40: 0.3944308098 | Q40: 0 | R40: =T300 -> 97.7153387 | S40: 0.6103740842 | T40: 1.674287212 | U40: 0 | V40: =Y300 -> 96.90084272 | W40: 0.8744743611 | X40: 2.224682915 | Y40: 0
A97: NATIONAL | D97: Poorest | I97: Poor | N97: Middle | S97: Rich | X97: Richest
D98: Improved | E98: Basic | F98: Limited | G98: Unimproved | H98: Surface water | I98: Improved | J98: Basic | K98: Limited | L98: Unimproved | M98: Surface water | N98: Improved | O98: Basic | P98: Limited | Q98: Unimproved | R98: Surface water | S98: Improved | T98: Basic | U98: Limited | V98: Unimproved | W98: Surface water | X98: Improved | Y98: Basic | Z98: Limited | AA98: Unimproved | AB98: Surface water
A99: Forecast period: | C99: 2000 | D99: =IF((D101+H101)>100,D101*100/(D101+H101),D101) -> 97.9056501 | E99: =D99*AVERAGEIF(E105:E116,">0")/100 -> 97.16003309 | F99: =D99*(100-AVERAGEIF(E105:E116,">0"))/100 -> 0.7456170069 | G99: =100-(E99+F99+H99) -> 2.094349902 | H99: =IF((D101+H101)>100,H101*100/(D101+H101),H101) -> 0 | I99: =IF((I101+M101)>100,I101*100/(I101+M101),I101) -> 99.91311441 | J99: =I99*AVERAGEIF(J105:J116,">0")/100 -> 99.17543859 | K99: =I99*(100-AVERAGEIF(J105:J116,">0"))/100 -> 0.7376758248 | L99: =100-(J99+K99+M99) -> 0.08688558796 | M99: =IF((I101+M101)>100,M101*100/(I101+M101),M101) -> 0 | N99: =IF((N101+R101)>100,N101*100/(N101+R101),N101) -> 99.4723043 | O99: =N99*AVERAGEIF(O105:O116,">0")/100 -> 98.7239901 | P99: =N99*(100-AVERAGEIF(O105:O116,">0"))/100 -> 0.7483142 | Q99: =100-(O99+P99+R99) -> 0.5276956991 | R99: =IF((N101+R101)>100,R101*100/(N101+R101),R101) -> 0 | S99: =IF((S101+W101)>100,S101*100/(S101+W101),S101) -> 99.60494449 | T99: =S99*AVERAGEIF(T105:T116,">0")/100 -> 98.85477223 | U99: =S99*(100-AVERAGEIF(T105:T116,">0"))/100 -> 0.7501722639 | V99: =100-(T99+U99+W99) -> 0.3950555077 | W99: =IF((S101+W101)>100,W101*100/(S101+W101),W101) -> 0 | X99: =IF((X101+AB101)>100,X101*100/(X101+AB101),X101) -> 100 | Y99: =X99*AVERAGEIF(Y105:Y116,">0")/100 -> 99.635897 | Z99: =X99*(100-AVERAGEIF(Y105:Y116,">0"))/100 -> 0.3641030036 | AA99: =100-(Y99+Z99+AB99) -> 0 | AB99: =IF((X101+AB101)>100,AB101*100/(X101+AB101),AB101) -> 0
C100: 2020 | D100: =IF((D102+H102)>100,D102*100/(D102+H102),D102) -> 98.95817415 | E100: =D100*AVERAGEIF(E105:E116,">0")/100 -> 98.20454147 | F100: =D100*(100-AVERAGEIF(E105:E116,">0"))/100 -> 0.7536326815 | G100: =100-(E100+F100+H100) -> 0.9122730165 | H100: =IF((D102+H102)>100,H102*100/(D102+H102),H102) -> 0.1295528332 | I100: =IF((I102+M102)>100,I102*100/(I102+M102),I102) -> 99.09665494 | J100: =I100*AVERAGEIF(J105:J116,">0")/100 -> 98.36500718 | K100: =I100*(100-AVERAGEIF(J105:J116,">0"))/100 -> 0.7316477631 | L100: =100-(J100+K100+M100) -> 0.9033450584 | M100: =IF((I102+M102)>100,M102*100/(I102+M102),M102) -> 0 | N100: =IF((N102+R102)>100,N102*100/(N102+R102),N102) -> 99.58521536 | O100: =N100*AVERAGEIF(O105:O116,">0")/100 -> 98.83605175 | P100: =N100*(100-AVERAGEIF(O105:O116,">0"))/100 -> 0.7491636118 | Q100: =100-(O100+P100+R100) -> 0.4147846401 | R100: =IF((N102+R102)>100,R102*100/(N102+R102),R102) -> 0 | S100: =IF((S102+W102)>100,S102*100/(S102+W102),S102) -> 99.60447549 | T100: =S100*AVERAGEIF(T105:T116,">0")/100 -> 98.85430676 | U100: =S100*(100-AVERAGEIF(T105:T116,">0"))/100 -> 0.7501687316 | V100: =100-(T100+U100+W100) -> 0.3955245062 | W100: =IF((S102+W102)>100,W102*100/(S102+W102),W102) -> 0 | X100: =IF((X102+AB102)>100,X102*100/(X102+AB102),X102) -> 99.52277603 | Y100: =X100*AVERAGEIF(Y105:Y116,">0")/100 -> 99.16041062 | Z100: =X100*(100-AVERAGEIF(Y105:Y116,">0"))/100 -> 0.3623654168 | AA100: =100-(Y100+Z100+AB100) -> 0.4772239669 | AB100: =IF((X102+AB102)>100,AB102*100/(X102+AB102),AB102) -> 0
A101: Regression period: | C101: =MinRegYear(C99,C105:C116) -> 2004 | D101: =IF(MAX(C105:C116)-MIN(C105:C116)<5,AVERAGEIF(C105:C116,">0",D105:D116), IF(FORECAST($C101,D$105:D$116,$C$105:$C$116)<0,0, IF(FORECAST($C101,D$105:D$116,$C$105:$C$116)>100,100, FORECAST($C101,D$105:D$116,$C$105:$C$116)))) -> 97.9056501 | H101: =IF(MAX(C105:C116)-MIN(C105:C116)<5,AVERAGEIF(C105:C116,">0",H105:H116), IF(FORECAST($C101,H$105:H$116,$C$105:$C$116)<0,0, IF(FORECAST($C101,H$105:H$116,$C$105:$C$116)>100,100, FORECAST($C101,H$105:H$116,$C$105:$C$116)))) -> 0 | I101: =IF(MAX(C105:C116)-MIN(C105:C116)<5,AVERAGEIF(C105:C116,">0",I105:I116), IF(FORECAST($C101,I$105:I$116,$C$105:$C$116)<0,0, IF(FORECAST($C101,I$105:I$116,$C$105:$C$116)>100,100, FORECAST($C101,I$105:I$116,$C$105:$C$116)))) -> 99.91311441 | M101: =IF(MAX(C105:C116)-MIN(C105:C116)<5,AVERAGEIF(C105:C116,">0",M105:M116), IF(FORECAST($C101,M$105:M$116,$C$105:$C$116)<0,0, IF(FORECAST($C101,M$105:M$116,$C$105:$C$116)>100,100, FORECAST($C101,M$105:M$116,$C$105:$C$116)))) -> 0 | N101: =IF(MAX(C105:C116)-MIN(C105:C116)<5,AVERAGEIF(C105:C116,">0",N105:N116), IF(FORECAST($C101,N$105:N$116,$C$105:$C$116)<0,0, IF(FORECAST($C101,N$105:N$116,$C$105:$C$116)>100,100, FORECAST($C101,N$105:N$116,$C$105:$C$116)))) -> 99.4723043 | R101: =IF(MAX(C105:C116)-MIN(C105:C116)<5,AVERAGEIF(C105:C116,">0",R105:R116), IF(FORECAST($C101,R$105:R$116,$C$105:$C$116)<0,0, IF(FORECAST($C101,R$105:R$116,$C$105:$C$116)>100,100, FORECAST($C101,R$105:R$116,$C$105:$C$116)))) -> 0 | S101: =IF(MAX(C105:C116)-MIN(C105:C116)<5,AVERAGEIF(C105:C116,">0",S105:S116), IF(FORECAST($C101,S$105:S$116,$C$105:$C$116)<0,0, IF(FORECAST($C101,S$105:S$116,$C$105:$C$116)>100,100, FORECAST($C101,S$105:S$116,$C$105:$C$116)))) -> 99.60494449 | W101: =IF(MAX(C105:C116)-MIN(C105:C116)<5,AVERAGEIF(C105:C116,">0",W105:W116), IF(FORECAST($C101,W$105:W$116,$C$105:$C$116)<0,0, IF(FORECAST($C101,W$105:W$116,$C$105:$C$116)>100,100, FORECAST($C101,W$105:W$116,$C$105:$C$116)))) -> 0 | X101: =IF(MAX(C105:C116)-MIN(C105:C116)<5,AVERAGEIF(C105:C116,">0",X105:X116), IF(FORECAST($C101,X$105:X$116,$C$105:$C$116)<0,0, IF(FORECAST($C101,X$105:X$116,$C$105:$C$116)>100,100, FORECAST($C101,X$105:X$116,$C$105:$C$116)))) -> 100 | AB101: =IF(MAX(C105:C116)-MIN(C105:C116)<5,AVERAGEIF(C105:C116,">0",AB105:AB116), IF(FORECAST($C101,AB$105:AB$116,$C$105:$C$116)<0,0, IF(FORECAST($C101,AB$105:AB$116,$C$105:$C$116)>100,100, FORECAST($C101,AB$105:AB$116,$C$105:$C$116)))) -> 0
C102: =MaxRegYear(C100,C105:C116) -> 2020 | D102: =IF(MAX(C105:C116)-MIN(C105:C116)<5,AVERAGEIF(C105:C116,">0",D105:D116), IF(FORECAST($C102,D$105:D$116,$C$105:$C$116)<0,0, IF(FORECAST($C102,D$105:D$116,$C$105:$C$116)>100,100, FORECAST($C102,D$105:D$116,$C$105:$C$116)))) -> 98.95817415 | H102: =IF(MAX(C105:C116)-MIN(C105:C116)<5,AVERAGEIF(C105:C116,">0",H105:H116), IF(FORECAST($C102,H$105:H$116,$C$105:$C$116)<0,0, IF(FORECAST($C102,H$105:H$116,$C$105:$C$116)>100,100, FORECAST($C102,H$105:H$116,$C$105:$C$116)))) -> 0.1295528332 | I102: =IF(MAX(C105:C116)-MIN(C105:C116)<5,AVERAGEIF(C105:C116,">0",I105:I116), IF(FORECAST($C102,I$105:I$116,$C$105:$C$116)<0,0, IF(FORECAST($C102,I$105:I$116,$C$105:$C$116)>100,100, FORECAST($C102,I$105:I$116,$C$105:$C$116)))) -> 99.09665494 | M102: =IF(MAX(C105:C116)-MIN(C105:C116)<5,AVERAGEIF(C105:C116,">0",M105:M116), IF(FORECAST($C102,M$105:M$116,$C$105:$C$116)<0,0, IF(FORECAST($C102,M$105:M$116,$C$105:$C$116)>100,100, FORECAST($C102,M$105:M$116,$C$105:$C$116)))) -> 0 | N102: =IF(MAX(C105:C116)-MIN(C105:C116)<5,AVERAGEIF(C105:C116,">0",N105:N116), IF(FORECAST($C102,N$105:N$116,$C$105:$C$116)<0,0, IF(FORECAST($C102,N$105:N$116,$C$105:$C$116)>100,100, FORECAST($C102,N$105:N$116,$C$105:$C$116)))) -> 99.58521536 | R102: =IF(MAX(C105:C116)-MIN(C105:C116)<5,AVERAGEIF(C105:C116,">0",R105:R116), IF(FORECAST($C102,R$105:R$116,$C$105:$C$116)<0,0, IF(FORECAST($C102,R$105:R$116,$C$105:$C$116)>100,100, FORECAST($C102,R$105:R$116,$C$105:$C$116)))) -> 0 | S102: =IF(MAX(C105:C116)-MIN(C105:C116)<5,AVERAGEIF(C105:C116,">0",S105:S116), IF(FORECAST($C102,S$105:S$116,$C$105:$C$116)<0,0, IF(FORECAST($C102,S$105:S$116,$C$105:$C$116)>100,100, FORECAST($C102,S$105:S$116,$C$105:$C$116)))) -> 99.60447549 | W102: =IF(MAX(C105:C116)-MIN(C105:C116)<5,AVERAGEIF(C105:C116,">0",W105:W116), IF(FORECAST($C102,W$105:W$116,$C$105:$C$116)<0,0, IF(FORECAST($C102,W$105:W$116,$C$105:$C$116)>100,100, FORECAST($C102,W$105:W$116,$C$105:$C$116)))) -> 0 | X102: =IF(MAX(C105:C116)-MIN(C105:C116)<5,AVERAGEIF(C105:C116,">0",X105:X116), IF(FORECAST($C102,X$105:X$116,$C$105:$C$116)<0,0, IF(FORECAST($C102,X$105:X$116,$C$105:$C$116)>100,100, FORECAST($C102,X$105:X$116,$C$105:$C$116)))) -> 99.52277603 | AB102: =IF(MAX(C105:C116)-MIN(C105:C116)<5,AVERAGEIF(C105:C116,">0",AB105:AB116), IF(FORECAST($C102,AB$105:AB$116,$C$105:$C$116)<0,0, IF(FORECAST($C102,AB$105:AB$116,$C$105:$C$116)>100,100, FORECAST($C102,AB$105:AB$116,$C$105:$C$116)))) -> 0
B104: Survey | C104: Year | D104: Improved | E104: % Improved < = 30min | H104: Surface water | I104: Improved | J104: % Improved < = 30min | M104: Surface water | N104: Improved | O104: % Improved < = 30min | R104: Surface water | S104: Improved | T104: % Improved < = 30min | W104: Surface water | X104: Improved | Y104: % Improved < = 30min | AB104: Surface water
B105: MICS06 | C105: 2006 | D105: =IF(ISERROR(INDIRECT(CONCATENATE($B105,"!C16"))),"",INDIRECT(CONCATENATE($B105,"!C16"))) -> 97.85576671 | E105: =IF(ISERROR(INDIRECT(CONCATENATE($B105,"!C23"))),"",INDIRECT(CONCATENATE($B105,"!C23"))) -> 98.97322042 | H105: =IF(ISERROR(INDIRECT(CONCATENATE($B105,"!C21"))),"",INDIRECT(CONCATENATE($B105,"!C21"))) -> 0 | I105: =IF(ISERROR(INDIRECT(CONCATENATE($B105,"!D16"))),"",INDIRECT(CONCATENATE($B105,"!D16"))) -> 99.4403064 | J105: =IF(ISERROR(INDIRECT(CONCATENATE($B105,"!D23"))),"",INDIRECT(CONCATENATE($B105,"!D23"))) -> 99.38127765 | M105: =IF(ISERROR(INDIRECT(CONCATENATE($B105,"!D21"))),"",INDIRECT(CONCATENATE($B105,"!D21"))) -> 0 | N105: =IF(ISERROR(INDIRECT(CONCATENATE($B105,"!E16"))),"",INDIRECT(CONCATENATE($B105,"!E16"))) -> 99.11695939 | O105: =IF(ISERROR(INDIRECT(CONCATENATE($B105,"!E23"))),"",INDIRECT(CONCATENATE($B105,"!E23"))) -> 99.71756011 | R105: =IF(ISERROR(INDIRECT(CONCATENATE($B105,"!E21"))),"",INDIRECT(CONCATENATE($B105,"!E21"))) -> 0 | S105: =IF(ISERROR(INDIRECT(CONCATENATE($B105,"!F16"))),"",INDIRECT(CONCATENATE($B105,"!F16"))) -> 99.24480041 | T105: =IF(ISERROR(INDIRECT(CONCATENATE($B105,"!F23"))),"",INDIRECT(CONCATENATE($B105,"!F23"))) -> 99.62601154 | W105: =IF(ISERROR(INDIRECT(CONCATENATE($B105,"!F21"))),"",INDIRECT(CONCATENATE($B105,"!F21"))) -> 0 | X105: =IF(ISERROR(INDIRECT(CONCATENATE($B105,"!G16"))),"",INDIRECT(CONCATENATE($B105,"!G16"))) -> 99.87491129 | Y105: =IF(ISERROR(INDIRECT(CONCATENATE($B105,"!G23"))),"",INDIRECT(CONCATENATE($B105,"!G23"))) -> 99.64102406 | AB105: =IF(ISERROR(INDIRECT(CONCATENATE($B105,"!G221"))),"",INDIRECT(CONCATENATE($B105,"!G21"))) -> 0
B106: MICS10 | C106: 2010 | D106: 98.84297498 | E106: 99.88528496 | H106: 0 | I106: 99.92327348 | J106: 99.29556137 | M106: 0 | N106: 99.92531818 | O106: 99.55228578 | R106: 0 | S106: 99.92330104 | T106: 99.6286318 | W106: 0 | X106: 99.9163633 | Y106: 99.73926881 | AB106: 0
B107: MICS14 | C107: 2014 | D107: 98.05851371 | E107: 99.02131638 | H107: 0.08182284203 | I107: 99.79738228 | J107: 98.67548418 | M107: 0 | N107: 99.76425656 | O107: 98.47034013 | R107: 0 | S107: 99.96751519 | T107: 98.75843132 | W107: 0 | X107: 100 | Y107: 99.34440036 | AB107: 0
B108: MICS19 | C108: 2019 | D108: 99.03617585 | E108: 99.07391071 | H108: N/A | I108: 98.80754783 | J108: 99.69440754 | M108: N/A | N108: 99.31556213 | O108: 99.2506781 | R108: N/A | S108: 99.28319401 | T108: 98.97433488 | W108: N/A | X108: 99.3782768 | Y108: 99.81889475 | AB108: N/A
D111: =IF(ISERROR(INDIRECT(CONCATENATE($B111,"!C16"))),"",INDIRECT(CONCATENATE($B111,"!C16"))) ->  | E111: =IF(ISERROR(INDIRECT(CONCATENATE($B111,"!C23"))),"",INDIRECT(CONCATENATE($B111,"!C23"))) ->  | H111: =IF(ISERROR(INDIRECT(CONCATENATE($B111,"!C21"))),"",INDIRECT(CONCATENATE($B111,"!C21"))) ->  | I111: =IF(ISERROR(INDIRECT(CONCATENATE($B111,"!D16"))),"",INDIRECT(CONCATENATE($B111,"!D16"))) ->  | J111: =IF(ISERROR(INDIRECT(CONCATENATE($B111,"!D23"))),"",INDIRECT(CONCATENATE($B111,"!D23"))) ->  | M111: =IF(ISERROR(INDIRECT(CONCATENATE($B111,"!D21"))),"",INDIRECT(CONCATENATE($B111,"!D21"))) ->  | N111: =IF(ISERROR(INDIRECT(CONCATENATE($B111,"!E16"))),"",INDIRECT(CONCATENATE($B111,"!E16"))) ->  | O111: =IF(ISERROR(INDIRECT(CONCATENATE($B111,"!E23"))),"",INDIRECT(CONCATENATE($B111,"!E23"))) ->  | R111: =IF(ISERROR(INDIRECT(CONCATENATE($B111,"!E21"))),"",INDIRECT(CONCATENATE($B111,"!E21"))) ->  | S111: =IF(ISERROR(INDIRECT(CONCATENATE($B111,"!F16"))),"",INDIRECT(CONCATENATE($B111,"!F16"))) ->  | T111: =IF(ISERROR(INDIRECT(CONCATENATE($B111,"!F23"))),"",INDIRECT(CONCATENATE($B111,"!F23"))) ->  | W111: =IF(ISERROR(INDIRECT(CONCATENATE($B111,"!F21"))),"",INDIRECT(CONCATENATE($B111,"!F21"))) ->  | X111: =IF(ISERROR(INDIRECT(CONCATENATE($B111,"!G16"))),"",INDIRECT(CONCATENATE($B111,"!G16"))) ->  | Y111: =IF(ISERROR(INDIRECT(CONCATENATE($B111,"!G23"))),"",INDIRECT(CONCATENATE($B111,"!G23"))) ->  | AB111: =IF(ISERROR(INDIRECT(CONCATENATE($B111,"!G221"))),"",INDIRECT(CONCATENATE($B111,"!G21"))) -> 
D112: =IF(ISERROR(INDIRECT(CONCATENATE($B112,"!C16"))),"",INDIRECT(CONCATENATE($B112,"!C16"))) ->  | E112: =IF(ISERROR(INDIRECT(CONCATENATE($B112,"!C23"))),"",INDIRECT(CONCATENATE($B112,"!C23"))) ->  | H112: =IF(ISERROR(INDIRECT(CONCATENATE($B112,"!C21"))),"",INDIRECT(CONCATENATE($B112,"!C21"))) ->  | I112: =IF(ISERROR(INDIRECT(CONCATENATE($B112,"!D16"))),"",INDIRECT(CONCATENATE($B112,"!D16"))) ->  | J112: =IF(ISERROR(INDIRECT(CONCATENATE($B112,"!D23"))),"",INDIRECT(CONCATENATE($B112,"!D23"))) ->  | M112: =IF(ISERROR(INDIRECT(CONCATENATE($B112,"!D21"))),"",INDIRECT(CONCATENATE($B112,"!D21"))) ->  | N112: =IF(ISERROR(INDIRECT(CONCATENATE($B112,"!E16"))),"",INDIRECT(CONCATENATE($B112,"!E16"))) ->  | O112: =IF(ISERROR(INDIRECT(CONCATENATE($B112,"!E23"))),"",INDIRECT(CONCATENATE($B112,"!E23"))) ->  | R112: =IF(ISERROR(INDIRECT(CONCATENATE($B112,"!E21"))),"",INDIRECT(CONCATENATE($B112,"!E21"))) ->  | S112: =IF(ISERROR(INDIRECT(CONCATENATE($B112,"!F16"))),"",INDIRECT(CONCATENATE($B112,"!F16"))) ->  | T112: =IF(ISERROR(INDIRECT(CONCATENATE($B112,"!F23"))),"",INDIRECT(CONCATENATE($B112,"!F23"))) ->  | W112: =IF(ISERROR(INDIRECT(CONCATENATE($B112,"!F21"))),"",INDIRECT(CONCATENATE($B112,"!F21"))) ->  | X112: =IF(ISERROR(INDIRECT(CONCATENATE($B112,"!G16"))),"",INDIRECT(CONCATENATE($B112,"!G16"))) ->  | Y112: =IF(ISERROR(INDIRECT(CONCATENATE($B112,"!G23"))),"",INDIRECT(CONCATENATE($B112,"!G23"))) ->  | AB112: =IF(ISERROR(INDIRECT(CONCATENATE($B112,"!G221"))),"",INDIRECT(CONCATENATE($B112,"!G21"))) -> 
B118: =CONCATENATE("National use of drinking water sources, ",C99,"–",C100) -> National use of drinking water sources, 2000–2020 | S118: Data points used for regression
E153: =IF(ISERROR(INDIRECT(CONCATENATE($B153,"!M18"))),"",INDIRECT(CONCATENATE($B153,"!M18"))) ->  | F153: =IF(ISERROR(INDIRECT(CONCATENATE($B153,"!M19"))),"",INDIRECT(CONCATENATE($B153,"!M19"))) ->  | G153: =IF(ISERROR(INDIRECT(CONCATENATE($B153,"!M20"))),"",INDIRECT(CONCATENATE($B153,"!M20"))) ->  | H153: =IF(ISERROR(INDIRECT(CONCATENATE($B153,"!M21"))),"",INDIRECT(CONCATENATE($B153,"!M21"))) ->  | J153: =IF(ISERROR(INDIRECT(CONCATENATE($B153,"!N18"))),"",INDIRECT(CONCATENATE($B153,"!N18"))) ->  | K153: =IF(ISERROR(INDIRECT(CONCATENATE($B153,"!N19"))),"",INDIRECT(CONCATENATE($B153,"!N19"))) ->  | L153: =IF(ISERROR(INDIRECT(CONCATENATE($B153,"!N20"))),"",INDIRECT(CONCATENATE($B153,"!N20"))) ->  | M153: =IF(ISERROR(INDIRECT(CONCATENATE($B153,"!N21"))),"",INDIRECT(CONCATENATE($B153,"!N21"))) ->  | O153: =IF(ISERROR(INDIRECT(CONCATENATE($B153,"!O18"))),"",INDIRECT(CONCATENATE($B153,"!O18"))) ->  | P153: =IF(ISERROR(INDIRECT(CONCATENATE($B153,"!O19"))),"",INDIRECT(CONCATENATE($B153,"!O19"))) ->  | Q153: =IF(ISERROR(INDIRECT(CONCATENATE($B153,"!O20"))),"",INDIRECT(CONCATENATE($B153,"!O20"))) ->  | R153: =IF(ISERROR(INDIRECT(CONCATENATE($B153,"!O21"))),"",INDIRECT(CONCATENATE($B153,"!O21"))) ->  | T153: =IF(ISERROR(INDIRECT(CONCATENATE($B153,"!P18"))),"",INDIRECT(CONCATENATE($B153,"!P18"))) ->  | U153: =IF(ISERROR(INDIRECT(CONCATENATE($B153,"!P19"))),"",INDIRECT(CONCATENATE($B153,"!P19"))) ->  | V153: =IF(ISERROR(INDIRECT(CONCATENATE($B153,"!P20"))),"",INDIRECT(CONCATENATE($B153,"!P20"))) ->  | W153: =IF(ISERROR(INDIRECT(CONCATENATE($B153,"!P21"))),"",INDIRECT(CONCATENATE($B153,"!P21"))) ->  | Y153: =IF(ISERROR(INDIRECT(CONCATENATE($B153,"!Q18"))),"",INDIRECT(CONCATENATE($B153,"!Q18"))) ->  | Z153: =IF(ISERROR(INDIRECT(CONCATENATE($B153,"!Q19"))),"",INDIRECT(CONCATENATE($B153,"!Q19"))) ->  | AA153: =IF(ISERROR(INDIRECT(CONCATENATE($B153,"!Q20"))),"",INDIRECT(CONCATENATE($B153,"!Q20"))) ->  | AB153: =IF(ISERROR(INDIRECT(CONCATENATE($B153,"!Q21"))),"",INDIRECT(CONCATENATE($B153,"!Q1"))) -> 
A197: URBAN | D197: Poorest | I197: Poor | N197: Middle | S197: Rich | X197: Richest
D198: Improved | E198: Basic | F198: Limited | G198: Unimproved | H198: Surface water | I198: Improved | J198: Basic | K198: Limited | L198: Unimproved | M198: Surface water | N198: Improved | O198: Basic | P198: Limited | Q198: Unimproved | R198: Surface water | S198: Improved | T198: Basic | U198: Limited | V198: Unimproved | W198: Surface water | X198: Improved | Y198: Basic | Z198: Limited | AA198: Unimproved | AB198: Surface water
A199: Forecast period: | C199: 2000 | D199: =IF((D201+H201)>100,D201*100/(D201+H201),D201) -> 99.33755515 | E199: =D199*AVERAGEIF(E205:E216,">0")/100 -> 98.60249878 | F199: =D199*(100-AVERAGEIF(E205:E216,">0"))/100 -> 0.7350563637 | G199: =100-(E199+F199+H199) -> 0.6624448523 | H199: =IF((D201+H201)>100,H201*100/(D201+H201),H201) -> 0 | I199: =IF((I201+M201)>100,I201*100/(I201+M201),I201) -> 100 | J199: =I199*AVERAGEIF(J205:J216,">0")/100 -> 99.03006079 | K199: =I199*(100-AVERAGEIF(J205:J216,">0"))/100 -> 0.9699392127 | L199: =100-(J199+K199+M199) -> 0 | M199: =IF((I201+M201)>100,M201*100/(I201+M201),M201) -> 0 | N199: =IF((N201+R201)>100,N201*100/(N201+R201),N201) -> 99.54067208 | O199: =N199*AVERAGEIF(O205:O216,">0")/100 -> 99.0597695 | P199: =N199*(100-AVERAGEIF(O205:O216,">0"))/100 -> 0.4809025789 | Q199: =100-(O199+P199+R199) -> 0.4593279241 | R199: =IF((N201+R201)>100,R201*100/(N201+R201),R201) -> 0 | S199: =IF((S201+W201)>100,S201*100/(S201+W201),S201) -> 99.96556162 | T199: =S199*AVERAGEIF(T205:T216,">0")/100 -> 99.42919509 | U199: =S199*(100-AVERAGEIF(T205:T216,">0"))/100 -> 0.5363665351 | V199: =100-(T199+U199+W199) -> 0.03443837615 | W199: =IF((S201+W201)>100,W201*100/(S201+W201),W201) -> 0 | X199: =IF((X201+AB201)>100,X201*100/(X201+AB201),X201) -> 99.874046 | Y199: =X199*AVERAGEIF(Y205:Y216,">0")/100 -> 99.53642022 | Z199: =X199*(100-AVERAGEIF(Y205:Y216,">0"))/100 -> 0.3376257835 | AA199: =100-(Y199+Z199+AB199) -> 0.1259539975 | AB199: =IF((X201+AB201)>100,AB201*100/(X201+AB201),AB201) -> 0
C200: 2020 | D200: =IF((D202+H202)>100,D202*100/(D202+H202),D202) -> 99.76086306 | E200: =D200*AVERAGEIF(E205:E216,">0")/100 -> 99.0226744 | F200: =D200*(100-AVERAGEIF(E205:E216,">0"))/100 -> 0.7381886652 | G200: =100-(E200+F200+H200) -> 0.2391369377 | H200: =IF((D202+H202)>100,H202*100/(D202+H202),H202) -> 0 | I200: =IF((I202+M202)>100,I202*100/(I202+M202),I202) -> 99.61063457 | J200: =I200*AVERAGEIF(J205:J216,">0")/100 -> 98.64447196 | K200: =I200*(100-AVERAGEIF(J205:J216,">0"))/100 -> 0.9661626047 | L200: =100-(J200+K200+M200) -> 0.3893654348 | M200: =IF((I202+M202)>100,M202*100/(I202+M202),M202) -> 0 | N200: =IF((N202+R202)>100,N202*100/(N202+R202),N202) -> 100 | O200: =N200*AVERAGEIF(O205:O216,">0")/100 -> 99.51687831 | P200: =N200*(100-AVERAGEIF(O205:O216,">0"))/100 -> 0.4831216917 | Q200: =100-(O200+P200+R200) -> 0 | R200: =IF((N202+R202)>100,R202*100/(N202+R202),R202) -> 0 | S200: =IF((S202+W202)>100,S202*100/(S202+W202),S202) -> 99.64154889 | T200: =S200*AVERAGEIF(T205:T216,">0")/100 -> 99.10692085 | U200: =S200*(100-AVERAGEIF(T205:T216,">0"))/100 -> 0.5346280405 | V200: =100-(T200+U200+W200) -> 0.3584511067 | W200: =IF((S202+W202)>100,W202*100/(S202+W202),W202) -> 0 | X200: =IF((X202+AB202)>100,X202*100/(X202+AB202),X202) -> 100 | Y200: =X200*AVERAGEIF(Y205:Y216,">0")/100 -> 99.66194843 | Z200: =X200*(100-AVERAGEIF(Y205:Y216,">0"))/100 -> 0.3380515729 | AA200: =100-(Y200+Z200+AB200) -> 0 | AB200: =IF((X202+AB202)>100,AB202*100/(X202+AB202),AB202) -> 0
A201: Regression period: | C201: =MinRegYear(C199,C205:C216) -> 2004 | D201: =IF(MAX(C205:C216)-MIN(C205:C216)<5,AVERAGEIF(C205:C216,">0",D205:D216), IF(FORECAST($C201,D$205:D$216,$C$205:$C$216)<0,0, IF(FORECAST($C201,D$205:D$216,$C$205:$C$216)>100,100, FORECAST($C201,D$205:D$216,$C$205:$C$216)))) -> 99.33755515 | H201: =IF(MAX(C205:C216)-MIN(C205:C216)<5,AVERAGEIF(C205:C216,">0",H205:H216), IF(FORECAST($C201,H$205:H$216,$C$205:$C$216)<0,0, IF(FORECAST($C201,H$205:H$216,$C$205:$C$216)>100,100, FORECAST($C201,H$205:H$216,$C$205:$C$216)))) -> 0 | I201: =IF(MAX(C205:C216)-MIN(C205:C216)<5,AVERAGEIF(C205:C216,">0",I205:I216), IF(FORECAST($C201,I$205:I$216,$C$205:$C$216)<0,0, IF(FORECAST($C201,I$205:I$216,$C$205:$C$216)>100,100, FORECAST($C201,I$205:I$216,$C$205:$C$216)))) -> 100 | M201: =IF(MAX(C205:C216)-MIN(C205:C216)<5,AVERAGEIF(C205:C216,">0",M205:M216), IF(FORECAST($C201,M$205:M$216,$C$205:$C$216)<0,0, IF(FORECAST($C201,M$205:M$216,$C$205:$C$216)>100,100, FORECAST($C201,M$205:M$216,$C$205:$C$216)))) -> 0 | N201: =IF(MAX(C205:C216)-MIN(C205:C216)<5,AVERAGEIF(C205:C216,">0",N205:N216), IF(FORECAST($C201,N$205:N$216,$C$205:$C$216)<0,0, IF(FORECAST($C201,N$205:N$216,$C$205:$C$216)>100,100, FORECAST($C201,N$205:N$216,$C$205:$C$216)))) -> 99.54067208 | R201: =IF(MAX(C205:C216)-MIN(C205:C216)<5,AVERAGEIF(C205:C216,">0",R205:R216), IF(FORECAST($C201,R$205:R$216,$C$205:$C$216)<0,0, IF(FORECAST($C201,R$205:R$216,$C$205:$C$216)>100,100, FORECAST($C201,R$205:R$216,$C$205:$C$216)))) -> 0 | S201: =IF(MAX(C205:C216)-MIN(C205:C216)<5,AVERAGEIF(C205:C216,">0",S205:S216), IF(FORECAST($C201,S$205:S$216,$C$205:$C$216)<0,0, IF(FORECAST($C201,S$205:S$216,$C$205:$C$216)>100,100, FORECAST($C201,S$205:S$216,$C$205:$C$216)))) -> 99.96556162 | W201: =IF(MAX(C205:C216)-MIN(C205:C216)<5,AVERAGEIF(C205:C216,">0",W205:W216), IF(FORECAST($C201,W$205:W$216,$C$205:$C$216)<0,0, IF(FORECAST($C201,W$205:W$216,$C$205:$C$216)>100,100, FORECAST($C201,W$205:W$216,$C$205:$C$216)))) -> 0 | X201: =IF(MAX(C205:C216)-MIN(C205:C216)<5,AVERAGEIF(C205:C216,">0",X205:X216), IF(FORECAST($C201,X$205:X$216,$C$205:$C$216)<0,0, IF(FORECAST($C201,X$205:X$216,$C$205:$C$216)>100,100, FORECAST($C201,X$205:X$216,$C$205:$C$216)))) -> 99.874046 | AB201: =IF(MAX(C205:C216)-MIN(C205:C216)<5,AVERAGEIF(C205:C216,">0",AB205:AB216), IF(FORECAST($C201,AB$205:AB$216,$C$205:$C$216)<0,0, IF(FORECAST($C201,AB$205:AB$216,$C$205:$C$216)>100,100, FORECAST($C201,AB$205:AB$216,$C$205:$C$216)))) -> 0
C202: =MaxRegYear(C200,C205:C216) -> 2020 | D202: =IF(MAX(C205:C216)-MIN(C205:C216)<5,AVERAGEIF(C205:C216,">0",D205:D216), IF(FORECAST($C202,D$205:D$216,$C$205:$C$216)<0,0, IF(FORECAST($C202,D$205:D$216,$C$205:$C$216)>100,100, FORECAST($C202,D$205:D$216,$C$205:$C$216)))) -> 99.76086306 | H202: =IF(MAX(C205:C216)-MIN(C205:C216)<5,AVERAGEIF(C205:C216,">0",H205:H216), IF(FORECAST($C202,H$205:H$216,$C$205:$C$216)<0,0, IF(FORECAST($C202,H$205:H$216,$C$205:$C$216)>100,100, FORECAST($C202,H$205:H$216,$C$205:$C$216)))) -> 0 | I202: =IF(MAX(C205:C216)-MIN(C205:C216)<5,AVERAGEIF(C205:C216,">0",I205:I216), IF(FORECAST($C202,I$205:I$216,$C$205:$C$216)<0,0, IF(FORECAST($C202,I$205:I$216,$C$205:$C$216)>100,100, FORECAST($C202,I$205:I$216,$C$205:$C$216)))) -> 99.61063457 | M202: =IF(MAX(C205:C216)-MIN(C205:C216)<5,AVERAGEIF(C205:C216,">0",M205:M216), IF(FORECAST($C202,M$205:M$216,$C$205:$C$216)<0,0, IF(FORECAST($C202,M$205:M$216,$C$205:$C$216)>100,100, FORECAST($C202,M$205:M$216,$C$205:$C$216)))) -> 0 | N202: =IF(MAX(C205:C216)-MIN(C205:C216)<5,AVERAGEIF(C205:C216,">0",N205:N216), IF(FORECAST($C202,N$205:N$216,$C$205:$C$216)<0,0, IF(FORECAST($C202,N$205:N$216,$C$205:$C$216)>100,100, FORECAST($C202,N$205:N$216,$C$205:$C$216)))) -> 100 | R202: =IF(MAX(C205:C216)-MIN(C205:C216)<5,AVERAGEIF(C205:C216,">0",R205:R216), IF(FORECAST($C202,R$205:R$216,$C$205:$C$216)<0,0, IF(FORECAST($C202,R$205:R$216,$C$205:$C$216)>100,100, FORECAST($C202,R$205:R$216,$C$205:$C$216)))) -> 0 | S202: =IF(MAX(C205:C216)-MIN(C205:C216)<5,AVERAGEIF(C205:C216,">0",S205:S216), IF(FORECAST($C202,S$205:S$216,$C$205:$C$216)<0,0, IF(FORECAST($C202,S$205:S$216,$C$205:$C$216)>100,100, FORECAST($C202,S$205:S$216,$C$205:$C$216)))) -> 99.64154889 | W202: =IF(MAX(C205:C216)-MIN(C205:C216)<5,AVERAGEIF(C205:C216,">0",W205:W216), IF(FORECAST($C202,W$205:W$216,$C$205:$C$216)<0,0, IF(FORECAST($C202,W$205:W$216,$C$205:$C$216)>100,100, FORECAST($C202,W$205:W$216,$C$205:$C$216)))) -> 0 | X202: =IF(MAX(C205:C216)-MIN(C205:C216)<5,AVERAGEIF(C205:C216,">0",X205:X216), IF(FORECAST($C202,X$205:X$216,$C$205:$C$216)<0,0, IF(FORECAST($C202,X$205:X$216,$C$205:$C$216)>100,100, FORECAST($C202,X$205:X$216,$C$205:$C$216)))) -> 100 | AB202: =IF(MAX(C205:C216)-MIN(C205:C216)<5,AVERAGEIF(C205:C216,">0",AB205:AB216), IF(FORECAST($C202,AB$205:AB$216,$C$205:$C$216)<0,0, IF(FORECAST($C202,AB$205:AB$216,$C$205:$C$216)>100,100, FORECAST($C202,AB$205:AB$216,$C$205:$C$216)))) -> 0
B204: Survey | C204: Year | D204: Improved | E204: % Improved < = 30min | H204: Surface water | I204: Improved | J204: % Improved < = 30min | M204: Surface water | N204: Improved | O204: % Improved < = 30min | R204: Surface water | S204: Improved | T204: % Improved < = 30min | W204: Surface water | X204: Improved | Y204: % Improved < = 30min | AB204: Surface water
B205: MICS06 | C205: 2006 | D205: =IF(ISERROR(INDIRECT(CONCATENATE($B205,"!H16"))),"",INDIRECT(CONCATENATE($B205,"!H16"))) -> 99.35825432 | E205: =IF(ISERROR(INDIRECT(CONCATENATE($B205,"!H23"))),"",INDIRECT(CONCATENATE($B205,"!H23"))) -> 99.19857519 | H205: =IF(ISERROR(INDIRECT(CONCATENATE($B205,"!H21"))),"",INDIRECT(CONCATENATE($B205,"!H21"))) -> 0 | I205: =IF(ISERROR(INDIRECT(CONCATENATE($B205,"!I16"))),"",INDIRECT(CONCATENATE($B205,"!I16"))) -> 99.94736793 | J205: =IF(ISERROR(INDIRECT(CONCATENATE($B205,"!I23"))),"",INDIRECT(CONCATENATE($B205,"!I23"))) -> 99.84620765 | M205: =IF(ISERROR(INDIRECT(CONCATENATE($B205,"!I21"))),"",INDIRECT(CONCATENATE($B205,"!I21"))) -> 0 | N205: =IF(ISERROR(INDIRECT(CONCATENATE($B205,"!J16"))),"",INDIRECT(CONCATENATE($B205,"!J16"))) -> 99.45368356 | O205: =IF(ISERROR(INDIRECT(CONCATENATE($B205,"!J23"))),"",INDIRECT(CONCATENATE($B205,"!J23"))) -> 99.67974273 | R205: =IF(ISERROR(INDIRECT(CONCATENATE($B205,"!J21"))),"",INDIRECT(CONCATENATE($B205,"!J21"))) -> 0 | S205: =IF(ISERROR(INDIRECT(CONCATENATE($B205,"!K16"))),"",INDIRECT(CONCATENATE($B205,"!K16"))) -> 99.74218198 | T205: =IF(ISERROR(INDIRECT(CONCATENATE($B205,"!K23"))),"",INDIRECT(CONCATENATE($B205,"!K23"))) -> 99.81668836 | W205: =IF(ISERROR(INDIRECT(CONCATENATE($B205,"!K21"))),"",INDIRECT(CONCATENATE($B205,"!K21"))) -> 0 | X205: =IF(ISERROR(INDIRECT(CONCATENATE($B205,"!L16"))),"",INDIRECT(CONCATENATE($B205,"!L16"))) -> 99.84371594 | Y205: =IF(ISERROR(INDIRECT(CONCATENATE($B205,"!L23"))),"",INDIRECT(CONCATENATE($B205,"!L23"))) -> 99.89442529 | AB205: =IF(ISERROR(INDIRECT(CONCATENATE($B205,"!L221"))),"",INDIRECT(CONCATENATE($B205,"!L21"))) -> 0
B206: MICS10 | C206: 2010 | D206: 99.58864005 | E206: 99.63864298 | H206: 0 | I206: 100 | J206: 99.15936524 | M206: 0 | N206: 99.93458908 | O206: 99.77945324 | R206: 0 | S206: 99.97657719 | T206: 100 | W206: 0 | X206: 100 | Y206: 99.59848197 | AB206: 0
B207: MICS14 | C207: 2014 | D207: 99.51965984 | E207: 98.74551299 | H207: 0 | I207: 100 | J207: 97.94970601 | M207: 0 | N207: 99.94509195 | O207: 99.34003103 | R207: 0 | S207: 100 | T207: 98.77836185 | W207: 0 | X207: 100 | Y207: 99.42888464 | AB207: 0
B208: MICS19 | C208: 2019 | D208: 99.75673896 | E208: 99.45743613 | H208: N/A | I208: 99.50407147 | J208: 99.16496425 | M208: N/A | N208: 99.95551261 | O208: 99.26828624 | R208: N/A | S208: 99.47521107 | T208: 99.25874453 | W208: N/A | X208: 100 | Y208: 99.72600181 | AB208: N/A
B218: =CONCATENATE("Urban use of drinking water sources, ",C199,"–",C200) -> Urban use of drinking water sources, 2000–2020 | S218: Data points used for regression
E253: =IF(ISERROR(INDIRECT(CONCATENATE($B253,"!M18"))),"",INDIRECT(CONCATENATE($B253,"!M18"))) ->  | F253: =IF(ISERROR(INDIRECT(CONCATENATE($B253,"!M19"))),"",INDIRECT(CONCATENATE($B253,"!M19"))) ->  | G253: =IF(ISERROR(INDIRECT(CONCATENATE($B253,"!M20"))),"",INDIRECT(CONCATENATE($B253,"!M20"))) ->  | H253: =IF(ISERROR(INDIRECT(CONCATENATE($B253,"!M21"))),"",INDIRECT(CONCATENATE($B253,"!M21"))) ->  | J253: =IF(ISERROR(INDIRECT(CONCATENATE($B253,"!N18"))),"",INDIRECT(CONCATENATE($B253,"!N18"))) ->  | K253: =IF(ISERROR(INDIRECT(CONCATENATE($B253,"!N19"))),"",INDIRECT(CONCATENATE($B253,"!N19"))) ->  | L253: =IF(ISERROR(INDIRECT(CONCATENATE($B253,"!N20"))),"",INDIRECT(CONCATENATE($B253,"!N20"))) ->  | M253: =IF(ISERROR(INDIRECT(CONCATENATE($B253,"!N21"))),"",INDIRECT(CONCATENATE($B253,"!N21"))) ->  | O253: =IF(ISERROR(INDIRECT(CONCATENATE($B253,"!O18"))),"",INDIRECT(CONCATENATE($B253,"!O18"))) ->  | P253: =IF(ISERROR(INDIRECT(CONCATENATE($B253,"!O19"))),"",INDIRECT(CONCATENATE($B253,"!O19"))) ->  | Q253: =IF(ISERROR(INDIRECT(CONCATENATE($B253,"!O20"))),"",INDIRECT(CONCATENATE($B253,"!O20"))) ->  | R253: =IF(ISERROR(INDIRECT(CONCATENATE($B253,"!O21"))),"",INDIRECT(CONCATENATE($B253,"!O21"))) ->  | T253: =IF(ISERROR(INDIRECT(CONCATENATE($B253,"!P18"))),"",INDIRECT(CONCATENATE($B253,"!P18"))) ->  | U253: =IF(ISERROR(INDIRECT(CONCATENATE($B253,"!P19"))),"",INDIRECT(CONCATENATE($B253,"!P19"))) ->  | V253: =IF(ISERROR(INDIRECT(CONCATENATE($B253,"!P20"))),"",INDIRECT(CONCATENATE($B253,"!P20"))) ->  | W253: =IF(ISERROR(INDIRECT(CONCATENATE($B253,"!P21"))),"",INDIRECT(CONCATENATE($B253,"!P21"))) ->  | Y253: =IF(ISERROR(INDIRECT(CONCATENATE($B253,"!Q18"))),"",INDIRECT(CONCATENATE($B253,"!Q18"))) ->  | Z253: =IF(ISERROR(INDIRECT(CONCATENATE($B253,"!Q19"))),"",INDIRECT(CONCATENATE($B253,"!Q19"))) ->  | AA253: =IF(ISERROR(INDIRECT(CONCATENATE($B253,"!Q20"))),"",INDIRECT(CONCATENATE($B253,"!Q20"))) ->  | AB253: =IF(ISERROR(INDIRECT(CONCATENATE($B253,"!Q21"))),"",INDIRECT(CONCATENATE($B253,"!Q1"))) -> 
E254: =IF(ISERROR(INDIRECT(CONCATENATE($B254,"!M18"))),"",INDIRECT(CONCATENATE($B254,"!M18"))) ->  | F254: =IF(ISERROR(INDIRECT(CONCATENATE($B254,"!M19"))),"",INDIRECT(CONCATENATE($B254,"!M19"))) ->  | G254: =IF(ISERROR(INDIRECT(CONCATENATE($B254,"!M20"))),"",INDIRECT(CONCATENATE($B254,"!M20"))) ->  | H254: =IF(ISERROR(INDIRECT(CONCATENATE($B254,"!M21"))),"",INDIRECT(CONCATENATE($B254,"!M21"))) ->  | J254: =IF(ISERROR(INDIRECT(CONCATENATE($B254,"!N18"))),"",INDIRECT(CONCATENATE($B254,"!N18"))) ->  | K254: =IF(ISERROR(INDIRECT(CONCATENATE($B254,"!N19"))),"",INDIRECT(CONCATENATE($B254,"!N19"))) ->  | L254: =IF(ISERROR(INDIRECT(CONCATENATE($B254,"!N20"))),"",INDIRECT(CONCATENATE($B254,"!N20"))) ->  | M254: =IF(ISERROR(INDIRECT(CONCATENATE($B254,"!N21"))),"",INDIRECT(CONCATENATE($B254,"!N21"))) ->  | O254: =IF(ISERROR(INDIRECT(CONCATENATE($B254,"!O18"))),"",INDIRECT(CONCATENATE($B254,"!O18"))) ->  | P254: =IF(ISERROR(INDIRECT(CONCATENATE($B254,"!O19"))),"",INDIRECT(CONCATENATE($B254,"!O19"))) ->  | Q254: =IF(ISERROR(INDIRECT(CONCATENATE($B254,"!O20"))),"",INDIRECT(CONCATENATE($B254,"!O20"))) ->  | R254: =IF(ISERROR(INDIRECT(CONCATENATE($B254,"!O21"))),"",INDIRECT(CONCATENATE($B254,"!O21"))) ->  | T254: =IF(ISERROR(INDIRECT(CONCATENATE($B254,"!P18"))),"",INDIRECT(CONCATENATE($B254,"!P18"))) ->  | U254: =IF(ISERROR(INDIRECT(CONCATENATE($B254,"!P19"))),"",INDIRECT(CONCATENATE($B254,"!P19"))) ->  | V254: =IF(ISERROR(INDIRECT(CONCATENATE($B254,"!P20"))),"",INDIRECT(CONCATENATE($B254,"!P20"))) ->  | W254: =IF(ISERROR(INDIRECT(CONCATENATE($B254,"!P21"))),"",INDIRECT(CONCATENATE($B254,"!P21"))) ->  | Y254: =IF(ISERROR(INDIRECT(CONCATENATE($B254,"!Q18"))),"",INDIRECT(CONCATENATE($B254,"!Q18"))) ->  | Z254: =IF(ISERROR(INDIRECT(CONCATENATE($B254,"!Q19"))),"",INDIRECT(CONCATENATE($B254,"!Q19"))) ->  | AA254: =IF(ISERROR(INDIRECT(CONCATENATE($B254,"!Q20"))),"",INDIRECT(CONCATENATE($B254,"!Q20"))) ->  | AB254: =IF(ISERROR(INDIRECT(CONCATENATE($B254,"!Q21"))),"",INDIRECT(CONCATENATE($B254,"!Q1"))) -> 
E255: =IF(ISERROR(INDIRECT(CONCATENATE($B255,"!M18"))),"",INDIRECT(CONCATENATE($B255,"!M18"))) ->  | F255: =IF(ISERROR(INDIRECT(CONCATENATE($B255,"!M19"))),"",INDIRECT(CONCATENATE($B255,"!M19"))) ->  | G255: =IF(ISERROR(INDIRECT(CONCATENATE($B255,"!M20"))),"",INDIRECT(CONCATENATE($B255,"!M20"))) ->  | H255: =IF(ISERROR(INDIRECT(CONCATENATE($B255,"!M21"))),"",INDIRECT(CONCATENATE($B255,"!M21"))) ->  | J255: =IF(ISERROR(INDIRECT(CONCATENATE($B255,"!N18"))),"",INDIRECT(CONCATENATE($B255,"!N18"))) ->  | K255: =IF(ISERROR(INDIRECT(CONCATENATE($B255,"!N19"))),"",INDIRECT(CONCATENATE($B255,"!N19"))) ->  | L255: =IF(ISERROR(INDIRECT(CONCATENATE($B255,"!N20"))),"",INDIRECT(CONCATENATE($B255,"!N20"))) ->  | M255: =IF(ISERROR(INDIRECT(CONCATENATE($B255,"!N21"))),"",INDIRECT(CONCATENATE($B255,"!N21"))) ->  | O255: =IF(ISERROR(INDIRECT(CONCATENATE($B255,"!O18"))),"",INDIRECT(CONCATENATE($B255,"!O18"))) ->  | P255: =IF(ISERROR(INDIRECT(CONCATENATE($B255,"!O19"))),"",INDIRECT(CONCATENATE($B255,"!O19"))) ->  | Q255: =IF(ISERROR(INDIRECT(CONCATENATE($B255,"!O20"))),"",INDIRECT(CONCATENATE($B255,"!O20"))) ->  | R255: =IF(ISERROR(INDIRECT(CONCATENATE($B255,"!O21"))),"",INDIRECT(CONCATENATE($B255,"!O21"))) ->  | T255: =IF(ISERROR(INDIRECT(CONCATENATE($B255,"!P18"))),"",INDIRECT(CONCATENATE($B255,"!P18"))) ->  | U255: =IF(ISERROR(INDIRECT(CONCATENATE($B255,"!P19"))),"",INDIRECT(CONCATENATE($B255,"!P19"))) ->  | V255: =IF(ISERROR(INDIRECT(CONCATENATE($B255,"!P20"))),"",INDIRECT(CONCATENATE($B255,"!P20"))) ->  | W255: =IF(ISERROR(INDIRECT(CONCATENATE($B255,"!P21"))),"",INDIRECT(CONCATENATE($B255,"!P21"))) ->  | Y255: =IF(ISERROR(INDIRECT(CONCATENATE($B255,"!Q18"))),"",INDIRECT(CONCATENATE($B255,"!Q18"))) ->  | Z255: =IF(ISERROR(INDIRECT(CONCATENATE($B255,"!Q19"))),"",INDIRECT(CONCATENATE($B255,"!Q19"))) ->  | AA255: =IF(ISERROR(INDIRECT(CONCATENATE($B255,"!Q20"))),"",INDIRECT(CONCATENATE($B255,"!Q20"))) ->  | AB255: =IF(ISERROR(INDIRECT(CONCATENATE($B255,"!Q21"))),"",INDIRECT(CONCATENATE($B255,"!Q1"))) -> 
E256: =IF(ISERROR(INDIRECT(CONCATENATE($B256,"!M18"))),"",INDIRECT(CONCATENATE($B256,"!M18"))) ->  | F256: =IF(ISERROR(INDIRECT(CONCATENATE($B256,"!M19"))),"",INDIRECT(CONCATENATE($B256,"!M19"))) ->  | G256: =IF(ISERROR(INDIRECT(CONCATENATE($B256,"!M20"))),"",INDIRECT(CONCATENATE($B256,"!M20"))) ->  | H256: =IF(ISERROR(INDIRECT(CONCATENATE($B256,"!M21"))),"",INDIRECT(CONCATENATE($B256,"!M21"))) ->  | J256: =IF(ISERROR(INDIRECT(CONCATENATE($B256,"!N18"))),"",INDIRECT(CONCATENATE($B256,"!N18"))) ->  | K256: =IF(ISERROR(INDIRECT(CONCATENATE($B256,"!N19"))),"",INDIRECT(CONCATENATE($B256,"!N19"))) ->  | L256: =IF(ISERROR(INDIRECT(CONCATENATE($B256,"!N20"))),"",INDIRECT(CONCATENATE($B256,"!N20"))) ->  | M256: =IF(ISERROR(INDIRECT(CONCATENATE($B256,"!N21"))),"",INDIRECT(CONCATENATE($B256,"!N21"))) ->  | O256: =IF(ISERROR(INDIRECT(CONCATENATE($B256,"!O18"))),"",INDIRECT(CONCATENATE($B256,"!O18"))) ->  | P256: =IF(ISERROR(INDIRECT(CONCATENATE($B256,"!O19"))),"",INDIRECT(CONCATENATE($B256,"!O19"))) ->  | Q256: =IF(ISERROR(INDIRECT(CONCATENATE($B256,"!O20"))),"",INDIRECT(CONCATENATE($B256,"!O20"))) ->  | R256: =IF(ISERROR(INDIRECT(CONCATENATE($B256,"!O21"))),"",INDIRECT(CONCATENATE($B256,"!O21"))) ->  | T256: =IF(ISERROR(INDIRECT(CONCATENATE($B256,"!P18"))),"",INDIRECT(CONCATENATE($B256,"!P18"))) ->  | U256: =IF(ISERROR(INDIRECT(CONCATENATE($B256,"!P19"))),"",INDIRECT(CONCATENATE($B256,"!P19"))) ->  | V256: =IF(ISERROR(INDIRECT(CONCATENATE($B256,"!P20"))),"",INDIRECT(CONCATENATE($B256,"!P20"))) ->  | W256: =IF(ISERROR(INDIRECT(CONCATENATE($B256,"!P21"))),"",INDIRECT(CONCATENATE($B256,"!P21"))) ->  | Y256: =IF(ISERROR(INDIRECT(CONCATENATE($B256,"!Q18"))),"",INDIRECT(CONCATENATE($B256,"!Q18"))) ->  | Z256: =IF(ISERROR(INDIRECT(CONCATENATE($B256,"!Q19"))),"",INDIRECT(CONCATENATE($B256,"!Q19"))) ->  | AA256: =IF(ISERROR(INDIRECT(CONCATENATE($B256,"!Q20"))),"",INDIRECT(CONCATENATE($B256,"!Q20"))) ->  | AB256: =IF(ISERROR(INDIRECT(CONCATENATE($B256,"!Q21"))),"",INDIRECT(CONCATENATE($B256,"!Q1"))) -> 
E257: =IF(ISERROR(INDIRECT(CONCATENATE($B257,"!M18"))),"",INDIRECT(CONCATENATE($B257,"!M18"))) ->  | F257: =IF(ISERROR(INDIRECT(CONCATENATE($B257,"!M19"))),"",INDIRECT(CONCATENATE($B257,"!M19"))) ->  | G257: =IF(ISERROR(INDIRECT(CONCATENATE($B257,"!M20"))),"",INDIRECT(CONCATENATE($B257,"!M20"))) ->  | H257: =IF(ISERROR(INDIRECT(CONCATENATE($B257,"!M21"))),"",INDIRECT(CONCATENATE($B257,"!M21"))) ->  | J257: =IF(ISERROR(INDIRECT(CONCATENATE($B257,"!N18"))),"",INDIRECT(CONCATENATE($B257,"!N18"))) ->  | K257: =IF(ISERROR(INDIRECT(CONCATENATE($B257,"!N19"))),"",INDIRECT(CONCATENATE($B257,"!N19"))) ->  | L257: =IF(ISERROR(INDIRECT(CONCATENATE($B257,"!N20"))),"",INDIRECT(CONCATENATE($B257,"!N20"))) ->  | M257: =IF(ISERROR(INDIRECT(CONCATENATE($B257,"!N21"))),"",INDIRECT(CONCATENATE($B257,"!N21"))) ->  | O257: =IF(ISERROR(INDIRECT(CONCATENATE($B257,"!O18"))),"",INDIRECT(CONCATENATE($B257,"!O18"))) ->  | P257: =IF(ISERROR(INDIRECT(CONCATENATE($B257,"!O19"))),"",INDIRECT(CONCATENATE($B257,"!O19"))) ->  | Q257: =IF(ISERROR(INDIRECT(CONCATENATE($B257,"!O20"))),"",INDIRECT(CONCATENATE($B257,"!O20"))) ->  | R257: =IF(ISERROR(INDIRECT(CONCATENATE($B257,"!O21"))),"",INDIRECT(CONCATENATE($B257,"!O21"))) ->  | T257: =IF(ISERROR(INDIRECT(CONCATENATE($B257,"!P18"))),"",INDIRECT(CONCATENATE($B257,"!P18"))) ->  | U257: =IF(ISERROR(INDIRECT(CONCATENATE($B257,"!P19"))),"",INDIRECT(CONCATENATE($B257,"!P19"))) ->  | V257: =IF(ISERROR(INDIRECT(CONCATENATE($B257,"!P20"))),"",INDIRECT(CONCATENATE($B257,"!P20"))) ->  | W257: =IF(ISERROR(INDIRECT(CONCATENATE($B257,"!P21"))),"",INDIRECT(CONCATENATE($B257,"!P21"))) ->  | Y257: =IF(ISERROR(INDIRECT(CONCATENATE($B257,"!Q18"))),"",INDIRECT(CONCATENATE($B257,"!Q18"))) ->  | Z257: =IF(ISERROR(INDIRECT(CONCATENATE($B257,"!Q19"))),"",INDIRECT(CONCATENATE($B257,"!Q19"))) ->  | AA257: =IF(ISERROR(INDIRECT(CONCATENATE($B257,"!Q20"))),"",INDIRECT(CONCATENATE($B257,"!Q20"))) ->  | AB257: =IF(ISERROR(INDIRECT(CONCATENATE($B257,"!Q21"))),"",INDIRECT(CONCATENATE($B257,"!Q1"))) -> 
A297: RURAL | D297: Poorest | I297: Poor | N297: Middle | S297: Rich | X297: Richest
D298: Improved | E298: Basic | F298: Limited | G298: Unimproved | H298: Surface water | I298: Improved | J298: Basic | K298: Limited | L298: Unimproved | M298: Surface water | N298: Improved | O298: Basic | P298: Limited | Q298: Unimproved | R298: Surface water | S298: Improved | T298: Basic | U298: Limited | V298: Unimproved | W298: Surface water | X298: Improved | Y298: Basic | Z298: Limited | AA298: Unimproved | AB298: Surface water
A299: Forecast period: | C299: 2000 | D299: =IF((D301+H301)>100,D301*100/(D301+H301),D301) -> 97.00404617 | E299: =D299*AVERAGEIF(E305:E316,">0")/100 -> 96.23369578 | F299: =D299*(100-AVERAGEIF(E305:E316,">0"))/100 -> 0.7703503874 | G299: =100-(E299+F299+H299) -> 2.995953832 | H299: =IF((D301+H301)>100,H301*100/(D301+H301),H301) -> 0 | I299: =IF((I301+M301)>100,I301*100/(I301+M301),I301) -> 99.02066318 | J299: =I299*AVERAGEIF(J305:J316,">0")/100 -> 98.39084482 | K299: =I299*(100-AVERAGEIF(J305:J316,">0"))/100 -> 0.6298183559 | L299: =100-(J299+K299+M299) -> 0.9793368212 | M299: =IF((I301+M301)>100,M301*100/(I301+M301),M301) -> 0 | N299: =IF((N301+R301)>100,N301*100/(N301+R301),N301) -> 99.40692036 | O299: =N299*AVERAGEIF(O305:O316,">0")/100 -> 98.61567008 | P299: =N299*(100-AVERAGEIF(O305:O316,">0"))/100 -> 0.7912502827 | Q299: =100-(O299+P299+R299) -> 0.593079639 | R299: =IF((N301+R301)>100,R301*100/(N301+R301),R301) -> 0 | S299: =IF((S301+W301)>100,S301*100/(S301+W301),S301) -> 99.340883 | T299: =S299*AVERAGEIF(T305:T316,">0")/100 -> 98.72420707 | U299: =S299*(100-AVERAGEIF(T305:T316,">0"))/100 -> 0.6166759311 | V299: =100-(T299+U299+W299) -> 0.6591170038 | W299: =IF((S301+W301)>100,W301*100/(S301+W301),W301) -> 0 | X299: =IF((X301+AB301)>100,X301*100/(X301+AB301),X301) -> 100 | Y299: =X299*AVERAGEIF(Y305:Y316,">0")/100 -> 99.10562871 | Z299: =X299*(100-AVERAGEIF(Y305:Y316,">0"))/100 -> 0.8943712863 | AA299: =100-(Y299+Z299+AB299) -> 0 | AB299: =IF((X301+AB301)>100,AB301*100/(X301+AB301),AB301) -> 0
C300: 2020 | D300: =IF((D302+H302)>100,D302*100/(D302+H302),D302) -> 98.53898338 | E300: =D300*AVERAGEIF(E305:E316,">0")/100 -> 97.75644341 | F300: =D300*(100-AVERAGEIF(E305:E316,">0"))/100 -> 0.7825399766 | G300: =100-(E300+F300+H300) -> 1.355345187 | H300: =IF((D302+H302)>100,H302*100/(D302+H302),H302) -> 0.1056714277 | I300: =IF((I302+M302)>100,I302*100/(I302+M302),I302) -> 99.02301099 | J300: =I300*AVERAGEIF(J305:J316,">0")/100 -> 98.3931777 | K300: =I300*(100-AVERAGEIF(J305:J316,">0"))/100 -> 0.6298332891 | L300: =100-(J300+K300+M300) -> 0.7687001046 | M300: =IF((I302+M302)>100,M302*100/(I302+M302),M302) -> 0.2082889099 | N300: =IF((N302+R302)>100,N302*100/(N302+R302),N302) -> 99.60556919 | O300: =N300*AVERAGEIF(O305:O316,">0")/100 -> 98.81273772 | P300: =N300*(100-AVERAGEIF(O305:O316,">0"))/100 -> 0.7928314699 | Q300: =100-(O300+P300+R300) -> 0.3944308098 | R300: =IF((N302+R302)>100,R302*100/(N302+R302),R302) -> 0 | S300: =IF((S302+W302)>100,S302*100/(S302+W302),S302) -> 98.32571279 | T300: =S300*AVERAGEIF(T305:T316,">0")/100 -> 97.7153387 | U300: =S300*(100-AVERAGEIF(T305:T316,">0"))/100 -> 0.6103740842 | V300: =100-(T300+U300+W300) -> 1.674287212 | W300: =IF((S302+W302)>100,W302*100/(S302+W302),W302) -> 0 | X300: =IF((X302+AB302)>100,X302*100/(X302+AB302),X302) -> 97.77531709 | Y300: =X300*AVERAGEIF(Y305:Y316,">0")/100 -> 96.90084272 | Z300: =X300*(100-AVERAGEIF(Y305:Y316,">0"))/100 -> 0.8744743611 | AA300: =100-(Y300+Z300+AB300) -> 2.224682915 | AB300: =IF((X302+AB302)>100,AB302*100/(X302+AB302),AB302) -> 0
A301: Regression period: | C301: =MinRegYear(C299,C305:C316) -> 2004 | D301: =IF(MAX(C305:C316)-MIN(C305:C316)<5,AVERAGEIF(C305:C316,">0",D305:D316), IF(FORECAST($C301,D$305:D$316,$C$305:$C$316)<0,0, IF(FORECAST($C301,D$305:D$316,$C$305:$C$316)>100,100, FORECAST($C301,D$305:D$316,$C$305:$C$316)))) -> 97.00404617 | H301: =IF(MAX(C305:C316)-MIN(C305:C316)<5,AVERAGEIF(C305:C316,">0",H305:H316), IF(FORECAST($C301,H$305:H$316,$C$305:$C$316)<0,0, IF(FORECAST($C301,H$305:H$316,$C$305:$C$316)>100,100, FORECAST($C301,H$305:H$316,$C$305:$C$316)))) -> 0 | I301: =IF(MAX(C305:C316)-MIN(C305:C316)<5,AVERAGEIF(C305:C316,">0",I305:I316), IF(FORECAST($C301,I$305:I$316,$C$305:$C$316)<0,0, IF(FORECAST($C301,I$305:I$316,$C$305:$C$316)>100,100, FORECAST($C301,I$305:I$316,$C$305:$C$316)))) -> 99.02066318 | M301: =IF(MAX(C305:C316)-MIN(C305:C316)<5,AVERAGEIF(C305:C316,">0",M305:M316), IF(FORECAST($C301,M$305:M$316,$C$305:$C$316)<0,0, IF(FORECAST($C301,M$305:M$316,$C$305:$C$316)>100,100, FORECAST($C301,M$305:M$316,$C$305:$C$316)))) -> 0 | N301: =IF(MAX(C305:C316)-MIN(C305:C316)<5,AVERAGEIF(C305:C316,">0",N305:N316), IF(FORECAST($C301,N$305:N$316,$C$305:$C$316)<0,0, IF(FORECAST($C301,N$305:N$316,$C$305:$C$316)>100,100, FORECAST($C301,N$305:N$316,$C$305:$C$316)))) -> 99.40692036 | R301: =IF(MAX(C305:C316)-MIN(C305:C316)<5,AVERAGEIF(C305:C316,">0",R305:R316), IF(FORECAST($C301,R$305:R$316,$C$305:$C$316)<0,0, IF(FORECAST($C301,R$305:R$316,$C$305:$C$316)>100,100, FORECAST($C301,R$305:R$316,$C$305:$C$316)))) -> 0 | S301: =IF(MAX(C305:C316)-MIN(C305:C316)<5,AVERAGEIF(C305:C316,">0",S305:S316), IF(FORECAST($C301,S$305:S$316,$C$305:$C$316)<0,0, IF(FORECAST($C301,S$305:S$316,$C$305:$C$316)>100,100, FORECAST($C301,S$305:S$316,$C$305:$C$316)))) -> 99.340883 | W301: =IF(MAX(C305:C316)-MIN(C305:C316)<5,AVERAGEIF(C305:C316,">0",W305:W316), IF(FORECAST($C301,W$305:W$316,$C$305:$C$316)<0,0, IF(FORECAST($C301,W$305:W$316,$C$305:$C$316)>100,100, FORECAST($C301,W$305:W$316,$C$305:$C$316)))) -> 0 | X301: =IF(MAX(C305:C316)-MIN(C305:C316)<5,AVERAGEIF(C305:C316,">0",X305:X316), IF(FORECAST($C301,X$305:X$316,$C$305:$C$316)<0,0, IF(FORECAST($C301,X$305:X$316,$C$305:$C$316)>100,100, FORECAST($C301,X$305:X$316,$C$305:$C$316)))) -> 100 | AB301: =IF(MAX(C305:C316)-MIN(C305:C316)<5,AVERAGEIF(C305:C316,">0",AB305:AB316), IF(FORECAST($C301,AB$305:AB$316,$C$305:$C$316)<0,0, IF(FORECAST($C301,AB$305:AB$316,$C$305:$C$316)>100,100, FORECAST($C301,AB$305:AB$316,$C$305:$C$316)))) -> 0
C302: =MaxRegYear(C300,C305:C316) -> 2020 | D302: =IF(MAX(C305:C316)-MIN(C305:C316)<5,AVERAGEIF(C305:C316,">0",D305:D316), IF(FORECAST($C302,D$305:D$316,$C$305:$C$316)<0,0, IF(FORECAST($C302,D$305:D$316,$C$305:$C$316)>100,100, FORECAST($C302,D$305:D$316,$C$305:$C$316)))) -> 98.53898338 | H302: =IF(MAX(C305:C316)-MIN(C305:C316)<5,AVERAGEIF(C305:C316,">0",H305:H316), IF(FORECAST($C302,H$305:H$316,$C$305:$C$316)<0,0, IF(FORECAST($C302,H$305:H$316,$C$305:$C$316)>100,100, FORECAST($C302,H$305:H$316,$C$305:$C$316)))) -> 0.1056714277 | I302: =IF(MAX(C305:C316)-MIN(C305:C316)<5,AVERAGEIF(C305:C316,">0",I305:I316), IF(FORECAST($C302,I$305:I$316,$C$305:$C$316)<0,0, IF(FORECAST($C302,I$305:I$316,$C$305:$C$316)>100,100, FORECAST($C302,I$305:I$316,$C$305:$C$316)))) -> 99.02301099 | M302: =IF(MAX(C305:C316)-MIN(C305:C316)<5,AVERAGEIF(C305:C316,">0",M305:M316), IF(FORECAST($C302,M$305:M$316,$C$305:$C$316)<0,0, IF(FORECAST($C302,M$305:M$316,$C$305:$C$316)>100,100, FORECAST($C302,M$305:M$316,$C$305:$C$316)))) -> 0.2082889099 | N302: =IF(MAX(C305:C316)-MIN(C305:C316)<5,AVERAGEIF(C305:C316,">0",N305:N316), IF(FORECAST($C302,N$305:N$316,$C$305:$C$316)<0,0, IF(FORECAST($C302,N$305:N$316,$C$305:$C$316)>100,100, FORECAST($C302,N$305:N$316,$C$305:$C$316)))) -> 99.60556919 | R302: =IF(MAX(C305:C316)-MIN(C305:C316)<5,AVERAGEIF(C305:C316,">0",R305:R316), IF(FORECAST($C302,R$305:R$316,$C$305:$C$316)<0,0, IF(FORECAST($C302,R$305:R$316,$C$305:$C$316)>100,100, FORECAST($C302,R$305:R$316,$C$305:$C$316)))) -> 0 | S302: =IF(MAX(C305:C316)-MIN(C305:C316)<5,AVERAGEIF(C305:C316,">0",S305:S316), IF(FORECAST($C302,S$305:S$316,$C$305:$C$316)<0,0, IF(FORECAST($C302,S$305:S$316,$C$305:$C$316)>100,100, FORECAST($C302,S$305:S$316,$C$305:$C$316)))) -> 98.32571279 | W302: =IF(MAX(C305:C316)-MIN(C305:C316)<5,AVERAGEIF(C305:C316,">0",W305:W316), IF(FORECAST($C302,W$305:W$316,$C$305:$C$316)<0,0, IF(FORECAST($C302,W$305:W$316,$C$305:$C$316)>100,100, FORECAST($C302,W$305:W$316,$C$305:$C$316)))) -> 0 | X302: =IF(MAX(C305:C316)-MIN(C305:C316)<5,AVERAGEIF(C305:C316,">0",X305:X316), IF(FORECAST($C302,X$305:X$316,$C$305:$C$316)<0,0, IF(FORECAST($C302,X$305:X$316,$C$305:$C$316)>100,100, FORECAST($C302,X$305:X$316,$C$305:$C$316)))) -> 97.77531709 | AB302: =IF(MAX(C305:C316)-MIN(C305:C316)<5,AVERAGEIF(C305:C316,">0",AB305:AB316), IF(FORECAST($C302,AB$305:AB$316,$C$305:$C$316)<0,0, IF(FORECAST($C302,AB$305:AB$316,$C$305:$C$316)>100,100, FORECAST($C302,AB$305:AB$316,$C$305:$C$316)))) -> 0
B304: Survey | C304: Year | D304: Improved | E304: % Improved < = 30min | H304: Surface water | I304: Improved | J304: % Improved < = 30min | M304: Surface water | N304: Improved | O304: % Improved < = 30min | R304: Surface water | S304: Improved | T304: % Improved < = 30min | W304: Surface water | X304: Improved | Y304: % Improved < = 30min | AB304: Surface water
B305: MICS06 | C305: 2006 | D305: =IF(ISERROR(INDIRECT(CONCATENATE($B305,"!M16"))),"",INDIRECT(CONCATENATE($B305,"!M16"))) -> 96.78231493 | E305: =IF(ISERROR(INDIRECT(CONCATENATE($B305,"!M23"))),"",INDIRECT(CONCATENATE($B305,"!M23"))) -> 98.73063183 | H305: =IF(ISERROR(INDIRECT(CONCATENATE($B305,"!M21"))),"",INDIRECT(CONCATENATE($B305,"!M21"))) -> 0 | I305: =IF(ISERROR(INDIRECT(CONCATENATE($B305,"!N16"))),"",INDIRECT(CONCATENATE($B305,"!N16"))) -> 98.90653479 | J305: =IF(ISERROR(INDIRECT(CONCATENATE($B305,"!N23"))),"",INDIRECT(CONCATENATE($B305,"!N23"))) -> 99.71132576 | M305: =IF(ISERROR(INDIRECT(CONCATENATE($B305,"!N21"))),"",INDIRECT(CONCATENATE($B305,"!N21"))) -> 0 | N305: =IF(ISERROR(INDIRECT(CONCATENATE($B305,"!O16"))),"",INDIRECT(CONCATENATE($B305,"!O16"))) -> 99.11234899 | O305: =IF(ISERROR(INDIRECT(CONCATENATE($B305,"!O23"))),"",INDIRECT(CONCATENATE($B305,"!O23"))) -> 99.00048071 | R305: =IF(ISERROR(INDIRECT(CONCATENATE($B305,"!O21"))),"",INDIRECT(CONCATENATE($B305,"!O21"))) -> 0 | S305: =IF(ISERROR(INDIRECT(CONCATENATE($B305,"!P16"))),"",INDIRECT(CONCATENATE($B305,"!P16"))) -> 98.11145242 | T305: =IF(ISERROR(INDIRECT(CONCATENATE($B305,"!P23"))),"",INDIRECT(CONCATENATE($B305,"!P23"))) -> 99.61158668 | W305: =IF(ISERROR(INDIRECT(CONCATENATE($B305,"!P21"))),"",INDIRECT(CONCATENATE($B305,"!P21"))) -> 0 | X305: =IF(ISERROR(INDIRECT(CONCATENATE($B305,"!Q16"))),"",INDIRECT(CONCATENATE($B305,"!Q16"))) -> 99.21742504 | Y305: =IF(ISERROR(INDIRECT(CONCATENATE($B305,"!Q23"))),"",INDIRECT(CONCATENATE($B305,"!Q23"))) -> 98.94466953 | AB305: =IF(ISERROR(INDIRECT(CONCATENATE($B305,"!Q221"))),"",INDIRECT(CONCATENATE($B305,"!Q21"))) -> 0
B306: MICS10 | C306: 2010 | D306: 97.99887548 | E306: 99.74169024 | H306: 0 | I306: 99.93149388 | J306: 99.94538958 | M306: 0 | N306: 99.82875074 | O306: 99.31909716 | R306: 0 | S306: 99.83407794 | T306: 99.87399232 | W306: 0 | X306: 99.75120366 | Y306: 99.12920677 | AB306: 0
B307: MICS14 | C307: 2014 | D307: 98.2841276 | E307: 99.27310706 | H307: 0.0667398491 | I307: 97.68171691 | J307: 98.70394976 | M307: 0.1315508905 | N307: 99.73631558 | O307: 98.86323875 | R307: 0 | S307: 100 | T307: 98.55308078 | W307: 0 | X307: 99.17631791 | Y307: 98.91211575 | AB307: 0
B308: MICS19 | C308: 2019 | D308: 98.11667467 | E308: 99.07800075 | H308: N/A | I308: 99.56774949 | J308: 99.09514529 | M308: N/A | N308: 99.35997934 | O308: 99.63329928 | R308: N/A | S308: 97.32421307 | T308: 99.47827016 | W308: N/A | X308: 97.42518593 | Y308: 99.43652281 | AB308: N/A
B318: =CONCATENATE("Rural use of drinking water sources, ",C299,"–",C300) -> Rural use of drinking water sources, 2000–2020 | S318: Data points used for regression

Sheet Sanitation
B4: Summary of trends in use of sanitation facilities by wealth quintile (%)
B5: =IF(ISERROR(INDIRECT(CONCATENATE($B105,"!A2"))),"",INDIRECT(CONCATENATE($B105,"!A2"))) -> Serbia
B7: =B118 -> National use of sanitation facilities, 2000–2020 | J7: =B218 -> Urban use of sanitation facilities, 2000–2020 | R7: =B318 -> Rural use of sanitation facilities, 2000–2020
B31: =IF(ISERROR(INDIRECT(CONCATENATE($B105,"!A2"))),"",INDIRECT(CONCATENATE($B105,"!A2"))) -> Serbia | F31: Poorest | J31: Poor | N31: Middle | R31: Rich | V31: Richest
F32: Basic | G32: Limited | H32: Unimproved | I32: Open defecation | J32: Basic | K32: Limited | L32: Unimproved | M32: Open defecation | N32: Basic | O32: Limited | P32: Unimproved | Q32: Open defecation | R32: Basic | S32: Limited | T32: Unimproved | U32: Open defecation | V32: Basic | W32: Limited | X32: Unimproved | Y32: Open defecation
B33: NATIONAL | D33: Estimate | E33: =C99 -> 2000 | F33: =E99 -> 95.98084338 | G33: =F99 -> 1.492749697 | H33: 2.238913988 | I33: 0.2874929337 | J33: =J99 -> 99.29046005 | K33: =K99 -> 0.1805127512 | L33: 0.5290271984 | M33: 0 | N33: =O99 -> 99.2824806 | O33: =P99 -> 0.3296556106 | P33: 0.387863787 | Q33: 0 | R33: =T99 -> 99.5753426 | S33: =U99 -> 0.3292195167 | T33: 0.09543788758 | U33: 0 | V33: =Y99 -> 99.60932042 | W33: =Z99 -> 0.1816676613 | X33: 0.2090119184 | Y33: 0
E34: =C100 -> 2020 | F34: =E100 -> 91.9799569 | G34: 1.430525592 | H34: 6.188488798 | I34: 0.4010287134 | J34: =J100 -> 97.06118529 | K34: 0.1764598691 | L34: 2.762354845 | M34: 0 | N34: =O100 -> 98.72645023 | O34: 0.3278093783 | P34: 0.9457403882 | Q34: 0 | R34: =T100 -> 99.48821922 | S34: 0.3289314663 | T34: 0.1828493114 | U34: 0 | V34: =Y100 -> 99.6238187 | W34: 0.1816941033 | X34: 0.1944871971 | Y34: 0
B36: URBAN | D36: Estimate | E36: =C199 -> 2000 | F36: =E199 -> 97.91726733 | G36: =F199 -> 1.660932653 | H36: 0.2022814662 | I36: 0.2195185542 | J36: =J199 -> 99.44960455 | K36: =K199 -> 0.2737694404 | L36: 0.276626011 | M36: 0 | N36: =O199 -> 99.84787266 | O36: =P199 -> 0.09876543799 | P36: 0.05336189933 | Q36: 0 | R36: =T199 -> 99.39680832 | S36: =U199 -> 0.5678017293 | T36: 0.03538995541 | U36: 0 | V36: =Y199 -> 99.86769115 | W36: =Z199 -> 0.09670932841 | X36: 0.03559951839 | Y36: 0
E37: =C200 -> 2020 | F37: =E200 -> 96.62207041 | G37: 1.638962729 | H37: 1.376721309 | I37: 0.3622455489 | J37: =J200 -> 99.19342292 | K37: 0.2730642118 | L37: 0.5335128639 | M37: 0 | N37: =O200 -> 99.75966902 | O37: 0.09867819055 | P37: 0.1416527845 | Q37: 0 | R37: =T200 -> 99.24815965 | S37: 0.5669525776 | T37: 0.1848877717 | U37: 0 | V37: =Y200 -> 99.84146605 | W37: 0.09668393268 | X37: 0.06185001838 | Y37: 0
B39: RURAL | D39: Estimate | E39: =C299 -> 2000 | F39: =E299 -> 93.63798972 | G39: =F299 -> 1.616040114 | H39: 4.358845036 | I39: 0.3871251291 | J39: =J299 -> 98.79568103 | K39: =K299 -> 0.318356683 | L39: 0.8859622864 | M39: 0 | N39: =O299 -> 99.66689963 | O39: =P299 -> 0.1145254134 | P39: 0.2185749531 | Q39: 0 | R39: =T299 -> 99.26039444 | S39: =U299 -> 0.07658206536 | T39: 0.6630234906 | U39: 0 | V39: =Y299 -> 99.17219691 | W39: =Z299 -> 0.1718190726 | X39: 0.6559840147 | Y39: 0
E40: =C300 -> 2020 | F40: =E300 -> 89.86565772 | G40: 1.55093577 | H40: 8.120120789 | I40: 0.4632857256 | J40: =J300 -> 94.17631396 | K40: 0.3034713523 | L40: 5.520214686 | M40: 0 | N40: =O300 -> 94.81911027 | O40: 0.1089549072 | P40: 5.071934823 | Q40: 0 | R40: =T300 -> 98.46656128 | S40: 0.07596960172 | T40: 1.457469114 | U40: 0 | V40: =Y300 -> 98.40770536 | W40: 0.170494566 | X40: 1.421800071 | Y40: 0
A97: NATIONAL | D97: Poorest | I97: Poor | N97: Middle | S97: Rich | X97: Richest
D98: Improved | E98: Basic | F98: Limited | G98: Unimproved | H98: Open defecation | I98: Improved | J98: Basic | K98: Limited | L98: Unimproved | M98: Open defecation | N98: Improved | O98: Basic | P98: Limited | Q98: Unimproved | R98: Open defecation | S98: Improved | T98: Basic | U98: Limited | V98: Unimproved | W98: Open defecation | X98: Improved | Y98: Basic | Z98: Limited | AA98: Unimproved | AB98: Open defecation
A99: Forecast period: | C99: 2000 | D99: =IF((D101+H101)>100,D101*100/(D101+H101),D101) -> 97.47359308 | E99: =D99*AVERAGEIF(E105:E116,">0")/100 -> 95.98084338 | F99: =D99*(100-AVERAGEIF(E105:E116,">0"))/100 -> 1.492749697 | G99: =100-(E99+F99+H99) -> 2.238913988 | H99: =IF((D101+H101)>100,H101*100/(D101+H101),H101) -> 0.2874929337 | I99: =IF((I101+M101)>100,I101*100/(I101+M101),I101) -> 99.4709728 | J99: =I99*AVERAGEIF(J105:J116,">0")/100 -> 99.29046005 | K99: =I99*(100-AVERAGEIF(J105:J116,">0"))/100 -> 0.1805127512 | L99: =100-(J99+K99+M99) -> 0.5290271984 | M99: =IF((I101+M101)>100,M101*100/(I101+M101),M101) -> 0 | N99: =IF((N101+R101)>100,N101*100/(N101+R101),N101) -> 99.61213621 | O99: =N99*AVERAGEIF(O105:O116,">0")/100 -> 99.2824806 | P99: =N99*(100-AVERAGEIF(O105:O116,">0"))/100 -> 0.3296556106 | Q99: =100-(O99+P99+R99) -> 0.387863787 | R99: =IF((N101+R101)>100,R101*100/(N101+R101),R101) -> 0 | S99: =IF((S101+W101)>100,S101*100/(S101+W101),S101) -> 99.90456211 | T99: =S99*AVERAGEIF(T105:T116,">0")/100 -> 99.5753426 | U99: =S99*(100-AVERAGEIF(T105:T116,">0"))/100 -> 0.3292195167 | V99: =100-(T99+U99+W99) -> 0.09543788758 | W99: =IF((S101+W101)>100,W101*100/(S101+W101),W101) -> 0 | X99: =IF((X101+AB101)>100,X101*100/(X101+AB101),X101) -> 99.79098808 | Y99: =X99*AVERAGEIF(Y105:Y116,">0")/100 -> 99.60932042 | Z99: =X99*(100-AVERAGEIF(Y105:Y116,">0"))/100 -> 0.1816676613 | AA99: =100-(Y99+Z99+AB99) -> 0.2090119184 | AB99: =IF((X101+AB101)>100,AB101*100/(X101+AB101),AB101) -> 0
C100: 2020 | D100: =IF((D102+H102)>100,D102*100/(D102+H102),D102) -> 93.41048249 | E100: =D100*AVERAGEIF(E105:E116,">0")/100 -> 91.9799569 | F100: =D100*(100-AVERAGEIF(E105:E116,">0"))/100 -> 1.430525592 | G100: =100-(E100+F100+H100) -> 6.188488798 | H100: =IF((D102+H102)>100,H102*100/(D102+H102),H102) -> 0.4010287134 | I100: =IF((I102+M102)>100,I102*100/(I102+M102),I102) -> 97.23764516 | J100: =I100*AVERAGEIF(J105:J116,">0")/100 -> 97.06118529 | K100: =I100*(100-AVERAGEIF(J105:J116,">0"))/100 -> 0.1764598691 | L100: =100-(J100+K100+M100) -> 2.762354845 | M100: =IF((I102+M102)>100,M102*100/(I102+M102),M102) -> 0 | N100: =IF((N102+R102)>100,N102*100/(N102+R102),N102) -> 99.05425961 | O100: =N100*AVERAGEIF(O105:O116,">0")/100 -> 98.72645023 | P100: =N100*(100-AVERAGEIF(O105:O116,">0"))/100 -> 0.3278093783 | Q100: =100-(O100+P100+R100) -> 0.9457403882 | R100: =IF((N102+R102)>100,R102*100/(N102+R102),R102) -> 0 | S100: =IF((S102+W102)>100,S102*100/(S102+W102),S102) -> 99.81715069 | T100: =S100*AVERAGEIF(T105:T116,">0")/100 -> 99.48821922 | U100: =S100*(100-AVERAGEIF(T105:T116,">0"))/100 -> 0.3289314663 | V100: =100-(T100+U100+W100) -> 0.1828493114 | W100: =IF((S102+W102)>100,W102*100/(S102+W102),W102) -> 0 | X100: =IF((X102+AB102)>100,X102*100/(X102+AB102),X102) -> 99.8055128 | Y100: =X100*AVERAGEIF(Y105:Y116,">0")/100 -> 99.6238187 | Z100: =X100*(100-AVERAGEIF(Y105:Y116,">0"))/100 -> 0.1816941033 | AA100: =100-(Y100+Z100+AB100) -> 0.1944871971 | AB100: =IF((X102+AB102)>100,AB102*100/(X102+AB102),AB102) -> 0
A101: Regression period: | C101: =MinRegYear(C99,C105:C116) -> 2004 | D101: =IF(MAX(C105:C116)-MIN(C105:C116)<5,AVERAGEIF(C105:C116,">0",D105:D116), IF(FORECAST($C101,D$105:D$116,$C$105:$C$116)<0,0, IF(FORECAST($C101,D$105:D$116,$C$105:$C$116)>100,100, FORECAST($C101,D$105:D$116,$C$105:$C$116)))) -> 97.47359308 | H101: =IF(MAX(C105:C116)-MIN(C105:C116)<5,AVERAGEIF(C105:C116,">0",H105:H116), IF(FORECAST($C101,H$105:H$116,$C$105:$C$116)<0,0, IF(FORECAST($C101,H$105:H$116,$C$105:$C$116)>100,100, FORECAST($C101,H$105:H$116,$C$105:$C$116)))) -> 0.2874929337 | I101: =IF(MAX(C105:C116)-MIN(C105:C116)<5,AVERAGEIF(C105:C116,">0",I105:I116), IF(FORECAST($C101,I$105:I$116,$C$105:$C$116)<0,0, IF(FORECAST($C101,I$105:I$116,$C$105:$C$116)>100,100, FORECAST($C101,I$105:I$116,$C$105:$C$116)))) -> 99.4709728 | M101: =IF(MAX(C105:C116)-MIN(C105:C116)<5,AVERAGEIF(C105:C116,">0",M105:M116), IF(FORECAST($C101,M$105:M$116,$C$105:$C$116)<0,0, IF(FORECAST($C101,M$105:M$116,$C$105:$C$116)>100,100, FORECAST($C101,M$105:M$116,$C$105:$C$116)))) -> 0 | N101: =IF(MAX(C105:C116)-MIN(C105:C116)<5,AVERAGEIF(C105:C116,">0",N105:N116), IF(FORECAST($C101,N$105:N$116,$C$105:$C$116)<0,0, IF(FORECAST($C101,N$105:N$116,$C$105:$C$116)>100,100, FORECAST($C101,N$105:N$116,$C$105:$C$116)))) -> 99.61213621 | R101: =IF(MAX(C105:C116)-MIN(C105:C116)<5,AVERAGEIF(C105:C116,">0",R105:R116), IF(FORECAST($C101,R$105:R$116,$C$105:$C$116)<0,0, IF(FORECAST($C101,R$105:R$116,$C$105:$C$116)>100,100, FORECAST($C101,R$105:R$116,$C$105:$C$116)))) -> 0 | S101: =IF(MAX(C105:C116)-MIN(C105:C116)<5,AVERAGEIF(C105:C116,">0",S105:S116), IF(FORECAST($C101,S$105:S$116,$C$105:$C$116)<0,0, IF(FORECAST($C101,S$105:S$116,$C$105:$C$116)>100,100, FORECAST($C101,S$105:S$116,$C$105:$C$116)))) -> 99.90456211 | W101: =IF(MAX(C105:C116)-MIN(C105:C116)<5,AVERAGEIF(C105:C116,">0",W105:W116), IF(FORECAST($C101,W$105:W$116,$C$105:$C$116)<0,0, IF(FORECAST($C101,W$105:W$116,$C$105:$C$116)>100,100, FORECAST($C101,W$105:W$116,$C$105:$C$116)))) -> 0 | X101: =IF(MAX(C105:C116)-MIN(C105:C116)<5,AVERAGEIF(C105:C116,">0",X105:X116), IF(FORECAST($C101,X$105:X$116,$C$105:$C$116)<0,0, IF(FORECAST($C101,X$105:X$116,$C$105:$C$116)>100,100, FORECAST($C101,X$105:X$116,$C$105:$C$116)))) -> 99.79098808 | AB101: =IF(MAX(C105:C116)-MIN(C105:C116)<5,AVERAGEIF(C105:C116,">0",AB105:AB116), IF(FORECAST($C101,AB$105:AB$116,$C$105:$C$116)<0,0, IF(FORECAST($C101,AB$105:AB$116,$C$105:$C$116)>100,100, FORECAST($C101,AB$105:AB$116,$C$105:$C$116)))) -> 0
C102: =MaxRegYear(C100,C105:C116) -> 2020 | D102: =IF(MAX(C105:C116)-MIN(C105:C116)<5,AVERAGEIF(C105:C116,">0",D105:D116), IF(FORECAST($C102,D$105:D$116,$C$105:$C$116)<0,0, IF(FORECAST($C102,D$105:D$116,$C$105:$C$116)>100,100, FORECAST($C102,D$105:D$116,$C$105:$C$116)))) -> 93.41048249 | H102: =IF(MAX(C105:C116)-MIN(C105:C116)<5,AVERAGEIF(C105:C116,">0",H105:H116), IF(FORECAST($C102,H$105:H$116,$C$105:$C$116)<0,0, IF(FORECAST($C102,H$105:H$116,$C$105:$C$116)>100,100, FORECAST($C102,H$105:H$116,$C$105:$C$116)))) -> 0.4010287134 | I102: =IF(MAX(C105:C116)-MIN(C105:C116)<5,AVERAGEIF(C105:C116,">0",I105:I116), IF(FORECAST($C102,I$105:I$116,$C$105:$C$116)<0,0, IF(FORECAST($C102,I$105:I$116,$C$105:$C$116)>100,100, FORECAST($C102,I$105:I$116,$C$105:$C$116)))) -> 97.23764516 | M102: =IF(MAX(C105:C116)-MIN(C105:C116)<5,AVERAGEIF(C105:C116,">0",M105:M116), IF(FORECAST($C102,M$105:M$116,$C$105:$C$116)<0,0, IF(FORECAST($C102,M$105:M$116,$C$105:$C$116)>100,100, FORECAST($C102,M$105:M$116,$C$105:$C$116)))) -> 0 | N102: =IF(MAX(C105:C116)-MIN(C105:C116)<5,AVERAGEIF(C105:C116,">0",N105:N116), IF(FORECAST($C102,N$105:N$116,$C$105:$C$116)<0,0, IF(FORECAST($C102,N$105:N$116,$C$105:$C$116)>100,100, FORECAST($C102,N$105:N$116,$C$105:$C$116)))) -> 99.05425961 | R102: =IF(MAX(C105:C116)-MIN(C105:C116)<5,AVERAGEIF(C105:C116,">0",R105:R116), IF(FORECAST($C102,R$105:R$116,$C$105:$C$116)<0,0, IF(FORECAST($C102,R$105:R$116,$C$105:$C$116)>100,100, FORECAST($C102,R$105:R$116,$C$105:$C$116)))) -> 0 | S102: =IF(MAX(C105:C116)-MIN(C105:C116)<5,AVERAGEIF(C105:C116,">0",S105:S116), IF(FORECAST($C102,S$105:S$116,$C$105:$C$116)<0,0, IF(FORECAST($C102,S$105:S$116,$C$105:$C$116)>100,100, FORECAST($C102,S$105:S$116,$C$105:$C$116)))) -> 99.81715069 | W102: =IF(MAX(C105:C116)-MIN(C105:C116)<5,AVERAGEIF(C105:C116,">0",W105:W116), IF(FORECAST($C102,W$105:W$116,$C$105:$C$116)<0,0, IF(FORECAST($C102,W$105:W$116,$C$105:$C$116)>100,100, FORECAST($C102,W$105:W$116,$C$105:$C$116)))) -> 0 | X102: =IF(MAX(C105:C116)-MIN(C105:C116)<5,AVERAGEIF(C105:C116,">0",X105:X116), IF(FORECAST($C102,X$105:X$116,$C$105:$C$116)<0,0, IF(FORECAST($C102,X$105:X$116,$C$105:$C$116)>100,100, FORECAST($C102,X$105:X$116,$C$105:$C$116)))) -> 99.8055128 | AB102: =IF(MAX(C105:C116)-MIN(C105:C116)<5,AVERAGEIF(C105:C116,">0",AB105:AB116), IF(FORECAST($C102,AB$105:AB$116,$C$105:$C$116)<0,0, IF(FORECAST($C102,AB$105:AB$116,$C$105:$C$116)>100,100, FORECAST($C102,AB$105:AB$116,$C$105:$C$116)))) -> 0
B104: Survey | C104: Year | D104: Improved | E104: Not shared | H104: Open defecation | I104: Improved | J104: Not shared | M104: Open defecation | N104: Improved | O104: Not shared | R104: Open defecation | S104: Improved | T104: Not shared | W104: Open defecation | X104: Improved | Y104: Not shared | AB104: Open defecation
B105: MICS06 | C105: 2006 | D105: =IF(ISERROR(INDIRECT(CONCATENATE($B105,"!C122"))),"",INDIRECT(CONCATENATE($B105,"!C122"))) -> 98.83545108 | E105: =IF(ISERROR(INDIRECT(CONCATENATE($B105,"!C129"))),"",INDIRECT(CONCATENATE($B105,"!C129"))) -> N/A | H105: =IF(ISERROR(INDIRECT(CONCATENATE($B105,"!C127"))),"",INDIRECT(CONCATENATE($B105,"!C127"))) -> 0.3318375934 | I105: =IF(ISERROR(INDIRECT(CONCATENATE($B105,"!D122"))),"",INDIRECT(CONCATENATE($B105,"!D122"))) -> 99.80538916 | J105: =IF(ISERROR(INDIRECT(CONCATENATE($B105,"!D129"))),"",INDIRECT(CONCATENATE($B105,"!D129"))) -> N/A | M105: =IF(ISERROR(INDIRECT(CONCATENATE($B105,"!D127"))),"",INDIRECT(CONCATENATE($B105,"!D127"))) -> 0 | N105: =IF(ISERROR(INDIRECT(CONCATENATE($B105,"!E122"))),"",INDIRECT(CONCATENATE($B105,"!E122"))) -> 99.77723755 | O105: =IF(ISERROR(INDIRECT(CONCATENATE($B105,"!E129"))),"",INDIRECT(CONCATENATE($B105,"!E129"))) -> N/A | R105: =IF(ISERROR(INDIRECT(CONCATENATE($B105,"!E127"))),"",INDIRECT(CONCATENATE($B105,"!E127"))) -> 0 | S105: =IF(ISERROR(INDIRECT(CONCATENATE($B105,"!F122"))),"",INDIRECT(CONCATENATE($B105,"!F122"))) -> 99.95236732 | T105: =IF(ISERROR(INDIRECT(CONCATENATE($B105,"!F129"))),"",INDIRECT(CONCATENATE($B105,"!F129"))) -> N/A | W105: =IF(ISERROR(INDIRECT(CONCATENATE($B105,"!F127"))),"",INDIRECT(CONCATENATE($B105,"!F127"))) -> 0 | X105: =IF(ISERROR(INDIRECT(CONCATENATE($B105,"!G122"))),"",INDIRECT(CONCATENATE($B105,"!G122"))) -> 99.96056618 | Y105: =IF(ISERROR(INDIRECT(CONCATENATE($B105,"!G129"))),"",INDIRECT(CONCATENATE($B105,"!G129"))) -> N/A | AB105: =IF(ISERROR(INDIRECT(CONCATENATE($B105,"!G2127"))),"",INDIRECT(CONCATENATE($B105,"!G127"))) -> 0
B106: MICS10 | C106: 2010 | D106: 95.21811574 | E106: 97.77715381 | H106: 0.1804792123 | I106: 98.17360243 | J106: 99.99107976 | M106: 0 | N106: 99.21333298 | O106: 99.82596708 | R106: 0 | S106: 99.81645029 | T106: 99.25182641 | W106: 0 | X106: 99.57823093 | Y106: 99.88432242 | AB106: 0
B107: MICS14 | C107: 2014 | D107: 91.39006678 | E107: 98.26394017 | H107: 0.5493171589 | I107: 97.30759951 | J107: 99.64857711 | M107: 0 | N107: 98.99416906 | O107: 99.3447646 | R107: 0 | S107: 99.7968263 | T107: 99.75957154 | W107: 0 | X107: 99.75665057 | Y107: 99.81477526 | AB107: 0
B108: MICS19 | C108: 2019 | D108: 96.07057312 | E108: 99.36458571 | H108: 0.3225053158 | I108: 97.99106183 | J108: 99.81592475 | M108: 0 | N108: 99.31318476 | O108: 99.83645071 | R108: 0 | S108: 99.87231848 | T108: 100 | W108: 0 | X108: 99.89846189 | Y108: 99.75475783 | AB108: 0
B118: =CONCATENATE("National use of sanitation facilities, ",C99,"–",C100) -> National use of sanitation facilities, 2000–2020 | S118: Data points used for regression
A197: URBAN | D197: Poorest | I197: Poor | N197: Middle | S197: Rich | X197: Richest
D198: Improved | E198: Basic | F198: Limited | G198: Unimproved | H198: Open defecation | I198: Improved | J198: Basic | K198: Limited | L198: Unimproved | M198: Open defecation | N198: Improved | O198: Basic | P198: Limited | Q198: Unimproved | R198: Open defecation | S198: Improved | T198: Basic | U198: Limited | V198: Unimproved | W198: Open defecation | X198: Improved | Y198: Basic | Z198: Limited | AA198: Unimproved | AB198: Open defecation
A199: Forecast period: | C199: 2000 | D199: =IF((D201+H201)>100,D201*100/(D201+H201),D201) -> 99.57819998 | E199: =D199*AVERAGEIF(E205:E216,">0")/100 -> 97.91726733 | F199: =D199*(100-AVERAGEIF(E205:E216,">0"))/100 -> 1.660932653 | G199: =100-(E199+F199+H199) -> 0.2022814662 | H199: =IF((D201+H201)>100,H201*100/(D201+H201),H201) -> 0.2195185542 | I199: =IF((I201+M201)>100,I201*100/(I201+M201),I201) -> 99.72337399 | J199: =I199*AVERAGEIF(J205:J216,">0")/100 -> 99.44960455 | K199: =I199*(100-AVERAGEIF(J205:J216,">0"))/100 -> 0.2737694404 | L199: =100-(J199+K199+M199) -> 0.276626011 | M199: =IF((I201+M201)>100,M201*100/(I201+M201),M201) -> 0 | N199: =IF((N201+R201)>100,N201*100/(N201+R201),N201) -> 99.9466381 | O199: =N199*AVERAGEIF(O205:O216,">0")/100 -> 99.84787266 | P199: =N199*(100-AVERAGEIF(O205:O216,">0"))/100 -> 0.09876543799 | Q199: =100-(O199+P199+R199) -> 0.05336189933 | R199: =IF((N201+R201)>100,R201*100/(N201+R201),R201) -> 0 | S199: =IF((S201+W201)>100,S201*100/(S201+W201),S201) -> 99.96461004 | T199: =S199*AVERAGEIF(T205:T216,">0")/100 -> 99.39680832 | U199: =S199*(100-AVERAGEIF(T205:T216,">0"))/100 -> 0.5678017293 | V199: =100-(T199+U199+W199) -> 0.03538995541 | W199: =IF((S201+W201)>100,W201*100/(S201+W201),W201) -> 0 | X199: =IF((X201+AB201)>100,X201*100/(X201+AB201),X201) -> 99.96440048 | Y199: =X199*AVERAGEIF(Y205:Y216,">0")/100 -> 99.86769115 | Z199: =X199*(100-AVERAGEIF(Y205:Y216,">0"))/100 -> 0.09670932841 | AA199: =100-(Y199+Z199+AB199) -> 0.03559951839 | AB199: =IF((X201+AB201)>100,AB201*100/(X201+AB201),AB201) -> 0
C200: 2020 | D200: =IF((D202+H202)>100,D202*100/(D202+H202),D202) -> 98.26103314 | E200: =D200*AVERAGEIF(E205:E216,">0")/100 -> 96.62207041 | F200: =D200*(100-AVERAGEIF(E205:E216,">0"))/100 -> 1.638962729 | G200: =100-(E200+F200+H200) -> 1.376721309 | H200: =IF((D202+H202)>100,H202*100/(D202+H202),H202) -> 0.3622455489 | I200: =IF((I202+M202)>100,I202*100/(I202+M202),I202) -> 99.46648714 | J200: =I200*AVERAGEIF(J205:J216,">0")/100 -> 99.19342292 | K200: =I200*(100-AVERAGEIF(J205:J216,">0"))/100 -> 0.2730642118 | L200: =100-(J200+K200+M200) -> 0.5335128639 | M200: =IF((I202+M202)>100,M202*100/(I202+M202),M202) -> 0 | N200: =IF((N202+R202)>100,N202*100/(N202+R202),N202) -> 99.85834722 | O200: =N200*AVERAGEIF(O205:O216,">0")/100 -> 99.75966902 | P200: =N200*(100-AVERAGEIF(O205:O216,">0"))/100 -> 0.09867819055 | Q200: =100-(O200+P200+R200) -> 0.1416527845 | R200: =IF((N202+R202)>100,R202*100/(N202+R202),R202) -> 0 | S200: =IF((S202+W202)>100,S202*100/(S202+W202),S202) -> 99.81511223 | T200: =S200*AVERAGEIF(T205:T216,">0")/100 -> 99.24815965 | U200: =S200*(100-AVERAGEIF(T205:T216,">0"))/100 -> 0.5669525776 | V200: =100-(T200+U200+W200) -> 0.1848877717 | W200: =IF((S202+W202)>100,W202*100/(S202+W202),W202) -> 0 | X200: =IF((X202+AB202)>100,X202*100/(X202+AB202),X202) -> 99.93814998 | Y200: =X200*AVERAGEIF(Y205:Y216,">0")/100 -> 99.84146605 | Z200: =X200*(100-AVERAGEIF(Y205:Y216,">0"))/100 -> 0.09668393268 | AA200: =100-(Y200+Z200+AB200) -> 0.06185001838 | AB200: =IF((X202+AB202)>100,AB202*100/(X202+AB202),AB202) -> 0
A201: Regression period: | C201: =MinRegYear(C199,C205:C216) -> 2004 | D201: =IF(MAX(C205:C216)-MIN(C205:C216)<5,AVERAGEIF(C205:C216,">0",D205:D216), IF(FORECAST($C201,D$205:D$216,$C$205:$C$216)<0,0, IF(FORECAST($C201,D$205:D$216,$C$205:$C$216)>100,100, FORECAST($C201,D$205:D$216,$C$205:$C$216)))) -> 99.57819998 | H201: =IF(MAX(C205:C216)-MIN(C205:C216)<5,AVERAGEIF(C205:C216,">0",H205:H216), IF(FORECAST($C201,H$205:H$216,$C$205:$C$216)<0,0, IF(FORECAST($C201,H$205:H$216,$C$205:$C$216)>100,100, FORECAST($C201,H$205:H$216,$C$205:$C$216)))) -> 0.2195185542 | I201: =IF(MAX(C205:C216)-MIN(C205:C216)<5,AVERAGEIF(C205:C216,">0",I205:I216), IF(FORECAST($C201,I$205:I$216,$C$205:$C$216)<0,0, IF(FORECAST($C201,I$205:I$216,$C$205:$C$216)>100,100, FORECAST($C201,I$205:I$216,$C$205:$C$216)))) -> 99.72337399 | M201: =IF(MAX(C205:C216)-MIN(C205:C216)<5,AVERAGEIF(C205:C216,">0",M205:M216), IF(FORECAST($C201,M$205:M$216,$C$205:$C$216)<0,0, IF(FORECAST($C201,M$205:M$216,$C$205:$C$216)>100,100, FORECAST($C201,M$205:M$216,$C$205:$C$216)))) -> 0 | N201: =IF(MAX(C205:C216)-MIN(C205:C216)<5,AVERAGEIF(C205:C216,">0",N205:N216), IF(FORECAST($C201,N$205:N$216,$C$205:$C$216)<0,0, IF(FORECAST($C201,N$205:N$216,$C$205:$C$216)>100,100, FORECAST($C201,N$205:N$216,$C$205:$C$216)))) -> 99.9466381 | R201: =IF(MAX(C205:C216)-MIN(C205:C216)<5,AVERAGEIF(C205:C216,">0",R205:R216), IF(FORECAST($C201,R$205:R$216,$C$205:$C$216)<0,0, IF(FORECAST($C201,R$205:R$216,$C$205:$C$216)>100,100, FORECAST($C201,R$205:R$216,$C$205:$C$216)))) -> 0 | S201: =IF(MAX(C205:C216)-MIN(C205:C216)<5,AVERAGEIF(C205:C216,">0",S205:S216), IF(FORECAST($C201,S$205:S$216,$C$205:$C$216)<0,0, IF(FORECAST($C201,S$205:S$216,$C$205:$C$216)>100,100, FORECAST($C201,S$205:S$216,$C$205:$C$216)))) -> 99.96461004 | W201: =IF(MAX(C205:C216)-MIN(C205:C216)<5,AVERAGEIF(C205:C216,">0",W205:W216), IF(FORECAST($C201,W$205:W$216,$C$205:$C$216)<0,0, IF(FORECAST($C201,W$205:W$216,$C$205:$C$216)>100,100, FORECAST($C201,W$205:W$216,$C$205:$C$216)))) -> 0 | X201: =IF(MAX(C205:C216)-MIN(C205:C216)<5,AVERAGEIF(C205:C216,">0",X205:X216), IF(FORECAST($C201,X$205:X$216,$C$205:$C$216)<0,0, IF(FORECAST($C201,X$205:X$216,$C$205:$C$216)>100,100, FORECAST($C201,X$205:X$216,$C$205:$C$216)))) -> 99.96440048 | AB201: =IF(MAX(C205:C216)-MIN(C205:C216)<5,AVERAGEIF(C205:C216,">0",AB205:AB216), IF(FORECAST($C201,AB$205:AB$216,$C$205:$C$216)<0,0, IF(FORECAST($C201,AB$205:AB$216,$C$205:$C$216)>100,100, FORECAST($C201,AB$205:AB$216,$C$205:$C$216)))) -> 0
C202: =MaxRegYear(C200,C205:C216) -> 2020 | D202: =IF(MAX(C205:C216)-MIN(C205:C216)<5,AVERAGEIF(C205:C216,">0",D205:D216), IF(FORECAST($C202,D$205:D$216,$C$205:$C$216)<0,0, IF(FORECAST($C202,D$205:D$216,$C$205:$C$216)>100,100, FORECAST($C202,D$205:D$216,$C$205:$C$216)))) -> 98.26103314 | H202: =IF(MAX(C205:C216)-MIN(C205:C216)<5,AVERAGEIF(C205:C216,">0",H205:H216), IF(FORECAST($C202,H$205:H$216,$C$205:$C$216)<0,0, IF(FORECAST($C202,H$205:H$216,$C$205:$C$216)>100,100, FORECAST($C202,H$205:H$216,$C$205:$C$216)))) -> 0.3622455489 | I202: =IF(MAX(C205:C216)-MIN(C205:C216)<5,AVERAGEIF(C205:C216,">0",I205:I216), IF(FORECAST($C202,I$205:I$216,$C$205:$C$216)<0,0, IF(FORECAST($C202,I$205:I$216,$C$205:$C$216)>100,100, FORECAST($C202,I$205:I$216,$C$205:$C$216)))) -> 99.46648714 | M202: =IF(MAX(C205:C216)-MIN(C205:C216)<5,AVERAGEIF(C205:C216,">0",M205:M216), IF(FORECAST($C202,M$205:M$216,$C$205:$C$216)<0,0, IF(FORECAST($C202,M$205:M$216,$C$205:$C$216)>100,100, FORECAST($C202,M$205:M$216,$C$205:$C$216)))) -> 0 | N202: =IF(MAX(C205:C216)-MIN(C205:C216)<5,AVERAGEIF(C205:C216,">0",N205:N216), IF(FORECAST($C202,N$205:N$216,$C$205:$C$216)<0,0, IF(FORECAST($C202,N$205:N$216,$C$205:$C$216)>100,100, FORECAST($C202,N$205:N$216,$C$205:$C$216)))) -> 99.85834722 | R202: =IF(MAX(C205:C216)-MIN(C205:C216)<5,AVERAGEIF(C205:C216,">0",R205:R216), IF(FORECAST($C202,R$205:R$216,$C$205:$C$216)<0,0, IF(FORECAST($C202,R$205:R$216,$C$205:$C$216)>100,100, FORECAST($C202,R$205:R$216,$C$205:$C$216)))) -> 0 | S202: =IF(MAX(C205:C216)-MIN(C205:C216)<5,AVERAGEIF(C205:C216,">0",S205:S216), IF(FORECAST($C202,S$205:S$216,$C$205:$C$216)<0,0, IF(FORECAST($C202,S$205:S$216,$C$205:$C$216)>100,100, FORECAST($C202,S$205:S$216,$C$205:$C$216)))) -> 99.81511223 | W202: =IF(MAX(C205:C216)-MIN(C205:C216)<5,AVERAGEIF(C205:C216,">0",W205:W216), IF(FORECAST($C202,W$205:W$216,$C$205:$C$216)<0,0, IF(FORECAST($C202,W$205:W$216,$C$205:$C$216)>100,100, FORECAST($C202,W$205:W$216,$C$205:$C$216)))) -> 0 | X202: =IF(MAX(C205:C216)-MIN(C205:C216)<5,AVERAGEIF(C205:C216,">0",X205:X216), IF(FORECAST($C202,X$205:X$216,$C$205:$C$216)<0,0, IF(FORECAST($C202,X$205:X$216,$C$205:$C$216)>100,100, FORECAST($C202,X$205:X$216,$C$205:$C$216)))) -> 99.93814998 | AB202: =IF(MAX(C205:C216)-MIN(C205:C216)<5,AVERAGEIF(C205:C216,">0",AB205:AB216), IF(FORECAST($C202,AB$205:AB$216,$C$205:$C$216)<0,0, IF(FORECAST($C202,AB$205:AB$216,$C$205:$C$216)>100,100, FORECAST($C202,AB$205:AB$216,$C$205:$C$216)))) -> 0
B204: Survey | C204: Year | D204: Improved | E204: Not shared | H204: Open defecation | I204: Improved | J204: Not shared | M204: Open defecation | N204: Improved | O204: Not shared | R204: Open defecation | S204: Improved | T204: Not shared | W204: Open defecation | X204: Improved | Y204: Not shared | AB204: Open defecation
B205: MICS06 | C205: 2006 | D205: =IF(ISERROR(INDIRECT(CONCATENATE($B205,"!H122"))),"",INDIRECT(CONCATENATE($B205,"!H122"))) -> 99.5013028 | E205: =IF(ISERROR(INDIRECT(CONCATENATE($B205,"!H129"))),"",INDIRECT(CONCATENATE($B205,"!H129"))) -> N/A | H205: =IF(ISERROR(INDIRECT(CONCATENATE($B205,"!H127"))),"",INDIRECT(CONCATENATE($B205,"!H127"))) -> 0.3231396116 | I205: =IF(ISERROR(INDIRECT(CONCATENATE($B205,"!I122"))),"",INDIRECT(CONCATENATE($B205,"!I122"))) -> 99.76556912 | J205: =IF(ISERROR(INDIRECT(CONCATENATE($B205,"!I129"))),"",INDIRECT(CONCATENATE($B205,"!I129"))) -> N/A | M205: =IF(ISERROR(INDIRECT(CONCATENATE($B205,"!I127"))),"",INDIRECT(CONCATENATE($B205,"!I127"))) -> 0 | N205: =IF(ISERROR(INDIRECT(CONCATENATE($B205,"!J122"))),"",INDIRECT(CONCATENATE($B205,"!J122"))) -> 100 | O205: =IF(ISERROR(INDIRECT(CONCATENATE($B205,"!J129"))),"",INDIRECT(CONCATENATE($B205,"!J129"))) -> N/A | R205: =IF(ISERROR(INDIRECT(CONCATENATE($B205,"!J127"))),"",INDIRECT(CONCATENATE($B205,"!J127"))) -> 0 | S205: =IF(ISERROR(INDIRECT(CONCATENATE($B205,"!K122"))),"",INDIRECT(CONCATENATE($B205,"!K122"))) -> 100 | T205: =IF(ISERROR(INDIRECT(CONCATENATE($B205,"!K129"))),"",INDIRECT(CONCATENATE($B205,"!K129"))) -> N/A | W205: =IF(ISERROR(INDIRECT(CONCATENATE($B205,"!K127"))),"",INDIRECT(CONCATENATE($B205,"!K127"))) -> 0 | X205: =IF(ISERROR(INDIRECT(CONCATENATE($B205,"!L122"))),"",INDIRECT(CONCATENATE($B205,"!L122"))) -> 100 | Y205: =IF(ISERROR(INDIRECT(CONCATENATE($B205,"!L129"))),"",INDIRECT(CONCATENATE($B205,"!L129"))) -> N/A | AB205: =IF(ISERROR(INDIRECT(CONCATENATE($B205,"!L2127"))),"",INDIRECT(CONCATENATE($B205,"!L127"))) -> 0
B206: MICS10 | C206: 2010 | D206: 99.51079686 | E206: 97.49540574 | H206: 0.2368746028 | I206: 99.55200643 | J206: 99.79645933 | M206: 0 | N206: 99.83988347 | O206: 100 | R206: 0 | S206: 99.90527665 | T206: 98.49269293 | W206: 0 | X206: 99.95205658 | Y206: 100 | AB206: 0
B207: MICS14 | C207: 2014 | D207: 97.75906217 | E207: 98.06210404 | H207: 0.1507942838 | I207: 99.50468712 | J207: 99.65960968 | M207: 0 | N207: 99.85658281 | O207: 99.70354549 | R207: 0 | S207: 99.73646232 | T207: 99.92781822 | W207: 0 | X207: 99.85140369 | Y207: 99.70976869 | AB207: 0
B208: MICS19 | C208: 2019 | D208: 98.82498149 | E208: 99.43858579 | H208: 0.4616401452 | I208: 99.54140415 | J208: 99.72034441 | M208: 0 | N208: 99.90798617 | O208: 100 | R208: 0 | S208: 99.90836196 | T208: 99.87548061 | W208: 0 | X208: 100 | Y208: 100 | AB208: 0
B218: =CONCATENATE("Urban use of sanitation facilities, ",C199,"–",C200) -> Urban use of sanitation facilities, 2000–2020 | S218: Data points used for regression
A297: RURAL | D297: Poorest | I297: Poor | N297: Middle | S297: Rich | X297: Richest
D298: Improved | E298: Basic | F298: Limited | G298: Unimproved | H298: Open defecation | I298: Improved | J298: Basic | K298: Limited | L298: Unimproved | M298: Open defecation | N298: Improved | O298: Basic | P298: Limited | Q298: Unimproved | R298: Open defecation | S298: Improved | T298: Basic | U298: Limited | V298: Unimproved | W298: Open defecation | X298: Improved | Y298: Basic | Z298: Limited | AA298: Unimproved | AB298: Open defecation
A299: Forecast period: | C299: 2000 | D299: =IF((D301+H301)>100,D301*100/(D301+H301),D301) -> 95.25402983 | E299: =D299*AVERAGEIF(E305:E316,">0")/100 -> 93.63798972 | F299: =D299*(100-AVERAGEIF(E305:E316,">0"))/100 -> 1.616040114 | G299: =100-(E299+F299+H299) -> 4.358845036 | H299: =IF((D301+H301)>100,H301*100/(D301+H301),H301) -> 0.3871251291 | I299: =IF((I301+M301)>100,I301*100/(I301+M301),I301) -> 99.11403771 | J299: =I299*AVERAGEIF(J305:J316,">0")/100 -> 98.79568103 | K299: =I299*(100-AVERAGEIF(J305:J316,">0"))/100 -> 0.318356683 | L299: =100-(J299+K299+M299) -> 0.8859622864 | M299: =IF((I301+M301)>100,M301*100/(I301+M301),M301) -> 0 | N299: =IF((N301+R301)>100,N301*100/(N301+R301),N301) -> 99.78142505 | O299: =N299*AVERAGEIF(O305:O316,">0")/100 -> 99.66689963 | P299: =N299*(100-AVERAGEIF(O305:O316,">0"))/100 -> 0.1145254134 | Q299: =100-(O299+P299+R299) -> 0.2185749531 | R299: =IF((N301+R301)>100,R301*100/(N301+R301),R301) -> 0 | S299: =IF((S301+W301)>100,S301*100/(S301+W301),S301) -> 99.33697651 | T299: =S299*AVERAGEIF(T305:T316,">0")/100 -> 99.26039444 | U299: =S299*(100-AVERAGEIF(T305:T316,">0"))/100 -> 0.07658206536 | V299: =100-(T299+U299+W299) -> 0.6630234906 | W299: =IF((S301+W301)>100,W301*100/(S301+W301),W301) -> 0 | X299: =IF((X301+AB301)>100,X301*100/(X301+AB301),X301) -> 99.34401599 | Y299: =X299*AVERAGEIF(Y305:Y316,">0")/100 -> 99.17219691 | Z299: =X299*(100-AVERAGEIF(Y305:Y316,">0"))/100 -> 0.1718190726 | AA299: =100-(Y299+Z299+AB299) -> 0.6559840147 | AB299: =IF((X301+AB301)>100,AB301*100/(X301+AB301),AB301) -> 0
C300: 2020 | D300: =IF((D302+H302)>100,D302*100/(D302+H302),D302) -> 91.41659349 | E300: =D300*AVERAGEIF(E305:E316,">0")/100 -> 89.86565772 | F300: =D300*(100-AVERAGEIF(E305:E316,">0"))/100 -> 1.55093577 | G300: =100-(E300+F300+H300) -> 8.120120789 | H300: =IF((D302+H302)>100,H302*100/(D302+H302),H302) -> 0.4632857256 | I300: =IF((I302+M302)>100,I302*100/(I302+M302),I302) -> 94.47978531 | J300: =I300*AVERAGEIF(J305:J316,">0")/100 -> 94.17631396 | K300: =I300*(100-AVERAGEIF(J305:J316,">0"))/100 -> 0.3034713523 | L300: =100-(J300+K300+M300) -> 5.520214686 | M300: =IF((I302+M302)>100,M302*100/(I302+M302),M302) -> 0 | N300: =IF((N302+R302)>100,N302*100/(N302+R302),N302) -> 94.92806518 | O300: =N300*AVERAGEIF(O305:O316,">0")/100 -> 94.81911027 | P300: =N300*(100-AVERAGEIF(O305:O316,">0"))/100 -> 0.1089549072 | Q300: =100-(O300+P300+R300) -> 5.071934823 | R300: =IF((N302+R302)>100,R302*100/(N302+R302),R302) -> 0 | S300: =IF((S302+W302)>100,S302*100/(S302+W302),S302) -> 98.54253089 | T300: =S300*AVERAGEIF(T305:T316,">0")/100 -> 98.46656128 | U300: =S300*(100-AVERAGEIF(T305:T316,">0"))/100 -> 0.07596960172 | V300: =100-(T300+U300+W300) -> 1.457469114 | W300: =IF((S302+W302)>100,W302*100/(S302+W302),W302) -> 0 | X300: =IF((X302+AB302)>100,X302*100/(X302+AB302),X302) -> 98.57819993 | Y300: =X300*AVERAGEIF(Y305:Y316,">0")/100 -> 98.40770536 | Z300: =X300*(100-AVERAGEIF(Y305:Y316,">0"))/100 -> 0.170494566 | AA300: =100-(Y300+Z300+AB300) -> 1.421800071 | AB300: =IF((X302+AB302)>100,AB302*100/(X302+AB302),AB302) -> 0
A301: Regression period: | C301: =MinRegYear(C299,C305:C316) -> 2004 | D301: =IF(MAX(C305:C316)-MIN(C305:C316)<5,AVERAGEIF(C305:C316,">0",D305:D316), IF(FORECAST($C301,D$305:D$316,$C$305:$C$316)<0,0, IF(FORECAST($C301,D$305:D$316,$C$305:$C$316)>100,100, FORECAST($C301,D$305:D$316,$C$305:$C$316)))) -> 95.25402983 | H301: =IF(MAX(C305:C316)-MIN(C305:C316)<5,AVERAGEIF(C305:C316,">0",H305:H316), IF(FORECAST($C301,H$305:H$316,$C$305:$C$316)<0,0, IF(FORECAST($C301,H$305:H$316,$C$305:$C$316)>100,100, FORECAST($C301,H$305:H$316,$C$305:$C$316)))) -> 0.3871251291 | I301: =IF(MAX(C305:C316)-MIN(C305:C316)<5,AVERAGEIF(C305:C316,">0",I305:I316), IF(FORECAST($C301,I$305:I$316,$C$305:$C$316)<0,0, IF(FORECAST($C301,I$305:I$316,$C$305:$C$316)>100,100, FORECAST($C301,I$305:I$316,$C$305:$C$316)))) -> 99.11403771 | M301: =IF(MAX(C305:C316)-MIN(C305:C316)<5,AVERAGEIF(C305:C316,">0",M305:M316), IF(FORECAST($C301,M$305:M$316,$C$305:$C$316)<0,0, IF(FORECAST($C301,M$305:M$316,$C$305:$C$316)>100,100, FORECAST($C301,M$305:M$316,$C$305:$C$316)))) -> 0 | N301: =IF(MAX(C305:C316)-MIN(C305:C316)<5,AVERAGEIF(C305:C316,">0",N305:N316), IF(FORECAST($C301,N$305:N$316,$C$305:$C$316)<0,0, IF(FORECAST($C301,N$305:N$316,$C$305:$C$316)>100,100, FORECAST($C301,N$305:N$316,$C$305:$C$316)))) -> 99.78142505 | R301: =IF(MAX(C305:C316)-MIN(C305:C316)<5,AVERAGEIF(C305:C316,">0",R305:R316), IF(FORECAST($C301,R$305:R$316,$C$305:$C$316)<0,0, IF(FORECAST($C301,R$305:R$316,$C$305:$C$316)>100,100, FORECAST($C301,R$305:R$316,$C$305:$C$316)))) -> 0 | S301: =IF(MAX(C305:C316)-MIN(C305:C316)<5,AVERAGEIF(C305:C316,">0",S305:S316), IF(FORECAST($C301,S$305:S$316,$C$305:$C$316)<0,0, IF(FORECAST($C301,S$305:S$316,$C$305:$C$316)>100,100, FORECAST($C301,S$305:S$316,$C$305:$C$316)))) -> 99.33697651 | W301: =IF(MAX(C305:C316)-MIN(C305:C316)<5,AVERAGEIF(C305:C316,">0",W305:W316), IF(FORECAST($C301,W$305:W$316,$C$305:$C$316)<0,0, IF(FORECAST($C301,W$305:W$316,$C$305:$C$316)>100,100, FORECAST($C301,W$305:W$316,$C$305:$C$316)))) -> 0 | X301: =IF(MAX(C305:C316)-MIN(C305:C316)<5,AVERAGEIF(C305:C316,">0",X305:X316), IF(FORECAST($C301,X$305:X$316,$C$305:$C$316)<0,0, IF(FORECAST($C301,X$305:X$316,$C$305:$C$316)>100,100, FORECAST($C301,X$305:X$316,$C$305:$C$316)))) -> 99.34401599 | AB301: =IF(MAX(C305:C316)-MIN(C305:C316)<5,AVERAGEIF(C305:C316,">0",AB305:AB316), IF(FORECAST($C301,AB$305:AB$316,$C$305:$C$316)<0,0, IF(FORECAST($C301,AB$305:AB$316,$C$305:$C$316)>100,100, FORECAST($C301,AB$305:AB$316,$C$305:$C$316)))) -> 0
C302: =MaxRegYear(C300,C305:C316) -> 2020 | D302: =IF(MAX(C305:C316)-MIN(C305:C316)<5,AVERAGEIF(C305:C316,">0",D305:D316), IF(FORECAST($C302,D$305:D$316,$C$305:$C$316)<0,0, IF(FORECAST($C302,D$305:D$316,$C$305:$C$316)>100,100, FORECAST($C302,D$305:D$316,$C$305:$C$316)))) -> 91.41659349 | H302: =IF(MAX(C305:C316)-MIN(C305:C316)<5,AVERAGEIF(C305:C316,">0",H305:H316), IF(FORECAST($C302,H$305:H$316,$C$305:$C$316)<0,0, IF(FORECAST($C302,H$305:H$316,$C$305:$C$316)>100,100, FORECAST($C302,H$305:H$316,$C$305:$C$316)))) -> 0.4632857256 | I302: =IF(MAX(C305:C316)-MIN(C305:C316)<5,AVERAGEIF(C305:C316,">0",I305:I316), IF(FORECAST($C302,I$305:I$316,$C$305:$C$316)<0,0, IF(FORECAST($C302,I$305:I$316,$C$305:$C$316)>100,100, FORECAST($C302,I$305:I$316,$C$305:$C$316)))) -> 94.47978531 | M302: =IF(MAX(C305:C316)-MIN(C305:C316)<5,AVERAGEIF(C305:C316,">0",M305:M316), IF(FORECAST($C302,M$305:M$316,$C$305:$C$316)<0,0, IF(FORECAST($C302,M$305:M$316,$C$305:$C$316)>100,100, FORECAST($C302,M$305:M$316,$C$305:$C$316)))) -> 0 | N302: =IF(MAX(C305:C316)-MIN(C305:C316)<5,AVERAGEIF(C305:C316,">0",N305:N316), IF(FORECAST($C302,N$305:N$316,$C$305:$C$316)<0,0, IF(FORECAST($C302,N$305:N$316,$C$305:$C$316)>100,100, FORECAST($C302,N$305:N$316,$C$305:$C$316)))) -> 94.92806518 | R302: =IF(MAX(C305:C316)-MIN(C305:C316)<5,AVERAGEIF(C305:C316,">0",R305:R316), IF(FORECAST($C302,R$305:R$316,$C$305:$C$316)<0,0, IF(FORECAST($C302,R$305:R$316,$C$305:$C$316)>100,100, FORECAST($C302,R$305:R$316,$C$305:$C$316)))) -> 0 | S302: =IF(MAX(C305:C316)-MIN(C305:C316)<5,AVERAGEIF(C305:C316,">0",S305:S316), IF(FORECAST($C302,S$305:S$316,$C$305:$C$316)<0,0, IF(FORECAST($C302,S$305:S$316,$C$305:$C$316)>100,100, FORECAST($C302,S$305:S$316,$C$305:$C$316)))) -> 98.54253089 | W302: =IF(MAX(C305:C316)-MIN(C305:C316)<5,AVERAGEIF(C305:C316,">0",W305:W316), IF(FORECAST($C302,W$305:W$316,$C$305:$C$316)<0,0, IF(FORECAST($C302,W$305:W$316,$C$305:$C$316)>100,100, FORECAST($C302,W$305:W$316,$C$305:$C$316)))) -> 0 | X302: =IF(MAX(C305:C316)-MIN(C305:C316)<5,AVERAGEIF(C305:C316,">0",X305:X316), IF(FORECAST($C302,X$305:X$316,$C$305:$C$316)<0,0, IF(FORECAST($C302,X$305:X$316,$C$305:$C$316)>100,100, FORECAST($C302,X$305:X$316,$C$305:$C$316)))) -> 98.57819993 | AB302: =IF(MAX(C305:C316)-MIN(C305:C316)<5,AVERAGEIF(C305:C316,">0",AB305:AB316), IF(FORECAST($C302,AB$305:AB$316,$C$305:$C$316)<0,0, IF(FORECAST($C302,AB$305:AB$316,$C$305:$C$316)>100,100, FORECAST($C302,AB$305:AB$316,$C$305:$C$316)))) -> 0
B304: Survey | C304: Year | D304: Improved | E304: Not shared | H304: Open defecation | I304: Improved | J304: Not shared | M304: Open defecation | N304: Improved | O304: Not shared | R304: Open defecation | S304: Improved | T304: Not shared | W304: Open defecation | X304: Improved | Y304: Not shared | AB304: Open defecation
B305: MICS06 | C305: 2006 | D305: =IF(ISERROR(INDIRECT(CONCATENATE($B305,"!M122"))),"",INDIRECT(CONCATENATE($B305,"!M122"))) -> 97.90740274 | E305: =IF(ISERROR(INDIRECT(CONCATENATE($B305,"!M129"))),"",INDIRECT(CONCATENATE($B305,"!M129"))) -> N/A | H305: =IF(ISERROR(INDIRECT(CONCATENATE($B305,"!M127"))),"",INDIRECT(CONCATENATE($B305,"!M127"))) -> 0.3422768924 | I305: =IF(ISERROR(INDIRECT(CONCATENATE($B305,"!N122"))),"",INDIRECT(CONCATENATE($B305,"!N122"))) -> 100 | J305: =IF(ISERROR(INDIRECT(CONCATENATE($B305,"!N129"))),"",INDIRECT(CONCATENATE($B305,"!N129"))) -> N/A | M305: =IF(ISERROR(INDIRECT(CONCATENATE($B305,"!N127"))),"",INDIRECT(CONCATENATE($B305,"!N127"))) -> 0 | N305: =IF(ISERROR(INDIRECT(CONCATENATE($B305,"!O122"))),"",INDIRECT(CONCATENATE($B305,"!O122"))) -> 99.73955252 | O305: =IF(ISERROR(INDIRECT(CONCATENATE($B305,"!O129"))),"",INDIRECT(CONCATENATE($B305,"!O129"))) -> N/A | R305: =IF(ISERROR(INDIRECT(CONCATENATE($B305,"!O127"))),"",INDIRECT(CONCATENATE($B305,"!O127"))) -> 0 | S305: =IF(ISERROR(INDIRECT(CONCATENATE($B305,"!P122"))),"",INDIRECT(CONCATENATE($B305,"!P122"))) -> 99.79151959 | T305: =IF(ISERROR(INDIRECT(CONCATENATE($B305,"!P129"))),"",INDIRECT(CONCATENATE($B305,"!P129"))) -> N/A | W305: =IF(ISERROR(INDIRECT(CONCATENATE($B305,"!P127"))),"",INDIRECT(CONCATENATE($B305,"!P127"))) -> 0 | X305: =IF(ISERROR(INDIRECT(CONCATENATE($B305,"!Q122"))),"",INDIRECT(CONCATENATE($B305,"!Q122"))) -> 99.80771343 | Y305: =IF(ISERROR(INDIRECT(CONCATENATE($B305,"!Q129"))),"",INDIRECT(CONCATENATE($B305,"!Q129"))) -> N/A | AB305: =IF(ISERROR(INDIRECT(CONCATENATE($B305,"!Q2127"))),"",INDIRECT(CONCATENATE($B305,"!Q127"))) -> 0
B306: MICS10 | C306: 2010 | D306: 92.4471996 | E306: 98.30295574 | H306: 0.110530517 | I306: 96.24964695 | J306: 99.8983508 | M306: 0 | N306: 97.28370994 | O306: 100 | R306: 0 | S306: 98.69832356 | T306: 99.86213512 | W306: 0 | X306: 99.02107135 | Y306: 99.89673898 | AB306: 0
B307: MICS14 | C307: 2014 | D307: 87.17172063 | E307: 97.67330449 | H307: 1.125361816 | I307: 94.43577899 | J307: 99.24543157 | M307: 0 | N307: 96.49947103 | O307: 99.65567114 | R307: 0 | S307: 98.01376568 | T307: 99.90658525 | W307: 0 | X307: 97.47525187 | Y307: 100 | AB307: 0
B308: MICS19 | C308: 2019 | D308: 95.57508389 | E308: 98.93406498 | H308: 0.1274125217 | I308: 96.21257934 | J308: 99.89261038 | M308: 0 | N308: 95.59291197 | O308: 100 | R308: 0 | S308: 99.20575311 | T308: 100 | W308: 0 | X308: 99.49253167 | Y308: 99.58440016 | AB308: 0
B318: =CONCATENATE("Rural use of sanitation facilities, ",C299,"–",C300) -> Rural use of sanitation facilities, 2000–2020 | S318: Data points used for regression

Sheet Hygiene
B4: Access to hygiene facilities by wealth quintile (%)
B5: =IF(ISERROR(INDIRECT(CONCATENATE($E$32,"!A2"))),"",INDIRECT(CONCATENATE($E$32,"!A2"))) -> Serbia
B7: =CONCATENATE("National ",IF(ISERROR(INDIRECT(CONCATENATE($E$32,"!A2"))),"",INDIRECT(CONCATENATE($E$32,"!A210")))) -> National Access to hygiene facilities | K7: =CONCATENATE("Urban ",IF(ISERROR(INDIRECT(CONCATENATE($E$32,"!A2"))),"",INDIRECT(CONCATENATE($E$32,"!A210")))) -> Urban Access to hygiene facilities | S7: =CONCATENATE("Rural ",IF(ISERROR(INDIRECT(CONCATENATE($E$32,"!A2"))),"",INDIRECT(CONCATENATE($E$32,"!A210")))) -> Rural Access to hygiene facilities
E32: =INDEX(B88:B100,A88) -> MICS10 | G32: =IF(ISERROR(INDIRECT(CONCATENATE($E$32,"!A2"))),"",INDIRECT(CONCATENATE($E$32,"!A2"))) -> Serbia | K32: Poorest | N32: Poor | Q32: Middle | T32: Rich | W32: Richest
K33: Basic | L33: Limited | M33: No facility | N33: Basic | O33: Limited | P33: No facility | Q33: Basic | R33: Limited | S33: No facility | T33: Basic | U33: Limited | V33: No facility | W33: Basic | X33: Limited | Y33: No facility
B34: >>> Select Survey : | G34: NATIONAL | J34: =IF(ISERROR(INDIRECT(CONCATENATE(#REF!,"!A2"))),"",INDIRECT(CONCATENATE(#REF!,"!A210"))) ->  | K34: =IF(ISERROR(INDIRECT(CONCATENATE($E$32,"!C222"))),"",INDIRECT(CONCATENATE($E$32,"!C222"))) -> 95.28788703 | L34: =IF(ISERROR(INDIRECT(CONCATENATE($E$32,"!C223"))),"",INDIRECT(CONCATENATE($E$32,"!C223"))) -> 1.946996079 | M34: =IF(ISERROR(INDIRECT(CONCATENATE($E$32,"!C224"))),"",INDIRECT(CONCATENATE($E$32,"!C224"))) -> 2.765116887 | N34: =IF(ISERROR(INDIRECT(CONCATENATE($E$32,"!D222"))),"",INDIRECT(CONCATENATE($E$32,"!D222"))) -> 98.73110754 | O34: =IF(ISERROR(INDIRECT(CONCATENATE($E$32,"!D223"))),"",INDIRECT(CONCATENATE($E$32,"!D223"))) -> 0.8686087413 | P34: =IF(ISERROR(INDIRECT(CONCATENATE($E$32,"!D224"))),"",INDIRECT(CONCATENATE($E$32,"!D224"))) -> 0.4002837148 | Q34: =IF(ISERROR(INDIRECT(CONCATENATE($E$32,"!E222"))),"",INDIRECT(CONCATENATE($E$32,"!E222"))) -> 99.15563029 | R34: =IF(ISERROR(INDIRECT(CONCATENATE($E$32,"!E223"))),"",INDIRECT(CONCATENATE($E$32,"!E223"))) -> 0.331220813 | S34: =IF(ISERROR(INDIRECT(CONCATENATE($E$32,"!E224"))),"",INDIRECT(CONCATENATE($E$32,"!E224"))) -> 0.5131488991 | T34: =IF(ISERROR(INDIRECT(CONCATENATE($E$32,"!F222"))),"",INDIRECT(CONCATENATE($E$32,"!F222"))) -> 97.8150953 | U34: =IF(ISERROR(INDIRECT(CONCATENATE($E$32,"!F223"))),"",INDIRECT(CONCATENATE($E$32,"!F223"))) -> 0.6768814367 | V34: =IF(ISERROR(INDIRECT(CONCATENATE($E$32,"!F224"))),"",INDIRECT(CONCATENATE($E$32,"!F224"))) -> 1.508023267 | W34: =IF(ISERROR(INDIRECT(CONCATENATE($E$32,"!G222"))),"",INDIRECT(CONCATENATE($E$32,"!G222"))) -> 97.82911658 | X34: =IF(ISERROR(INDIRECT(CONCATENATE($E$32,"!G223"))),"",INDIRECT(CONCATENATE($E$32,"!G223"))) -> 0.3236991307 | Y34: =IF(ISERROR(INDIRECT(CONCATENATE($E$32,"!G224"))),"",INDIRECT(CONCATENATE($E$32,"!G224"))) -> 1.847184292
G37: URBAN | J37: =IF(ISERROR(INDIRECT(CONCATENATE(#REF!,"!A2"))),"",INDIRECT(CONCATENATE(#REF!,"!A210"))) ->  | K37: =IF(ISERROR(INDIRECT(CONCATENATE($E$32,"!H222"))),"",INDIRECT(CONCATENATE($E$32,"!H222"))) -> 96.44234645 | L37: =IF(ISERROR(INDIRECT(CONCATENATE($E$32,"!H223"))),"",INDIRECT(CONCATENATE($E$32,"!H223"))) -> 1.134483026 | M37: =IF(ISERROR(INDIRECT(CONCATENATE($E$32,"!H224"))),"",INDIRECT(CONCATENATE($E$32,"!H224"))) -> 2.423170521 | N37: =IF(ISERROR(INDIRECT(CONCATENATE($E$32,"!I222"))),"",INDIRECT(CONCATENATE($E$32,"!I222"))) -> 98.6721219 | O37: =IF(ISERROR(INDIRECT(CONCATENATE($E$32,"!I223"))),"",INDIRECT(CONCATENATE($E$32,"!I223"))) -> 0.3967127285 | P37: =IF(ISERROR(INDIRECT(CONCATENATE($E$32,"!I224"))),"",INDIRECT(CONCATENATE($E$32,"!I224"))) -> 0.9311653743 | Q37: =IF(ISERROR(INDIRECT(CONCATENATE($E$32,"!J222"))),"",INDIRECT(CONCATENATE($E$32,"!J222"))) -> 98.49297347 | R37: =IF(ISERROR(INDIRECT(CONCATENATE($E$32,"!J223"))),"",INDIRECT(CONCATENATE($E$32,"!J223"))) -> 0.4367052985 | S37: =IF(ISERROR(INDIRECT(CONCATENATE($E$32,"!J224"))),"",INDIRECT(CONCATENATE($E$32,"!J224"))) -> 1.070321227 | T37: =IF(ISERROR(INDIRECT(CONCATENATE($E$32,"!K222"))),"",INDIRECT(CONCATENATE($E$32,"!K222"))) -> 98.37108275 | U37: =IF(ISERROR(INDIRECT(CONCATENATE($E$32,"!K223"))),"",INDIRECT(CONCATENATE($E$32,"!K223"))) -> 0.3124467142 | V37: =IF(ISERROR(INDIRECT(CONCATENATE($E$32,"!K224"))),"",INDIRECT(CONCATENATE($E$32,"!K224"))) -> 1.316470539 | W37: =IF(ISERROR(INDIRECT(CONCATENATE($E$32,"!L222"))),"",INDIRECT(CONCATENATE($E$32,"!L222"))) -> 97.61960513 | X37: =IF(ISERROR(INDIRECT(CONCATENATE($E$32,"!L223"))),"",INDIRECT(CONCATENATE($E$32,"!L223"))) -> 0.5003302858 | Y37: =IF(ISERROR(INDIRECT(CONCATENATE($E$32,"!L224"))),"",INDIRECT(CONCATENATE($E$32,"!L224"))) -> 1.880064587
G40: RURAL | J40: =IF(ISERROR(INDIRECT(CONCATENATE(#REF!,"!A2"))),"",INDIRECT(CONCATENATE(#REF!,"!A210"))) ->  | K40: =IF(ISERROR(INDIRECT(CONCATENATE($E$32,"!M222"))),"",INDIRECT(CONCATENATE($E$32,"!M222"))) -> 94.21321009 | L40: =IF(ISERROR(INDIRECT(CONCATENATE($E$32,"!M223"))),"",INDIRECT(CONCATENATE($E$32,"!M223"))) -> 2.675760054 | M40: =IF(ISERROR(INDIRECT(CONCATENATE($E$32,"!M224"))),"",INDIRECT(CONCATENATE($E$32,"!M224"))) -> 3.111029855 | N40: =IF(ISERROR(INDIRECT(CONCATENATE($E$32,"!N222"))),"",INDIRECT(CONCATENATE($E$32,"!N222"))) -> 98.8226205 | O40: =IF(ISERROR(INDIRECT(CONCATENATE($E$32,"!N223"))),"",INDIRECT(CONCATENATE($E$32,"!N223"))) -> 0.7643830434 | P40: =IF(ISERROR(INDIRECT(CONCATENATE($E$32,"!N224"))),"",INDIRECT(CONCATENATE($E$32,"!N224"))) -> 0.4129964562 | Q40: =IF(ISERROR(INDIRECT(CONCATENATE($E$32,"!O222"))),"",INDIRECT(CONCATENATE($E$32,"!O222"))) -> 98.50956628 | R40: =IF(ISERROR(INDIRECT(CONCATENATE($E$32,"!O223"))),"",INDIRECT(CONCATENATE($E$32,"!O223"))) -> 0.9483588484 | S40: =IF(ISERROR(INDIRECT(CONCATENATE($E$32,"!O224"))),"",INDIRECT(CONCATENATE($E$32,"!O224"))) -> 0.5420748713 | T40: =IF(ISERROR(INDIRECT(CONCATENATE($E$32,"!P222"))),"",INDIRECT(CONCATENATE($E$32,"!P222"))) -> 99.26899501 | U40: =IF(ISERROR(INDIRECT(CONCATENATE($E$32,"!P223"))),"",INDIRECT(CONCATENATE($E$32,"!P223"))) -> 0.7310049945 | V40: =IF(ISERROR(INDIRECT(CONCATENATE($E$32,"!P224"))),"",INDIRECT(CONCATENATE($E$32,"!P224"))) -> 0 | W40: =IF(ISERROR(INDIRECT(CONCATENATE($E$32,"!Q222"))),"",INDIRECT(CONCATENATE($E$32,"!Q222"))) -> 97.08692116 | X40: =IF(ISERROR(INDIRECT(CONCATENATE($E$32,"!Q223"))),"",INDIRECT(CONCATENATE($E$32,"!Q223"))) -> 0.6910062463 | Y40: =IF(ISERROR(INDIRECT(CONCATENATE($E$32,"!Q224"))),"",INDIRECT(CONCATENATE($E$32,"!Q224"))) -> 2.222072591
A88: 2 | B88: MICS06
B89: MICS10
B90: MICS14
B91: MICS19
B92: Template

Sheet MICS06
A2: =A1026 -> Serbia
A3: =A1034 -> 2006
A4: Use of drinking water sources
A5: by wealth quintile and sub-national region
A6: Notes:
A7: WHO/UNICEF JMP customised wealth index excludes water,
A8: sanitation and hygiene assets.
A9: Survey used for analysis: | B9: =A1025 -> MICS06
A10: =B1028 -> 
A11: =B1027 -> 
A14: Use of drinking water sources | C14: NATIONAL wealth index quintile | H14: URBAN wealth index quintile | M14: RURAL wealth index quintile | R14: SUB-REGIONS: | BA14: Raw numbers of respondents: | BB14: Use of drinking water sources | BC14: NATIONAL wealth index quintile | BH14: URBAN wealth index quintile | BM14: RURAL wealth index quintile | BR14: SUB-REGIONS:
A15: Weighted percentage (used in graphs) | C15: Poorest | D15: Poor | E15: Middle | F15: Rich | G15: Richest | H15: Poorest | I15: Poor | J15: Middle | K15: Rich | L15: Richest | M15: Poorest | N15: Poor | O15: Middle | P15: Rich | Q15: Richest | R15: Belgrade | S15: Central | T15: East | U15: SouthEast | V15: Vojvodina | W15: West | BA15: Water data, raw numbers (weighted) | BC15: Poorest | BD15: Poor | BE15: Middle | BF15: Rich | BG15: Richest | BH15: Poorest | BI15: Poor | BJ15: Middle | BK15: Rich | BL15: Richest | BM15: Poorest | BN15: Poor | BO15: Middle | BP15: Rich | BQ15: Richest | BR15: Belgrade | BS15: Central | BT15: East | BU15: SouthEast | BV15: Vojvodina | BW15: West
A16: Water | B16: Improved | C16: 97.85576671 | D16: 99.4403064 | E16: 99.11695939 | F16: 99.24480041 | G16: 99.87491129 | H16: 99.35825432 | I16: 99.94736793 | J16: 99.45368356 | K16: 99.74218198 | L16: 99.84371594 | M16: 96.78231493 | N16: 98.90653479 | O16: 99.11234899 | P16: 98.11145242 | Q16: 99.21742504 | R16: 99.58966652 | S16: 98.51703021 | T16: 99.19573379 | U16: 98.36497028 | V16: 99.75825551 | W16: 98.51272086 | BA16: Water | BB16: Improved | BC16: N/A | BD16: N/A | BE16: N/A | BF16: N/A | BG16: N/A | BH16: N/A | BI16: N/A | BJ16: N/A | BK16: N/A | BL16: N/A | BM16: N/A | BN16: N/A | BO16: N/A | BP16: N/A | BQ16: N/A | BR16: N/A | BS16: N/A | BT16: N/A | BU16: N/A | BV16: N/A | BW16: N/A
B17: Not Improved | C17: 2.144233295 | D17: 0.5596936021 | E17: 0.8830406103 | F17: 0.7551995886 | G17: 0.1250887104 | H17: 0.64174568 | I17: 0.05263206859 | J17: 0.5463164379 | K17: 0.2578180249 | L17: 0.1562840571 | M17: 3.217685067 | N17: 1.09346521 | O17: 0.8876510067 | P17: 1.888547577 | Q17: 0.7825749606 | R17: 0.4103334848 | S17: 1.482969794 | T17: 0.8042662126 | U17: 1.635029723 | V17: 0.2417444882 | W17: 1.487279137 | BB17: Not Improved | BC17: N/A | BD17: N/A | BE17: N/A | BF17: N/A | BG17: N/A | BH17: N/A | BI17: N/A | BJ17: N/A | BK17: N/A | BL17: N/A | BM17: N/A | BN17: N/A | BO17: N/A | BP17: N/A | BQ17: N/A | BR17: N/A | BS17: N/A | BT17: N/A | BU17: N/A | BV17: N/A | BW17: N/A
A18: Water ladder | B18: Basic | C18: 96.84367598 | D18: 98.82461639 | E18: 98.83279786 | F18: 98.87272655 | G18: 99.51632292 | H18: 98.56197262 | I18: 99.79365652 | J18: 99.13517591 | K18: 99.55934295 | L18: 99.73830623 | M18: 95.52944967 | N18: 98.61914932 | O18: 98.12170194 | P18: 97.71034591 | Q18: 98.16743493 | R18: 99.13029647 | S18: 98.28288778 | T18: 97.69613865 | U18: 97.42506469 | V18: 99.35012169 | W18: 98.50876489 | BA18: Water ladder | BB18: Basic | BC18: N/A | BD18: N/A | BE18: N/A | BF18: N/A | BG18: N/A | BH18: N/A | BI18: N/A | BJ18: N/A | BK18: N/A | BL18: N/A | BM18: N/A | BN18: N/A | BO18: N/A | BP18: N/A | BQ18: N/A | BR18: N/A | BS18: N/A | BT18: N/A | BU18: N/A | BV18: N/A | BW18: N/A
B19: Limited | C19: 1.004687011 | D19: 0.6152567233 | E19: 0.2799338868 | F19: 0.371160688 | G19: 0.3585266777 | H19: 0.7962817005 | I19: 0.153711409 | J19: 0.3185076542 | K19: 0.1828390276 | L19: 0.1054097175 | M19: 1.228210947 | N19: 0.2855122836 | O19: 0.9906470489 | P19: 0.3809998567 | Q19: 1.047040592 | R19: 0.4591484338 | S19: 0.2341424209 | T19: 1.490853699 | U19: 0.9399055837 | V19: 0.4074661428 | W19: 0 | BB19: Limited | BC19: N/A | BD19: N/A | BE19: N/A | BF19: N/A | BG19: N/A | BH19: N/A | BI19: N/A | BJ19: N/A | BK19: N/A | BL19: N/A | BM19: N/A | BN19: N/A | BO19: N/A | BP19: N/A | BQ19: N/A | BR19: N/A | BS19: N/A | BT19: N/A | BU19: N/A | BV19: N/A | BW19: N/A
B20: Unimproved | C20: 2.151637014 | D20: 0.5601268853 | E20: 0.8872682551 | F20: 0.7561127641 | G20: 0.1251503999 | H20: 0.64174568 | I20: 0.05263206859 | J20: 0.5463164379 | K20: 0.2578180249 | L20: 0.1562840571 | M20: 3.242339385 | N20: 1.095338397 | O20: 0.8876510067 | P20: 1.908654231 | Q20: 0.7855244735 | R20: 0.4105550928 | S20: 1.482969794 | T20: 0.8130076534 | U20: 1.635029723 | V20: 0.2424121666 | W20: 1.491235109 | BB20: Unimproved | BC20: N/A | BD20: N/A | BE20: N/A | BF20: N/A | BG20: N/A | BH20: N/A | BI20: N/A | BJ20: N/A | BK20: N/A | BL20: N/A | BM20: N/A | BN20: N/A | BO20: N/A | BP20: N/A | BQ20: N/A | BR20: N/A | BS20: N/A | BT20: N/A | BU20: N/A | BV20: N/A | BW20: N/A
B21: Surface water | C21: 0 | D21: 0 | E21: 0 | F21: 0 | G21: 0 | H21: 0 | I21: 0 | J21: 0 | K21: 0 | L21: 0 | M21: 0 | N21: 0 | O21: 0 | P21: 0 | Q21: 0 | R21: 0 | S21: 0 | T21: 0 | U21: 0 | V21: 0 | W21: 0 | BB21: Surface water | BC21: N/A | BD21: N/A | BE21: N/A | BF21: N/A | BG21: N/A | BH21: N/A | BI21: N/A | BJ21: N/A | BK21: N/A | BL21: N/A | BM21: N/A | BN21: N/A | BO21: N/A | BP21: N/A | BQ21: N/A | BR21: N/A | BS21: N/A | BT21: N/A | BU21: N/A | BV21: N/A | BW21: N/A
A22: Improved water point at more than 30 minutes | B22: Yes | C22: 1.026779581 | D22: 0.6187223536 | E22: 0.2824398863 | F22: 0.3739884625 | G22: 0.3589759376 | H22: 0.8014248096 | I22: 0.1537923531 | J22: 0.3202572723 | K22: 0.1833116381 | L22: 0.1055747139 | M22: 1.269368171 | N22: 0.2886742434 | O22: 0.9995192919 | P22: 0.3884133241 | Q22: 1.055330471 | R22: 0.4610412622 | S22: 0.23766695 | T22: 1.503073804 | U22: 0.955528763 | V22: 0.4084562906 | W22: 0 | BA22: Improved water point at more than 30 minutes | BB22: Yes | BC22: N/A | BD22: N/A | BE22: N/A | BF22: N/A | BG22: N/A | BH22: N/A | BI22: N/A | BJ22: N/A | BK22: N/A | BL22: N/A | BM22: N/A | BN22: N/A | BO22: N/A | BP22: N/A | BQ22: N/A | BR22: N/A | BS22: N/A | BT22: N/A | BU22: N/A | BV22: N/A | BW22: N/A
B23: No | C23: 98.97322042 | D23: 99.38127765 | E23: 99.71756011 | F23: 99.62601154 | G23: 99.64102406 | H23: 99.19857519 | I23: 99.84620765 | J23: 99.67974273 | K23: 99.81668836 | L23: 99.89442529 | M23: 98.73063183 | N23: 99.71132576 | O23: 99.00048071 | P23: 99.61158668 | Q23: 98.94466953 | R23: 99.53895874 | S23: 99.76233305 | T23: 98.4969262 | U23: 99.04447124 | V23: 99.59154371 | W23: 100 | BB23: No | BC23: N/A | BD23: N/A | BE23: N/A | BF23: N/A | BG23: N/A | BH23: N/A | BI23: N/A | BJ23: N/A | BK23: N/A | BL23: N/A | BM23: N/A | BN23: N/A | BO23: N/A | BP23: N/A | BQ23: N/A | BR23: N/A | BS23: N/A | BT23: N/A | BU23: N/A | BV23: N/A | BW23: N/A
A24: Manually calculated ratios | B24: Improved wells
B25: Improved springs
B26: Other
C27: NATIONAL wealth index quintile | H27: URBAN wealth index quintile | M27: RURAL wealth index quintile | R27: SUB-REGIONS: | BA27: Raw numbers of respondents: | BB27: Use of drinking water sources | BC27: NATIONAL wealth index quintile | BH27: URBAN wealth index quintile | BM27: RURAL wealth index quintile | BR27: SUB-REGIONS:
A28: Percentage based on weighted population | C28: Poorest | D28: Poor | E28: Middle | F28: Rich | G28: Richest | H28: Poorest | I28: Poor | J28: Middle | K28: Rich | L28: Richest | M28: Poorest | N28: Poor | O28: Middle | P28: Rich | Q28: Richest | R28: Belgrade | S28: Central | T28: East | U28: SouthEast | V28: Vojvodina | W28: West | BA28: Water data, raw numbers (weighted) | BC28: Poorest | BD28: Poor | BE28: Middle | BF28: Rich | BG28: Richest | BH28: Poorest | BI28: Poor | BJ28: Middle | BK28: Rich | BL28: Richest | BM28: Poorest | BN28: Poor | BO28: Middle | BP28: Rich | BQ28: Richest | BR28: Belgrade | BS28: Central | BT28: East | BU28: SouthEast | BV28: Vojvodina | BW28: West
A29: Piped water | B29: Yes | C29: 70.49395184 | D29: 80.50515754 | E29: 81.86425755 | F29: 89.8500332 | G29: 92.62813924 | H29: 95.87062304 | I29: 98.42358139 | J29: 97.52302031 | K29: 98.76133741 | L29: 99.18496607 | M29: 57.59286573 | N29: 67.69763117 | O29: 70.91694501 | P29: 63.98655719 | Q29: 65.10542977 | R29: 91.77219605 | S29: 79.42927892 | T29: 74.715226 | U29: 80.44027601 | V29: 89.93642733 | W29: 66.76343737 | BA29: Piped water | BB29: Yes | BC29: N/A | BD29: N/A | BE29: N/A | BF29: N/A | BG29: N/A | BH29: N/A | BI29: N/A | BJ29: N/A | BK29: N/A | BL29: N/A | BM29: N/A | BN29: N/A | BO29: N/A | BP29: N/A | BQ29: N/A | BR29: N/A | BS29: N/A | BT29: N/A | BU29: N/A | BV29: N/A | BW29: N/A
B30: No | C30: 29.50604816 | D30: 19.49484246 | E30: 18.13574245 | F30: 10.1499668 | G30: 7.371860764 | H30: 4.129376959 | I30: 1.576418611 | J30: 2.476979687 | K30: 1.238662588 | L30: 0.8150339313 | M30: 42.40713427 | N30: 32.30236883 | O30: 29.08305499 | P30: 36.01344281 | Q30: 34.89457023 | R30: 8.227803952 | S30: 20.57072108 | T30: 25.284774 | U30: 19.55972399 | V30: 10.06357267 | W30: 33.23656263 | BB30: No | BC30: N/A | BD30: N/A | BE30: N/A | BF30: N/A | BG30: N/A | BH30: N/A | BI30: N/A | BJ30: N/A | BK30: N/A | BL30: N/A | BM30: N/A | BN30: N/A | BO30: N/A | BP30: N/A | BQ30: N/A | BR30: N/A | BS30: N/A | BT30: N/A | BU30: N/A | BV30: N/A | BW30: N/A
A31: Piped water on premises | B31: Yes | C31: 67.19403163 | D31: 79.06451452 | E31: 80.69537903 | F31: 88.98494204 | G31: 92.10562434 | H31: 94.28852461 | I31: 97.67152801 | J31: 96.85284901 | K31: 98.29049013 | L31: 98.97157728 | M31: 53.16203498 | N31: 65.63007376 | O31: 69.54389893 | P31: 62.02696201 | Q31: 63.27406177 | R31: 91.65694368 | S31: 78.72375042 | T31: 71.38104409 | U31: 78.32128216 | V31: 87.69110558 | W31: 66.22611399 | BA31: Piped water on premises | BB31: Yes | BC31: N/A | BD31: N/A | BE31: N/A | BF31: N/A | BG31: N/A | BH31: N/A | BI31: N/A | BJ31: N/A | BK31: N/A | BL31: N/A | BM31: N/A | BN31: N/A | BO31: N/A | BP31: N/A | BQ31: N/A | BR31: N/A | BS31: N/A | BT31: N/A | BU31: N/A | BV31: N/A | BW31: N/A
B32: No | C32: 32.80596837 | D32: 20.93548548 | E32: 19.30462097 | F32: 11.01505796 | G32: 7.894375661 | H32: 5.711475394 | I32: 2.328471986 | J32: 3.147150988 | K32: 1.709509872 | L32: 1.028422723 | M32: 46.83796502 | N32: 34.36992624 | O32: 30.45610107 | P32: 37.97303799 | Q32: 36.72593823 | R32: 8.343056316 | S32: 21.27624958 | T32: 28.61895591 | U32: 21.67871784 | V32: 12.30889442 | W32: 33.77388601 | BB32: No | BC32: N/A | BD32: N/A | BE32: N/A | BF32: N/A | BG32: N/A | BH32: N/A | BI32: N/A | BJ32: N/A | BK32: N/A | BL32: N/A | BM32: N/A | BN32: N/A | BO32: N/A | BP32: N/A | BQ32: N/A | BR32: N/A | BS32: N/A | BT32: N/A | BU32: N/A | BV32: N/A | BW32: N/A
A33: Piped water into dwelling | B33: Yes | C33: N/A | D33: N/A | E33: N/A | F33: N/A | G33: N/A | H33: N/A | I33: N/A | J33: N/A | K33: N/A | L33: N/A | M33: N/A | N33: N/A | O33: N/A | P33: N/A | Q33: N/A | R33: N/A | S33: N/A | T33: N/A | U33: N/A | V33: N/A | W33: N/A | BA33: Piped water into dwelling | BB33: Yes | BC33: N/A | BD33: N/A | BE33: N/A | BF33: N/A | BG33: N/A | BH33: N/A | BI33: N/A | BJ33: N/A | BK33: N/A | BL33: N/A | BM33: N/A | BN33: N/A | BO33: N/A | BP33: N/A | BQ33: N/A | BR33: N/A | BS33: N/A | BT33: N/A | BU33: N/A | BV33: N/A | BW33: N/A
B34: No | C34: N/A | D34: N/A | E34: N/A | F34: N/A | G34: N/A | H34: N/A | I34: N/A | J34: N/A | K34: N/A | L34: N/A | M34: N/A | N34: N/A | O34: N/A | P34: N/A | Q34: N/A | R34: N/A | S34: N/A | T34: N/A | U34: N/A | V34: N/A | W34: N/A | BB34: No | BC34: N/A | BD34: N/A | BE34: N/A | BF34: N/A | BG34: N/A | BH34: N/A | BI34: N/A | BJ34: N/A | BK34: N/A | BL34: N/A | BM34: N/A | BN34: N/A | BO34: N/A | BP34: N/A | BQ34: N/A | BR34: N/A | BS34: N/A | BT34: N/A | BU34: N/A | BV34: N/A | BW34: N/A
A35: Water source on premises | B35: Yes | C35: 90.15659317 | D35: 96.4626179 | E35: 96.13572409 | F35: 97.4700137 | G35: 98.15629493 | H35: 96.36491014 | I35: 98.70657566 | J35: 97.67764765 | K35: 99.21364503 | L35: 99.18935823 | M35: 85.72449615 | N35: 93.82592532 | O35: 96.06724397 | P35: 92.63787073 | Q35: 94.67183358 | R35: 98.10886628 | S35: 97.41537161 | T35: 89.90305666 | U35: 94.46420254 | V35: 95.17675577 | W35: 96.4708245 | BA35: Water source on premises | BB35: Yes | BC35: N/A | BD35: N/A | BE35: N/A | BF35: N/A | BG35: N/A | BH35: N/A | BI35: N/A | BJ35: N/A | BK35: N/A | BL35: N/A | BM35: N/A | BN35: N/A | BO35: N/A | BP35: N/A | BQ35: N/A | BR35: N/A | BS35: N/A | BT35: N/A | BU35: N/A | BV35: N/A | BW35: N/A
B36: No | C36: 9.843406833 | D36: 3.537382099 | E36: 3.864275906 | F36: 2.529986296 | G36: 1.843705067 | H36: 3.63508986 | I36: 1.293424339 | J36: 2.32235235 | K36: 0.7863549699 | L36: 0.8106417731 | M36: 14.27550385 | N36: 6.174074676 | O36: 3.932756031 | P36: 7.362129274 | Q36: 5.328166418 | R36: 1.891133724 | S36: 2.584628388 | T36: 10.09694334 | U36: 5.53579746 | V36: 4.823244228 | W36: 3.529175503 | BB36: No | BC36: N/A | BD36: N/A | BE36: N/A | BF36: N/A | BG36: N/A | BH36: N/A | BI36: N/A | BJ36: N/A | BK36: N/A | BL36: N/A | BM36: N/A | BN36: N/A | BO36: N/A | BP36: N/A | BQ36: N/A | BR36: N/A | BS36: N/A | BT36: N/A | BU36: N/A | BV36: N/A | BW36: N/A
A37: Improved Water source on premises | B37: Yes | C37: 91.47970772 | D37: 96.61036672 | E37: 96.22096344 | F37: 97.63765421 | G37: 98.19556826 | H37: 96.90242437 | I37: 98.75855433 | J37: 98.00597069 | K37: 99.21161242 | L37: 99.26415417 | M37: 87.54135757 | N37: 94.35058861 | O37: 96.25125776 | P37: 92.69844524 | Q37: 94.6298078 | R37: 98.20225244 | S37: 97.69999778 | T37: 90.41606106 | U37: 95.30399182 | V37: 95.4073979 | W37: 97.00099767 | BA37: Improved water source on premises | BB37: Yes | BC37: N/A | BD37: N/A | BE37: N/A | BF37: N/A | BG37: N/A | BH37: N/A | BI37: N/A | BJ37: N/A | BK37: N/A | BL37: N/A | BM37: N/A | BN37: N/A | BO37: N/A | BP37: N/A | BQ37: N/A | BR37: N/A | BS37: N/A | BT37: N/A | BU37: N/A | BV37: N/A | BW37: N/A
B38: No | C38: 8.520292277 | D38: 3.389633278 | E38: 3.779036562 | F38: 2.362345787 | G38: 1.80443174 | H38: 3.097575626 | I38: 1.241445669 | J38: 1.994029311 | K38: 0.7883875751 | L38: 0.7358458333 | M38: 12.45864243 | N38: 5.649411392 | O38: 3.748742236 | P38: 7.301554764 | Q38: 5.370192197 | R38: 1.797747561 | S38: 2.300002223 | T38: 9.583938941 | U38: 4.696008178 | V38: 4.592602102 | W38: 2.999002329 | BB38: No | BC38: N/A | BD38: N/A | BE38: N/A | BF38: N/A | BG38: N/A | BH38: N/A | BI38: N/A | BJ38: N/A | BK38: N/A | BL38: N/A | BM38: N/A | BN38: N/A | BO38: N/A | BP38: N/A | BQ38: N/A | BR38: N/A | BS38: N/A | BT38: N/A | BU38: N/A | BV38: N/A | BW38: N/A
A39: Piped water on premises available when needed | B39: Yes | C39: N/A | D39: N/A | E39: N/A | F39: N/A | G39: N/A | H39: N/A | I39: N/A | J39: N/A | K39: N/A | L39: N/A | M39: N/A | N39: N/A | O39: N/A | P39: N/A | Q39: N/A | R39: N/A | S39: N/A | T39: N/A | U39: N/A | V39: N/A | W39: N/A | BA39: Piped water on premises available when needed | BB39: Yes | BC39: N/A | BD39: N/A | BE39: N/A | BF39: N/A | BG39: N/A | BH39: N/A | BI39: N/A | BJ39: N/A | BK39: N/A | BL39: N/A | BM39: N/A | BN39: N/A | BO39: N/A | BP39: N/A | BQ39: N/A | BR39: N/A | BS39: N/A | BT39: N/A | BU39: N/A | BV39: N/A | BW39: N/A
B40: No | C40: N/A | D40: N/A | E40: N/A | F40: N/A | G40: N/A | H40: N/A | I40: N/A | J40: N/A | K40: N/A | L40: N/A | M40: N/A | N40: N/A | O40: N/A | P40: N/A | Q40: N/A | R40: N/A | S40: N/A | T40: N/A | U40: N/A | V40: N/A | W40: N/A | BB40: No | BC40: N/A | BD40: N/A | BE40: N/A | BF40: N/A | BG40: N/A | BH40: N/A | BI40: N/A | BJ40: N/A | BK40: N/A | BL40: N/A | BM40: N/A | BN40: N/A | BO40: N/A | BP40: N/A | BQ40: N/A | BR40: N/A | BS40: N/A | BT40: N/A | BU40: N/A | BV40: N/A | BW40: N/A
A41: Water point at more than 30 minutes | B41: Yes | C41: 1.090901869 | D41: 0.6715376978 | E41: 0.3089138216 | F41: 0.515688588 | G41: 0.3585266777 | H41: 0.8521242035 | I41: 0.2063434776 | J41: 0.5825082325 | K41: 0.1828390276 | L41: 0.1054097175 | M41: 1.351163622 | N41: 0.2858105716 | O41: 1.114616612 | P41: 0.3809998567 | Q41: 1.047040592 | R41: 0.4902748544 | S41: 0.2342761235 | T41: 1.492574429 | U41: 1.010063127 | V41: 0.5729458176 | W41: 0 | BA41: Water point at more than 30 minutes | BB41: Yes | BC41: N/A | BD41: N/A | BE41: N/A | BF41: N/A | BG41: N/A | BH41: N/A | BI41: N/A | BJ41: N/A | BK41: N/A | BL41: N/A | BM41: N/A | BN41: N/A | BO41: N/A | BP41: N/A | BQ41: N/A | BR41: N/A | BS41: N/A | BT41: N/A | BU41: N/A | BV41: N/A | BW41: N/A
B42: No | C42: 98.90909813 | D42: 99.3284623 | E42: 99.69108618 | F42: 99.48431141 | G42: 99.64147332 | H42: 99.1478758 | I42: 99.79365652 | J42: 99.41749177 | K42: 99.81716097 | L42: 99.89459028 | M42: 98.64883638 | N42: 99.71418943 | O42: 98.88538339 | P42: 99.61900014 | Q42: 98.95295941 | R42: 99.50972515 | S42: 99.76572388 | T42: 98.50742557 | U42: 98.98993687 | V42: 99.42705418 | W42: 100 | BB42: No | BC42: N/A | BD42: N/A | BE42: N/A | BF42: N/A | BG42: N/A | BH42: N/A | BI42: N/A | BJ42: N/A | BK42: N/A | BL42: N/A | BM42: N/A | BN42: N/A | BO42: N/A | BP42: N/A | BQ42: N/A | BR42: N/A | BS42: N/A | BT42: N/A | BU42: N/A | BV42: N/A | BW42: N/A
A43: Water source available when needed | B43: Yes | C43: N/A | D43: N/A | E43: N/A | F43: N/A | G43: N/A | H43: N/A | I43: N/A | J43: N/A | K43: N/A | L43: N/A | M43: N/A | N43: N/A | O43: N/A | P43: N/A | Q43: N/A | R43: N/A | S43: N/A | T43: N/A | U43: N/A | V43: N/A | W43: N/A | BA43: Water source available when needed | BB43: Yes | BC43: N/A | BD43: N/A | BE43: N/A | BF43: N/A | BG43: N/A | BH43: N/A | BI43: N/A | BJ43: N/A | BK43: N/A | BL43: N/A | BM43: N/A | BN43: N/A | BO43: N/A | BP43: N/A | BQ43: N/A | BR43: N/A | BS43: N/A | BT43: N/A | BU43: N/A | BV43: N/A | BW43: N/A
B44: No | C44: N/A | D44: N/A | E44: N/A | F44: N/A | G44: N/A | H44: N/A | I44: N/A | J44: N/A | K44: N/A | L44: N/A | M44: N/A | N44: N/A | O44: N/A | P44: N/A | Q44: N/A | R44: N/A | S44: N/A | T44: N/A | U44: N/A | V44: N/A | W44: N/A | BB44: No | BC44: N/A | BD44: N/A | BE44: N/A | BF44: N/A | BG44: N/A | BH44: N/A | BI44: N/A | BJ44: N/A | BK44: N/A | BL44: N/A | BM44: N/A | BN44: N/A | BO44: N/A | BP44: N/A | BQ44: N/A | BR44: N/A | BS44: N/A | BT44: N/A | BU44: N/A | BV44: N/A | BW44: N/A
A45: Improved water source available when needed | B45: Yes | C45: N/A | D45: N/A | E45: N/A | F45: N/A | G45: N/A | H45: N/A | I45: N/A | J45: N/A | K45: N/A | L45: N/A | M45: N/A | N45: N/A | O45: N/A | P45: N/A | Q45: N/A | R45: N/A | S45: N/A | T45: N/A | U45: N/A | V45: N/A | W45: N/A | BA45: Improved water source available when needed | BB45: Yes | BC45: N/A | BD45: N/A | BE45: N/A | BF45: N/A | BG45: N/A | BH45: N/A | BI45: N/A | BJ45: N/A | BK45: N/A | BL45: N/A | BM45: N/A | BN45: N/A | BO45: N/A | BP45: N/A | BQ45: N/A | BR45: N/A | BS45: N/A | BT45: N/A | BU45: N/A | BV45: N/A | BW45: N/A
B46: No | C46: N/A | D46: N/A | E46: N/A | F46: N/A | G46: N/A | H46: N/A | I46: N/A | J46: N/A | K46: N/A | L46: N/A | M46: N/A | N46: N/A | O46: N/A | P46: N/A | Q46: N/A | R46: N/A | S46: N/A | T46: N/A | U46: N/A | V46: N/A | W46: N/A | BB46: No | BC46: N/A | BD46: N/A | BE46: N/A | BF46: N/A | BG46: N/A | BH46: N/A | BI46: N/A | BJ46: N/A | BK46: N/A | BL46: N/A | BM46: N/A | BN46: N/A | BO46: N/A | BP46: N/A | BQ46: N/A | BR46: N/A | BS46: N/A | BT46: N/A | BU46: N/A | BV46: N/A | BW46: N/A
A47: Microbiological quality at point of collection | B47: Not contaminated (No E. coli in 100 mL) | C47: N/A | D47: N/A | E47: N/A | F47: N/A | G47: N/A | H47: N/A | I47: N/A | J47: N/A | K47: N/A | L47: N/A | M47: N/A | N47: N/A | O47: N/A | P47: N/A | Q47: N/A | R47: N/A | S47: N/A | T47: N/A | U47: N/A | V47: N/A | W47: N/A | BA47: Microbiological quality at point of collection | BB47: Not contaminated (No E. coli in 100 mL) | BC47: N/A | BD47: N/A | BE47: N/A | BF47: N/A | BG47: N/A | BH47: N/A | BI47: N/A | BJ47: N/A | BK47: N/A | BL47: N/A | BM47: N/A | BN47: N/A | BO47: N/A | BP47: N/A | BQ47: N/A | BR47: N/A | BS47: N/A | BT47: N/A | BU47: N/A | BV47: N/A | BW47: N/A
B48: Contaminated (E. coli detected in 100 mL) | C48: N/A | D48: N/A | E48: N/A | F48: N/A | G48: N/A | H48: N/A | I48: N/A | J48: N/A | K48: N/A | L48: N/A | M48: N/A | N48: N/A | O48: N/A | P48: N/A | Q48: N/A | R48: N/A | S48: N/A | T48: N/A | U48: N/A | V48: N/A | W48: N/A | BB48: Contaminated (E. coli detected in 100 mL) | BC48: N/A | BD48: N/A | BE48: N/A | BF48: N/A | BG48: N/A | BH48: N/A | BI48: N/A | BJ48: N/A | BK48: N/A | BL48: N/A | BM48: N/A | BN48: N/A | BO48: N/A | BP48: N/A | BQ48: N/A | BR48: N/A | BS48: N/A | BT48: N/A | BU48: N/A | BV48: N/A | BW48: N/A
B49: Highly contaminated (>100 CFU/100 mL) | C49: N/A | D49: N/A | E49: N/A | F49: N/A | G49: N/A | H49: N/A | I49: N/A | J49: N/A | K49: N/A | L49: N/A | M49: N/A | N49: N/A | O49: N/A | P49: N/A | Q49: N/A | R49: N/A | S49: N/A | T49: N/A | U49: N/A | V49: N/A | W49: N/A | BB49: Highly contaminated (>100 CFU/100 mL) | BC49: N/A | BD49: N/A | BE49: N/A | BF49: N/A | BG49: N/A | BH49: N/A | BI49: N/A | BJ49: N/A | BK49: N/A | BL49: N/A | BM49: N/A | BN49: N/A | BO49: N/A | BP49: N/A | BQ49: N/A | BR49: N/A | BS49: N/A | BT49: N/A | BU49: N/A | BV49: N/A | BW49: N/A
A50: Microbiological quality of improved water sources at point of collection | B50: Not contaminated (No E. coli in 100 mL) | C50: N/A | D50: N/A | E50: N/A | F50: N/A | G50: N/A | H50: N/A | I50: N/A | J50: N/A | K50: N/A | L50: N/A | M50: N/A | N50: N/A | O50: N/A | P50: N/A | Q50: N/A | R50: N/A | S50: N/A | T50: N/A | U50: N/A | V50: N/A | W50: N/A | BA50: Microbiological quality of improved water sources at point of collection | BB50: Not contaminated (No E. coli in 100 mL) | BC50: N/A | BD50: N/A | BE50: N/A | BF50: N/A | BG50: N/A | BH50: N/A | BI50: N/A | BJ50: N/A | BK50: N/A | BL50: N/A | BM50: N/A | BN50: N/A | BO50: N/A | BP50: N/A | BQ50: N/A | BR50: N/A | BS50: N/A | BT50: N/A | BU50: N/A | BV50: N/A | BW50: N/A
B51: Contaminated (E. coli detected in 100 mL) | C51: N/A | D51: N/A | E51: N/A | F51: N/A | G51: N/A | H51: N/A | I51: N/A | J51: N/A | K51: N/A | L51: N/A | M51: N/A | N51: N/A | O51: N/A | P51: N/A | Q51: N/A | R51: N/A | S51: N/A | T51: N/A | U51: N/A | V51: N/A | W51: N/A | BB51: Contaminated (E. coli detected in 100 mL) | BC51: N/A | BD51: N/A | BE51: N/A | BF51: N/A | BG51: N/A | BH51: N/A | BI51: N/A | BJ51: N/A | BK51: N/A | BL51: N/A | BM51: N/A | BN51: N/A | BO51: N/A | BP51: N/A | BQ51: N/A | BR51: N/A | BS51: N/A | BT51: N/A | BU51: N/A | BV51: N/A | BW51: N/A
B52: Highly contaminated (>100 CFU/100 mL) | C52: N/A | D52: N/A | E52: N/A | F52: N/A | G52: N/A | H52: N/A | I52: N/A | J52: N/A | K52: N/A | L52: N/A | M52: N/A | N52: N/A | O52: N/A | P52: N/A | Q52: N/A | R52: N/A | S52: N/A | T52: N/A | U52: N/A | V52: N/A | W52: N/A | BB52: Highly contaminated (>100 CFU/100 mL) | BC52: N/A | BD52: N/A | BE52: N/A | BF52: N/A | BG52: N/A | BH52: N/A | BI52: N/A | BJ52: N/A | BK52: N/A | BL52: N/A | BM52: N/A | BN52: N/A | BO52: N/A | BP52: N/A | BQ52: N/A | BR52: N/A | BS52: N/A | BT52: N/A | BU52: N/A | BV52: N/A | BW52: N/A
A53: Microbiological quality of piped on premises at point of collection | B53: Not contaminated (No E. coli in 100 mL) | C53: N/A | D53: N/A | E53: N/A | F53: N/A | G53: N/A | H53: N/A | I53: N/A | J53: N/A | K53: N/A | L53: N/A | M53: N/A | N53: N/A | O53: N/A | P53: N/A | Q53: N/A | R53: N/A | S53: N/A | T53: N/A | U53: N/A | V53: N/A | W53: N/A | BA53: Microbiological quality of piped on premises at point of collection | BB53: Not contaminated (No E. coli in 100 mL) | BC53: N/A | BD53: N/A | BE53: N/A | BF53: N/A | BG53: N/A | BH53: N/A | BI53: N/A | BJ53: N/A | BK53: N/A | BL53: N/A | BM53: N/A | BN53: N/A | BO53: N/A | BP53: N/A | BQ53: N/A | BR53: N/A | BS53: N/A | BT53: N/A | BU53: N/A | BV53: N/A | BW53: N/A
B54: Contaminated (E. coli detected in 100 mL) | C54: N/A | D54: N/A | E54: N/A | F54: N/A | G54: N/A | H54: N/A | I54: N/A | J54: N/A | K54: N/A | L54: N/A | M54: N/A | N54: N/A | O54: N/A | P54: N/A | Q54: N/A | R54: N/A | S54: N/A | T54: N/A | U54: N/A | V54: N/A | W54: N/A | BB54: Contaminated (E. coli detected in 100 mL) | BC54: N/A | BD54: N/A | BE54: N/A | BF54: N/A | BG54: N/A | BH54: N/A | BI54: N/A | BJ54: N/A | BK54: N/A | BL54: N/A | BM54: N/A | BN54: N/A | BO54: N/A | BP54: N/A | BQ54: N/A | BR54: N/A | BS54: N/A | BT54: N/A | BU54: N/A | BV54: N/A | BW54: N/A
B55: Highly contaminated (>100 CFU/100 mL) | C55: N/A | D55: N/A | E55: N/A | F55: N/A | G55: N/A | H55: N/A | I55: N/A | J55: N/A | K55: N/A | L55: N/A | M55: N/A | N55: N/A | O55: N/A | P55: N/A | Q55: N/A | R55: N/A | S55: N/A | T55: N/A | U55: N/A | V55: N/A | W55: N/A | BB55: Highly contaminated (>100 CFU/100 mL) | BC55: N/A | BD55: N/A | BE55: N/A | BF55: N/A | BG55: N/A | BH55: N/A | BI55: N/A | BJ55: N/A | BK55: N/A | BL55: N/A | BM55: N/A | BN55: N/A | BO55: N/A | BP55: N/A | BQ55: N/A | BR55: N/A | BS55: N/A | BT55: N/A | BU55: N/A | BV55: N/A | BW55: N/A
C56: NATIONAL wealth index quintile | H56: URBAN wealth index quintile | M56: RURAL wealth index quintile | R56: SUB-REGIONS: | BA56: Raw numbers of respondents: | BB56: Use of drinking water sources | BC56: NATIONAL wealth index quintile | BH56: URBAN wealth index quintile | BM56: RURAL wealth index quintile | BR56: SUB-REGIONS:
A57: Percentage based on weighted population | C57: Poorest | D57: Poor | E57: Middle | F57: Rich | G57: Richest | H57: Poorest | I57: Poor | J57: Middle | K57: Rich | L57: Richest | M57: Poorest | N57: Poor | O57: Middle | P57: Rich | Q57: Richest | R57: Belgrade | S57: Central | T57: East | U57: SouthEast | V57: Vojvodina | W57: West | BA57: Water data, raw numbers (weighted) | BC57: Poorest | BD57: Poor | BE57: Middle | BF57: Rich | BG57: Richest | BH57: Poorest | BI57: Poor | BJ57: Middle | BK57: Rich | BL57: Richest | BM57: Poorest | BN57: Poor | BO57: Middle | BP57: Rich | BQ57: Richest | BR57: Belgrade | BS57: Central | BT57: East | BU57: SouthEast | BV57: Vojvodina | BW57: West
A58: Main source of drinking water | B58: Public watersupply | C58: 44.87222408 | D58: 55.73146886 | E58: 63.32129703 | F58: 73.36791541 | G58: 76.53176278 | H58: 88.39398398 | I58: 92.74802408 | J58: 89.25161904 | K58: 89.65353842 | L58: 87.25453508 | M58: 24.84443756 | N58: 34.28291328 | O58: 36.43806085 | P58: 31.49093158 | Q58: 25.27458315 | R58: 82.78409548 | S58: 59.23399059 | T58: 56.62108082 | U58: 65.90611407 | V58: 54.94830825 | W58: 52.57891317
B59: Local watersupply | C59: 20.86163954 | D59: 19.7132013 | E59: 13.23753311 | F59: 9.185889486 | G59: 6.092898428 | H59: 2.219252649 | I59: 1.105225817 | J59: 0.8100617994 | K59: 1.018913785 | L59: 0.4476199811 | M59: 28.31759741 | N59: 29.3750037 | O59: 29.1036496 | P59: 26.71443945 | Q59: 32.39158934 | R59: 4.165545492 | S59: 17.34479407 | T59: 14.07043667 | U59: 11.60738712 | V59: 19.9538524 | W59: 13.39680181
B60: Public tap/standpipe | C60: 3.272660602 | D60: 1.413405642 | E60: 1.16887852 | F60: 0.7898027137 | G60: 0.4473553202 | H60: 1.582098435 | I60: 0.7520533746 | J60: 0.5324800494 | K60: 0.4708472839 | L60: 0.07594594945 | M60: 4.37059239 | N60: 2.007341338 | O60: 1.373046077 | P60: 1.959595181 | Q60: 1.831368003 | R60: 0.1152523642 | S60: 0.7055285062 | T60: 3.334181911 | U60: 1.930889953 | V60: 2.205797561 | W60: 0.5373233757
B61: Tubewell/borehole | C61: 11.73748251 | D61: 8.46336001 | E61: 7.721242644 | F61: 4.322830409 | G61: 3.426052952 | H61: 1.310877673 | I61: 0.5116277561 | J61: 0.3942447948 | K61: 0 | L61: 0 | M61: 18.04799688 | N61: 13.22667959 | O61: 12.00874511 | P61: 15.5072383 | Q61: 17.35574021 | R61: 2.537737677 | S61: 5.594250869 | T61: 11.41416873 | U61: 7.439247385 | V61: 7.897484628 | W61: 11.69592823
B62: Protected well or spring | C62: 15.38152436 | D62: 10.18332702 | E62: 8.869553288 | F62: 4.636620201 | G62: 3.214671371 | H62: 2.017380646 | I62: 0.6286840284 | J62: 1.221668147 | K62: 0.4811774632 | L62: 0.5461291638 | M62: 20.84243976 | N62: 17.80135842 | O62: 15.79863897 | P62: 17.80653473 | Q62: 15.27624758 | R62: 5.154379008 | S62: 13.24765398 | T62: 12.95730114 | U62: 10.44175022 | V62: 0.6194785242 | W62: 20.00914167
B63: Unprotected well or spring | C63: 1.340383744 | D63: 0.4296910602 | E63: 0.3775375416 | F63: 0.2547909232 | G63: 0.04393228514 | H63: 0.3931509696 | I63: 0.05263206859 | J63: 0.2070996882 | K63: 0.2578180249 | L63: 0.08033810765 | M63: 2.01324002 | N63: 0.8224761649 | O63: 0.6002653486 | P63: 0.7709311139 | Q63: 0 | R63: 0.3037914718 | S63: 0.3348485959 | T63: 0.6842790555 | U63: 1.153105467 | V63: 0.0209166177 | W63: 1.0893568
B64: Tanker-truck | C64: 0.06337339357 | D64: 0.1129361103 | E64: 0.1498763397 | F64: 0.224947956 | G64: 0 | H64: 0.1125879118 | I64: 0.2516171816 | J64: 0.3147503068 | K64: 0 | L64: 0 | M64: 0.1400427308 | N64: 0 | O64: 0 | P64: 0.140062217 | Q64: 0.1166178974 | R64: 0.05756633118 | S64: 0 | T64: 0 | U64: 0 | V64: 0.3585293063 | W64: 0
B65: Bottled water | C65: 1.666862223 | D65: 3.822607451 | E65: 4.648578456 | F65: 6.716794238 | G65: 10.16217044 | H65: 3.722073023 | I65: 3.950135691 | J65: 6.928859422 | K65: 8.117705024 | L65: 11.51948577 | M65: 0.2192081911 | N65: 2.213238468 | O65: 4.39020839 | P65: 4.492650968 | Q65: 6.971278855 | R65: 4.77509016 | S65: 2.390812184 | T65: 0.7985645138 | U65: 1.039581529 | V65: 13.77480484 | W65: 0.2946126119
B66: Other | C66: 0.8038495506 | D66: 0.1300025418 | E66: 0.5055030687 | F66: 0.5004086654 | G66: 0.08115642526 | H66: 0.2485947104 | I66: 0 | J66: 0.3392167497 | K66: 0 | L66: 0.07594594945 | M66: 1.204445047 | N66: 0.2709890453 | O66: 0.2873856581 | P66: 1.117616463 | Q66: 0.7825749606 | R66: 0.106542013 | S66: 1.148121198 | T66: 0.119987157 | U66: 0.4819242565 | V66: 0.2208278705 | W66: 0.3979223376
A108: =A1026 -> Serbia
A109: =A1034 -> 2006
A110: Use of sanitation facilities
A111: by wealth quintile and sub-national region
A112: Notes:
A113: WHO/UNICEF JMP customised wealth index excludes water,
A114: sanitation and hygiene assets.
A115: Survey used for analysis: | B115: =A1025 -> MICS06
A116: =B1030 -> Ratio of Improved latrines based on: | B116: MICS10
A117: =B1029 -> Ratio of Shared improved based on: | B117: MICS10
A120: Use of sanitation facilities | C120: NATIONAL wealth index quintile | H120: URBAN wealth index quintile | M120: RURAL wealth index quintile | R120: SUB-REGIONS: | BA120: Raw numbers of respondents: | BB120: Use of sanitation facilities | BC120: NATIONAL wealth index quintile | BH120: URBAN wealth index quintile | BM120: RURAL wealth index quintile | BR120: SUB-REGIONS:
A121: Weighted percentage (used in graphs) | C121: Poorest | D121: Poor | E121: Middle | F121: Rich | G121: Richest | H121: Poorest | I121: Poor | J121: Middle | K121: Rich | L121: Richest | M121: Poorest | N121: Poor | O121: Middle | P121: Rich | Q121: Richest | R121: Belgrade | S121: Central | T121: East | U121: SouthEast | V121: Vojvodina | W121: West | BA121: Sanitation data, raw numbers (weighted) | BC121: Poorest | BD121: Poor | BE121: Middle | BF121: Rich | BG121: Richest | BH121: Poorest | BI121: Poor | BJ121: Middle | BK121: Rich | BL121: Richest | BM121: Poorest | BN121: Poor | BO121: Middle | BP121: Rich | BQ121: Richest | BR121: Belgrade | BS121: Central | BT121: East | BU121: SouthEast | BV121: Vojvodina | BW121: West
A122: Sanitation | B122: Improved | C122: =C153+C154+C155+C156*MICS10!C130/100 -> 98.83545108 | D122: =D153+D154+D155+D156*MICS10!D130/100 -> 99.80538916 | E122: =E153+E154+E155+E156*MICS10!E130/100 -> 99.77723755 | F122: =F153+F154+F155+F156*MICS10!F130/100 -> 99.95236732 | G122: =G153+G154+G155+G156*MICS10!G130/100 -> 99.96056618 | H122: =H153+H154+H155+H156*MICS10!H130/100 -> 99.5013028 | I122: =I153+I154+I155+I156*MICS10!I130/100 -> 99.76556912 | J122: =J153+J154+J155+J156*MICS10!J130/100 -> 100 | K122: =K153+K154+K155+K156*MICS10!K130/100 -> 100 | L122: =L153+L154+L155+L156*MICS10!L130/100 -> 100 | M122: =M153+M154+M155+M156*MICS10!M130/100 -> 97.90740274 | N122: =N153+N154+N155+N156*MICS10!N130/100 -> 100 | O122: =O153+O154+O155+O156*MICS10!O130/100 -> 99.73955252 | P122: =P153+P154+P155+P156*MICS10!P130/100 -> 99.79151959 | Q122: =Q153+Q154+Q155+Q156*MICS10!Q130/100 -> 99.80771343 | R122: =R153+R154+R155+R156 -> 99.97141196 | S122: =S153+S154+S155+S156 -> 99.46635738 | T122: 99.90113995 | U122: 99.79756106 | V122: 99.88436496 | W122: 99.95353299 | BA122: Sanitation | BB122: Improved | BC122: N/A | BD122: N/A | BE122: N/A | BF122: N/A | BG122: N/A | BH122: N/A | BI122: N/A | BJ122: N/A | BK122: N/A | BL122: N/A | BM122: N/A | BN122: N/A | BO122: N/A | BP122: N/A | BQ122: N/A | BR122: N/A | BS122: N/A | BT122: N/A | BU122: N/A | BV122: N/A | BW122: N/A
B123: Not Improved | C123: =100-C122 -> 1.164548922 | D123: =100-D122 -> 0.1946108367 | E123: 0.2227624456 | F123: 0.04763268256 | G123: 0.03943381744 | H123: 0.4986972042 | I123: 0.2344308798 | J123: -1.421085472e-13 | K123: -2.700062396e-13 | L123: 0 | M123: 2.09259726 | N123: 0 | O123: 0.2604474833 | P123: 0.2084804105 | Q123: 0.1922865663 | R123: 0.028588041 | S123: 0.5336426167 | T123: 0.09886005294 | U123: 0.202438938 | V123: 0.115635043 | W123: 0.04646701268 | BB123: Not Improved | BC123: N/A | BD123: N/A | BE123: N/A | BF123: N/A | BG123: N/A | BH123: N/A | BI123: N/A | BJ123: N/A | BK123: N/A | BL123: N/A | BM123: N/A | BN123: N/A | BO123: N/A | BP123: N/A | BQ123: N/A | BR123: N/A | BS123: N/A | BT123: N/A | BU123: N/A | BV123: N/A | BW123: N/A
A124: Sanitation ladder | B124: Basic | C124: =C122*MICS10!C129/100 -> 96.63849101 | D124: =D122*MICS10!D129/100 -> 99.79648629 | E124: =E122*MICS10!E129/100 -> 99.60359231 | F124: =F122*MICS10!F129/100 -> 99.2045501 | G124: =G122*MICS10!G129/100 -> 99.84493422 | H124: =H122*MICS10!H129/100 -> 97.00919888 | I124: =I122*MICS10!I129/100 -> 99.56250561 | J124: =J122*MICS10!J129/100 -> 100 | K124: =K122*MICS10!K129/100 -> 98.49269293 | L124: =L122*MICS10!L129/100 -> 100 | M124: =M122*MICS10!M129/100 -> 96.24587078 | N124: =N122*MICS10!N129/100 -> 99.8983508 | O124: =O122*MICS10!O129/100 -> 99.73955252 | P124: =P122*MICS10!P129/100 -> 99.65394213 | Q124: =Q122*MICS10!Q129/100 -> 99.70465097 | R124: N/A | S124: N/A | T124: N/A | U124: N/A | V124: N/A | W124: N/A | BA124: Sanitation ladder | BB124: Basic | BC124: N/A | BD124: N/A | BE124: N/A | BF124: N/A | BG124: N/A | BH124: N/A | BI124: N/A | BJ124: N/A | BK124: N/A | BL124: N/A | BM124: N/A | BN124: N/A | BO124: N/A | BP124: N/A | BQ124: N/A | BR124: N/A | BS124: N/A | BT124: N/A | BU124: N/A | BV124: N/A | BW124: N/A
B125: Limited | C125: =C122*MICS10!C128/100 -> 2.196960063 | D125: =D122*MICS10!D128/100 -> 0.008902877518 | E125: =E122*MICS10!E128/100 -> 0.1736452427 | F125: =F122*MICS10!F128/100 -> 0.7478172196 | G125: =G122*MICS10!G128/100 -> 0.1156319634 | H125: =H122*MICS10!H128/100 -> 2.492103917 | I125: =I122*MICS10!I128/100 -> 0.2030635108 | J125: =J122*MICS10!J128/100 -> 0 | K125: =K122*MICS10!K128/100 -> 1.507307069 | L125: =L122*MICS10!L128/100 -> 0 | M125: =M122*MICS10!M128/100 -> 1.661531961 | N125: =N122*MICS10!N128/100 -> 0.1016491987 | O125: =O122*MICS10!O128/100 -> 0 | P125: =P122*MICS10!P128/100 -> 0.1375774613 | Q125: =Q122*MICS10!Q128/100 -> 0.1030624604 | R125: N/A | S125: N/A | T125: N/A | U125: N/A | V125: N/A | W125: N/A | BB125: Limited | BC125: N/A | BD125: N/A | BE125: N/A | BF125: N/A | BG125: N/A | BH125: N/A | BI125: N/A | BJ125: N/A | BK125: N/A | BL125: N/A | BM125: N/A | BN125: N/A | BO125: N/A | BP125: N/A | BQ125: N/A | BR125: N/A | BS125: N/A | BT125: N/A | BU125: N/A | BV125: N/A | BW125: N/A
B126: Unimproved | C126: =100-(C124+C125+C127) -> 0.832711329 | D126: =100-(D124+D125+D127) -> 0.1946108367 | E126: 0.2227624456 | F126: 0.04763268256 | G126: 0.03943381744 | H126: 0.1755575926 | I126: 0.2344308798 | J126: -1.421085472e-13 | K126: -3.126388037e-13 | L126: 0 | M126: 1.750320368 | N126: 0 | O126: 0.2604474833 | P126: 0.2084804105 | Q126: 0.1922865663 | R126: N/A | S126: N/A | T126: N/A | U126: N/A | V126: N/A | W126: N/A | BB126: Unimproved | BC126: N/A | BD126: N/A | BE126: N/A | BF126: N/A | BG126: N/A | BH126: N/A | BI126: N/A | BJ126: N/A | BK126: N/A | BL126: N/A | BM126: N/A | BN126: N/A | BO126: N/A | BP126: N/A | BQ126: N/A | BR126: N/A | BS126: N/A | BT126: N/A | BU126: N/A | BV126: N/A | BW126: N/A
B127: Open defecation | C127: =C157 -> 0.3318375934 | D127: =D157 -> 0 | E127: 0 | F127: 0 | G127: 0 | H127: 0.3231396116 | I127: 0 | J127: 0 | K127: 0 | L127: 0 | M127: 0.3422768924 | N127: 0 | O127: 0 | P127: 0 | Q127: 0 | R127: N/A | S127: N/A | T127: N/A | U127: N/A | V127: N/A | W127: N/A | BB127: Open defecation | BC127: N/A | BD127: N/A | BE127: N/A | BF127: N/A | BG127: N/A | BH127: N/A | BI127: N/A | BJ127: N/A | BK127: N/A | BL127: N/A | BM127: N/A | BN127: N/A | BO127: N/A | BP127: N/A | BQ127: N/A | BR127: N/A | BS127: N/A | BT127: N/A | BU127: N/A | BV127: N/A | BW127: N/A
A128: Shared among Improved Sanitation | B128: Yes | C128: N/A | D128: N/A | E128: N/A | F128: N/A | G128: N/A | H128: N/A | I128: N/A | J128: N/A | K128: N/A | L128: N/A | M128: N/A | N128: N/A | O128: N/A | P128: N/A | Q128: N/A | R128: N/A | S128: N/A | T128: N/A | U128: N/A | V128: N/A | W128: N/A | BA128: Shared among improved sanitation facilities | BB128: Yes | BC128: N/A | BD128: N/A | BE128: N/A | BF128: N/A | BG128: N/A | BH128: N/A | BI128: N/A | BJ128: N/A | BK128: N/A | BL128: N/A | BM128: N/A | BN128: N/A | BO128: N/A | BP128: N/A | BQ128: N/A | BR128: N/A | BS128: N/A | BT128: N/A | BU128: N/A | BV128: N/A | BW128: N/A
B129: No | C129: N/A | D129: N/A | E129: N/A | F129: N/A | G129: N/A | H129: N/A | I129: N/A | J129: N/A | K129: N/A | L129: N/A | M129: N/A | N129: N/A | O129: N/A | P129: N/A | Q129: N/A | R129: N/A | S129: N/A | T129: N/A | U129: N/A | V129: N/A | W129: N/A | BB129: No | BC129: N/A | BD129: N/A | BE129: N/A | BF129: N/A | BG129: N/A | BH129: N/A | BI129: N/A | BJ129: N/A | BK129: N/A | BL129: N/A | BM129: N/A | BN129: N/A | BO129: N/A | BP129: N/A | BQ129: N/A | BR129: N/A | BS129: N/A | BT129: N/A | BU129: N/A | BV129: N/A | BW129: N/A
A130: Manually calculated ratios | B130: Improved latrines
B131: Other
B132: Other
C133: NATIONAL wealth index quintile | H133: URBAN wealth index quintile | M133: RURAL wealth index quintile | R133: SUB-REGIONS: | BA133: Raw numbers of respondents: | BB133: Use of sanitation facilities | BC133: NATIONAL wealth index quintile | BH133: URBAN wealth index quintile | BM133: RURAL wealth index quintile | BR133: SUB-REGIONS:
A134: Percentage based on weighted population | C134: Poorest | D134: Poor | E134: Middle | F134: Rich | G134: Richest | H134: Poorest | I134: Poor | J134: Middle | K134: Rich | L134: Richest | M134: Poorest | N134: Poor | O134: Middle | P134: Rich | Q134: Richest | R134: Belgrade | S134: Central | T134: East | U134: SouthEast | V134: Vojvodina | W134: West | BA134: Sanitation data, raw numbers (weighted) | BC134: Poorest | BD134: Poor | BE134: Middle | BF134: Rich | BG134: Richest | BH134: Poorest | BI134: Poor | BJ134: Middle | BK134: Rich | BL134: Richest | BM134: Poorest | BN134: Poor | BO134: Middle | BP134: Rich | BQ134: Richest | BR134: Belgrade | BS134: Central | BT134: East | BU134: SouthEast | BV134: Vojvodina | BW134: West
A135: Sanitation type | B135: Sewer connection | C135: 22.40793202 | D135: 41.5413521 | E135: 52.70224648 | F135: 67.82320533 | G135: 79.36777715 | H135: 63.43482932 | I135: 83.86253238 | J135: 87.05642232 | K135: 89.51828436 | L135: 94.70184885 | M135: 8.438590185 | N135: 17.35892693 | O135: 20.69751088 | P135: 18.04167087 | Q135: 12.11659526 | R135: 75.88345364 | S135: 56.47081326 | T135: 44.8370427 | U135: 55.51279127 | V135: 39.11595496 | W135: 42.87333146 | BA135: Sanitation type | BB135: Sewer connection | BC135: N/A | BD135: N/A | BE135: N/A | BF135: N/A | BG135: N/A | BH135: N/A | BI135: N/A | BJ135: N/A | BK135: N/A | BL135: N/A | BM135: N/A | BN135: N/A | BO135: N/A | BP135: N/A | BQ135: N/A | BR135: N/A | BS135: N/A | BT135: N/A | BU135: N/A | BV135: N/A | BW135: N/A
B136: Septic tank connection | C136: 40.31014106 | D136: 49.85723764 | E136: 42.08185691 | F136: 30.46324386 | G136: 19.99271836 | H136: 23.52383753 | I136: 15.15832848 | J136: 12.94357768 | K136: 10.48171564 | L136: 5.298151152 | M136: 35.10874132 | N136: 64.99743085 | O136: 67.6061668 | P136: 72.09955703 | Q136: 82.37837277 | R136: 20.31382251 | S136: 31.00397218 | T136: 43.53137686 | U136: 24.1126405 | V136: 54.92944315 | W136: 40.00272955 | BB136: Septic tank connection | BC136: N/A | BD136: N/A | BE136: N/A | BF136: N/A | BG136: N/A | BH136: N/A | BI136: N/A | BJ136: N/A | BK136: N/A | BL136: N/A | BM136: N/A | BN136: N/A | BO136: N/A | BP136: N/A | BQ136: N/A | BR136: N/A | BS136: N/A | BT136: N/A | BU136: N/A | BV136: N/A | BW136: N/A
B137: Improved latrines | C137: N/A | D137: N/A | E137: N/A | F137: N/A | G137: N/A | H137: N/A | I137: N/A | J137: N/A | K137: N/A | L137: N/A | M137: N/A | N137: N/A | O137: N/A | P137: N/A | Q137: N/A | R137: N/A | S137: N/A | T137: N/A | U137: N/A | V137: N/A | W137: N/A | BB137: Improved latrines | BC137: N/A | BD137: N/A | BE137: N/A | BF137: N/A | BG137: N/A | BH137: N/A | BI137: N/A | BJ137: N/A | BK137: N/A | BL137: N/A | BM137: N/A | BN137: N/A | BO137: N/A | BP137: N/A | BQ137: N/A | BR137: N/A | BS137: N/A | BT137: N/A | BU137: N/A | BV137: N/A | BW137: N/A
B138: Unimproved facilities | C138: N/A | D138: N/A | E138: N/A | F138: N/A | G138: N/A | H138: N/A | I138: N/A | J138: N/A | K138: N/A | L138: N/A | M138: N/A | N138: N/A | O138: N/A | P138: N/A | Q138: N/A | R138: N/A | S138: N/A | T138: N/A | U138: N/A | V138: N/A | W138: N/A | BB138: Unimproved facilities | BC138: N/A | BD138: N/A | BE138: N/A | BF138: N/A | BG138: N/A | BH138: N/A | BI138: N/A | BJ138: N/A | BK138: N/A | BL138: N/A | BM138: N/A | BN138: N/A | BO138: N/A | BP138: N/A | BQ138: N/A | BR138: N/A | BS138: N/A | BT138: N/A | BU138: N/A | BV138: N/A | BW138: N/A
B139: Open defecation | C139: 0.3318375934 | D139: 0 | E139: 0 | F139: 0 | G139: 0 | H139: 0.3231396116 | I139: 0 | J139: 0 | K139: 0 | L139: 0 | M139: 0.3422768924 | N139: 0 | O139: 0 | P139: 0 | Q139: 0 | R139: 0.028588041 | S139: 0 | T139: 0.005957655373 | U139: 0.1854533277 | V139: 0.1106877769 | W139: 0 | BB139: Open defecation | BC139: N/A | BD139: N/A | BE139: N/A | BF139: N/A | BG139: N/A | BH139: N/A | BI139: N/A | BJ139: N/A | BK139: N/A | BL139: N/A | BM139: N/A | BN139: N/A | BO139: N/A | BP139: N/A | BQ139: N/A | BR139: N/A | BS139: N/A | BT139: N/A | BU139: N/A | BV139: N/A | BW139: N/A
A140: Septic tank emptying practices | B140: Not emptied/treated and disposed in situ | C140: N/A | D140: N/A | E140: N/A | F140: N/A | G140: N/A | H140: N/A | I140: N/A | J140: N/A | K140: N/A | L140: N/A | M140: N/A | N140: N/A | O140: N/A | P140: N/A | Q140: N/A | R140: N/A | S140: N/A | T140: N/A | U140: N/A | V140: N/A | W140: N/A | BA140: Septic tank emptying practices | BB140: Not emptied/treated and disposed in situ | BC140: N/A | BD140: N/A | BE140: N/A | BF140: N/A | BG140: N/A | BH140: N/A | BI140: N/A | BJ140: N/A | BK140: N/A | BL140: N/A | BM140: N/A | BN140: N/A | BO140: N/A | BP140: N/A | BQ140: N/A | BR140: N/A | BS140: N/A | BT140: N/A | BU140: N/A | BV140: N/A | BW140: N/A
B141: Emptied and buried on site | C141: N/A | D141: N/A | E141: N/A | F141: N/A | G141: N/A | H141: N/A | I141: N/A | J141: N/A | K141: N/A | L141: N/A | M141: N/A | N141: N/A | O141: N/A | P141: N/A | Q141: N/A | R141: N/A | S141: N/A | T141: N/A | U141: N/A | V141: N/A | W141: N/A | BB141: Emptied and buried on site | BC141: N/A | BD141: N/A | BE141: N/A | BF141: N/A | BG141: N/A | BH141: N/A | BI141: N/A | BJ141: N/A | BK141: N/A | BL141: N/A | BM141: N/A | BN141: N/A | BO141: N/A | BP141: N/A | BQ141: N/A | BR141: N/A | BS141: N/A | BT141: N/A | BU141: N/A | BV141: N/A | BW141: N/A
B142: Emptied and discharged locally | C142: N/A | D142: N/A | E142: N/A | F142: N/A | G142: N/A | H142: N/A | I142: N/A | J142: N/A | K142: N/A | L142: N/A | M142: N/A | N142: N/A | O142: N/A | P142: N/A | Q142: N/A | R142: N/A | S142: N/A | T142: N/A | U142: N/A | V142: N/A | W142: N/A | BB142: Emptied and discharged locally | BC142: N/A | BD142: N/A | BE142: N/A | BF142: N/A | BG142: N/A | BH142: N/A | BI142: N/A | BJ142: N/A | BK142: N/A | BL142: N/A | BM142: N/A | BN142: N/A | BO142: N/A | BP142: N/A | BQ142: N/A | BR142: N/A | BS142: N/A | BT142: N/A | BU142: N/A | BV142: N/A | BW142: N/A
B143: Emptied and removed offsite | C143: N/A | D143: N/A | E143: N/A | F143: N/A | G143: N/A | H143: N/A | I143: N/A | J143: N/A | K143: N/A | L143: N/A | M143: N/A | N143: N/A | O143: N/A | P143: N/A | Q143: N/A | R143: N/A | S143: N/A | T143: N/A | U143: N/A | V143: N/A | W143: N/A | BB143: Emptied and removed offsite | BC143: N/A | BD143: N/A | BE143: N/A | BF143: N/A | BG143: N/A | BH143: N/A | BI143: N/A | BJ143: N/A | BK143: N/A | BL143: N/A | BM143: N/A | BN143: N/A | BO143: N/A | BP143: N/A | BQ143: N/A | BR143: N/A | BS143: N/A | BT143: N/A | BU143: N/A | BV143: N/A | BW143: N/A
A144: Latrine emptying practices | B144: Not emptied/treated and disposed in situ | C144: N/A | D144: N/A | E144: N/A | F144: N/A | G144: N/A | H144: N/A | I144: N/A | J144: N/A | K144: N/A | L144: N/A | M144: N/A | N144: N/A | O144: N/A | P144: N/A | Q144: N/A | R144: N/A | S144: N/A | T144: N/A | U144: N/A | V144: N/A | W144: N/A | BA144: Latrine emptying practices | BB144: Not emptied/treated and disposed in situ | BC144: N/A | BD144: N/A | BE144: N/A | BF144: N/A | BG144: N/A | BH144: N/A | BI144: N/A | BJ144: N/A | BK144: N/A | BL144: N/A | BM144: N/A | BN144: N/A | BO144: N/A | BP144: N/A | BQ144: N/A | BR144: N/A | BS144: N/A | BT144: N/A | BU144: N/A | BV144: N/A | BW144: N/A
B145: Emptied and buried on site | C145: N/A | D145: N/A | E145: N/A | F145: N/A | G145: N/A | H145: N/A | I145: N/A | J145: N/A | K145: N/A | L145: N/A | M145: N/A | N145: N/A | O145: N/A | P145: N/A | Q145: N/A | R145: N/A | S145: N/A | T145: N/A | U145: N/A | V145: N/A | W145: N/A | BB145: Emptied and buried on site | BC145: N/A | BD145: N/A | BE145: N/A | BF145: N/A | BG145: N/A | BH145: N/A | BI145: N/A | BJ145: N/A | BK145: N/A | BL145: N/A | BM145: N/A | BN145: N/A | BO145: N/A | BP145: N/A | BQ145: N/A | BR145: N/A | BS145: N/A | BT145: N/A | BU145: N/A | BV145: N/A | BW145: N/A
B146: Emptied and discharged locally | C146: N/A | D146: N/A | E146: N/A | F146: N/A | G146: N/A | H146: N/A | I146: N/A | J146: N/A | K146: N/A | L146: N/A | M146: N/A | N146: N/A | O146: N/A | P146: N/A | Q146: N/A | R146: N/A | S146: N/A | T146: N/A | U146: N/A | V146: N/A | W146: N/A | BB146: Emptied and discharged locally | BC146: N/A | BD146: N/A | BE146: N/A | BF146: N/A | BG146: N/A | BH146: N/A | BI146: N/A | BJ146: N/A | BK146: N/A | BL146: N/A | BM146: N/A | BN146: N/A | BO146: N/A | BP146: N/A | BQ146: N/A | BR146: N/A | BS146: N/A | BT146: N/A | BU146: N/A | BV146: N/A | BW146: N/A
B147: Emptied and removed offsite | C147: N/A | D147: N/A | E147: N/A | F147: N/A | G147: N/A | H147: N/A | I147: N/A | J147: N/A | K147: N/A | L147: N/A | M147: N/A | N147: N/A | O147: N/A | P147: N/A | Q147: N/A | R147: N/A | S147: N/A | T147: N/A | U147: N/A | V147: N/A | W147: N/A | BB147: Emptied and removed offsite | BC147: N/A | BD147: N/A | BE147: N/A | BF147: N/A | BG147: N/A | BH147: N/A | BI147: N/A | BJ147: N/A | BK147: N/A | BL147: N/A | BM147: N/A | BN147: N/A | BO147: N/A | BP147: N/A | BQ147: N/A | BR147: N/A | BS147: N/A | BT147: N/A | BU147: N/A | BV147: N/A | BW147: N/A
A148: Shared among improved sanitation facilities | B148: Yes | C148: N/A | D148: N/A | E148: N/A | F148: N/A | G148: N/A | H148: N/A | I148: N/A | J148: N/A | K148: N/A | L148: N/A | M148: N/A | N148: N/A | O148: N/A | P148: N/A | Q148: N/A | R148: N/A | S148: N/A | T148: N/A | U148: N/A | V148: N/A | W148: N/A | BA148: Shared among improved sanitation facilities | BB148: Yes | BC148: N/A | BD148: N/A | BE148: N/A | BF148: N/A | BG148: N/A | BH148: N/A | BI148: N/A | BJ148: N/A | BK148: N/A | BL148: N/A | BM148: N/A | BN148: N/A | BO148: N/A | BP148: N/A | BQ148: N/A | BR148: N/A | BS148: N/A | BT148: N/A | BU148: N/A | BV148: N/A | BW148: N/A
B149: No | C149: N/A | D149: N/A | E149: N/A | F149: N/A | G149: N/A | H149: N/A | I149: N/A | J149: N/A | K149: N/A | L149: N/A | M149: N/A | N149: N/A | O149: N/A | P149: N/A | Q149: N/A | R149: N/A | S149: N/A | T149: N/A | U149: N/A | V149: N/A | W149: N/A | BB149: No | BC149: N/A | BD149: N/A | BE149: N/A | BF149: N/A | BG149: N/A | BH149: N/A | BI149: N/A | BJ149: N/A | BK149: N/A | BL149: N/A | BM149: N/A | BN149: N/A | BO149: N/A | BP149: N/A | BQ149: N/A | BR149: N/A | BS149: N/A | BT149: N/A | BU149: N/A | BV149: N/A | BW149: N/A
B150: DK/missing | C150: N/A | D150: N/A | E150: N/A | F150: N/A | G150: N/A | H150: N/A | I150: N/A | J150: N/A | K150: N/A | L150: N/A | M150: N/A | N150: N/A | O150: N/A | P150: N/A | Q150: N/A | R150: N/A | S150: N/A | T150: N/A | U150: N/A | V150: N/A | W150: N/A | BB150: DK/missing | BC150: N/A | BD150: N/A | BE150: N/A | BF150: N/A | BG150: N/A | BH150: N/A | BI150: N/A | BJ150: N/A | BK150: N/A | BL150: N/A | BM150: N/A | BN150: N/A | BO150: N/A | BP150: N/A | BQ150: N/A | BR150: N/A | BS150: N/A | BT150: N/A | BU150: N/A | BV150: N/A | BW150: N/A
A151: Shared among all sanitation facilities | B151: Yes | C151: 5.884919657 | D151: 1.771242449 | E151: 2.063948052 | F151: 1.530868038 | G151: 0.7817737449 | H151: 5.825039348 | I151: 2.51031475 | J151: 1.801088661 | K151: 0.9856667098 | L151: 0.9369790607 | M151: 5.503941471 | N151: 1.761312884 | O151: 1.972608018 | P151: 1.78578676 | Q151: 0.9742828784 | R151: 1.252248671 | S151: 4.280910113 | T151: 1.488991972 | U151: 2.925357187 | V151: 2.427539191 | W151: 1.59184172 | BA151: Shared among all sanitation facilities | BB151: Yes | BC151: N/A | BD151: N/A | BE151: N/A | BF151: N/A | BG151: N/A | BH151: N/A | BI151: N/A | BJ151: N/A | BK151: N/A | BL151: N/A | BM151: N/A | BN151: N/A | BO151: N/A | BP151: N/A | BQ151: N/A | BR151: N/A | BS151: N/A | BT151: N/A | BU151: N/A | BV151: N/A | BW151: N/A
B152: No | C152: 93.50906991 | D152: 97.41050697 | E152: 97.53712575 | F152: 97.84833867 | G152: 98.55322963 | H152: 94.01478622 | I152: 96.98560965 | J152: 97.60854863 | K152: 98.73130074 | L152: 98.13063441 | M152: 93.61691419 | N152: 97.23846442 | O152: 97.09105093 | P152: 97.80533765 | Q152: 98.36812105 | R152: 98.35887383 | S152: 95.69055464 | T152: 96.64507856 | U152: 96.56933874 | V152: 96.79471495 | W152: 97.72467361 | BB152: No | BC152: N/A | BD152: N/A | BE152: N/A | BF152: N/A | BG152: N/A | BH152: N/A | BI152: N/A | BJ152: N/A | BK152: N/A | BL152: N/A | BM152: N/A | BN152: N/A | BO152: N/A | BP152: N/A | BQ152: N/A | BR152: N/A | BS152: N/A | BT152: N/A | BU152: N/A | BV152: N/A | BW152: N/A
A153: Kind of toilet facility | B153: Flush to piped sewer system | C153: 22.40793202 | D153: 41.5413521 | E153: 52.70224648 | F153: 67.82320533 | G153: 79.36777715 | H153: 63.43482932 | I153: 83.86253238 | J153: 87.05642232 | K153: 89.51828436 | L153: 94.70184885 | M153: 8.438590185 | N153: 17.35892693 | O153: 20.69751088 | P153: 18.04167087 | Q153: 12.11659526 | R153: 75.88345364 | S153: 56.47081326 | T153: 44.8370427 | U153: 55.51279127 | V153: 39.11595496 | W153: 42.87333146 | BA153: Kind of toilet facility | BB153: Flush to piped sewer system | BC153: 1261.745442 | BD153: 2341.018845 | BE153: 2968.616216 | BF153: 3816.537304 | BG153: 4473.829531 | BH153: 1955.922687 | BI153: 2588.603877 | BJ153: 2678.637877 | BK153: 2765.674856 | BL153: 2919.146347 | BM153: 215.0236626 | BN153: 442.4864097 | BO153: 527.6296034 | BP153: 459.6557417 | BQ153: 308.9662759 | BR153: 4199.921528 | BS153: 2627.868299 | BT153: 1142.545415 | BU153: 2500.603295 | BV153: 3038.159309 | BW153: 1352.649491
B154: Flush to septic tank | C154: 40.31014106 | D154: 49.85723764 | E154: 42.08185691 | F154: 30.46324386 | G154: 19.99271836 | H154: 23.52383753 | I154: 15.15832848 | J154: 12.94357768 | K154: 10.48171564 | L154: 5.298151152 | M154: 35.10874132 | N154: 64.99743085 | O154: 67.6061668 | P154: 72.09955703 | Q154: 82.37837277 | R154: 20.31382251 | S154: 31.00397218 | T154: 43.53137686 | U154: 24.1126405 | V154: 54.92944315 | W154: 40.00272955 | BB154: Flush to septic tank | BC154: 2269.782714 | BD154: 2809.651756 | BE154: 2370.390091 | BF154: 1714.223119 | BG154: 1126.956266 | BH154: 725.324053 | BI154: 467.8955759 | BJ154: 398.260766 | BK154: 323.8334782 | BL154: 163.3133753 | BM154: 894.6056135 | BN154: 1656.812079 | BO154: 1723.444678 | BP154: 1836.912756 | BQ154: 2100.601571 | BR154: 1124.30914 | BS154: 1442.769299 | BT154: 1109.274208 | BU154: 1086.166753 | BV154: 4266.40227 | BW154: 1262.082276
B155: Pit latrine with watertight tank | C155: 0.8649931551 | D155: 1.107430654 | E155: 0.5488843159 | F155: 0.06171122314 | G155: 0 | H155: 0.3304507621 | I155: 0.1143741232 | J155: 0 | K155: 0 | L155: 0 | M155: 1.233798011 | N155: 1.056256829 | O155: 1.531116989 | P155: 1.213528039 | Q155: 0.1361836213 | R155: 0.04137838873 | S155: 0.8299014887 | T155: 0.1903607193 | U155: 0.8325105504 | V155: 0.09541556338 | W155: 1.737945425 | BB155: Pit latrine with watertight tank | BC155: 48.70601935 | BD155: 62.40808013 | BE155: 30.9175982 | BF155: 3.472604752 | BG155: 0 | BH155: 10.18897898 | BI155: 3.530412098 | BJ155: 0 | BK155: 0 | BL155: 0 | BM155: 31.43839923 | BN155: 26.92443454 | BO155: 39.03187463 | BP155: 30.9175982 | BQ155: 3.472604752 | BR155: 2.290169692 | BS155: 38.61945114 | BT155: 4.850805361 | BU155: 37.50088183 | BV155: 7.410983124 | BW155: 54.83201129
B156: Traditional pit latrine | C156: 36.06027283 | D156: 7.29936877 | E156: 4.444249845 | F156: 1.604206896 | G156: 0.6000706714 | H156: 12.21218519 | I156: 0.6303341323 | J156: 0 | K156: 0 | L156: 0 | M156: 54.86433602 | N156: 16.58738539 | O156: 9.904757854 | P156: 8.436763648 | Q156: 5.176561774 | R156: 3.732757422 | S156: 11.16167045 | T156: 11.34235967 | U156: 19.33961874 | V156: 5.743551284 | W156: 15.33952656 | BB156: Traditional pit latrine | BC156: 2030.481208 | BD156: 411.3481864 | BE156: 250.336049 | BF156: 90.2716914 | BG156: 33.82498523 | BH156: 376.545351 | BI156: 19.45666715 | BJ156: 0 | BK156: 0 | BL156: 0 | BM156: 1397.997796 | BN156: 422.8194887 | BO156: 252.4962296 | BP156: 214.9472119 | BQ156: 131.9993759 | BR156: 206.596926 | BS156: 519.4081377 | BT156: 289.0280058 | BU156: 871.1634424 | BV156: 446.1050182 | BW156: 483.9605899
B157: No facilities | C157: 0.3318375934 | D157: 0 | E157: 0 | F157: 0 | G157: 0 | H157: 0.3231396116 | I157: 0 | J157: 0 | K157: 0 | L157: 0 | M157: 0.3422768924 | N157: 0 | O157: 0 | P157: 0 | Q157: 0 | R157: 0.028588041 | S157: 0 | T157: 0.005957655373 | U157: 0.1854533277 | V157: 0.1106877769 | W157: 0 | BB157: No facilities | BC157: 18.68510537 | BD157: 0 | BE157: 0 | BF157: 0 | BG157: 0 | BH157: 9.963550058 | BI157: 0 | BJ157: 0 | BK157: 0 | BL157: 0 | BM157: 8.721555311 | BN157: 0 | BO157: 0 | BP157: 0 | BQ157: 0 | BR157: 1.582262313 | BS157: 0 | BT157: 0.151814023 | BU157: 8.353844072 | BV157: 8.597184961 | BW157: 0
B158: Other | C158: 0.02482334143 | D158: 0.1946108367 | E158: 0.2227624456 | F158: 0.04763268256 | G158: 0.03943381744 | H158: 0.1755575926 | I158: 0.2344308798 | J158: 0 | K158: 0 | L158: 0 | M158: 0.0122575637 | N158: 0 | O158: 0.2604474833 | P158: 0.2084804105 | Q158: 0.1922865663 | R158: 0 | S158: 0.5336426167 | T158: 0.09290239757 | U158: 0.01698561029 | V158: 0.004947266107 | W158: 0.04646701268 | BB158: Other | BC158: 1.397752273 | BD158: 10.96708733 | BE158: 12.54778027 | BF158: 2.680379215 | BG158: 2.222818672 | BH158: 5.413068528 | BI158: 7.236231332 | BJ158: 0 | BK158: 0 | BL158: 0 | BM158: 0.3123349023 | BN158: 0 | BO158: 6.639436168 | BP158: 5.311548935 | BQ158: 4.903197886 | BR158: 0 | BS158: 24.83304976 | BT158: 2.367355249 | BU158: 0.7651258762 | BV158: 0.3842570785 | BW158: 1.466029788
BB159: Total | BC159: 5630.79824 | BD159: 5635.393956 | BE159: 5632.807734 | BF159: 5627.185098 | BG159: 5636.833601 | BH159: 3083.357688 | BI159: 3086.722764 | BJ159: 3076.898643 | BK159: 3089.508334 | BL159: 3082.459723 | BM159: 2548.099361 | BN159: 2549.042412 | BO159: 2549.241822 | BP159: 2547.744857 | BQ159: 2549.943025 | BR159: 5534.700026 | BS159: 4653.498236 | BT159: 2548.217604 | BU159: 4504.553342 | BV159: 7767.059022 | BW159: 3154.990398
A208: =A1026 -> Serbia
A209: =A1034 -> 2006
A210: Access to hygiene facilities
A211: by wealth quintile and sub-national region
A212: Notes:
A213: WHO/UNICEF JMP customised wealth index excludes water,
A214: sanitation and hygiene assets.
A215: Survey used for analysis: | B215: =A1025 -> MICS06
A220: Access to handwashing | C220: NATIONAL wealth index quintile | H220: URBAN wealth index quintile | M220: RURAL wealth index quintile | R220: SUB-REGIONS: | BA220: Raw numbers of respondents: | BB220: Access to handwashing | BC220: NATIONAL wealth index quintile | BH220: URBAN wealth index quintile | BM220: RURAL wealth index quintile | BR220: SUB-REGIONS:
A221: Weighted percentage (used in graphs) | C221: Poorest | D221: Poor | E221: Middle | F221: Rich | G221: Richest | H221: Poorest | I221: Poor | J221: Middle | K221: Rich | L221: Richest | M221: Poorest | N221: Poor | O221: Middle | P221: Rich | Q221: Richest | R221: Belgrade | S221: Central | T221: East | U221: SouthEast | V221: Vojvodina | W221: West | BA221: Hygiene data, raw numbers (weighted) | BC221: Poorest | BD221: Poor | BE221: Middle | BF221: Rich | BG221: Richest | BH221: Poorest | BI221: Poor | BJ221: Middle | BK221: Rich | BL221: Richest | BM221: Poorest | BN221: Poor | BO221: Middle | BP221: Rich | BQ221: Richest | BR221: Belgrade | BS221: Central | BT221: East | BU221: SouthEast | BV221: Vojvodina | BW221: West
A222: Hygiene ladder | B222: Basic | C222: N/A | D222: N/A | E222: N/A | F222: N/A | G222: N/A | H222: N/A | I222: N/A | J222: N/A | K222: N/A | L222: N/A | M222: N/A | N222: N/A | O222: N/A | P222: N/A | Q222: N/A | R222: N/A | S222: N/A | T222: N/A | U222: N/A | V222: N/A | W222: N/A | BA222: Hygiene ladder | BB222: Basic | BC222: N/A | BD222: N/A | BE222: N/A | BF222: N/A | BG222: N/A | BH222: N/A | BI222: N/A | BJ222: N/A | BK222: N/A | BL222: N/A | BM222: N/A | BN222: N/A | BO222: N/A | BP222: N/A | BQ222: N/A | BR222: N/A | BS222: N/A | BT222: N/A | BU222: N/A | BV222: N/A | BW222: N/A
B223: Limited | C223: N/A | D223: N/A | E223: N/A | F223: N/A | G223: N/A | H223: N/A | I223: N/A | J223: N/A | K223: N/A | L223: N/A | M223: N/A | N223: N/A | O223: N/A | P223: N/A | Q223: N/A | R223: N/A | S223: N/A | T223: N/A | U223: N/A | V223: N/A | W223: N/A | BB223: Limited | BC223: N/A | BD223: N/A | BE223: N/A | BF223: N/A | BG223: N/A | BH223: N/A | BI223: N/A | BJ223: N/A | BK223: N/A | BL223: N/A | BM223: N/A | BN223: N/A | BO223: N/A | BP223: N/A | BQ223: N/A | BR223: N/A | BS223: N/A | BT223: N/A | BU223: N/A | BV223: N/A | BW223: N/A
B224: No facility | C224: N/A | D224: N/A | E224: N/A | F224: N/A | G224: N/A | H224: N/A | I224: N/A | J224: N/A | K224: N/A | L224: N/A | M224: N/A | N224: N/A | O224: N/A | P224: N/A | Q224: N/A | R224: N/A | S224: N/A | T224: N/A | U224: N/A | V224: N/A | W224: N/A | BB224: No facility | BC224: N/A | BD224: N/A | BE224: N/A | BF224: N/A | BG224: N/A | BH224: N/A | BI224: N/A | BJ224: N/A | BK224: N/A | BL224: N/A | BM224: N/A | BN224: N/A | BO224: N/A | BP224: N/A | BQ224: N/A | BR224: N/A | BS224: N/A | BT224: N/A | BU224: N/A | BV224: N/A | BW224: N/A
BA225: Observed handwashing place | BB225: Fixed | BC225: N/A | BD225: N/A | BE225: N/A | BF225: N/A | BG225: N/A | BH225: N/A | BI225: N/A | BJ225: N/A | BK225: N/A | BL225: N/A | BM225: N/A | BN225: N/A | BO225: N/A | BP225: N/A | BQ225: N/A | BR225: N/A | BS225: N/A | BT225: N/A | BU225: N/A | BV225: N/A | BW225: N/A
BB226: Mobile | BC226: N/A | BD226: N/A | BE226: N/A | BF226: N/A | BG226: N/A | BH226: N/A | BI226: N/A | BJ226: N/A | BK226: N/A | BL226: N/A | BM226: N/A | BN226: N/A | BO226: N/A | BP226: N/A | BQ226: N/A | BR226: N/A | BS226: N/A | BT226: N/A | BU226: N/A | BV226: N/A | BW226: N/A
BA227: Water / Soap | BB227: Water and soap | BC227: N/A | BD227: N/A | BE227: N/A | BF227: N/A | BG227: N/A | BH227: N/A | BI227: N/A | BJ227: N/A | BK227: N/A | BL227: N/A | BM227: N/A | BN227: N/A | BO227: N/A | BP227: N/A | BQ227: N/A | BR227: N/A | BS227: N/A | BT227: N/A | BU227: N/A | BV227: N/A | BW227: N/A
BB228: Water only | BC228: N/A | BD228: N/A | BE228: N/A | BF228: N/A | BG228: N/A | BH228: N/A | BI228: N/A | BJ228: N/A | BK228: N/A | BL228: N/A | BM228: N/A | BN228: N/A | BO228: N/A | BP228: N/A | BQ228: N/A | BR228: N/A | BS228: N/A | BT228: N/A | BU228: N/A | BV228: N/A | BW228: N/A
BB229: Soap only | BC229: N/A | BD229: N/A | BE229: N/A | BF229: N/A | BG229: N/A | BH229: N/A | BI229: N/A | BJ229: N/A | BK229: N/A | BL229: N/A | BM229: N/A | BN229: N/A | BO229: N/A | BP229: N/A | BQ229: N/A | BR229: N/A | BS229: N/A | BT229: N/A | BU229: N/A | BV229: N/A | BW229: N/A
BB230: Neither | BC230: N/A | BD230: N/A | BE230: N/A | BF230: N/A | BG230: N/A | BH230: N/A | BI230: N/A | BJ230: N/A | BK230: N/A | BL230: N/A | BM230: N/A | BN230: N/A | BO230: N/A | BP230: N/A | BQ230: N/A | BR230: N/A | BS230: N/A | BT230: N/A | BU230: N/A | BV230: N/A | BW230: N/A
BA259: Raw numbers of respondents: | BB259: Menstrual health and hygiene | BC259: NATIONAL wealth index quintile | BH259: URBAN wealth index quintile | BM259: RURAL wealth index quintile | BR259: SUB-REGIONS:
BA260: MHH data, raw numbers (weighted) | BC260: Poorest | BD260: Poor | BE260: Middle | BF260: Rich | BG260: Richest | BH260: Poorest | BI260: Poor | BJ260: Middle | BK260: Rich | BL260: Richest | BM260: Poorest | BN260: Poor | BO260: Middle | BP260: Rich | BQ260: Richest | BR260: Belgrade | BS260: Central | BT260: East | BU260: SouthEast | BV260: Vojvodina | BW260: West
BA261: Private place to wash and change | BB261: Yes | BC261: N/A | BD261: N/A | BE261: N/A | BF261: N/A | BG261: N/A | BH261: N/A | BI261: N/A | BJ261: N/A | BK261: N/A | BL261: N/A | BM261: N/A | BN261: N/A | BO261: N/A | BP261: N/A | BQ261: N/A | BR261: N/A | BS261: N/A | BT261: N/A | BU261: N/A | BV261: N/A | BW261: N/A
BB262: No | BC262: N/A | BD262: N/A | BE262: N/A | BF262: N/A | BG262: N/A | BH262: N/A | BI262: N/A | BJ262: N/A | BK262: N/A | BL262: N/A | BM262: N/A | BN262: N/A | BO262: N/A | BP262: N/A | BQ262: N/A | BR262: N/A | BS262: N/A | BT262: N/A | BU262: N/A | BV262: N/A | BW262: N/A
BB263: DK/not sure/missing | BC263: N/A | BD263: N/A | BE263: N/A | BF263: N/A | BG263: N/A | BH263: N/A | BI263: N/A | BJ263: N/A | BK263: N/A | BL263: N/A | BM263: N/A | BN263: N/A | BO263: N/A | BP263: N/A | BQ263: N/A | BR263: N/A | BS263: N/A | BT263: N/A | BU263: N/A | BV263: N/A | BW263: N/A
BA264: Use of menstrual materials | BB264: Materials reusable | BC264: N/A | BD264: N/A | BE264: N/A | BF264: N/A | BG264: N/A | BH264: N/A | BI264: N/A | BJ264: N/A | BK264: N/A | BL264: N/A | BM264: N/A | BN264: N/A | BO264: N/A | BP264: N/A | BQ264: N/A | BR264: N/A | BS264: N/A | BT264: N/A | BU264: N/A | BV264: N/A | BW264: N/A
BB265: Materials not reusable | BC265: N/A | BD265: N/A | BE265: N/A | BF265: N/A | BG265: N/A | BH265: N/A | BI265: N/A | BJ265: N/A | BK265: N/A | BL265: N/A | BM265: N/A | BN265: N/A | BO265: N/A | BP265: N/A | BQ265: N/A | BR265: N/A | BS265: N/A | BT265: N/A | BU265: N/A | BV265: N/A | BW265: N/A
BB266: No materials used | BC266: N/A | BD266: N/A | BE266: N/A | BF266: N/A | BG266: N/A | BH266: N/A | BI266: N/A | BJ266: N/A | BK266: N/A | BL266: N/A | BM266: N/A | BN266: N/A | BO266: N/A | BP266: N/A | BQ266: N/A | BR266: N/A | BS266: N/A | BT266: N/A | BU266: N/A | BV266: N/A | BW266: N/A
BB267: DK/not sure/missing | BC267: N/A | BD267: N/A | BE267: N/A | BF267: N/A | BG267: N/A | BH267: N/A | BI267: N/A | BJ267: N/A | BK267: N/A | BL267: N/A | BM267: N/A | BN267: N/A | BO267: N/A | BP267: N/A | BQ267: N/A | BR267: N/A | BS267: N/A | BT267: N/A | BU267: N/A | BV267: N/A | BW267: N/A
BA268: Use of menstrual materials with private place to wash and change | BB268: Materials reusable | BC268: N/A | BD268: N/A | BE268: N/A | BF268: N/A | BG268: N/A | BH268: N/A | BI268: N/A | BJ268: N/A | BK268: N/A | BL268: N/A | BM268: N/A | BN268: N/A | BO268: N/A | BP268: N/A | BQ268: N/A | BR268: N/A | BS268: N/A | BT268: N/A | BU268: N/A | BV268: N/A | BW268: N/A
BB269: Materials not reusable | BC269: N/A | BD269: N/A | BE269: N/A | BF269: N/A | BG269: N/A | BH269: N/A | BI269: N/A | BJ269: N/A | BK269: N/A | BL269: N/A | BM269: N/A | BN269: N/A | BO269: N/A | BP269: N/A | BQ269: N/A | BR269: N/A | BS269: N/A | BT269: N/A | BU269: N/A | BV269: N/A | BW269: N/A
BB270: No materials used | BC270: N/A | BD270: N/A | BE270: N/A | BF270: N/A | BG270: N/A | BH270: N/A | BI270: N/A | BJ270: N/A | BK270: N/A | BL270: N/A | BM270: N/A | BN270: N/A | BO270: N/A | BP270: N/A | BQ270: N/A | BR270: N/A | BS270: N/A | BT270: N/A | BU270: N/A | BV270: N/A | BW270: N/A
BA271: Awareness of menstruation before menarche | BB271: Yes | BC271: N/A | BD271: N/A | BE271: N/A | BF271: N/A | BG271: N/A | BH271: N/A | BI271: N/A | BJ271: N/A | BK271: N/A | BL271: N/A | BM271: N/A | BN271: N/A | BO271: N/A | BP271: N/A | BQ271: N/A | BR271: N/A | BS271: N/A | BT271: N/A | BU271: N/A | BV271: N/A | BW271: N/A
BB272: No | BC272: N/A | BD272: N/A | BE272: N/A | BF272: N/A | BG272: N/A | BH272: N/A | BI272: N/A | BJ272: N/A | BK272: N/A | BL272: N/A | BM272: N/A | BN272: N/A | BO272: N/A | BP272: N/A | BQ272: N/A | BR272: N/A | BS272: N/A | BT272: N/A | BU272: N/A | BV272: N/A | BW272: N/A
BB273: DK/not sure/missing | BC273: N/A | BD273: N/A | BE273: N/A | BF273: N/A | BG273: N/A | BH273: N/A | BI273: N/A | BJ273: N/A | BK273: N/A | BL273: N/A | BM273: N/A | BN273: N/A | BO273: N/A | BP273: N/A | BQ273: N/A | BR273: N/A | BS273: N/A | BT273: N/A | BU273: N/A | BV273: N/A | BW273: N/A
BA274: Participation in (all) activities during menstruation | BB274: Yes | BC274: N/A | BD274: N/A | BE274: N/A | BF274: N/A | BG274: N/A | BH274: N/A | BI274: N/A | BJ274: N/A | BK274: N/A | BL274: N/A | BM274: N/A | BN274: N/A | BO274: N/A | BP274: N/A | BQ274: N/A | BR274: N/A | BS274: N/A | BT274: N/A | BU274: N/A | BV274: N/A | BW274: N/A
BB275: No | BC275: N/A | BD275: N/A | BE275: N/A | BF275: N/A | BG275: N/A | BH275: N/A | BI275: N/A | BJ275: N/A | BK275: N/A | BL275: N/A | BM275: N/A | BN275: N/A | BO275: N/A | BP275: N/A | BQ275: N/A | BR275: N/A | BS275: N/A | BT275: N/A | BU275: N/A | BV275: N/A | BW275: N/A
BB276: DK/not sure/missing/no such activity | BC276: N/A | BD276: N/A | BE276: N/A | BF276: N/A | BG276: N/A | BH276: N/A | BI276: N/A | BJ276: N/A | BK276: N/A | BL276: N/A | BM276: N/A | BN276: N/A | BO276: N/A | BP276: N/A | BQ276: N/A | BR276: N/A | BS276: N/A | BT276: N/A | BU276: N/A | BV276: N/A | BW276: N/A
BA277: Participation in specific activities during menstruation | BB277: Did not go to school (amongst those usually attending school) | BC277: N/A | BD277: N/A | BE277: N/A | BF277: N/A | BG277: N/A | BH277: N/A | BI277: N/A | BJ277: N/A | BK277: N/A | BL277: N/A | BM277: N/A | BN277: N/A | BO277: N/A | BP277: N/A | BQ277: N/A | BR277: N/A | BS277: N/A | BT277: N/A | BU277: N/A | BV277: N/A | BW277: N/A
BB278: Did not go to work (amongst those who usually work) | BC278: N/A | BD278: N/A | BE278: N/A | BF278: N/A | BG278: N/A | BH278: N/A | BI278: N/A | BJ278: N/A | BK278: N/A | BL278: N/A | BM278: N/A | BN278: N/A | BO278: N/A | BP278: N/A | BQ278: N/A | BR278: N/A | BS278: N/A | BT278: N/A | BU278: N/A | BV278: N/A | BW278: N/A
BB279: Did not participate in social activities | BC279: N/A | BD279: N/A | BE279: N/A | BF279: N/A | BG279: N/A | BH279: N/A | BI279: N/A | BJ279: N/A | BK279: N/A | BL279: N/A | BM279: N/A | BN279: N/A | BO279: N/A | BP279: N/A | BQ279: N/A | BR279: N/A | BS279: N/A | BT279: N/A | BU279: N/A | BV279: N/A | BW279: N/A
BB280: Did not cook food | BC280: N/A | BD280: N/A | BE280: N/A | BF280: N/A | BG280: N/A | BH280: N/A | BI280: N/A | BJ280: N/A | BK280: N/A | BL280: N/A | BM280: N/A | BN280: N/A | BO280: N/A | BP280: N/A | BQ280: N/A | BR280: N/A | BS280: N/A | BT280: N/A | BU280: N/A | BV280: N/A | BW280: N/A
BB281: Did not eat with others | BC281: N/A | BD281: N/A | BE281: N/A | BF281: N/A | BG281: N/A | BH281: N/A | BI281: N/A | BJ281: N/A | BK281: N/A | BL281: N/A | BM281: N/A | BN281: N/A | BO281: N/A | BP281: N/A | BQ281: N/A | BR281: N/A | BS281: N/A | BT281: N/A | BU281: N/A | BV281: N/A | BW281: N/A
BB282: Did not bathe in regular place | BC282: N/A | BD282: N/A | BE282: N/A | BF282: N/A | BG282: N/A | BH282: N/A | BI282: N/A | BJ282: N/A | BK282: N/A | BL282: N/A | BM282: N/A | BN282: N/A | BO282: N/A | BP282: N/A | BQ282: N/A | BR282: N/A | BS282: N/A | BT282: N/A | BU282: N/A | BV282: N/A | BW282: N/A
BB283: Did not participate in other activities | BC283: N/A | BD283: N/A | BE283: N/A | BF283: N/A | BG283: N/A | BH283: N/A | BI283: N/A | BJ283: N/A | BK283: N/A | BL283: N/A | BM283: N/A | BN283: N/A | BO283: N/A | BP283: N/A | BQ283: N/A | BR283: N/A | BS283: N/A | BT283: N/A | BU283: N/A | BV283: N/A | BW283: N/A
BB284: DK/not sure/missing/no such activity | BC284: N/A | BD284: N/A | BE284: N/A | BF284: N/A | BG284: N/A | BH284: N/A | BI284: N/A | BJ284: N/A | BK284: N/A | BL284: N/A | BM284: N/A | BN284: N/A | BO284: N/A | BP284: N/A | BQ284: N/A | BR284: N/A | BS284: N/A | BT284: N/A | BU284: N/A | BV284: N/A | BW284: N/A
BA339: Raw numbers of respondents: | BB339: Basic water, sanitation and hygiene | BC339: NATIONAL wealth index quintile | BH339: URBAN wealth index quintile | BM339: RURAL wealth index quintile | BR339: SUB-REGIONS:
BA340: WatSan data, raw numbers (weighted) | BC340: Poorest | BD340: Poor | BE340: Middle | BF340: Rich | BG340: Richest | BH340: Poorest | BI340: Poor | BJ340: Middle | BK340: Rich | BL340: Richest | BM340: Poorest | BN340: Poor | BO340: Middle | BP340: Rich | BQ340: Richest | BR340: Belgrade | BS340: Central | BT340: East | BU340: SouthEast | BV340: Vojvodina | BW340: West
BA341: Use of Basic Water Sanitation and Hygiene | BB341: Yes | BC341: N/A | BD341: N/A | BE341: N/A | BF341: N/A | BG341: N/A | BH341: N/A | BI341: N/A | BJ341: N/A | BK341: N/A | BL341: N/A | BM341: N/A | BN341: N/A | BO341: N/A | BP341: N/A | BQ341: N/A | BR341: N/A | BS341: N/A | BT341: N/A | BU341: N/A | BV341: N/A | BW341: N/A
BB342: No | BC342: N/A | BD342: N/A | BE342: N/A | BF342: N/A | BG342: N/A | BH342: N/A | BI342: N/A | BJ342: N/A | BK342: N/A | BL342: N/A | BM342: N/A | BN342: N/A | BO342: N/A | BP342: N/A | BQ342: N/A | BR342: N/A | BS342: N/A | BT342: N/A | BU342: N/A | BV342: N/A | BW342: N/A
BA343: Use of Basic Water and Sanitation | BB343: Yes | BC343: N/A | BD343: N/A | BE343: N/A | BF343: N/A | BG343: N/A | BH343: N/A | BI343: N/A | BJ343: N/A | BK343: N/A | BL343: N/A | BM343: N/A | BN343: N/A | BO343: N/A | BP343: N/A | BQ343: N/A | BR343: N/A | BS343: N/A | BT343: N/A | BU343: N/A | BV343: N/A | BW343: N/A
BB344: No | BC344: N/A | BD344: N/A | BE344: N/A | BF344: N/A | BG344: N/A | BH344: N/A | BI344: N/A | BJ344: N/A | BK344: N/A | BL344: N/A | BM344: N/A | BN344: N/A | BO344: N/A | BP344: N/A | BQ344: N/A | BR344: N/A | BS344: N/A | BT344: N/A | BU344: N/A | BV344: N/A | BW344: N/A
BA345: Use of Basic Water and Hygiene | BB345: Yes | BC345: N/A | BD345: N/A | BE345: N/A | BF345: N/A | BG345: N/A | BH345: N/A | BI345: N/A | BJ345: N/A | BK345: N/A | BL345: N/A | BM345: N/A | BN345: N/A | BO345: N/A | BP345: N/A | BQ345: N/A | BR345: N/A | BS345: N/A | BT345: N/A | BU345: N/A | BV345: N/A | BW345: N/A
BB346: No | BC346: N/A | BD346: N/A | BE346: N/A | BF346: N/A | BG346: N/A | BH346: N/A | BI346: N/A | BJ346: N/A | BK346: N/A | BL346: N/A | BM346: N/A | BN346: N/A | BO346: N/A | BP346: N/A | BQ346: N/A | BR346: N/A | BS346: N/A | BT346: N/A | BU346: N/A | BV346: N/A | BW346: N/A
BA347: Use of Basic Sanitation and Hygiene | BB347: Yes | BC347: N/A | BD347: N/A | BE347: N/A | BF347: N/A | BG347: N/A | BH347: N/A | BI347: N/A | BJ347: N/A | BK347: N/A | BL347: N/A | BM347: N/A | BN347: N/A | BO347: N/A | BP347: N/A | BQ347: N/A | BR347: N/A | BS347: N/A | BT347: N/A | BU347: N/A | BV347: N/A | BW347: N/A
BB348: No | BC348: N/A | BD348: N/A | BE348: N/A | BF348: N/A | BG348: N/A | BH348: N/A | BI348: N/A | BJ348: N/A | BK348: N/A | BL348: N/A | BM348: N/A | BN348: N/A | BO348: N/A | BP348: N/A | BQ348: N/A | BR348: N/A | BS348: N/A | BT348: N/A | BU348: N/A | BV348: N/A | BW348: N/A
BA349: Use of Basic Water | BB349: Yes | BC349: N/A | BD349: N/A | BE349: N/A | BF349: N/A | BG349: N/A | BH349: N/A | BI349: N/A | BJ349: N/A | BK349: N/A | BL349: N/A | BM349: N/A | BN349: N/A | BO349: N/A | BP349: N/A | BQ349: N/A | BR349: N/A | BS349: N/A | BT349: N/A | BU349: N/A | BV349: N/A | BW349: N/A
BB350: No | BC350: N/A | BD350: N/A | BE350: N/A | BF350: N/A | BG350: N/A | BH350: N/A | BI350: N/A | BJ350: N/A | BK350: N/A | BL350: N/A | BM350: N/A | BN350: N/A | BO350: N/A | BP350: N/A | BQ350: N/A | BR350: N/A | BS350: N/A | BT350: N/A | BU350: N/A | BV350: N/A | BW350: N/A
BA351: Use of Basic Sanitation | BB351: Yes | BC351: N/A | BD351: N/A | BE351: N/A | BF351: N/A | BG351: N/A | BH351: N/A | BI351: N/A | BJ351: N/A | BK351: N/A | BL351: N/A | BM351: N/A | BN351: N/A | BO351: N/A | BP351: N/A | BQ351: N/A | BR351: N/A | BS351: N/A | BT351: N/A | BU351: N/A | BV351: N/A | BW351: N/A
BB352: No | BC352: N/A | BD352: N/A | BE352: N/A | BF352: N/A | BG352: N/A | BH352: N/A | BI352: N/A | BJ352: N/A | BK352: N/A | BL352: N/A | BM352: N/A | BN352: N/A | BO352: N/A | BP352: N/A | BQ352: N/A | BR352: N/A | BS352: N/A | BT352: N/A | BU352: N/A | BV352: N/A | BW352: N/A
BA353: Access to Basic Hygiene | BB353: Yes | BC353: N/A | BD353: N/A | BE353: N/A | BF353: N/A | BG353: N/A | BH353: N/A | BI353: N/A | BJ353: N/A | BK353: N/A | BL353: N/A | BM353: N/A | BN353: N/A | BO353: N/A | BP353: N/A | BQ353: N/A | BR353: N/A | BS353: N/A | BT353: N/A | BU353: N/A | BV353: N/A | BW353: N/A
BB354: No | BC354: N/A | BD354: N/A | BE354: N/A | BF354: N/A | BG354: N/A | BH354: N/A | BI354: N/A | BJ354: N/A | BK354: N/A | BL354: N/A | BM354: N/A | BN354: N/A | BO354: N/A | BP354: N/A | BQ354: N/A | BR354: N/A | BS354: N/A | BT354: N/A | BU354: N/A | BV354: N/A | BW354: N/A
C399: INITIAL (national) Wealth Index | H399: URBAN Wealth Index | M399: RURAL Wealth Index
C400: Component Matrix | H400: Component Matrix | M400: Component Matrix
E401: Component | J401: Component | O401: Component
B402: Note: The INITIAL (national) Wealth Index is based on the first component of the Principal Component Analysis (PCA) which has been obtained at national level. The final national-level (NATIONAL) Wealth Index is based on the URBAN and RURAL specific wealth indexes. Regression procedures are used to establish the relationships between the two sets of scores (urban and rural) and the initial (national) wealth factors. This allows best use of the available information for each area and a better precision of the FINAL (NATIONAL) Wealth Index. For dependency reasons, all WASH variables (contained in the generic MICS and DHS scripts) have been excluded from the sets of asset variables used in the PCAs. The PCA can extracts as many components as there are asset variables in the input. Only the first of the components is used to represent the Wealth Index. The scores represent the weights of the asset variables on the Wealth Index (correlations between the variables and the component). The communalities are the proportion of each variable's variance that can be explained by the component. Proportion of explained variance is the part of the model's total variance that is explained by the component. For more information on the procedure used: The DHS Wealth Index, DHS Comparative Reports No. 6, Shea Oscar Rutstein, Kiersten Johnson, ORC Macro International Inc., 2004. The DHS Wealth Index: Approaches for Rural and Urban Areas, Shea O. Rutstein, ORC Macro International Inc., 2008. MICS Methodological Paper No. 4, Review of options for reporting water, sanitation and hygiene coverage by wealth quintile, UNICEF, 2016. | E402: 1 | J402: 1 | O402: 1
C403: Household has: Water heater | E403: 0.7688248749 | H403: Household has: Water heater | J403: 0.7751141727 | M403: Household has: Water heater | O403: 0.7553004955
C404: Household has: a Washing mashine | E404: 0.7625600462 | H404: Household has: a Washing mashine | J404: 0.759436202 | M404: Household has: a Washing mashine | O404: 0.7327864865
C405: Has parquet/polished wood floor | E405: 0.7189525328 | H405: Has parquet/polished wood floor | J405: 0.7395038697 | M405: Household member owns: car/truck | O405: 0.6421328013
C406: Household fuel type: wood | E406: -0.6522510516 | H406: Household has: non-mobile telephone | J406: 0.7261783338 | M406: Household has: refrigerator | O406: 0.6267277384
C407: Household has: non-mobile telephone | E407: 0.6473349239 | H407: Household fuel type: wood | J407: -0.700203397 | M407: Household has: non-mobile telephone | O407: 0.5726255496
C408: Household has: refrigerator | E408: 0.6224335236 | H408: Household has: refrigerator | J408: 0.6446700026 | M408: Has parquet/polished wood floor | O408: 0.566263227
C409: Household fuel type: electricity | E409: 0.5534495761 | H409: Household fuel type: electricity | J409: 0.5747124731 | M409: Household member owns: mobile phone | O409: 0.5180441085
C410: Household member owns: car/truck | E410: 0.5396618949 | H410: Has cement floor | J410: -0.5623009739 | M410: Has earth/sand floor | O410: -0.5067225172
C411: Household has: Central heating | E411: 0.5023130343 | H411: Household has: Central heating | J411: 0.5105163778 | M411: Household member owns: bicycle | O411: 0.4600447979
C412: Has cement floor | E412: -0.4888585702 | H412: Household member owns: car/truck | J412: 0.5052824755 | M412: Household member owns: animal drawn cart | O412: 0.4480527542
C413: Household has: Computer | E413: 0.4884183977 | H413: Household has: Computer | J413: 0.4678848315 | M413: Household has: television | O413: 0.4341949807
C414: Household member owns: mobile phone | E414: 0.4822778436 | H414: Has earth/sand floor | J414: -0.4552680971 | M414: Household has: radio | O414: 0.4309897318
C415: Has earth/sand floor | E415: -0.4655876623 | H415: Persons per sleeping rooms | J415: -0.4241564346 | M415: Has brick wall | O415: 0.4043142245
C416: Household has: television | E416: 0.4117705202 | H416: Household has: radio | J416: 0.4040291395 | M416: Household owns agricultural land | O416: 0.4022650388
C417: Household has: radio | E417: 0.4115281144 | H417: Household member owns: mobile phone | J417: 0.4011387479 | M417: Household has: Computer | O417: 0.3957116719
C418: Household has: Air conditioner | E418: 0.3338708861 | H418: Household has: television | J418: 0.394861198 | M418: Household fuel type: wood | O418: -0.3926929824
C419: Has bamboo with mud wall | E419: -0.2975017061 | H419: Household has: Air conditioner | J419: 0.3293171189 | M419: Household owns pigs | O419: 0.3808770685
C420: Persons per sleeping rooms | E420: -0.2835648821 | H420: Household has: electricity | J420: 0.3099263668 | M420: Household has: Central heating | O420: 0.3665008803
C421: Household has: electricity | E421: 0.2807422852 | H421: Has concrete roof | J421: 0.2621322118 | M421: Has bamboo with mud wall | O421: -0.322314969
C422: Household member owns: bicycle | E422: 0.2751992349 | H422: Household has: Dish washer | J422: 0.260985597 | M422: Household fuel type: electricity | O422: 0.304791885
C423: Household has: Dish washer | E423: 0.2693099492 | H423: Has bamboo with mud wall | J423: -0.2328212913 | M423: Household owns chickens | O423: 0.3022336573
C424: Has concrete roof | E424: 0.2404731469 | H424: Has cement wall | J424: 0.2282065631 | M424: Household member owns: motorcycle/scooter | O424: 0.2956381856
... 238 more rows

Sheet MICS10
A2: =A1026 -> Serbia
A3: =A1034 -> 2010
A4: Use of drinking water sources
A5: by wealth quintile and sub-national region
A6: Notes:
A7: WHO/UNICEF JMP customised wealth index excludes water,
A8: sanitation and hygiene assets.
A9: Survey used for analysis: | B9: =A1025 -> MICS10
A10: =B1028 -> 
A11: =B1027 -> 
A14: Use of drinking water sources | C14: NATIONAL wealth index quintile | H14: URBAN wealth index quintile | M14: RURAL wealth index quintile | R14: SUB-REGIONS: | BA14: Raw numbers of respondents: | BB14: Use of drinking water sources | BC14: NATIONAL wealth index quintile | BH14: URBAN wealth index quintile | BM14: RURAL wealth index quintile | BR14: SUB-REGIONS:
A15: Weighted percentage (used in graphs) | C15: Poorest | D15: Poor | E15: Middle | F15: Rich | G15: Richest | H15: Poorest | I15: Poor | J15: Middle | K15: Rich | L15: Richest | M15: Poorest | N15: Poor | O15: Middle | P15: Rich | Q15: Richest | R15: AP Vojvodina | S15: Central Serbia without Belgrade | T15: City of Belgrade | BA15: Water data, raw numbers (weighted) | BC15: Poorest | BD15: Poor | BE15: Middle | BF15: Rich | BG15: Richest | BH15: Poorest | BI15: Poor | BJ15: Middle | BK15: Rich | BL15: Richest | BM15: Poorest | BN15: Poor | BO15: Middle | BP15: Rich | BQ15: Richest | BR15: AP Vojvodina | BS15: Central Serbia without Belgrade | BT15: City of Belgrade
A16: Water | B16: Improved | C16: 98.84297498 | D16: 99.92327348 | E16: 99.92531818 | F16: 99.92330104 | G16: 99.9163633 | H16: 99.58864005 | I16: 100 | J16: 99.93458908 | K16: 99.97657719 | L16: 100 | M16: 97.99887548 | N16: 99.93149388 | O16: 99.82875074 | P16: 99.83407794 | Q16: 99.75120366 | R16: 99.6819077 | S16: 99.72196704 | T16: 99.6946368 | BA16: Water | BB16: Improved | BC16: N/A | BD16: N/A | BE16: N/A | BF16: N/A | BG16: N/A | BH16: N/A | BI16: N/A | BJ16: N/A | BK16: N/A | BL16: N/A | BM16: N/A | BN16: N/A | BO16: N/A | BP16: N/A | BQ16: N/A | BR16: N/A | BS16: N/A | BT16: N/A
B17: Not Improved | C17: 1.157025017 | D17: 0.0767265188 | E17: 0.07468182092 | F17: 0.07669895894 | G17: 0.08363669706 | H17: 0.4113599497 | I17: 0 | J17: 0.06541091728 | K17: 0.02342280755 | L17: 0 | M17: 2.001124524 | N17: 0.0685061155 | O17: 0.171249257 | P17: 0.1659220609 | Q17: 0.2487963409 | R17: 0.3180922982 | S17: 0.278032965 | T17: 0.3053631968 | BB17: Not Improved | BC17: N/A | BD17: N/A | BE17: N/A | BF17: N/A | BG17: N/A | BH17: N/A | BI17: N/A | BJ17: N/A | BK17: N/A | BL17: N/A | BM17: N/A | BN17: N/A | BO17: N/A | BP17: N/A | BQ17: N/A | BR17: N/A | BS17: N/A | BT17: N/A
A18: Water ladder | B18: Basic | C18: =C16*C23/100 -> 98.72958722 | D18: =D16*D23/100 -> 99.21937534 | E18: =E16*E23/100 -> 99.47793832 | F18: 99.55221768 | G18: 99.65585018 | H18: 99.22876951 | I18: 99.15936524 | J18: 99.71418658 | K18: 99.97657719 | L18: 99.59848197 | M18: 97.74573482 | N18: 99.87692088 | O18: 99.14901395 | P18: 99.70827934 | Q18: 98.88257693 | R18: 99.18713382 | S18: 99.32983358 | T18: 99.49807564 | BA18: Water ladder | BB18: Basic | BC18: N/A | BD18: N/A | BE18: N/A | BF18: N/A | BG18: N/A | BH18: N/A | BI18: N/A | BJ18: N/A | BK18: N/A | BL18: N/A | BM18: N/A | BN18: N/A | BO18: N/A | BP18: N/A | BQ18: N/A | BR18: N/A | BS18: N/A | BT18: N/A
B19: Limited | C19: =C16*C22/100 -> 0.1133877604 | D19: =D16*D22/100 -> 0.7038981415 | E19: =E16*E22/100 -> 0.4473798546 | F19: 0.3710833605 | G19: 0.2605131256 | H19: 0.3598705383 | I19: 0.8406347631 | J19: 0.2204024998 | K19: 0 | L19: 0.4015180275 | M19: 0.2531406598 | N19: 0.05457300902 | O19: 0.6797367942 | P19: 0.1257986034 | Q19: 0.86862673 | R19: 0.4947738776 | S19: 0.3921334588 | T19: 0.1965611673 | BB19: Limited | BC19: N/A | BD19: N/A | BE19: N/A | BF19: N/A | BG19: N/A | BH19: N/A | BI19: N/A | BJ19: N/A | BK19: N/A | BL19: N/A | BM19: N/A | BN19: N/A | BO19: N/A | BP19: N/A | BQ19: N/A | BR19: N/A | BS19: N/A | BT19: N/A
B20: Unimproved | C20: =100-C18-C19-C21 -> 1.157025017 | D20: =100-D18-D19-D21 -> 0.0767265188 | E20: =100-E18-E19-E21 -> 0.07468182092 | F20: 0.07669895894 | G20: 0.08363669706 | H20: 0.4113599497 | I20: -2.375877273e-14 | J20: 0.06541091728 | K20: 0.02342280755 | L20: 5.662137426e-15 | M20: 2.001124524 | N20: 0.0685061155 | O20: 0.171249257 | P20: 0.1659220609 | Q20: 0.2487963409 | R20: 0.3180922982 | S20: 0.278032965 | T20: 0.3053631968 | BB20: Unimproved | BC20: N/A | BD20: N/A | BE20: N/A | BF20: N/A | BG20: N/A | BH20: N/A | BI20: N/A | BJ20: N/A | BK20: N/A | BL20: N/A | BM20: N/A | BN20: N/A | BO20: N/A | BP20: N/A | BQ20: N/A | BR20: N/A | BS20: N/A | BT20: N/A
B21: Surface water | C21: 0 | D21: 0 | E21: 0 | F21: 0 | G21: 0 | H21: 0 | I21: 0 | J21: 0 | K21: 0 | L21: 0 | M21: 0 | N21: 0 | O21: 0 | P21: 0 | Q21: 0 | R21: 0 | S21: 0 | T21: 0 | BB21: Surface water | BC21: N/A | BD21: N/A | BE21: N/A | BF21: N/A | BG21: N/A | BH21: N/A | BI21: N/A | BJ21: N/A | BK21: N/A | BL21: N/A | BM21: N/A | BN21: N/A | BO21: N/A | BP21: N/A | BQ21: N/A | BR21: N/A | BS21: N/A | BT21: N/A
A22: Improved water point at more than 30 minutes | B22: Yes | C22: 0.1147150421 | D22: 0.7044386328 | E22: 0.4477142157 | F22: 0.371368196 | G22: 0.2607311925 | H22: 0.3613570163 | I22: 0.8406347631 | J22: 0.2205467614 | K22: 0 | L22: 0.4015180275 | M22: 0.2583097598 | N22: 0.05461042049 | O22: 0.6809028352 | P22: 0.126007678 | Q22: 0.8707932317 | R22: 0.4963527374 | S22: 0.3932267588 | T22: 0.1971632313 | BA22: Improved water point at more than 30 minutes | BB22: Yes | BC22: N/A | BD22: N/A | BE22: N/A | BF22: N/A | BG22: N/A | BH22: N/A | BI22: N/A | BJ22: N/A | BK22: N/A | BL22: N/A | BM22: N/A | BN22: N/A | BO22: N/A | BP22: N/A | BQ22: N/A | BR22: N/A | BS22: N/A | BT22: N/A
B23: No | C23: 99.88528496 | D23: 99.29556137 | E23: 99.55228578 | F23: 99.6286318 | G23: 99.73926881 | H23: 99.63864298 | I23: 99.15936524 | J23: 99.77945324 | K23: 100 | L23: 99.59848197 | M23: 99.74169024 | N23: 99.94538958 | O23: 99.31909716 | P23: 99.87399232 | Q23: 99.12920677 | R23: 99.50364726 | S23: 99.60677324 | T23: 99.80283677 | BB23: No | BC23: N/A | BD23: N/A | BE23: N/A | BF23: N/A | BG23: N/A | BH23: N/A | BI23: N/A | BJ23: N/A | BK23: N/A | BL23: N/A | BM23: N/A | BN23: N/A | BO23: N/A | BP23: N/A | BQ23: N/A | BR23: N/A | BS23: N/A | BT23: N/A
A24: Manually calculated ratios | B24: Improved wells
B25: Improved springs
B26: Other
C27: NATIONAL wealth index quintile | H27: URBAN wealth index quintile | M27: RURAL wealth index quintile | R27: SUB-REGIONS: | BA27: Raw numbers of respondents: | BB27: Use of drinking water sources | BC27: NATIONAL wealth index quintile | BH27: URBAN wealth index quintile | BM27: RURAL wealth index quintile | BR27: SUB-REGIONS:
A28: Percentage based on weighted population | C28: Poorest | D28: Poor | E28: Middle | F28: Rich | G28: Richest | H28: Poorest | I28: Poor | J28: Middle | K28: Rich | L28: Richest | M28: Poorest | N28: Poor | O28: Middle | P28: Rich | Q28: Richest | R28: AP Vojvodina | S28: Central Serbia without Belgrade | T28: City of Belgrade | BA28: Water data, raw numbers (weighted) | BC28: Poorest | BD28: Poor | BE28: Middle | BF28: Rich | BG28: Richest | BH28: Poorest | BI28: Poor | BJ28: Middle | BK28: Rich | BL28: Richest | BM28: Poorest | BN28: Poor | BO28: Middle | BP28: Rich | BQ28: Richest | BR28: AP Vojvodina | BS28: Central Serbia without Belgrade | BT28: City of Belgrade
A29: Piped water | B29: Yes | C29: 83.45377574 | D29: 87.65816825 | E29: 90.02488392 | F29: 96.01002931 | G29: 96.44162927 | H29: 98.36927921 | I29: 97.15888882 | J29: 99.34816996 | K29: 98.32210006 | L29: 98.85392198 | M29: 73.96544067 | N29: 83.07068632 | O29: 81.6952591 | P29: 81.81135267 | Q29: 85.82070551 | R29: 97.4759368 | S29: 86.03086213 | T29: 94.5948052 | BA29: Piped water | BB29: Yes | BC29: N/A | BD29: N/A | BE29: N/A | BF29: N/A | BG29: N/A | BH29: N/A | BI29: N/A | BJ29: N/A | BK29: N/A | BL29: N/A | BM29: N/A | BN29: N/A | BO29: N/A | BP29: N/A | BQ29: N/A | BR29: N/A | BS29: N/A | BT29: N/A
B30: No | C30: 16.54622426 | D30: 12.34183175 | E30: 9.975116081 | F30: 3.989970692 | G30: 3.558370729 | H30: 1.630720789 | I30: 2.841111182 | J30: 0.6518300439 | K30: 1.677899939 | L30: 1.146078023 | M30: 26.03455933 | N30: 16.92931368 | O30: 18.3047409 | P30: 18.18864733 | Q30: 14.17929449 | R30: 2.524063205 | S30: 13.96913787 | T30: 5.405194804 | BB30: No | BC30: N/A | BD30: N/A | BE30: N/A | BF30: N/A | BG30: N/A | BH30: N/A | BI30: N/A | BJ30: N/A | BK30: N/A | BL30: N/A | BM30: N/A | BN30: N/A | BO30: N/A | BP30: N/A | BQ30: N/A | BR30: N/A | BS30: N/A | BT30: N/A
A31: Piped water on premises | B31: Yes | C31: 81.17456058 | D31: 87.31969105 | E31: 89.57394154 | F31: 95.83946704 | G31: 95.84463239 | H31: 95.7926273 | I31: 96.58689999 | J31: 98.9761529 | K31: 97.96059863 | L31: 98.49905682 | M31: 71.92162646 | N31: 82.5334022 | O31: 81.61508126 | P31: 81.58571944 | Q31: 85.36837122 | R31: 96.15865395 | S31: 85.4761893 | T31: 93.96379201 | BA31: Piped water on premises | BB31: Yes | BC31: N/A | BD31: N/A | BE31: N/A | BF31: N/A | BG31: N/A | BH31: N/A | BI31: N/A | BJ31: N/A | BK31: N/A | BL31: N/A | BM31: N/A | BN31: N/A | BO31: N/A | BP31: N/A | BQ31: N/A | BR31: N/A | BS31: N/A | BT31: N/A
B32: No | C32: 18.82543942 | D32: 12.68030895 | E32: 10.42605846 | F32: 4.160532963 | G32: 4.155367614 | H32: 4.207372704 | I32: 3.413100011 | J32: 1.023847102 | K32: 2.039401374 | L32: 1.500943179 | M32: 28.07837354 | N32: 17.4665978 | O32: 18.38491874 | P32: 18.41428056 | Q32: 14.63162878 | R32: 3.841346052 | S32: 14.5238107 | T32: 6.036207991 | BB32: No | BC32: N/A | BD32: N/A | BE32: N/A | BF32: N/A | BG32: N/A | BH32: N/A | BI32: N/A | BJ32: N/A | BK32: N/A | BL32: N/A | BM32: N/A | BN32: N/A | BO32: N/A | BP32: N/A | BQ32: N/A | BR32: N/A | BS32: N/A | BT32: N/A
A33: Piped water into dwelling | B33: Yes | C33: N/A | D33: N/A | E33: N/A | F33: N/A | G33: N/A | H33: N/A | I33: N/A | J33: N/A | K33: N/A | L33: N/A | M33: N/A | N33: N/A | O33: N/A | P33: N/A | Q33: N/A | R33: N/A | S33: N/A | T33: N/A | BA33: Piped water into dwelling | BB33: Yes | BC33: N/A | BD33: N/A | BE33: N/A | BF33: N/A | BG33: N/A | BH33: N/A | BI33: N/A | BJ33: N/A | BK33: N/A | BL33: N/A | BM33: N/A | BN33: N/A | BO33: N/A | BP33: N/A | BQ33: N/A | BR33: N/A | BS33: N/A | BT33: N/A
B34: No | C34: N/A | D34: N/A | E34: N/A | F34: N/A | G34: N/A | H34: N/A | I34: N/A | J34: N/A | K34: N/A | L34: N/A | M34: N/A | N34: N/A | O34: N/A | P34: N/A | Q34: N/A | R34: N/A | S34: N/A | T34: N/A | BB34: No | BC34: N/A | BD34: N/A | BE34: N/A | BF34: N/A | BG34: N/A | BH34: N/A | BI34: N/A | BJ34: N/A | BK34: N/A | BL34: N/A | BM34: N/A | BN34: N/A | BO34: N/A | BP34: N/A | BQ34: N/A | BR34: N/A | BS34: N/A | BT34: N/A
A35: Water source on premises | B35: Yes | C35: 95.464899 | D35: 97.38922307 | E35: 97.45783906 | F35: 98.97128015 | G35: 97.84012119 | H35: 96.23424926 | I35: 96.61519914 | J35: 99.01240829 | K35: 98.77526118 | L35: 98.5559567 | M35: 94.82696732 | N35: 98.07973058 | O35: 96.22128453 | P35: 98.42172072 | Q35: 97.03243158 | R35: 96.93886893 | S35: 97.65150742 | T35: 97.4381303 | BA35: Water source on premises | BB35: Yes | BC35: N/A | BD35: N/A | BE35: N/A | BF35: N/A | BG35: N/A | BH35: N/A | BI35: N/A | BJ35: N/A | BK35: N/A | BL35: N/A | BM35: N/A | BN35: N/A | BO35: N/A | BP35: N/A | BQ35: N/A | BR35: N/A | BS35: N/A | BT35: N/A
B36: No | C36: 4.535100998 | D36: 2.610776925 | E36: 2.542160936 | F36: 1.028719845 | G36: 2.159878807 | H36: 3.765750739 | I36: 3.384800864 | J36: 0.9875917076 | K36: 1.224738822 | L36: 1.444043302 | M36: 5.173032676 | N36: 1.920269421 | O36: 3.778715468 | P36: 1.578279284 | Q36: 2.967568422 | R36: 3.06113107 | S36: 2.348492578 | T36: 2.561869701 | BB36: No | BC36: N/A | BD36: N/A | BE36: N/A | BF36: N/A | BG36: N/A | BH36: N/A | BI36: N/A | BJ36: N/A | BK36: N/A | BL36: N/A | BM36: N/A | BN36: N/A | BO36: N/A | BP36: N/A | BQ36: N/A | BR36: N/A | BS36: N/A | BT36: N/A
A37: Improved Water source on premises | B37: Yes | C37: 94.98212209 | D37: 97.37477465 | E37: 97.45783906 | F37: 98.97128015 | G37: 97.80911648 | H37: 96.23424926 | I37: 96.61519914 | J37: 99.01240829 | K37: 98.77526118 | L37: 98.5559567 | M37: 93.75254778 | N37: 98.07973058 | O37: 96.18903646 | P37: 98.42172072 | Q37: 96.96324075 | R37: 96.86699523 | S37: 97.49559904 | T37: 97.42372442 | BA37: Improved water source on premises | BB37: Yes | BC37: N/A | BD37: N/A | BE37: N/A | BF37: N/A | BG37: N/A | BH37: N/A | BI37: N/A | BJ37: N/A | BK37: N/A | BL37: N/A | BM37: N/A | BN37: N/A | BO37: N/A | BP37: N/A | BQ37: N/A | BR37: N/A | BS37: N/A | BT37: N/A
B38: No | C38: 5.017877914 | D38: 2.62522535 | E38: 2.542160936 | F38: 1.028719845 | G38: 2.190883524 | H38: 3.765750739 | I38: 3.384800864 | J38: 0.9875917076 | K38: 1.224738822 | L38: 1.444043302 | M38: 6.247452217 | N38: 1.920269421 | O38: 3.810963537 | P38: 1.578279284 | Q38: 3.036759245 | R38: 3.133004773 | S38: 2.50440096 | T38: 2.576275582 | BB38: No | BC38: N/A | BD38: N/A | BE38: N/A | BF38: N/A | BG38: N/A | BH38: N/A | BI38: N/A | BJ38: N/A | BK38: N/A | BL38: N/A | BM38: N/A | BN38: N/A | BO38: N/A | BP38: N/A | BQ38: N/A | BR38: N/A | BS38: N/A | BT38: N/A
A39: Piped water on premises available when needed | B39: Yes | C39: N/A | D39: N/A | E39: N/A | F39: N/A | G39: N/A | H39: N/A | I39: N/A | J39: N/A | K39: N/A | L39: N/A | M39: N/A | N39: N/A | O39: N/A | P39: N/A | Q39: N/A | R39: N/A | S39: N/A | T39: N/A | BA39: Piped water on premises available when needed | BB39: Yes | BC39: N/A | BD39: N/A | BE39: N/A | BF39: N/A | BG39: N/A | BH39: N/A | BI39: N/A | BJ39: N/A | BK39: N/A | BL39: N/A | BM39: N/A | BN39: N/A | BO39: N/A | BP39: N/A | BQ39: N/A | BR39: N/A | BS39: N/A | BT39: N/A
B40: No | C40: N/A | D40: N/A | E40: N/A | F40: N/A | G40: N/A | H40: N/A | I40: N/A | J40: N/A | K40: N/A | L40: N/A | M40: N/A | N40: N/A | O40: N/A | P40: N/A | Q40: N/A | R40: N/A | S40: N/A | T40: N/A | BB40: No | BC40: N/A | BD40: N/A | BE40: N/A | BF40: N/A | BG40: N/A | BH40: N/A | BI40: N/A | BJ40: N/A | BK40: N/A | BL40: N/A | BM40: N/A | BN40: N/A | BO40: N/A | BP40: N/A | BQ40: N/A | BR40: N/A | BS40: N/A | BT40: N/A
A41: Water point at more than 30 minutes | B41: Yes | C41: 0.149627765 | D41: 0.7038961767 | E41: 0.5023980988 | F41: 0.4198724424 | G41: 0.2605125133 | H41: 0.4257399 | I41: 0.8406347631 | J41: 0.2858134171 | K41: 0.02342280755 | L41: 0.4015180275 | M41: 0.2530933155 | N41: 0.05457300902 | O41: 0.6797358771 | P41: 0.248071218 | Q41: 0.868624117 | R41: 0.5045696744 | S41: 0.4392823829 | T41: 0.1965596983 | BA41: Water point at more than 30 minutes | BB41: Yes | BC41: N/A | BD41: N/A | BE41: N/A | BF41: N/A | BG41: N/A | BH41: N/A | BI41: N/A | BJ41: N/A | BK41: N/A | BL41: N/A | BM41: N/A | BN41: N/A | BO41: N/A | BP41: N/A | BQ41: N/A | BR41: N/A | BS41: N/A | BT41: N/A
B42: No | C42: 99.85037223 | D42: 99.29610382 | E42: 99.4976019 | F42: 99.58012756 | G42: 99.73948749 | H42: 99.5742601 | I42: 99.15936524 | J42: 99.71418658 | K42: 99.97657719 | L42: 99.59848197 | M42: 99.74690668 | N42: 99.94542699 | O42: 99.32026412 | P42: 99.75192878 | Q42: 99.13137588 | R42: 99.49543033 | S42: 99.56071762 | T42: 99.8034403 | BB42: No | BC42: N/A | BD42: N/A | BE42: N/A | BF42: N/A | BG42: N/A | BH42: N/A | BI42: N/A | BJ42: N/A | BK42: N/A | BL42: N/A | BM42: N/A | BN42: N/A | BO42: N/A | BP42: N/A | BQ42: N/A | BR42: N/A | BS42: N/A | BT42: N/A
A43: Water source available when needed | B43: Yes | C43: N/A | D43: N/A | E43: N/A | F43: N/A | G43: N/A | H43: N/A | I43: N/A | J43: N/A | K43: N/A | L43: N/A | M43: N/A | N43: N/A | O43: N/A | P43: N/A | Q43: N/A | R43: N/A | S43: N/A | T43: N/A | BA43: Water source available when needed | BB43: Yes | BC43: N/A | BD43: N/A | BE43: N/A | BF43: N/A | BG43: N/A | BH43: N/A | BI43: N/A | BJ43: N/A | BK43: N/A | BL43: N/A | BM43: N/A | BN43: N/A | BO43: N/A | BP43: N/A | BQ43: N/A | BR43: N/A | BS43: N/A | BT43: N/A
B44: No | C44: N/A | D44: N/A | E44: N/A | F44: N/A | G44: N/A | H44: N/A | I44: N/A | J44: N/A | K44: N/A | L44: N/A | M44: N/A | N44: N/A | O44: N/A | P44: N/A | Q44: N/A | R44: N/A | S44: N/A | T44: N/A | BB44: No | BC44: N/A | BD44: N/A | BE44: N/A | BF44: N/A | BG44: N/A | BH44: N/A | BI44: N/A | BJ44: N/A | BK44: N/A | BL44: N/A | BM44: N/A | BN44: N/A | BO44: N/A | BP44: N/A | BQ44: N/A | BR44: N/A | BS44: N/A | BT44: N/A
A45: Improved water source available when needed | B45: Yes | C45: N/A | D45: N/A | E45: N/A | F45: N/A | G45: N/A | H45: N/A | I45: N/A | J45: N/A | K45: N/A | L45: N/A | M45: N/A | N45: N/A | O45: N/A | P45: N/A | Q45: N/A | R45: N/A | S45: N/A | T45: N/A | BA45: Improved water source available when needed | BB45: Yes | BC45: N/A | BD45: N/A | BE45: N/A | BF45: N/A | BG45: N/A | BH45: N/A | BI45: N/A | BJ45: N/A | BK45: N/A | BL45: N/A | BM45: N/A | BN45: N/A | BO45: N/A | BP45: N/A | BQ45: N/A | BR45: N/A | BS45: N/A | BT45: N/A
B46: No | C46: N/A | D46: N/A | E46: N/A | F46: N/A | G46: N/A | H46: N/A | I46: N/A | J46: N/A | K46: N/A | L46: N/A | M46: N/A | N46: N/A | O46: N/A | P46: N/A | Q46: N/A | R46: N/A | S46: N/A | T46: N/A | BB46: No | BC46: N/A | BD46: N/A | BE46: N/A | BF46: N/A | BG46: N/A | BH46: N/A | BI46: N/A | BJ46: N/A | BK46: N/A | BL46: N/A | BM46: N/A | BN46: N/A | BO46: N/A | BP46: N/A | BQ46: N/A | BR46: N/A | BS46: N/A | BT46: N/A
A47: Microbiological quality at point of collection | B47: Not contaminated (No E. coli in 100 mL) | C47: N/A | D47: N/A | E47: N/A | F47: N/A | G47: N/A | H47: N/A | I47: N/A | J47: N/A | K47: N/A | L47: N/A | M47: N/A | N47: N/A | O47: N/A | P47: N/A | Q47: N/A | R47: N/A | S47: N/A | T47: N/A | BA47: Microbiological quality at point of collection | BB47: Not contaminated (No E. coli in 100 mL) | BC47: N/A | BD47: N/A | BE47: N/A | BF47: N/A | BG47: N/A | BH47: N/A | BI47: N/A | BJ47: N/A | BK47: N/A | BL47: N/A | BM47: N/A | BN47: N/A | BO47: N/A | BP47: N/A | BQ47: N/A | BR47: N/A | BS47: N/A | BT47: N/A
B48: Contaminated (E. coli detected in 100 mL) | C48: N/A | D48: N/A | E48: N/A | F48: N/A | G48: N/A | H48: N/A | I48: N/A | J48: N/A | K48: N/A | L48: N/A | M48: N/A | N48: N/A | O48: N/A | P48: N/A | Q48: N/A | R48: N/A | S48: N/A | T48: N/A | BB48: Contaminated (E. coli detected in 100 mL) | BC48: N/A | BD48: N/A | BE48: N/A | BF48: N/A | BG48: N/A | BH48: N/A | BI48: N/A | BJ48: N/A | BK48: N/A | BL48: N/A | BM48: N/A | BN48: N/A | BO48: N/A | BP48: N/A | BQ48: N/A | BR48: N/A | BS48: N/A | BT48: N/A
B49: Highly contaminated (>100 CFU/100 mL) | C49: N/A | D49: N/A | E49: N/A | F49: N/A | G49: N/A | H49: N/A | I49: N/A | J49: N/A | K49: N/A | L49: N/A | M49: N/A | N49: N/A | O49: N/A | P49: N/A | Q49: N/A | R49: N/A | S49: N/A | T49: N/A | BB49: Highly contaminated (>100 CFU/100 mL) | BC49: N/A | BD49: N/A | BE49: N/A | BF49: N/A | BG49: N/A | BH49: N/A | BI49: N/A | BJ49: N/A | BK49: N/A | BL49: N/A | BM49: N/A | BN49: N/A | BO49: N/A | BP49: N/A | BQ49: N/A | BR49: N/A | BS49: N/A | BT49: N/A
A50: Microbiological quality of improved water sources at point of collection | B50: Not contaminated (No E. coli in 100 mL) | C50: N/A | D50: N/A | E50: N/A | F50: N/A | G50: N/A | H50: N/A | I50: N/A | J50: N/A | K50: N/A | L50: N/A | M50: N/A | N50: N/A | O50: N/A | P50: N/A | Q50: N/A | R50: N/A | S50: N/A | T50: N/A | BA50: Microbiological quality of improved water sources at point of collection | BB50: Not contaminated (No E. coli in 100 mL) | BC50: N/A | BD50: N/A | BE50: N/A | BF50: N/A | BG50: N/A | BH50: N/A | BI50: N/A | BJ50: N/A | BK50: N/A | BL50: N/A | BM50: N/A | BN50: N/A | BO50: N/A | BP50: N/A | BQ50: N/A | BR50: N/A | BS50: N/A | BT50: N/A
B51: Contaminated (E. coli detected in 100 mL) | C51: N/A | D51: N/A | E51: N/A | F51: N/A | G51: N/A | H51: N/A | I51: N/A | J51: N/A | K51: N/A | L51: N/A | M51: N/A | N51: N/A | O51: N/A | P51: N/A | Q51: N/A | R51: N/A | S51: N/A | T51: N/A | BB51: Contaminated (E. coli detected in 100 mL) | BC51: N/A | BD51: N/A | BE51: N/A | BF51: N/A | BG51: N/A | BH51: N/A | BI51: N/A | BJ51: N/A | BK51: N/A | BL51: N/A | BM51: N/A | BN51: N/A | BO51: N/A | BP51: N/A | BQ51: N/A | BR51: N/A | BS51: N/A | BT51: N/A
B52: Highly contaminated (>100 CFU/100 mL) | C52: N/A | D52: N/A | E52: N/A | F52: N/A | G52: N/A | H52: N/A | I52: N/A | J52: N/A | K52: N/A | L52: N/A | M52: N/A | N52: N/A | O52: N/A | P52: N/A | Q52: N/A | R52: N/A | S52: N/A | T52: N/A | BB52: Highly contaminated (>100 CFU/100 mL) | BC52: N/A | BD52: N/A | BE52: N/A | BF52: N/A | BG52: N/A | BH52: N/A | BI52: N/A | BJ52: N/A | BK52: N/A | BL52: N/A | BM52: N/A | BN52: N/A | BO52: N/A | BP52: N/A | BQ52: N/A | BR52: N/A | BS52: N/A | BT52: N/A
A53: Microbiological quality of piped on premises at point of collection | B53: Not contaminated (No E. coli in 100 mL) | C53: N/A | D53: N/A | E53: N/A | F53: N/A | G53: N/A | H53: N/A | I53: N/A | J53: N/A | K53: N/A | L53: N/A | M53: N/A | N53: N/A | O53: N/A | P53: N/A | Q53: N/A | R53: N/A | S53: N/A | T53: N/A | BA53: Microbiological quality of piped on premises at point of collection | BB53: Not contaminated (No E. coli in 100 mL) | BC53: N/A | BD53: N/A | BE53: N/A | BF53: N/A | BG53: N/A | BH53: N/A | BI53: N/A | BJ53: N/A | BK53: N/A | BL53: N/A | BM53: N/A | BN53: N/A | BO53: N/A | BP53: N/A | BQ53: N/A | BR53: N/A | BS53: N/A | BT53: N/A
B54: Contaminated (E. coli detected in 100 mL) | C54: N/A | D54: N/A | E54: N/A | F54: N/A | G54: N/A | H54: N/A | I54: N/A | J54: N/A | K54: N/A | L54: N/A | M54: N/A | N54: N/A | O54: N/A | P54: N/A | Q54: N/A | R54: N/A | S54: N/A | T54: N/A | BB54: Contaminated (E. coli detected in 100 mL) | BC54: N/A | BD54: N/A | BE54: N/A | BF54: N/A | BG54: N/A | BH54: N/A | BI54: N/A | BJ54: N/A | BK54: N/A | BL54: N/A | BM54: N/A | BN54: N/A | BO54: N/A | BP54: N/A | BQ54: N/A | BR54: N/A | BS54: N/A | BT54: N/A
B55: Highly contaminated (>100 CFU/100 mL) | C55: N/A | D55: N/A | E55: N/A | F55: N/A | G55: N/A | H55: N/A | I55: N/A | J55: N/A | K55: N/A | L55: N/A | M55: N/A | N55: N/A | O55: N/A | P55: N/A | Q55: N/A | R55: N/A | S55: N/A | T55: N/A | BB55: Highly contaminated (>100 CFU/100 mL) | BC55: N/A | BD55: N/A | BE55: N/A | BF55: N/A | BG55: N/A | BH55: N/A | BI55: N/A | BJ55: N/A | BK55: N/A | BL55: N/A | BM55: N/A | BN55: N/A | BO55: N/A | BP55: N/A | BQ55: N/A | BR55: N/A | BS55: N/A | BT55: N/A
C56: NATIONAL wealth index quintile | H56: URBAN wealth index quintile | M56: RURAL wealth index quintile | R56: SUB-REGIONS: | BA56: Raw numbers of respondents: | BB56: Use of drinking water sources | BC56: NATIONAL wealth index quintile | BH56: URBAN wealth index quintile | BM56: RURAL wealth index quintile | BR56: SUB-REGIONS:
A57: Percentage based on weighted population | C57: Poorest | D57: Poor | E57: Middle | F57: Rich | G57: Richest | H57: Poorest | I57: Poor | J57: Middle | K57: Rich | L57: Richest | M57: Poorest | N57: Poor | O57: Middle | P57: Rich | Q57: Richest | R57: AP Vojvodina | S57: Central Serbia without Belgrade | T57: City of Belgrade | BA57: Water data, raw numbers (weighted) | BC57: Poorest | BD57: Poor | BE57: Middle | BF57: Rich | BG57: Richest | BH57: Poorest | BI57: Poor | BJ57: Middle | BK57: Rich | BL57: Richest | BM57: Poorest | BN57: Poor | BO57: Middle | BP57: Rich | BQ57: Richest | BR57: AP Vojvodina | BS57: Central Serbia without Belgrade | BT57: City of Belgrade
A58: Main source of drinking water | B58: Piped into dwelling | C58: 73.77642775 | D58: 80.12143302 | E58: 80.84514088 | F58: 82.9595795 | G58: 77.08544881 | H58: 86.99433942 | I58: 85.2434695 | J58: 86.19979442 | K58: 82.87759081 | L58: 78.96520466 | M58: 63.07575791 | N58: 76.7119031 | O58: 76.56179785 | P58: 75.56370231 | Q58: 71.66796048 | R58: 74.62252654 | S58: 80.12452827 | T58: 81.39909313
B59: Piped into compound, yard or plot | C59: 3.446966981 | D59: 0.1022237296 | E59: 0.04730014116 | F59: 0 | G59: 0.2855935113 | H59: 0.6912776294 | I59: 0 | J59: 0.01235122583 | K59: 0 | L59: 0 | M59: 5.754003131 | N59: 1.069625582 | O59: 0.2281575915 | P59: 0.08993291991 | Q59: 0.6373368965 | R59: 1.162299997 | S59: 0.7961713998 | T59: 0.2282041413
B60: Piped to neighbour | C60: 0.5137010382 | D60: 0.215356787 | E60: 0 | F60: 0 | G60: 0 | H60: 0.5820964043 | I60: 0 | J60: 0 | K60: 0 | L60: 0 | M60: 0.9075975121 | N60: 0 | O60: 0 | P60: 0 | Q60: 0 | R60: 0.3071787718 | S60: 0.1228736536 | T60: 0
B61: Public tap / standpipe | C61: 1.581476553 | D61: 0.1231204158 | E61: 0.4509423765 | F61: 0.1705622713 | G61: 0.5664783824 | H61: 1.826674844 | I61: 0.5719888293 | J61: 0.3720170584 | K61: 0.3615014354 | L61: 0.3548651559 | M61: 0.9329178126 | N61: 0.5372841242 | O61: 0.08017783938 | P61: 0.2256332278 | Q61: 0.3842285045 | R61: 0.9490551242 | S61: 0.381574753 | T61: 0.6310131872
B62: Tube well, Borehole | C62: 2.256017359 | D62: 2.664844643 | E62: 0.6545199271 | F62: 1.144754161 | G62: 0.9240850498 | H62: 0.5001001644 | I62: 0.03629451794 | J62: 0.06770676485 | K62: 0.9984734852 | L62: 0.05689987715 | M62: 2.798223578 | N62: 2.977933995 | O62: 4.579810028 | P62: 1.409820721 | Q62: 3.254194904 | R62: 0.8585379219 | S62: 2.208551408 | T62: 0.5687901654
B63: Protected well | C63: 11.28900412 | D63: 7.05244921 | E63: 6.423779635 | F63: 1.993583167 | G63: 1.15757451 | H63: 0.3888621543 | I63: 0.6423853191 | J63: 0.03625539468 | K63: 0.06478581637 | L63: 0 | M63: 18.39333406 | N63: 11.96342864 | O63: 9.384483946 | P63: 12.80726246 | Q63: 8.234002171 | R63: 0.3320440756 | S63: 9.007695307 | T63: 3.152830876
B64: Unprotected well | C64: 0.5594373565 | D64: 0 | E64: 0 | F64: 0 | G64: 0 | H64: 0 | I64: 0 | J64: 0 | K64: 0 | L64: 0 | M64: 1.245027274 | N64: 0 | O64: 0 | P64: 0 | Q64: 0 | R64: 0 | S64: 0.2072948112 | T64: 0
B65: Protected spring | C65: 1.014275094 | D65: 2.201691072 | E65: 1.980885625 | F65: 0.4543523593 | G65: 0.9294510534 | H65: 0.3303985201 | I65: 2.134132198 | J65: 0.4310127148 | K65: 0.5912178295 | L65: 0.686509698 | M65: 1.636318946 | N65: 1.276982623 | O65: 3.431311365 | P65: 1.936622585 | Q65: 1.261427238 | R65: 0.8743455175 | S65: 1.63350126 | T65: 1.033276184
B66: Unprotected spring | C66: 0.1110647745 | D66: 0 | E66: 0.01967727736 | F66: 0.0640294553 | G66: 0.05263197994 | H66: 0.0652562345 | I66: 0 | J66: 0.06541091728 | K66: 0 | L66: 0 | M66: 0.0986019009 | N66: 0.0685061155 | O66: 0 | P66: 0.04371739162 | Q66: 0.1796055176 | R66: 0.04066967493 | S66: 0.05039993661 | T66: 0.05837528151
B67: Tanker-truck | C67: 0.1101074858 | D67: 0.04149419795 | E67: 0.06241366174 | F67: 0 | G67: 0.0164708286 | H67: 0 | I67: 0 | J67: 0 | K67: 0 | L67: 0 | M67: 0.1988418456 | N67: 0.04627954548 | O67: 0.09261270652 | P67: 0.1386656519 | Q67: 0.03675667118 | R67: 0.1410433914 | S67: 0 | T67: 0.04765489977
B68: Bottled water | C68: 4.854998606 | D68: 7.400660407 | E68: 9.460335931 | F68: 13.20046958 | G68: 18.95126116 | H68: 8.274890917 | I68: 11.37172964 | J68: 12.8154515 | K68: 15.08300781 | L68: 19.9365206 | M68: 4.301880684 | N68: 5.34805628 | O68: 5.470399419 | P68: 7.662438058 | Q68: 14.27529679 | R68: 20.43487637 | S68: 5.447070988 | T68: 12.63377422
B69: Other | C69: 0.4865228862 | D69: 0.0767265188 | E69: 0.05500454356 | F69: 0.01266950364 | G69: 0.03100471712 | H69: 0.3461037152 | I69: 0 | J69: 0 | K69: 0.02342280755 | L69: 0 | M69: 0.6574953487 | N69: 0 | O69: 0.171249257 | P69: 0.1222046693 | Q69: 0.06919082335 | R69: 0.2774226233 | S69: 0.02033821713 | T69: 0.2469879153
A108: =A1026 -> Serbia
A109: =A1034 -> 2010
A110: Use of sanitation facilities
A111: by wealth quintile and sub-national region
A112: Notes:
A113: WHO/UNICEF JMP customised wealth index excludes water,
A114: sanitation and hygiene assets.
A115: Survey used for analysis: | B115: =A1025 -> MICS10
A116: =B1030 -> 
A117: =B1029 -> 
A120: Use of sanitation facilities | C120: NATIONAL wealth index quintile | H120: URBAN wealth index quintile | M120: RURAL wealth index quintile | R120: SUB-REGIONS: | BA120: Raw numbers of respondents: | BB120: Use of sanitation facilities | BC120: NATIONAL wealth index quintile | BH120: URBAN wealth index quintile | BM120: RURAL wealth index quintile | BR120: SUB-REGIONS:
A121: Weighted percentage (used in graphs) | C121: Poorest | D121: Poor | E121: Middle | F121: Rich | G121: Richest | H121: Poorest | I121: Poor | J121: Middle | K121: Rich | L121: Richest | M121: Poorest | N121: Poor | O121: Middle | P121: Rich | Q121: Richest | R121: AP Vojvodina | S121: Central Serbia without Belgrade | T121: City of Belgrade | BA121: Sanitation data, raw numbers (weighted) | BC121: Poorest | BD121: Poor | BE121: Middle | BF121: Rich | BG121: Richest | BH121: Poorest | BI121: Poor | BJ121: Middle | BK121: Rich | BL121: Richest | BM121: Poorest | BN121: Poor | BO121: Middle | BP121: Rich | BQ121: Richest | BR121: AP Vojvodina | BS121: Central Serbia without Belgrade | BT121: City of Belgrade
A122: Sanitation | B122: Improved | C122: 95.21811574 | D122: 98.17360243 | E122: 99.21333298 | F122: 99.81645029 | G122: 99.57823093 | H122: 99.51079686 | I122: 99.55200643 | J122: 99.83988347 | K122: 99.90527665 | L122: 99.95205658 | M122: 92.4471996 | N122: 96.24964695 | O122: 97.28370994 | P122: 98.69832356 | Q122: 99.02107135 | R122: 99.73178591 | S122: 97.38958634 | T122: 99.39472672 | BA122: Sanitation | BB122: Improved | BC122: 3977.80557 | BD122: 4103.902851 | BE122: 4135.912615 | BF122: 4161.595385 | BG122: 4160.581209 | BH122: 2295.17554 | BI122: 2281.953948 | BJ122: 2298.551449 | BK122: 2253.029143 | BL122: 2344.094197 | BM122: 1735.362971 | BN122: 1803.72275 | BO122: 1822.045703 | BP122: 1851.918438 | BQ122: 1853.94349 | BR122: 5392.649571 | BS122: 10979.92874 | BT122: 4167.219322
B123: Not Improved | C123: 4.78188426 | D123: 1.826397575 | E123: 0.7866670175 | F123: 0.1835497109 | G123: 0.4217690721 | H123: 0.4892031443 | I123: 0.4479935688 | J123: 0.1601165291 | K123: 0.09472335259 | L123: 0.04794341501 | M123: 7.552800398 | N123: 3.75035305 | O123: 2.71629006 | P123: 1.301676444 | Q123: 0.9789286483 | R123: 0.2682140906 | S123: 2.610413656 | T123: 0.6052732757 | BB123: Not Improved | BC123: 199.7666694 | BD123: 76.34800016 | BE123: 32.79383873 | BF123: 7.652642701 | BG123: 17.62237047 | BH123: 11.28326902 | BI123: 10.26901144 | BJ123: 3.686263115 | BK123: 2.136168189 | BL123: 1.124377874 | BM123: 141.7766054 | BN123: 70.28178629 | BO123: 50.87392982 | BP123: 24.42390631 | BQ123: 18.32820399 | BR123: 14.50274441 | BS123: 294.304114 | BT123: 25.37666306
A124: Sanitation ladder | B124: Basic | C124: =C122*C129/100 -> 93.10156348 | D124: =D122*D129/100 -> 98.16484511 | E124: =E122*E129/100 -> 99.04066912 | F124: 99.06964996 | G124: 99.46304124 | H124: 97.01845515 | I124: 99.34937761 | J124: 99.83988347 | K124: 98.39939735 | L124: 99.95205658 | M124: 90.8783297 | N124: 96.15180995 | O124: 97.28370994 | P124: 98.56225323 | Q124: 98.91882119 | R124: 99.27469209 | S124: 96.86425795 | T124: 98.25023504 | BA124: Sanitation ladder | BB124: Basic | BC124: 3886.562383 | BD124: 4098.121056 | BE124: 4128.714765 | BF124: 4106.415737 | BG124: 4153.565803 | BH124: 2236.131629 | BI124: 2277.309244 | BJ124: 2283.973665 | BK124: 2212.090308 | BL124: 2341.889099 | BM124: 1705.913093 | BN124: 1795.789662 | BO124: 1821.447599 | BP124: 1849.365293 | BQ124: 1849.470152 | BR124: 5364.748594 | BS124: 10898.57943 | BT124: 4110.051722
B125: Limited | C125: =C122*C128/100 -> 2.116552263 | D125: =D122*D128/100 -> 0.00875731827 | E125: =E122*E128/100 -> 0.1726638631 | F125: 0.7468003243 | G125: 0.1151896872 | H125: 2.492341705 | I125: 0.2026288238 | J125: 0 | K125: 1.505879297 | L125: 0 | M125: 1.568869897 | N125: 0.09783699491 | O125: 0 | P125: 0.1360703279 | Q125: 0.1022501658 | R125: 0.4570938215 | S125: 0.5253283957 | T125: 1.144491688 | BB125: Limited | BC125: 88.35632935 | BD125: 0.3655947336 | BE125: 7.197849604 | BF125: 30.95471323 | BG125: 4.810308833 | BH125: 57.44478313 | BI125: 4.644704423 | BJ125: 0 | BK125: 33.85326627 | BL125: 0 | BM125: 29.44987775 | BN125: 1.8272632 | BO125: 0 | BP125: 2.553145181 | BQ125: 1.911755795 | BR125: 24.70109335 | BS125: 59.10676826 | BT125: 47.87693414
B126: Unimproved | C126: =100-C124-C125-C127 -> 4.601405048 | D126: =100-D124-D125-D127 -> 1.826397575 | E126: =100-E124-E125-E127 -> 0.7866670175 | F126: 0.1835497109 | G126: 0.4217690721 | H126: 0.2523285415 | I126: 0.4479935688 | J126: 0.1601165291 | K126: 0.09472335259 | L126: 0.04794341501 | M126: 7.442269881 | N126: 3.75035305 | O126: 2.71629006 | P126: 1.301676444 | Q126: 0.9789286483 | R126: 0.2298197467 | S126: 2.561892221 | T126: 0.6052732757 | BB126: Unimproved | BC126: 192.2322301 | BD126: 76.34800016 | BE126: 32.79383873 | BF126: 7.652642701 | BG126: 17.62237047 | BH126: 5.823641804 | BI126: 10.26901144 | BJ126: 3.686263115 | BK126: 2.136168189 | BL126: 1.124377874 | BM126: 139.7017933 | BN126: 70.28178629 | BO126: 50.87392982 | BP126: 24.42390631 | BQ126: 18.32820399 | BR126: 12.42793233 | BS126: 288.8444868 | BT126: 25.37666306
B127: Open defecation | C127: 0.1804792123 | D127: 0 | E127: 0 | F127: 0 | G127: 0 | H127: 0.2368746028 | I127: 0 | J127: 0 | K127: 0 | L127: 0 | M127: 0.110530517 | N127: 0 | O127: 0 | P127: 0 | Q127: 0 | R127: 0.03839434387 | S127: 0.04852143544 | T127: 0 | BB127: Open defecation | BC127: 7.534439294 | BD127: 0 | BE127: 0 | BF127: 0 | BG127: 0 | BH127: 5.459627214 | BI127: 0 | BJ127: 0 | BK127: 0 | BL127: 0 | BM127: 2.074812079 | BN127: 0 | BO127: 0 | BP127: 0 | BQ127: 0 | BR127: 2.074812079 | BS127: 5.459627214 | BT127: 0
A128: Shared among Improved Sanitation | B128: Yes | C128: 2.222846195 | D128: 0.008920237267 | E128: 0.1740329227 | F128: 0.7481735948 | G128: 0.1156775795 | H128: 2.504594259 | I128: 0.2035406729 | J128: 0 | K128: 1.507307069 | L128: 0 | M128: 1.697044263 | N128: 0.1016491987 | O128: 0 | P128: 0.1378648826 | Q128: 0.1032610174 | R128: 0.4583231087 | S128: 0.5394092073 | T128: 1.151461175 | BA128: Shared among improved sanitation facilities | BB128: Yes | BC128: N/A | BD128: N/A | BE128: N/A | BF128: N/A | BG128: N/A | BH128: N/A | BI128: N/A | BJ128: N/A | BK128: N/A | BL128: N/A | BM128: N/A | BN128: N/A | BO128: N/A | BP128: N/A | BQ128: N/A | BR128: N/A | BS128: N/A | BT128: N/A
B129: No | C129: 97.77715381 | D129: 99.99107976 | E129: 99.82596708 | F129: 99.25182641 | G129: 99.88432242 | H129: 97.49540574 | I129: 99.79645933 | J129: 100 | K129: 98.49269293 | L129: 100 | M129: 98.30295574 | N129: 99.8983508 | O129: 100 | P129: 99.86213512 | Q129: 99.89673898 | R129: 99.54167689 | S129: 99.46059079 | T129: 98.84853883 | BB129: No | BC129: N/A | BD129: N/A | BE129: N/A | BF129: N/A | BG129: N/A | BH129: N/A | BI129: N/A | BJ129: N/A | BK129: N/A | BL129: N/A | BM129: N/A | BN129: N/A | BO129: N/A | BP129: N/A | BQ129: N/A | BR129: N/A | BS129: N/A | BT129: N/A
A130: Manually calculated ratios | B130: Improved latrines | C130: =C159/(C159+C160)*100 -> 97.75961765 | D130: =D159/(D159+D160)*100 -> 100 | E130: 100 | F130: 100 | G130: 100 | H130: 100 | I130: 100 | J130: 100 | K130: 100 | L130: 100 | M130: 96.83207174 | N130: 100 | O130: 100 | P130: 100 | Q130: 100 | R130: 97.6693165 | S130: 97.97931124 | T130: 100
B131: Other
B132: Other
C133: NATIONAL wealth index quintile | H133: URBAN wealth index quintile | M133: RURAL wealth index quintile | R133: SUB-REGIONS: | BA133: Raw numbers of respondents: | BB133: Use of sanitation facilities | BC133: NATIONAL wealth index quintile | BH133: URBAN wealth index quintile | BM133: RURAL wealth index quintile | BR133: SUB-REGIONS:
A134: Percentage based on weighted population | C134: Poorest | D134: Poor | E134: Middle | F134: Rich | G134: Richest | H134: Poorest | I134: Poor | J134: Middle | K134: Rich | L134: Richest | M134: Poorest | N134: Poor | O134: Middle | P134: Rich | Q134: Richest | R134: AP Vojvodina | S134: Central Serbia without Belgrade | T134: City of Belgrade | BA134: Sanitation data, raw numbers (weighted) | BC134: Poorest | BD134: Poor | BE134: Middle | BF134: Rich | BG134: Richest | BH134: Poorest | BI134: Poor | BJ134: Middle | BK134: Rich | BL134: Richest | BM134: Poorest | BN134: Poor | BO134: Middle | BP134: Rich | BQ134: Richest | BR134: AP Vojvodina | BS134: Central Serbia without Belgrade | BT134: City of Belgrade
A135: Sanitation type | B135: Sewer connection | C135: 23.02218868 | D135: 43.35566136 | E135: 55.20096787 | F135: 74.25528066 | G135: 78.94296895 | H135: 70.51939616 | I135: 84.91973898 | J135: 90.32721875 | K135: 90.58704427 | L135: 90.95109478 | M135: 7.481678733 | N135: 15.43643307 | O135: 18.62941193 | P135: 18.86160494 | Q135: 27.16295999 | R135: 46.42571651 | S135: 52.16491737 | T135: 73.41731972 | BA135: Sanitation type | BB135: Sewer connection | BC135: N/A | BD135: N/A | BE135: N/A | BF135: N/A | BG135: N/A | BH135: N/A | BI135: N/A | BJ135: N/A | BK135: N/A | BL135: N/A | BM135: N/A | BN135: N/A | BO135: N/A | BP135: N/A | BQ135: N/A | BR135: N/A | BS135: N/A | BT135: N/A
B136: Septic tank connection | C136: 53.33916217 | D136: 52.06214971 | E136: 42.86153937 | F136: 25.56116963 | G136: 20.40278284 | H136: 23.10301981 | I136: 14.18071293 | J136: 9.512664719 | K136: 9.318232376 | L136: 8.695609469 | M136: 57.03525966 | N136: 72.96595296 | O136: 73.61437468 | P136: 77.84860174 | Q136: 71.62996788 | R136: 49.16328666 | S136: 39.48323745 | T136: 23.84667379 | BB136: Septic tank connection | BC136: N/A | BD136: N/A | BE136: N/A | BF136: N/A | BG136: N/A | BH136: N/A | BI136: N/A | BJ136: N/A | BK136: N/A | BL136: N/A | BM136: N/A | BN136: N/A | BO136: N/A | BP136: N/A | BQ136: N/A | BR136: N/A | BS136: N/A | BT136: N/A
B137: Improved latrines | C137: 18.8567649 | D137: 2.755791359 | E137: 1.150825741 | F137: 0 | G137: 0.2324791472 | H137: 5.888380882 | I137: 0.4515545204 | J137: 0 | K137: 0 | L137: 0.3053523361 | M137: 27.93026121 | N137: 7.847260914 | O137: 5.039923334 | P137: 1.988116872 | Q137: 0.2281434855 | R137: 4.142782741 | S137: 5.741431518 | T137: 2.130733214 | BB137: Improved latrines | BC137: N/A | BD137: N/A | BE137: N/A | BF137: N/A | BG137: N/A | BH137: N/A | BI137: N/A | BJ137: N/A | BK137: N/A | BL137: N/A | BM137: N/A | BN137: N/A | BO137: N/A | BP137: N/A | BQ137: N/A | BR137: N/A | BS137: N/A | BT137: N/A
B138: Unimproved facilities | C138: 4.601529766 | D138: 1.826397575 | E138: 0.7866670175 | F138: 0.1835497109 | G138: 0.4217690721 | H138: 0.2524927729 | I138: 0.4479935688 | J138: 0.1601165291 | K138: 0.09472335259 | L138: 0.04794341501 | M138: 7.442269881 | N138: 3.75035305 | O138: 2.71629006 | P138: 1.301676444 | Q138: 0.9789286483 | R138: 0.229842468 | S138: 2.561987947 | T138: 0.6052732757 | BB138: Unimproved facilities | BC138: N/A | BD138: N/A | BE138: N/A | BF138: N/A | BG138: N/A | BH138: N/A | BI138: N/A | BJ138: N/A | BK138: N/A | BL138: N/A | BM138: N/A | BN138: N/A | BO138: N/A | BP138: N/A | BQ138: N/A | BR138: N/A | BS138: N/A | BT138: N/A
B139: Open defecation | C139: 0.1803544945 | D139: 0 | E139: 0 | F139: 0 | G139: 0 | H139: 0.2367103714 | I139: 0 | J139: 0 | K139: 0 | L139: 0 | M139: 0.110530517 | N139: 0 | O139: 0 | P139: 0 | Q139: 0 | R139: 0.03837162259 | S139: 0.04842570919 | T139: 0 | BB139: Open defecation | BC139: N/A | BD139: N/A | BE139: N/A | BF139: N/A | BG139: N/A | BH139: N/A | BI139: N/A | BJ139: N/A | BK139: N/A | BL139: N/A | BM139: N/A | BN139: N/A | BO139: N/A | BP139: N/A | BQ139: N/A | BR139: N/A | BS139: N/A | BT139: N/A
A140: Septic tank emptying practices | B140: Not emptied/treated and disposed in situ | C140: N/A | D140: N/A | E140: N/A | F140: N/A | G140: N/A | H140: N/A | I140: N/A | J140: N/A | K140: N/A | L140: N/A | M140: N/A | N140: N/A | O140: N/A | P140: N/A | Q140: N/A | R140: N/A | S140: N/A | T140: N/A | BA140: Septic tank emptying practices | BB140: Not emptied/treated and disposed in situ | BC140: N/A | BD140: N/A | BE140: N/A | BF140: N/A | BG140: N/A | BH140: N/A | BI140: N/A | BJ140: N/A | BK140: N/A | BL140: N/A | BM140: N/A | BN140: N/A | BO140: N/A | BP140: N/A | BQ140: N/A | BR140: N/A | BS140: N/A | BT140: N/A
B141: Emptied and buried on site | C141: N/A | D141: N/A | E141: N/A | F141: N/A | G141: N/A | H141: N/A | I141: N/A | J141: N/A | K141: N/A | L141: N/A | M141: N/A | N141: N/A | O141: N/A | P141: N/A | Q141: N/A | R141: N/A | S141: N/A | T141: N/A | BB141: Emptied and buried on site | BC141: N/A | BD141: N/A | BE141: N/A | BF141: N/A | BG141: N/A | BH141: N/A | BI141: N/A | BJ141: N/A | BK141: N/A | BL141: N/A | BM141: N/A | BN141: N/A | BO141: N/A | BP141: N/A | BQ141: N/A | BR141: N/A | BS141: N/A | BT141: N/A
B142: Emptied and discharged locally | C142: N/A | D142: N/A | E142: N/A | F142: N/A | G142: N/A | H142: N/A | I142: N/A | J142: N/A | K142: N/A | L142: N/A | M142: N/A | N142: N/A | O142: N/A | P142: N/A | Q142: N/A | R142: N/A | S142: N/A | T142: N/A | BB142: Emptied and discharged locally | BC142: N/A | BD142: N/A | BE142: N/A | BF142: N/A | BG142: N/A | BH142: N/A | BI142: N/A | BJ142: N/A | BK142: N/A | BL142: N/A | BM142: N/A | BN142: N/A | BO142: N/A | BP142: N/A | BQ142: N/A | BR142: N/A | BS142: N/A | BT142: N/A
B143: Emptied and removed offsite | C143: N/A | D143: N/A | E143: N/A | F143: N/A | G143: N/A | H143: N/A | I143: N/A | J143: N/A | K143: N/A | L143: N/A | M143: N/A | N143: N/A | O143: N/A | P143: N/A | Q143: N/A | R143: N/A | S143: N/A | T143: N/A | BB143: Emptied and removed offsite | BC143: N/A | BD143: N/A | BE143: N/A | BF143: N/A | BG143: N/A | BH143: N/A | BI143: N/A | BJ143: N/A | BK143: N/A | BL143: N/A | BM143: N/A | BN143: N/A | BO143: N/A | BP143: N/A | BQ143: N/A | BR143: N/A | BS143: N/A | BT143: N/A
A144: Latrine emptying practices | B144: Not emptied/treated and disposed in situ | C144: N/A | D144: N/A | E144: N/A | F144: N/A | G144: N/A | H144: N/A | I144: N/A | J144: N/A | K144: N/A | L144: N/A | M144: N/A | N144: N/A | O144: N/A | P144: N/A | Q144: N/A | R144: N/A | S144: N/A | T144: N/A | BA144: Latrine emptying practices | BB144: Not emptied/treated and disposed in situ | BC144: N/A | BD144: N/A | BE144: N/A | BF144: N/A | BG144: N/A | BH144: N/A | BI144: N/A | BJ144: N/A | BK144: N/A | BL144: N/A | BM144: N/A | BN144: N/A | BO144: N/A | BP144: N/A | BQ144: N/A | BR144: N/A | BS144: N/A | BT144: N/A
B145: Emptied and buried on site | C145: N/A | D145: N/A | E145: N/A | F145: N/A | G145: N/A | H145: N/A | I145: N/A | J145: N/A | K145: N/A | L145: N/A | M145: N/A | N145: N/A | O145: N/A | P145: N/A | Q145: N/A | R145: N/A | S145: N/A | T145: N/A | BB145: Emptied and buried on site | BC145: N/A | BD145: N/A | BE145: N/A | BF145: N/A | BG145: N/A | BH145: N/A | BI145: N/A | BJ145: N/A | BK145: N/A | BL145: N/A | BM145: N/A | BN145: N/A | BO145: N/A | BP145: N/A | BQ145: N/A | BR145: N/A | BS145: N/A | BT145: N/A
B146: Emptied and discharged locally | C146: N/A | D146: N/A | E146: N/A | F146: N/A | G146: N/A | H146: N/A | I146: N/A | J146: N/A | K146: N/A | L146: N/A | M146: N/A | N146: N/A | O146: N/A | P146: N/A | Q146: N/A | R146: N/A | S146: N/A | T146: N/A | BB146: Emptied and discharged locally | BC146: N/A | BD146: N/A | BE146: N/A | BF146: N/A | BG146: N/A | BH146: N/A | BI146: N/A | BJ146: N/A | BK146: N/A | BL146: N/A | BM146: N/A | BN146: N/A | BO146: N/A | BP146: N/A | BQ146: N/A | BR146: N/A | BS146: N/A | BT146: N/A
B147: Emptied and removed offsite | C147: N/A | D147: N/A | E147: N/A | F147: N/A | G147: N/A | H147: N/A | I147: N/A | J147: N/A | K147: N/A | L147: N/A | M147: N/A | N147: N/A | O147: N/A | P147: N/A | Q147: N/A | R147: N/A | S147: N/A | T147: N/A | BB147: Emptied and removed offsite | BC147: N/A | BD147: N/A | BE147: N/A | BF147: N/A | BG147: N/A | BH147: N/A | BI147: N/A | BJ147: N/A | BK147: N/A | BL147: N/A | BM147: N/A | BN147: N/A | BO147: N/A | BP147: N/A | BQ147: N/A | BR147: N/A | BS147: N/A | BT147: N/A
A148: Shared among improved sanitation facilities | B148: Yes | C148: 2.115016193 | D148: 0.00874576064 | E148: 0.1726638631 | F148: 0.7424531479 | G148: 0.115128637 | H148: 2.490605204 | I148: 0.2026288238 | J148: 0 | K148: 1.501143446 | L148: 0 | M148: 1.568869897 | N148: 0.09750580456 | O148: 0 | P148: 0.1360703279 | Q148: 0.1021088873 | R148: 0.4568225917 | S148: 0.5242642141 | T148: 1.141940085 | BA148: Shared among improved sanitation facilities | BB148: Yes | BC148: N/A | BD148: N/A | BE148: N/A | BF148: N/A | BG148: N/A | BH148: N/A | BI148: N/A | BJ148: N/A | BK148: N/A | BL148: N/A | BM148: N/A | BN148: N/A | BO148: N/A | BP148: N/A | BQ148: N/A | BR148: N/A | BS148: N/A | BT148: N/A
B149: No | C149: 93.03399582 | D149: 98.03529027 | E149: 99.04066912 | F149: 98.49295867 | G149: 99.41032608 | H149: 96.95085902 | I149: 99.34937761 | J149: 99.20668284 | K149: 98.08994033 | L149: 99.85803134 | M149: 90.8783297 | N149: 95.82632416 | O149: 97.25177559 | P149: 98.56225323 | Q149: 98.78214564 | R149: 99.21578459 | S149: 96.66803562 | T149: 98.03118966 | BB149: No | BC149: N/A | BD149: N/A | BE149: N/A | BF149: N/A | BG149: N/A | BH149: N/A | BI149: N/A | BJ149: N/A | BK149: N/A | BL149: N/A | BM149: N/A | BN149: N/A | BO149: N/A | BP149: N/A | BQ149: N/A | BR149: N/A | BS149: N/A | BT149: N/A
B150: DK/missing | C150: 4.850987986 | D150: 1.955963966 | E150: 0.7866670175 | F150: 0.7645881809 | G150: 0.474545281 | H150: 0.5585357752 | I150: 0.4479935688 | J150: 0.7933171581 | K150: 0.4089162204 | L150: 0.1419686573 | M150: 7.552800398 | N150: 4.076170032 | O150: 2.748224406 | P150: 1.301676444 | Q150: 1.115745475 | R150: 0.3273928178 | S150: 2.807700168 | T150: 0.8268702539 | BB150: DK/missing | BC150: N/A | BD150: N/A | BE150: N/A | BF150: N/A | BG150: N/A | BH150: N/A | BI150: N/A | BJ150: N/A | BK150: N/A | BL150: N/A | BM150: N/A | BN150: N/A | BO150: N/A | BP150: N/A | BQ150: N/A | BR150: N/A | BS150: N/A | BT150: N/A
A151: Shared among all sanitation facilities | B151: Yes | C151: 2.118837612 | D151: 0.1138749403 | E151: 0.2196153459 | F151: 0.7424531479 | G151: 0.115128637 | H151: 2.496514713 | I151: 0.2880162196 | J151: 0 | K151: 1.501143446 | L151: 0 | M151: 1.570605896 | N151: 0.09750580456 | O151: 0.2346423921 | P151: 0.1360703279 | Q151: 0.1021088873 | R151: 0.4569979493 | S151: 0.5635168125 | T151: 1.188624037 | BA151: Shared among all sanitation facilities | BB151: Yes | BC151: N/A | BD151: N/A | BE151: N/A | BF151: N/A | BG151: N/A | BH151: N/A | BI151: N/A | BJ151: N/A | BK151: N/A | BL151: N/A | BM151: N/A | BN151: N/A | BO151: N/A | BP151: N/A | BQ151: N/A | BR151: N/A | BS151: N/A | BT151: N/A
B152: No | C152: 97.81193381 | D152: 99.75655867 | E152: 99.78038465 | F152: 98.67650838 | G152: 99.83209515 | H152: 97.43398815 | I152: 99.71198378 | J152: 99.36679937 | K152: 98.18466369 | L152: 99.90597476 | M152: 98.4293941 | N152: 99.57667721 | O152: 99.73342326 | P152: 99.86392967 | Q152: 99.76107429 | R152: 99.48380061 | S152: 99.23910109 | T152: 98.58977899 | BB152: No | BC152: N/A | BD152: N/A | BE152: N/A | BF152: N/A | BG152: N/A | BH152: N/A | BI152: N/A | BJ152: N/A | BK152: N/A | BL152: N/A | BM152: N/A | BN152: N/A | BO152: N/A | BP152: N/A | BQ152: N/A | BR152: N/A | BS152: N/A | BT152: N/A
A153: Type of toilet facility | B153: Flush to piped sewer system | C153: 23.02218868 | D153: 43.35566136 | E153: 55.20096787 | F153: 74.25528066 | G153: 78.94296895 | H153: 70.51939616 | I153: 84.91973898 | J153: 90.32721875 | K153: 90.58704427 | L153: 90.95109478 | M153: 7.481678733 | N153: 15.43643307 | O153: 18.62941193 | P153: 18.86160494 | Q153: 27.16295999 | R153: 46.42571651 | S153: 52.16491737 | T153: 73.41731972 | BA153: Type of toilet facility | BB153: Flush to piped sewer system | BC153: 961.7685631 | BD153: 1812.375403 | BE153: 2301.16631 | BF153: 3095.886825 | BG153: 3298.397954 | BH153: 1626.500825 | BI153: 1946.549754 | BJ153: 2079.547295 | BK153: 2042.887599 | BL153: 2133.001969 | BM153: 140.4415525 | BN153: 289.279456 | BO153: 348.9139136 | BP153: 353.9082804 | BQ153: 508.5644113 | BR153: 2510.309205 | BS153: 5881.194251 | BT153: 3078.091599
B154: Flush to septic tank | C154: 53.33916217 | D154: 52.06214971 | E154: 42.86153937 | F154: 25.56116963 | G154: 20.40278284 | H154: 23.10301981 | I154: 14.18071293 | J154: 9.512664719 | K154: 9.318232376 | L154: 8.695609469 | M154: 57.03525966 | N154: 72.96595296 | O154: 73.61437468 | P154: 77.84860174 | Q154: 71.62996788 | R154: 49.16328666 | S154: 39.48323745 | T154: 23.84667379 | BB154: Flush to septic tank | BC154: 2228.282032 | BD154: 2176.328456 | BE154: 1786.771758 | BF154: 1065.708561 | BG154: 852.4698028 | BH154: 532.8616357 | BI154: 325.0535577 | BJ154: 219.0041546 | BK154: 210.1415442 | BL154: 203.9310485 | BM154: 1070.631432 | BN154: 1367.385268 | BO154: 1378.738076 | BP154: 1460.706279 | BQ154: 1341.107613 | BR154: 2658.333793 | BS154: 4451.432128 | BT154: 999.794688
B155: Flush to pit (latrine) | C155: 2.235958031 | D155: 0.4824802675 | E155: 0.2352654289 | F155: 0 | G155: 0.06108539942 | H155: 0.384304888 | I155: 0 | J155: 0 | K155: 0 | L155: 0 | M155: 2.577600735 | N155: 1.929545198 | O155: 1.07686871 | P155: 0.5226938007 | Q155: 0.1363195498 | R155: 0.0829208403 | S155: 0.9881278182 | T155: 0.239707278 | BB155: Flush to pit (latrine) | BC155: 93.40876199 | BD155: 20.16888549 | BE155: 9.807525116 | BF155: 0 | BG155: 2.552272345 | BH155: 8.863833943 | BI155: 0 | BJ155: 0 | BK155: 0 | BL155: 0 | BM155: 48.38516351 | BN155: 36.15976454 | BO155: 20.16888549 | BP155: 9.807525116 | BQ155: 2.552272345 | BR155: 4.483656136 | BS155: 111.4038311 | BT155: 10.04995771
B156: Flush to somewhere else | C156: 4.256964242 | D156: 1.826397575 | E156: 0.7397155348 | F156: 0.09051469048 | G156: 0.344183423 | H156: 0.2524927729 | I156: 0.362606173 | J156: 0 | K156: 0.04176847278 | L156: 0 | M156: 6.675439655 | N156: 3.75035305 | O156: 2.71629006 | P156: 1.301676444 | Q156: 0.9193386832 | R156: 0.1336877317 | S156: 2.471543983 | T156: 0.4126433586 | BB156: Flush to somewhere else | BC156: 177.8377564 | BD156: 76.34800016 | BE156: 30.83656924 | BF156: 3.773781948 | BG156: 14.3806841 | BH156: 5.823641804 | BI156: 8.311741951 | BJ156: 0 | BK156: 0.9419481092 | BL156: 0 | BM156: 125.3073197 | BN156: 70.28178629 | BO156: 50.87392982 | BP156: 24.42390631 | BQ156: 17.21251794 | BR156: 7.228699279 | BS156: 278.6476237 | BT156: 17.30046889
B157: Flush to unknown place / Not sure / DK where | C157: 0.2162781577 | D157: 0.2100630732 | E157: 0.2147302702 | F157: 0 | G157: 0.1713937478 | H157: 0.5592776443 | I157: 0.4287896798 | J157: 0 | K157: 0 | L157: 0.3053523361 | M157: 0.1367834047 | N157: 0 | O157: 0.07858718952 | P157: 0 | Q157: 0 | R157: 0 | S157: 0.2781686258 | T157: 0.06124166109 | BB157: Flush to unknown place / Not sure / DK where | BC157: 9.035176276 | BD157: 8.781163404 | BE157: 8.951474631 | BF157: 0 | BG157: 7.161179705 | BH157: 12.8995085 | BI157: 9.82881549 | BJ157: 0 | BK157: 0 | BL157: 7.161179705 | BM157: 2.567615424 | BN157: 0 | BO157: 1.471874902 | BP157: 0 | BQ157: 0 | BR157: 0 | BS157: 31.36137859 | BT157: 2.567615424
B158: Ventilated Improved Pit latrine (VIP) | C158: 1.369329994 | D158: 0.07457467949 | E158: 0 | F158: 0 | G158: 0 | H158: 0.05468285263 | I158: 0 | J158: 0 | K158: 0 | L158: 0 | M158: 1.776659578 | N158: 1.371957236 | O158: 0 | P158: 0 | Q158: 0 | R158: 0.03041416169 | S158: 0.5204577474 | T158: 0 | BB158: Ventilated Improved Pit latrine (VIP) | BC158: 57.20474971 | BD158: 3.117408674 | BE158: 0 | BF158: 0 | BG158: 0 | BH158: 1.261237472 | BI158: 0 | BJ158: 0 | BK158: 0 | BL158: 0 | BM158: 33.35038007 | BN158: 25.71054084 | BO158: 0 | BP158: 0 | BQ158: 0 | BR158: 1.644540048 | BS158: 58.67761833 | BT158: 0
B159: Pit latrine with slab | C159: 15.03519871 | D159: 1.988673339 | E159: 0.7008300417 | F159: 0 | G159: 0 | H159: 4.890115497 | I159: 0.02276484059 | J159: 0 | K159: 0 | L159: 0 | M159: 23.43921749 | N159: 4.54575848 | O159: 3.884467435 | P159: 1.465423071 | Q159: 0.09182393571 | R159: 4.029447739 | S159: 3.954677326 | T159: 1.829784274 | BB159: Pit latrine with slab | BC159: 628.1062877 | BD159: 83.13153418 | BE159: 29.21554718 | BF159: 0 | BG159: 0 | BH159: 112.7884997 | BI159: 0.5218209028 | BJ159: 0 | BK159: 0 | BL159: 0 | BM159: 439.986828 | BN159: 85.18772011 | BO159: 72.75295323 | BP159: 27.49635362 | BQ159: 1.719193557 | BR159: 217.8783767 | BS159: 445.8595303 | BT159: 76.71546203
B160: Pit latrine without slab / Open pit | C160: 0.3445655234 | D160: 0 | E160: 0 | F160: 0 | G160: 0 | H160: 0 | I160: 0 | J160: 0 | K160: 0 | L160: 0 | M160: 0.7668302258 | N160: 0 | O160: 0 | P160: 0 | Q160: 0 | R160: 0.09615473633 | S160: 0.08155978967 | T160: 0 | BB160: Pit latrine without slab / Open pit | BC160: 14.39447365 | BD160: 0 | BE160: 0 | BF160: 0 | BG160: 0 | BH160: 0 | BI160: 0 | BJ160: 0 | BK160: 0 | BL160: 0 | BM160: 14.39447365 | BN160: 0 | BO160: 0 | BP160: 0 | BQ160: 0 | BR160: 5.199233052 | BS160: 9.1952406 | BT160: 0
B161: No facility, Bush, Field | C161: 0.1803544945 | D161: 0 | E161: 0 | F161: 0 | G161: 0 | H161: 0.2367103714 | I161: 0 | J161: 0 | K161: 0 | L161: 0 | M161: 0.110530517 | N161: 0 | O161: 0 | P161: 0 | Q161: 0 | R161: 0.03837162259 | S161: 0.04842570919 | T161: 0 | BB161: No facility, Bush, Field | BC161: 7.534439294 | BD161: 0 | BE161: 0 | BF161: 0 | BG161: 0 | BH161: 5.459627214 | BI161: 0 | BJ161: 0 | BK161: 0 | BL161: 0 | BM161: 2.074812079 | BN161: 0 | BO161: 0 | BP161: 0 | BQ161: 0 | BR161: 2.074812079 | BS161: 5.459627214 | BT161: 0
B162: Other | C162: 0 | D162: 0 | E162: 0 | F162: 0 | G162: 0.01335126481 | H162: 0 | I162: 0 | J162: 0 | K162: 0 | L162: 0 | M162: 0 | N162: 0 | O162: 0 | P162: 0 | Q162: 0.02979498254 | R162: 0 | S162: 0 | T162: 0.01330543239 | BB162: Other | BC162: 0 | BD162: 0 | BE162: 0 | BF162: 0 | BG162: 0.5578430244 | BH162: 0 | BI162: 0 | BJ162: 0 | BK162: 0 | BL162: 0 | BM162: 0 | BN162: 0 | BO162: 0 | BP162: 0 | BQ162: 0.5578430244 | BR162: 0 | BS162: 0 | BT162: 0.5578430244
B163: Missing | C163: 0 | D163: 0 | E163: 0.04695148276 | F163: 0.09303502039 | G163: 0.06423438423 | H163: 0 | I163: 0.08538739582 | J163: 0.1601165291 | K163: 0.05295487981 | L163: 0.04794341501 | M163: 0 | N163: 0 | O163: 0 | P163: 0 | Q163: 0.02979498254 | R163: 0 | S163: 0.008884173814 | T163: 0.1793244846 | BB163: Missing | BC163: 0 | BD163: 0 | BE163: 1.957269492 | BF163: 3.878860753 | BG163: 2.683843341 | BH163: 0 | BI163: 1.957269492 | BJ163: 3.686263115 | BK163: 1.19422008 | BL163: 1.124377874 | BM163: 0 | BN163: 0 | BO163: 0 | BP163: 0 | BQ163: 0.5578430244 | BR163: 0 | BS163: 1.001622443 | BT163: 7.518351143
BB164: Total | BC164: 4177.57224 | BD164: 4180.250851 | BE164: 4168.706454 | BF164: 4169.248028 | BG164: 4178.20358 | BH164: 2306.458809 | BI164: 2292.22296 | BJ164: 2302.237712 | BK164: 2255.165311 | BL164: 2345.218575 | BM164: 1877.139576 | BN164: 1874.004536 | BO164: 1872.919633 | BP164: 1876.342345 | BQ164: 1872.271694 | BR164: 5407.152316 | BS164: 11274.23285 | BT164: 4192.595985
A208: =A1026 -> Serbia
A209: =A1034 -> 2010
A210: Access to hygiene facilities
A211: by wealth quintile and sub-national region
A212: Notes:
A213: WHO/UNICEF JMP customised wealth index excludes water,
A214: sanitation and hygiene assets.
A215: Survey used for analysis: | B215: =A1025 -> MICS10
A220: Access to handwashing | C220: NATIONAL wealth index quintile | H220: URBAN wealth index quintile | M220: RURAL wealth index quintile | R220: SUB-REGIONS: | BA220: Raw numbers of respondents: | BB220: Access to handwashing | BC220: NATIONAL wealth index quintile | BH220: URBAN wealth index quintile | BM220: RURAL wealth index quintile | BR220: SUB-REGIONS:
A221: Weighted percentage (used in graphs) | C221: Poorest | D221: Poor | E221: Middle | F221: Rich | G221: Richest | H221: Poorest | I221: Poor | J221: Middle | K221: Rich | L221: Richest | M221: Poorest | N221: Poor | O221: Middle | P221: Rich | Q221: Richest | R221: AP Vojvodina | S221: Central Serbia without Belgrade | T221: City of Belgrade | BA221: Hygiene data, raw numbers (weighted) | BC221: Poorest | BD221: Poor | BE221: Middle | BF221: Rich | BG221: Richest | BH221: Poorest | BI221: Poor | BJ221: Middle | BK221: Rich | BL221: Richest | BM221: Poorest | BN221: Poor | BO221: Middle | BP221: Rich | BQ221: Richest | BR221: AP Vojvodina | BS221: Central Serbia without Belgrade | BT221: City of Belgrade
A222: Hygiene ladder | B222: Basic | C222: 95.28788703 | D222: 98.73110754 | E222: 99.15563029 | F222: 97.8150953 | G222: 97.82911658 | H222: 96.44234645 | I222: 98.6721219 | J222: 98.49297347 | K222: 98.37108275 | L222: 97.61960513 | M222: 94.21321009 | N222: 98.8226205 | O222: 98.50956628 | P222: 99.26899501 | Q222: 97.08692116 | R222: 97.58648125 | S222: 97.99124844 | T222: 97.40081988 | BA222: Hygiene ladder | BB222: Basic | BC222: 3906.666724 | BD222: 4101.364608 | BE222: 4103.513663 | BF222: 4049.018322 | BG222: 4011.768869 | BH222: 2181.807382 | BI222: 2236.811477 | BJ222: 2246.017012 | BK222: 2172.85199 | BL222: 2247.966513 | BM222: 1738.148111 | BN222: 1838.473821 | BO222: 1834.670286 | BP222: 1861.441551 | BQ222: 1814.144042 | BR222: 5157.649877 | BS222: 10979.62676 | BT222: 4035.055553
B223: Limited | C223: 1.946996079 | D223: 0.8686087413 | E223: 0.331220813 | F223: 0.6768814367 | G223: 0.3236991307 | H223: 1.134483026 | I223: 0.3967127285 | J223: 0.4367052985 | K223: 0.3124467142 | L223: 0.5003302858 | M223: 2.675760054 | N223: 0.7643830434 | O223: 0.9483588484 | P223: 0.7310049945 | Q223: 0.6910062463 | R223: 1.654080098 | S223: 0.5612584605 | T223: 0.4972246206 | BB223: Limited | BC223: 79.82404721 | BD223: 36.08266167 | BE223: 13.70743273 | BF223: 28.01924724 | BG223: 13.27422899 | BH223: 25.66531748 | BI223: 8.993133694 | BJ223: 9.958553336 | BK223: 6.90142312 | BL223: 11.52151483 | BM223: 49.36534142 | BN223: 14.22041034 | BO223: 17.66250594 | BP223: 13.70743273 | BQ223: 12.91198495 | BR223: 87.4215968 | BS223: 62.88733441 | BT223: 20.59868663
B224: No facility | C224: 2.765116887 | D224: 0.4002837148 | E224: 0.5131488991 | F224: 1.508023267 | G224: 1.847184292 | H224: 2.423170521 | I224: 0.9311653743 | J224: 1.070321227 | K224: 1.316470539 | L224: 1.880064587 | M224: 3.111029855 | N224: 0.4129964562 | O224: 0.5420748713 | P224: 0 | Q224: 2.222072591 | R224: 0.7594386486 | S224: 1.447493102 | T224: 2.101955503 | BB224: No facility | BC224: 113.3658271 | BD224: 16.62808715 | BE224: 21.23644933 | BF224: 62.42404427 | BG224: 75.74919101 | BH224: 54.81919017 | BI224: 21.10871192 | BJ224: 24.40742319 | BK224: 29.07862301 | BL224: 43.29378539 | BM224: 57.39567371 | BN224: 7.683293249 | BO224: 10.09575716 | BP224: 0 | BQ224: 41.5211411 | BR224: 40.13792282 | BS224: 162.1872795 | BT224: 87.07839663
A225: Place where household members most often wash their hands | B225: Observed | C225: 95.4260164 | D225: 98.97605232 | E225: 98.76495602 | F225: 97.78831918 | G225: 96.33429826 | H225: 95.70830793 | I225: 97.97496359 | J225: 97.99055733 | K225: 96.6560368 | L225: 96.34445389 | M225: 95.22538839 | N225: 98.86284668 | O225: 98.90081557 | P225: 99.93639961 | Q225: 97.58498367 | R225: 97.00247317 | S225: 97.94470484 | T225: 96.73372426 | BA225: Observed handwashing place | BB225: Fixed | BC225: N/A | BD225: N/A | BE225: N/A | BF225: N/A | BG225: N/A | BH225: N/A | BI225: N/A | BJ225: N/A | BK225: N/A | BL225: N/A | BM225: N/A | BN225: N/A | BO225: N/A | BP225: N/A | BQ225: N/A | BR225: N/A | BS225: N/A | BT225: N/A
B226: Not in dwelling/plot/yard | C226: 1.421663385 | D226: 0.1708478944 | E226: 0.3760342363 | F226: 0.8568154734 | G226: 0.6232765297 | H226: 0.5594276539 | I226: 0.678294666 | J226: 0.09767217026 | K226: 0.5389473961 | L226: 0.9365091609 | M226: 2.096877355 | N226: 0.4099933112 | O226: 0.3516066037 | P226: 0 | Q226: 1.363385182 | R226: 0.3888391218 | S226: 0.9271138787 | T226: 0.4394192152 | BB226: Mobile | BC226: N/A | BD226: N/A | BE226: N/A | BF226: N/A | BG226: N/A | BH226: N/A | BI226: N/A | BJ226: N/A | BK226: N/A | BL226: N/A | BM226: N/A | BN226: N/A | BO226: N/A | BP226: N/A | BQ226: N/A | BR226: N/A | BS226: N/A | BT226: N/A
B227: Not permitted | C227: 1.816011436 | D227: 0.5979000485 | E227: 0.725618586 | F227: 0.6758005273 | G227: 1.700066957 | H227: 1.863685879 | I227: 1.104152524 | J227: 0.9492818067 | K227: 2.054540072 | L227: 1.537499728 | M227: 1.618419779 | N227: 0.727160007 | O227: 0.5601459643 | P227: 0.0636003908 | Q227: 0.1113039129 | R227: 2.220992848 | S227: 0.6167291697 | T227: 0.9705664513 | BA227: Water / Soap | BB227: Water and soap | BC227: N/A | BD227: N/A | BE227: N/A | BF227: N/A | BG227: N/A | BH227: N/A | BI227: N/A | BJ227: N/A | BK227: N/A | BL227: N/A | BM227: N/A | BN227: N/A | BO227: N/A | BP227: N/A | BQ227: N/A | BR227: N/A | BS227: N/A | BT227: N/A
B228: Other reason | C228: 1.292013858 | D228: 0.2269293622 | E228: 0.1333911589 | F228: 0.6404340031 | G228: 1.189684222 | H228: 1.817341008 | I228: 0.2425892223 | J228: 0.9624886925 | K228: 0.7504757279 | L228: 0.9095356323 | M228: 0.960736178 | N228: 0 | O228: 0.1874318571 | P228: 0 | Q228: 0.8543026259 | R228: 0.3534725513 | S228: 0.5114521115 | T228: 1.637537328 | BB228: Water only | BC228: N/A | BD228: N/A | BE228: N/A | BF228: N/A | BG228: N/A | BH228: N/A | BI228: N/A | BJ228: N/A | BK228: N/A | BL228: N/A | BM228: N/A | BN228: N/A | BO228: N/A | BP228: N/A | BQ228: N/A | BR228: N/A | BS228: N/A | BT228: N/A
B229: Missing | C229: 0.04429492112 | D229: 0.02827037489 | E229: 0 | F229: 0.03863081389 | G229: 0.1526740328 | H229: 0.05123753271 | I229: 0 | J229: 0 | K229: 0 | L229: 0.2720015939 | M229: 0.09857830242 | N229: 0 | O229: 0 | P229: 0 | Q229: 0.08602461123 | R229: 0.03422230817 | S229: 0 | T229: 0.2187527481 | BB229: Soap only | BC229: N/A | BD229: N/A | BE229: N/A | BF229: N/A | BG229: N/A | BH229: N/A | BI229: N/A | BJ229: N/A | BK229: N/A | BL229: N/A | BM229: N/A | BN229: N/A | BO229: N/A | BP229: N/A | BQ229: N/A | BR229: N/A | BS229: N/A | BT229: N/A
BB230: Neither | BC230: N/A | BD230: N/A | BE230: N/A | BF230: N/A | BG230: N/A | BH230: N/A | BI230: N/A | BJ230: N/A | BK230: N/A | BL230: N/A | BM230: N/A | BN230: N/A | BO230: N/A | BP230: N/A | BQ230: N/A | BR230: N/A | BS230: N/A | BT230: N/A
BA231: Place where household members most often wash their hands | BB231: Observed | BC231: 3986.490771 | BD231: 4137.44727 | BE231: 4117.221096 | BF231: 4077.037569 | BG231: 4025.043098 | BH231: 2207.4727 | BI231: 2245.80461 | BJ231: 2255.975565 | BK231: 2179.753413 | BL231: 2259.488028 | BM231: 1787.513452 | BN231: 1852.694231 | BO231: 1852.332792 | BP231: 1875.148984 | BQ231: 1827.056027 | BR231: 5245.071474 | BS231: 11042.51409 | BT231: 4055.65424
BB232: Not in dwelling/plot/yard | BC232: 59.3910149 | BD232: 7.141870561 | BE232: 15.67576348 | BF232: 35.72276223 | BG232: 26.04176227 | BH232: 12.90296841 | BI232: 15.54802607 | BJ232: 2.248645538 | BK232: 12.15415472 | BL232: 21.9631868 | BM232: 39.36131469 | BN232: 7.683293249 | BO232: 6.585309112 | BP232: 0 | BQ232: 25.52627485 | BR232: 21.02512358 | BS232: 104.5249775 | BT232: 18.42307238
BB233: Not permitted | BC233: 75.86518964 | BD233: 24.99372187 | BE233: 30.24890883 | BF233: 28.17580016 | BG233: 71.03225844 | BH233: 42.98514713 | BI233: 25.30963767 | BJ233: 21.85472375 | BK233: 46.33327501 | BL233: 36.0577292 | BM233: 30.37999819 | BN233: 13.62701152 | BO233: 10.49108374 | BP233: 1.193361064 | BQ233: 2.083911656 | BR233: 120.0924662 | BS233: 69.53148265 | BT233: 40.69193007
BB234: Other reason | BC234: 53.97481225 | BD234: 9.486216593 | BE234: 5.560685851 | BF234: 26.70128204 | BG234: 49.70742874 | BH234: 41.91622177 | BI234: 5.560685851 | BJ234: 22.15877765 | BK234: 16.92446829 | BL234: 21.33059859 | BM234: 18.03435902 | BN234: 0 | BO234: 3.51044805 | BP234: 0 | BQ234: 15.99486625 | BR234: 19.11279924 | BS234: 57.66230198 | BT234: 68.65532425
BB235: Missing | BC235: 1.850452328 | BD235: 1.181772587 | BE235: 0 | BF235: 1.610614446 | BG235: 6.379031903 | BH235: 1.181772587 | BI235: 0 | BJ235: 0 | BK235: 0 | BL235: 6.379031903 | BM235: 1.850452328 | BN235: 0 | BO235: 0 | BP235: 0 | BQ235: 1.610614446 | BR235: 1.850452328 | BS235: 0 | BT235: 9.171418936
BB236: Total | BC236: 4177.57224 | BD236: 4180.250851 | BE236: 4168.706454 | BF236: 4169.248028 | BG236: 4178.20358 | BH236: 2306.458809 | BI236: 2292.22296 | BJ236: 2302.237712 | BK236: 2255.165311 | BL236: 2345.218575 | BM236: 1877.139576 | BN236: 1874.004536 | BO236: 1872.919633 | BP236: 1876.342345 | BQ236: 1872.271694 | BR236: 5407.152316 | BS236: 11274.23285 | BT236: 4192.595985
BA259: Raw numbers of respondents: | BB259: Menstrual health and hygiene | BC259: NATIONAL wealth index quintile | BH259: URBAN wealth index quintile | BM259: RURAL wealth index quintile | BR259: SUB-REGIONS:
BA260: MHH data, raw numbers (weighted) | BC260: Poorest | BD260: Poor | BE260: Middle | BF260: Rich | BG260: Richest | BH260: Poorest | BI260: Poor | BJ260: Middle | BK260: Rich | BL260: Richest | BM260: Poorest | BN260: Poor | BO260: Middle | BP260: Rich | BQ260: Richest | BR260: AP Vojvodina | BS260: Central Serbia without Belgrade | BT260: City of Belgrade
BA261: Private place to wash and change | BB261: Yes | BC261: N/A | BD261: N/A | BE261: N/A | BF261: N/A | BG261: N/A | BH261: N/A | BI261: N/A | BJ261: N/A | BK261: N/A | BL261: N/A | BM261: N/A | BN261: N/A | BO261: N/A | BP261: N/A | BQ261: N/A | BR261: N/A | BS261: N/A | BT261: N/A
BB262: No | BC262: N/A | BD262: N/A | BE262: N/A | BF262: N/A | BG262: N/A | BH262: N/A | BI262: N/A | BJ262: N/A | BK262: N/A | BL262: N/A | BM262: N/A | BN262: N/A | BO262: N/A | BP262: N/A | BQ262: N/A | BR262: N/A | BS262: N/A | BT262: N/A
BB263: DK/not sure/missing | BC263: N/A | BD263: N/A | BE263: N/A | BF263: N/A | BG263: N/A | BH263: N/A | BI263: N/A | BJ263: N/A | BK263: N/A | BL263: N/A | BM263: N/A | BN263: N/A | BO263: N/A | BP263: N/A | BQ263: N/A | BR263: N/A | BS263: N/A | BT263: N/A
BA264: Use of menstrual materials | BB264: Materials reusable | BC264: N/A | BD264: N/A | BE264: N/A | BF264: N/A | BG264: N/A | BH264: N/A | BI264: N/A | BJ264: N/A | BK264: N/A | BL264: N/A | BM264: N/A | BN264: N/A | BO264: N/A | BP264: N/A | BQ264: N/A | BR264: N/A | BS264: N/A | BT264: N/A
BB265: Materials not reusable | BC265: N/A | BD265: N/A | BE265: N/A | BF265: N/A | BG265: N/A | BH265: N/A | BI265: N/A | BJ265: N/A | BK265: N/A | BL265: N/A | BM265: N/A | BN265: N/A | BO265: N/A | BP265: N/A | BQ265: N/A | BR265: N/A | BS265: N/A | BT265: N/A
BB266: No materials used | BC266: N/A | BD266: N/A | BE266: N/A | BF266: N/A | BG266: N/A | BH266: N/A | BI266: N/A | BJ266: N/A | BK266: N/A | BL266: N/A | BM266: N/A | BN266: N/A | BO266: N/A | BP266: N/A | BQ266: N/A | BR266: N/A | BS266: N/A | BT266: N/A
BB267: DK/not sure/missing | BC267: N/A | BD267: N/A | BE267: N/A | BF267: N/A | BG267: N/A | BH267: N/A | BI267: N/A | BJ267: N/A | BK267: N/A | BL267: N/A | BM267: N/A | BN267: N/A | BO267: N/A | BP267: N/A | BQ267: N/A | BR267: N/A | BS267: N/A | BT267: N/A
BA268: Use of menstrual materials with private place to wash and change | BB268: Materials reusable | BC268: N/A | BD268: N/A | BE268: N/A | BF268: N/A | BG268: N/A | BH268: N/A | BI268: N/A | BJ268: N/A | BK268: N/A | BL268: N/A | BM268: N/A | BN268: N/A | BO268: N/A | BP268: N/A | BQ268: N/A | BR268: N/A | BS268: N/A | BT268: N/A
BB269: Materials not reusable | BC269: N/A | BD269: N/A | BE269: N/A | BF269: N/A | BG269: N/A | BH269: N/A | BI269: N/A | BJ269: N/A | BK269: N/A | BL269: N/A | BM269: N/A | BN269: N/A | BO269: N/A | BP269: N/A | BQ269: N/A | BR269: N/A | BS269: N/A | BT269: N/A
BB270: No materials used | BC270: N/A | BD270: N/A | BE270: N/A | BF270: N/A | BG270: N/A | BH270: N/A | BI270: N/A | BJ270: N/A | BK270: N/A | BL270: N/A | BM270: N/A | BN270: N/A | BO270: N/A | BP270: N/A | BQ270: N/A | BR270: N/A | BS270: N/A | BT270: N/A
BA271: Awareness of menstruation before menarche | BB271: Yes | BC271: N/A | BD271: N/A | BE271: N/A | BF271: N/A | BG271: N/A | BH271: N/A | BI271: N/A | BJ271: N/A | BK271: N/A | BL271: N/A | BM271: N/A | BN271: N/A | BO271: N/A | BP271: N/A | BQ271: N/A | BR271: N/A | BS271: N/A | BT271: N/A
BB272: No | BC272: N/A | BD272: N/A | BE272: N/A | BF272: N/A | BG272: N/A | BH272: N/A | BI272: N/A | BJ272: N/A | BK272: N/A | BL272: N/A | BM272: N/A | BN272: N/A | BO272: N/A | BP272: N/A | BQ272: N/A | BR272: N/A | BS272: N/A | BT272: N/A
BB273: DK/not sure/missing | BC273: N/A | BD273: N/A | BE273: N/A | BF273: N/A | BG273: N/A | BH273: N/A | BI273: N/A | BJ273: N/A | BK273: N/A | BL273: N/A | BM273: N/A | BN273: N/A | BO273: N/A | BP273: N/A | BQ273: N/A | BR273: N/A | BS273: N/A | BT273: N/A
BA274: Participation in (all) activities during menstruation | BB274: Yes | BC274: N/A | BD274: N/A | BE274: N/A | BF274: N/A | BG274: N/A | BH274: N/A | BI274: N/A | BJ274: N/A | BK274: N/A | BL274: N/A | BM274: N/A | BN274: N/A | BO274: N/A | BP274: N/A | BQ274: N/A | BR274: N/A | BS274: N/A | BT274: N/A
BB275: No | BC275: N/A | BD275: N/A | BE275: N/A | BF275: N/A | BG275: N/A | BH275: N/A | BI275: N/A | BJ275: N/A | BK275: N/A | BL275: N/A | BM275: N/A | BN275: N/A | BO275: N/A | BP275: N/A | BQ275: N/A | BR275: N/A | BS275: N/A | BT275: N/A
BB276: DK/not sure/missing/no such activity | BC276: N/A | BD276: N/A | BE276: N/A | BF276: N/A | BG276: N/A | BH276: N/A | BI276: N/A | BJ276: N/A | BK276: N/A | BL276: N/A | BM276: N/A | BN276: N/A | BO276: N/A | BP276: N/A | BQ276: N/A | BR276: N/A | BS276: N/A | BT276: N/A
BA277: Participation in specific activities during menstruation | BB277: Did not go to school (amongst those usually attending school) | BC277: N/A | BD277: N/A | BE277: N/A | BF277: N/A | BG277: N/A | BH277: N/A | BI277: N/A | BJ277: N/A | BK277: N/A | BL277: N/A | BM277: N/A | BN277: N/A | BO277: N/A | BP277: N/A | BQ277: N/A | BR277: N/A | BS277: N/A | BT277: N/A
BB278: Did not go to work (amongst those who usually work) | BC278: N/A | BD278: N/A | BE278: N/A | BF278: N/A | BG278: N/A | BH278: N/A | BI278: N/A | BJ278: N/A | BK278: N/A | BL278: N/A | BM278: N/A | BN278: N/A | BO278: N/A | BP278: N/A | BQ278: N/A | BR278: N/A | BS278: N/A | BT278: N/A
BB279: Did not participate in social activities | BC279: N/A | BD279: N/A | BE279: N/A | BF279: N/A | BG279: N/A | BH279: N/A | BI279: N/A | BJ279: N/A | BK279: N/A | BL279: N/A | BM279: N/A | BN279: N/A | BO279: N/A | BP279: N/A | BQ279: N/A | BR279: N/A | BS279: N/A | BT279: N/A
BB280: Did not cook food | BC280: N/A | BD280: N/A | BE280: N/A | BF280: N/A | BG280: N/A | BH280: N/A | BI280: N/A | BJ280: N/A | BK280: N/A | BL280: N/A | BM280: N/A | BN280: N/A | BO280: N/A | BP280: N/A | BQ280: N/A | BR280: N/A | BS280: N/A | BT280: N/A
BB281: Did not eat with others | BC281: N/A | BD281: N/A | BE281: N/A | BF281: N/A | BG281: N/A | BH281: N/A | BI281: N/A | BJ281: N/A | BK281: N/A | BL281: N/A | BM281: N/A | BN281: N/A | BO281: N/A | BP281: N/A | BQ281: N/A | BR281: N/A | BS281: N/A | BT281: N/A
BB282: Did not bathe in regular place | BC282: N/A | BD282: N/A | BE282: N/A | BF282: N/A | BG282: N/A | BH282: N/A | BI282: N/A | BJ282: N/A | BK282: N/A | BL282: N/A | BM282: N/A | BN282: N/A | BO282: N/A | BP282: N/A | BQ282: N/A | BR282: N/A | BS282: N/A | BT282: N/A
BB283: Did not participate in other activities | BC283: N/A | BD283: N/A | BE283: N/A | BF283: N/A | BG283: N/A | BH283: N/A | BI283: N/A | BJ283: N/A | BK283: N/A | BL283: N/A | BM283: N/A | BN283: N/A | BO283: N/A | BP283: N/A | BQ283: N/A | BR283: N/A | BS283: N/A | BT283: N/A
BB284: DK/not sure/missing/no such activity | BC284: N/A | BD284: N/A | BE284: N/A | BF284: N/A | BG284: N/A | BH284: N/A | BI284: N/A | BJ284: N/A | BK284: N/A | BL284: N/A | BM284: N/A | BN284: N/A | BO284: N/A | BP284: N/A | BQ284: N/A | BR284: N/A | BS284: N/A | BT284: N/A
BA339: Raw numbers of respondents: | BB339: Basic water, sanitation and hygiene | BC339: NATIONAL wealth index quintile | BH339: URBAN wealth index quintile | BM339: RURAL wealth index quintile | BR339: SUB-REGIONS:
BA340: WatSan data, raw numbers (weighted) | BC340: Poorest | BD340: Poor | BE340: Middle | BF340: Rich | BG340: Richest | BH340: Poorest | BI340: Poor | BJ340: Middle | BK340: Rich | BL340: Richest | BM340: Poorest | BN340: Poor | BO340: Middle | BP340: Rich | BQ340: Richest | BR340: AP Vojvodina | BS340: Central Serbia without Belgrade | BT340: City of Belgrade
BA341: Use of Basic Water Sanitation and Hygiene | BB341: Yes | BC341: N/A | BD341: N/A | BE341: N/A | BF341: N/A | BG341: N/A | BH341: N/A | BI341: N/A | BJ341: N/A | BK341: N/A | BL341: N/A | BM341: N/A | BN341: N/A | BO341: N/A | BP341: N/A | BQ341: N/A | BR341: N/A | BS341: N/A | BT341: N/A
BB342: No | BC342: N/A | BD342: N/A | BE342: N/A | BF342: N/A | BG342: N/A | BH342: N/A | BI342: N/A | BJ342: N/A | BK342: N/A | BL342: N/A | BM342: N/A | BN342: N/A | BO342: N/A | BP342: N/A | BQ342: N/A | BR342: N/A | BS342: N/A | BT342: N/A
BA343: Use of Basic Water and Sanitation | BB343: Yes | BC343: N/A | BD343: N/A | BE343: N/A | BF343: N/A | BG343: N/A | BH343: N/A | BI343: N/A | BJ343: N/A | BK343: N/A | BL343: N/A | BM343: N/A | BN343: N/A | BO343: N/A | BP343: N/A | BQ343: N/A | BR343: N/A | BS343: N/A | BT343: N/A
BB344: No | BC344: N/A | BD344: N/A | BE344: N/A | BF344: N/A | BG344: N/A | BH344: N/A | BI344: N/A | BJ344: N/A | BK344: N/A | BL344: N/A | BM344: N/A | BN344: N/A | BO344: N/A | BP344: N/A | BQ344: N/A | BR344: N/A | BS344: N/A | BT344: N/A
BA345: Use of Basic Water and Hygiene | BB345: Yes | BC345: N/A | BD345: N/A | BE345: N/A | BF345: N/A | BG345: N/A | BH345: N/A | BI345: N/A | BJ345: N/A | BK345: N/A | BL345: N/A | BM345: N/A | BN345: N/A | BO345: N/A | BP345: N/A | BQ345: N/A | BR345: N/A | BS345: N/A | BT345: N/A
BB346: No | BC346: N/A | BD346: N/A | BE346: N/A | BF346: N/A | BG346: N/A | BH346: N/A | BI346: N/A | BJ346: N/A | BK346: N/A | BL346: N/A | BM346: N/A | BN346: N/A | BO346: N/A | BP346: N/A | BQ346: N/A | BR346: N/A | BS346: N/A | BT346: N/A
BA347: Use of Basic Sanitation and Hygiene | BB347: Yes | BC347: N/A | BD347: N/A | BE347: N/A | BF347: N/A | BG347: N/A | BH347: N/A | BI347: N/A | BJ347: N/A | BK347: N/A | BL347: N/A | BM347: N/A | BN347: N/A | BO347: N/A | BP347: N/A | BQ347: N/A | BR347: N/A | BS347: N/A | BT347: N/A
BB348: No | BC348: N/A | BD348: N/A | BE348: N/A | BF348: N/A | BG348: N/A | BH348: N/A | BI348: N/A | BJ348: N/A | BK348: N/A | BL348: N/A | BM348: N/A | BN348: N/A | BO348: N/A | BP348: N/A | BQ348: N/A | BR348: N/A | BS348: N/A | BT348: N/A
BA349: Use of Basic Water | BB349: Yes | BC349: N/A | BD349: N/A | BE349: N/A | BF349: N/A | BG349: N/A | BH349: N/A | BI349: N/A | BJ349: N/A | BK349: N/A | BL349: N/A | BM349: N/A | BN349: N/A | BO349: N/A | BP349: N/A | BQ349: N/A | BR349: N/A | BS349: N/A | BT349: N/A
BB350: No | BC350: N/A | BD350: N/A | BE350: N/A | BF350: N/A | BG350: N/A | BH350: N/A | BI350: N/A | BJ350: N/A | BK350: N/A | BL350: N/A | BM350: N/A | BN350: N/A | BO350: N/A | BP350: N/A | BQ350: N/A | BR350: N/A | BS350: N/A | BT350: N/A
BA351: Use of Basic Sanitation | BB351: Yes | BC351: N/A | BD351: N/A | BE351: N/A | BF351: N/A | BG351: N/A | BH351: N/A | BI351: N/A | BJ351: N/A | BK351: N/A | BL351: N/A | BM351: N/A | BN351: N/A | BO351: N/A | BP351: N/A | BQ351: N/A | BR351: N/A | BS351: N/A | BT351: N/A
BB352: No | BC352: N/A | BD352: N/A | BE352: N/A | BF352: N/A | BG352: N/A | BH352: N/A | BI352: N/A | BJ352: N/A | BK352: N/A | BL352: N/A | BM352: N/A | BN352: N/A | BO352: N/A | BP352: N/A | BQ352: N/A | BR352: N/A | BS352: N/A | BT352: N/A
BA353: Access to Basic Hygiene | BB353: Yes | BC353: N/A | BD353: N/A | BE353: N/A | BF353: N/A | BG353: N/A | BH353: N/A | BI353: N/A | BJ353: N/A | BK353: N/A | BL353: N/A | BM353: N/A | BN353: N/A | BO353: N/A | BP353: N/A | BQ353: N/A | BR353: N/A | BS353: N/A | BT353: N/A
BB354: No | BC354: N/A | BD354: N/A | BE354: N/A | BF354: N/A | BG354: N/A | BH354: N/A | BI354: N/A | BJ354: N/A | BK354: N/A | BL354: N/A | BM354: N/A | BN354: N/A | BO354: N/A | BP354: N/A | BQ354: N/A | BR354: N/A | BS354: N/A | BT354: N/A
C399: INITIAL (national) Wealth Index | H399: URBAN Wealth Index | M399: RURAL Wealth Index
C400: Component Matrix | H400: Component Matrix | M400: Component Matrix
E401: Component | J401: Component | O401: Component
B402: Note: The INITIAL (national) Wealth Index is based on the first component of the Principal Component Analysis (PCA) which has been obtained at national level. The final national-level (NATIONAL) Wealth Index is based on the URBAN and RURAL specific wealth indexes. Regression procedures are used to establish the relationships between the two sets of scores (urban and rural) and the initial (national) wealth factors. This allows best use of the available information for each area and a better precision of the FINAL (NATIONAL) Wealth Index. For dependency reasons, all WASH variables (contained in the generic MICS and DHS scripts) have been excluded from the sets of asset variables used in the PCAs. The PCA can extracts as many components as there are asset variables in the input. Only the first of the components is used to represent the Wealth Index. The scores represent the weights of the asset variables on the Wealth Index (correlations between the variables and the component). The communalities are the proportion of each variable's variance that can be explained by the component. Proportion of explained variance is the part of the model's total variance that is explained by the component. For more information on the procedure used: The DHS Wealth Index, DHS Comparative Reports No. 6, Shea Oscar Rutstein, Kiersten Johnson, ORC Macro International Inc., 2004. The DHS Wealth Index: Approaches for Rural and Urban Areas, Shea O. Rutstein, ORC Macro International Inc., 2008. MICS Methodological Paper No. 4, Review of options for reporting water, sanitation and hygiene coverage by wealth quintile, UNICEF, 2016. | E402: 1 | J402: 1 | O402: 1
C403: Has parquet/polished wood floor | E403: 0.658550652 | H403: Household has: vacuum cleaner | J403: 0.6593361278 | M403: Household has: vacuum cleaner | O403: 0.671684689
C404: Household has: vacuum cleaner | E404: 0.6544454884 | H404: Household has: washing machine | J404: 0.6544981741 | M404: Household has: washing machine | O404: 0.659326005
C405: Household has: washing machine | E405: 0.646345827 | H405: Household has: electric stove | J405: 0.6406950702 | M405: Has parquet/polished wood floor | O405: 0.6580008514
C406: Household has: electric stove | E406: 0.5467303045 | H406: Has parquet/polished wood floor | J406: 0.5773159477 | M406: Household member owns: car/truck | O406: 0.6057406395
C407: Household has: pc/laptop | E407: 0.5298819338 | H407: Household has: refrigerator | J407: 0.5284602525 | M407: Household member owns: mobile phone | O407: 0.5476304966
C408: Household has: non-mobile telephone | E408: 0.5209374459 | H408: Household has: non-mobile telephone | J408: 0.5228476082 | M408: Household has: pc/laptop | O408: 0.5436676755
C409: Household owns bank account | E409: 0.5053797369 | H409: Household has: closet | J409: 0.5134651406 | M409: Household owns bank account | O409: 0.5371559189
C410: Household fuel type: wood | E410: -0.4730993502 | H410: Has earth/sand floor | J410: -0.4801048739 | M410: Household has: electric stove | O410: 0.5114865321
... 252 more rows

Sheet MICS14
A2: =A1026 -> Serbia
A3: =A1034 -> 2014
A4: Use of drinking water sources
A5: by wealth quintile and sub-national region
A6: Notes:
A7: WHO/UNICEF JMP customised wealth index excludes water,
A8: sanitation and hygiene assets.
A9: Survey used for analysis: | B9: =A1025 -> MICS14
A10: =B1028 -> 
A11: =B1027 -> 
A14: Use of drinking water sources | C14: NATIONAL wealth index quintile | H14: URBAN wealth index quintile | M14: RURAL wealth index quintile | R14: SUB-REGIONS: | BA14: Raw numbers of respondents: | BB14: Use of drinking water sources | BC14: NATIONAL wealth index quintile | BH14: URBAN wealth index quintile | BM14: RURAL wealth index quintile | BR14: SUB-REGIONS:
A15: Weighted percentage (used in graphs) | C15: Poorest | D15: Poor | E15: Middle | F15: Rich | G15: Richest | H15: Poorest | I15: Poor | J15: Middle | K15: Rich | L15: Richest | M15: Poorest | N15: Poor | O15: Middle | P15: Rich | Q15: Richest | R15: Belgrade | S15: South and East Serbia | T15: Sumadija and West Serbia | U15: Vojvodina | BA15: Water data, raw numbers (weighted) | BC15: Poorest | BD15: Poor | BE15: Middle | BF15: Rich | BG15: Richest | BH15: Poorest | BI15: Poor | BJ15: Middle | BK15: Rich | BL15: Richest | BM15: Poorest | BN15: Poor | BO15: Middle | BP15: Rich | BQ15: Richest | BR15: Belgrade | BS15: South and East Serbia | BT15: Sumadija and West Serbia | BU15: Vojvodina
A16: Water | B16: Improved | C16: 98.05851371 | D16: 99.79738228 | E16: 99.76425656 | F16: 99.96751519 | G16: 100 | H16: 99.51965984 | I16: 100 | J16: 99.94509195 | K16: 100 | L16: 100 | M16: 98.2841276 | N16: 97.68171691 | O16: 99.73631558 | P16: 100 | Q16: 99.17631791 | R16: 99.97442788 | S16: 99.34760284 | T16: 99.21968691 | U16: 99.58514624 | BA16: Water | BB16: Improved | BC16: N/A | BD16: N/A | BE16: N/A | BF16: N/A | BG16: N/A | BH16: N/A | BI16: N/A | BJ16: N/A | BK16: N/A | BL16: N/A | BM16: N/A | BN16: N/A | BO16: N/A | BP16: N/A | BQ16: N/A | BR16: N/A | BS16: N/A | BT16: N/A | BU16: N/A
B17: Not Improved | C17: 1.941486286 | D17: 0.2026177152 | E17: 0.2357434396 | F17: 0.0324848075 | G17: 0 | H17: 0.4803401636 | I17: 0 | J17: 0.05490805166 | K17: 0 | L17: 0 | M17: 1.715872398 | N17: 2.318283094 | O17: 0.2636844233 | P17: 0 | Q17: 0.8236820857 | R17: 0.02557211563 | S17: 0.6523971607 | T17: 0.7803130898 | U17: 0.414853755 | BB17: Not Improved | BC17: N/A | BD17: N/A | BE17: N/A | BF17: N/A | BG17: N/A | BH17: N/A | BI17: N/A | BJ17: N/A | BK17: N/A | BL17: N/A | BM17: N/A | BN17: N/A | BO17: N/A | BP17: N/A | BQ17: N/A | BR17: N/A | BS17: N/A | BT17: N/A | BU17: N/A
A18: Water ladder | B18: Basic | C18: =C16*C23/100 -> 97.0988311 | D18: =D16*D23/100 -> 98.47555017 | E18: =E16*E23/100 -> 98.23820276 | F18: 98.72634983 | G18: 99.34440036 | H18: 98.27119863 | I18: 97.94970601 | J18: 99.28548535 | K18: 98.77836185 | L18: 99.42888464 | M18: 97.56970721 | N18: 96.41571278 | O18: 98.60255179 | P18: 98.55308078 | Q18: 98.09739437 | R18: 99.23902428 | S18: 98.46836502 | T18: 98.42270917 | U18: 97.51306949 | BA18: Water ladder | BB18: Basic | BC18: N/A | BD18: N/A | BE18: N/A | BF18: N/A | BG18: N/A | BH18: N/A | BI18: N/A | BJ18: N/A | BK18: N/A | BL18: N/A | BM18: N/A | BN18: N/A | BO18: N/A | BP18: N/A | BQ18: N/A | BR18: N/A | BS18: N/A | BT18: N/A | BU18: N/A
B19: Limited | C19: =C16*C22/100 -> 0.959682609 | D19: =D16*D22/100 -> 1.321832112 | E19: =E16*E22/100 -> 1.526053802 | F19: 1.241165358 | G19: 0.6555996354 | H19: 1.248461208 | I19: 2.050293985 | J19: 0.6596065937 | K19: 1.221638147 | L19: 0.5711153574 | M19: 0.7144203877 | N19: 1.266004125 | O19: 1.133763788 | P19: 1.446919223 | Q19: 1.078923546 | R19: 0.7354036062 | S19: 0.8792378163 | T19: 0.7969777392 | U19: 2.07207676 | BB19: Limited | BC19: N/A | BD19: N/A | BE19: N/A | BF19: N/A | BG19: N/A | BH19: N/A | BI19: N/A | BJ19: N/A | BK19: N/A | BL19: N/A | BM19: N/A | BN19: N/A | BO19: N/A | BP19: N/A | BQ19: N/A | BR19: N/A | BS19: N/A | BT19: N/A | BU19: N/A
B20: Unimproved | C20: =100-C18-C19-C21 -> 1.859663444 | D20: =100-D18-D19-D21 -> 0.2026177152 | E20: =100-E18-E19-E21 -> 0.2357434396 | F20: 0.0324848075 | G20: 1.587618925e-14 | H20: 0.4803401636 | I20: 1.421085472e-14 | J20: 0.05490805166 | K20: 2.220446049e-15 | L20: 1.709743458e-14 | M20: 1.649132549 | N20: 2.186732204 | O20: 0.2636844233 | P20: -3.996802889e-15 | Q20: 0.8236820857 | R20: 0.02557211563 | S20: 0.6523971607 | T20: 0.7216345215 | U20: 0.414853755 | BB20: Unimproved | BC20: N/A | BD20: N/A | BE20: N/A | BF20: N/A | BG20: N/A | BH20: N/A | BI20: N/A | BJ20: N/A | BK20: N/A | BL20: N/A | BM20: N/A | BN20: N/A | BO20: N/A | BP20: N/A | BQ20: N/A | BR20: N/A | BS20: N/A | BT20: N/A | BU20: N/A
B21: Surface water | C21: 0.08182284203 | D21: 0 | E21: 0 | F21: 0 | G21: 0 | H21: 0 | I21: 0 | J21: 0 | K21: 0 | L21: 0 | M21: 0.0667398491 | N21: 0.1315508905 | O21: 0 | P21: 0 | Q21: 0 | R21: 0 | S21: 0 | T21: 0.05867856824 | U21: 0 | BB21: Surface water | BC21: N/A | BD21: N/A | BE21: N/A | BF21: N/A | BG21: N/A | BH21: N/A | BI21: N/A | BJ21: N/A | BK21: N/A | BL21: N/A | BM21: N/A | BN21: N/A | BO21: N/A | BP21: N/A | BQ21: N/A | BR21: N/A | BS21: N/A | BT21: N/A | BU21: N/A
A22: Improved water point at more than 30 minutes | B22: Yes | C22: 0.9786836172 | D22: 1.324515816 | E22: 1.529659874 | F22: 1.24156868 | G22: 0.6555996354 | H22: 1.254487013 | I22: 2.050293985 | J22: 0.6599689698 | K22: 1.221638147 | L22: 0.5711153574 | M22: 0.7268929431 | N22: 1.296050239 | O22: 1.13676125 | P22: 1.446919223 | Q22: 1.087884254 | R22: 0.7355917126 | S22: 0.8850116069 | T22: 0.8032455695 | U22: 2.080708658 | BA22: Improved water point at more than 30 minutes | BB22: Yes | BC22: N/A | BD22: N/A | BE22: N/A | BF22: N/A | BG22: N/A | BH22: N/A | BI22: N/A | BJ22: N/A | BK22: N/A | BL22: N/A | BM22: N/A | BN22: N/A | BO22: N/A | BP22: N/A | BQ22: N/A | BR22: N/A | BS22: N/A | BT22: N/A | BU22: N/A
B23: No | C23: 99.02131638 | D23: 98.67548418 | E23: 98.47034013 | F23: 98.75843132 | G23: 99.34440036 | H23: 98.74551299 | I23: 97.94970601 | J23: 99.34003103 | K23: 98.77836185 | L23: 99.42888464 | M23: 99.27310706 | N23: 98.70394976 | O23: 98.86323875 | P23: 98.55308078 | Q23: 98.91211575 | R23: 99.26440829 | S23: 99.11498839 | T23: 99.19675443 | U23: 97.91929134 | BB23: No | BC23: N/A | BD23: N/A | BE23: N/A | BF23: N/A | BG23: N/A | BH23: N/A | BI23: N/A | BJ23: N/A | BK23: N/A | BL23: N/A | BM23: N/A | BN23: N/A | BO23: N/A | BP23: N/A | BQ23: N/A | BR23: N/A | BS23: N/A | BT23: N/A | BU23: N/A
A24: Manually calculated ratios | B24: Improved wells
B25: Improved springs
B26: Other
C27: NATIONAL wealth index quintile | H27: URBAN wealth index quintile | M27: RURAL wealth index quintile | R27: SUB-REGIONS: | BA27: Raw numbers of respondents: | BB27: Use of drinking water sources | BC27: NATIONAL wealth index quintile | BH27: URBAN wealth index quintile | BM27: RURAL wealth index quintile | BR27: SUB-REGIONS:
A28: Percentage based on weighted population | C28: Poorest | D28: Poor | E28: Middle | F28: Rich | G28: Richest | H28: Poorest | I28: Poor | J28: Middle | K28: Rich | L28: Richest | M28: Poorest | N28: Poor | O28: Middle | P28: Rich | Q28: Richest | R28: Belgrade | S28: South and East Serbia | T28: Sumadija and West Serbia | U28: Vojvodina | BA28: Water data, raw numbers (weighted) | BC28: Poorest | BD28: Poor | BE28: Middle | BF28: Rich | BG28: Richest | BH28: Poorest | BI28: Poor | BJ28: Middle | BK28: Rich | BL28: Richest | BM28: Poorest | BN28: Poor | BO28: Middle | BP28: Rich | BQ28: Richest | BR28: Belgrade | BS28: South and East Serbia | BT28: Sumadija and West Serbia | BU28: Vojvodina
A29: Piped water | B29: Yes | C29: 87.29067982 | D29: 89.92499486 | E29: 94.14704379 | F29: 97.14048733 | G29: 98.09133285 | H29: 96.38239648 | I29: 96.95662036 | J29: 96.97492494 | K29: 98.72291754 | L29: 97.29199481 | M29: 87.77654479 | N29: 85.77773225 | O29: 88.79183793 | P29: 89.5546431 | Q29: 86.22569512 | R29: 95.28894858 | S29: 91.99328612 | T29: 92.78169864 | U29: 93.3560855 | BA29: Piped water | BB29: Yes | BC29: N/A | BD29: N/A | BE29: N/A | BF29: N/A | BG29: N/A | BH29: N/A | BI29: N/A | BJ29: N/A | BK29: N/A | BL29: N/A | BM29: N/A | BN29: N/A | BO29: N/A | BP29: N/A | BQ29: N/A | BR29: N/A | BS29: N/A | BT29: N/A | BU29: N/A
B30: No | C30: 12.70932018 | D30: 10.07500514 | E30: 5.852956214 | F30: 2.859512674 | G30: 1.908667146 | H30: 3.617603522 | I30: 3.043379636 | J30: 3.02507506 | K30: 1.277082462 | L30: 2.708005193 | M30: 12.22345521 | N30: 14.22226775 | O30: 11.20816207 | P30: 10.4453569 | Q30: 13.77430488 | R30: 4.711051415 | S30: 8.006713875 | T30: 7.218301364 | U30: 6.6439145 | BB30: No | BC30: N/A | BD30: N/A | BE30: N/A | BF30: N/A | BG30: N/A | BH30: N/A | BI30: N/A | BJ30: N/A | BK30: N/A | BL30: N/A | BM30: N/A | BN30: N/A | BO30: N/A | BP30: N/A | BQ30: N/A | BR30: N/A | BS30: N/A | BT30: N/A | BU30: N/A
A31: Piped water on premises | B31: Yes | C31: 84.86883997 | D31: 88.46595337 | E31: 93.05902919 | F31: 96.23934994 | G31: 97.44429087 | H31: 93.75381002 | I31: 95.85817197 | J31: 95.97850731 | K31: 97.68659205 | L31: 97.15811649 | M31: 85.11731165 | N31: 84.98016523 | O31: 87.60588941 | P31: 87.40632684 | Q31: 85.59903853 | R31: 94.59799022 | S31: 90.60244527 | T31: 92.39397927 | U31: 90.66217099 | BA31: Piped water on premises | BB31: Yes | BC31: N/A | BD31: N/A | BE31: N/A | BF31: N/A | BG31: N/A | BH31: N/A | BI31: N/A | BJ31: N/A | BK31: N/A | BL31: N/A | BM31: N/A | BN31: N/A | BO31: N/A | BP31: N/A | BQ31: N/A | BR31: N/A | BS31: N/A | BT31: N/A | BU31: N/A
B32: No | C32: 15.13116003 | D32: 11.53404663 | E32: 6.940970812 | F32: 3.760650059 | G32: 2.555709128 | H32: 6.246189979 | I32: 4.141828034 | J32: 4.021492694 | K32: 2.31340795 | L32: 2.841883512 | M32: 14.88268835 | N32: 15.01983477 | O32: 12.39411059 | P32: 12.59367316 | Q32: 14.40096147 | R32: 5.402009778 | S32: 9.397554734 | T32: 7.606020725 | U32: 9.337829007 | BB32: No | BC32: N/A | BD32: N/A | BE32: N/A | BF32: N/A | BG32: N/A | BH32: N/A | BI32: N/A | BJ32: N/A | BK32: N/A | BL32: N/A | BM32: N/A | BN32: N/A | BO32: N/A | BP32: N/A | BQ32: N/A | BR32: N/A | BS32: N/A | BT32: N/A | BU32: N/A
A33: Piped water into dwelling | B33: Yes | C33: N/A | D33: N/A | E33: N/A | F33: N/A | G33: N/A | H33: N/A | I33: N/A | J33: N/A | K33: N/A | L33: N/A | M33: N/A | N33: N/A | O33: N/A | P33: N/A | Q33: N/A | R33: N/A | S33: N/A | T33: N/A | U33: N/A | BA33: Piped water into dwelling | BB33: Yes | BC33: N/A | BD33: N/A | BE33: N/A | BF33: N/A | BG33: N/A | BH33: N/A | BI33: N/A | BJ33: N/A | BK33: N/A | BL33: N/A | BM33: N/A | BN33: N/A | BO33: N/A | BP33: N/A | BQ33: N/A | BR33: N/A | BS33: N/A | BT33: N/A | BU33: N/A
B34: No | C34: N/A | D34: N/A | E34: N/A | F34: N/A | G34: N/A | H34: N/A | I34: N/A | J34: N/A | K34: N/A | L34: N/A | M34: N/A | N34: N/A | O34: N/A | P34: N/A | Q34: N/A | R34: N/A | S34: N/A | T34: N/A | U34: N/A | BB34: No | BC34: N/A | BD34: N/A | BE34: N/A | BF34: N/A | BG34: N/A | BH34: N/A | BI34: N/A | BJ34: N/A | BK34: N/A | BL34: N/A | BM34: N/A | BN34: N/A | BO34: N/A | BP34: N/A | BQ34: N/A | BR34: N/A | BS34: N/A | BT34: N/A | BU34: N/A
A35: Water source on premises | B35: Yes | C35: 93.18166235 | D35: 94.74584427 | E35: 96.44665588 | F35: 96.77245336 | G35: 98.19843522 | H35: 95.60791795 | I35: 96.21080648 | J35: 96.58710449 | K35: 97.7985226 | L35: 98.3674032 | M35: 95.28570742 | N35: 91.68647537 | O35: 93.55593079 | P35: 94.80809174 | Q35: 96.47074042 | R35: 98.03729971 | S35: 95.33679333 | T35: 97.30839111 | U35: 93.00405454 | BA35: Water source on premises | BB35: Yes | BC35: N/A | BD35: N/A | BE35: N/A | BF35: N/A | BG35: N/A | BH35: N/A | BI35: N/A | BJ35: N/A | BK35: N/A | BL35: N/A | BM35: N/A | BN35: N/A | BO35: N/A | BP35: N/A | BQ35: N/A | BR35: N/A | BS35: N/A | BT35: N/A | BU35: N/A
B36: No | C36: 6.818337655 | D36: 5.254155734 | E36: 3.553344123 | F36: 3.227546636 | G36: 1.80156478 | H36: 4.392082055 | I36: 3.789193517 | J36: 3.412895512 | K36: 2.201477402 | L36: 1.632596798 | M36: 4.714292584 | N36: 8.313524626 | O36: 6.444069207 | P36: 5.191908257 | Q36: 3.529259585 | R36: 1.962700292 | S36: 4.663206668 | T36: 2.691608885 | U36: 6.995945465 | BB36: No | BC36: N/A | BD36: N/A | BE36: N/A | BF36: N/A | BG36: N/A | BH36: N/A | BI36: N/A | BJ36: N/A | BK36: N/A | BL36: N/A | BM36: N/A | BN36: N/A | BO36: N/A | BP36: N/A | BQ36: N/A | BR36: N/A | BS36: N/A | BT36: N/A | BU36: N/A
A37: Improved Water source on premises | B37: Yes | C37: 92.22761864 | D37: 94.74584427 | E37: 96.21091244 | F37: 96.77245336 | G37: 98.19843522 | H37: 95.12757778 | I37: 96.21080648 | J37: 96.58710449 | K37: 97.7985226 | L37: 98.3674032 | M37: 93.63535705 | N37: 91.55521899 | O37: 93.55593079 | P37: 94.80809174 | Q37: 96.03797173 | R37: 98.01172759 | S37: 95.00972462 | T37: 96.74049634 | U37: 93.00405454 | BA37: Improved water source on premises | BB37: Yes | BC37: N/A | BD37: N/A | BE37: N/A | BF37: N/A | BG37: N/A | BH37: N/A | BI37: N/A | BJ37: N/A | BK37: N/A | BL37: N/A | BM37: N/A | BN37: N/A | BO37: N/A | BP37: N/A | BQ37: N/A | BR37: N/A | BS37: N/A | BT37: N/A | BU37: N/A
B38: No | C38: 7.772381356 | D38: 5.254155734 | E38: 3.789087562 | F38: 3.227546636 | G38: 1.80156478 | H38: 4.872422218 | I38: 3.789193517 | J38: 3.412895512 | K38: 2.201477402 | L38: 1.632596798 | M38: 6.364642952 | N38: 8.444781006 | O38: 6.444069207 | P38: 5.191908257 | Q38: 3.962028272 | R38: 1.988272407 | S38: 4.990275382 | T38: 3.259503664 | U38: 6.995945465 | BB38: No | BC38: N/A | BD38: N/A | BE38: N/A | BF38: N/A | BG38: N/A | BH38: N/A | BI38: N/A | BJ38: N/A | BK38: N/A | BL38: N/A | BM38: N/A | BN38: N/A | BO38: N/A | BP38: N/A | BQ38: N/A | BR38: N/A | BS38: N/A | BT38: N/A | BU38: N/A
A39: Piped water on premises available when needed | B39: Yes | C39: N/A | D39: N/A | E39: N/A | F39: N/A | G39: N/A | H39: N/A | I39: N/A | J39: N/A | K39: N/A | L39: N/A | M39: N/A | N39: N/A | O39: N/A | P39: N/A | Q39: N/A | R39: N/A | S39: N/A | T39: N/A | U39: N/A | BA39: Piped water on premises available when needed | BB39: Yes | BC39: N/A | BD39: N/A | BE39: N/A | BF39: N/A | BG39: N/A | BH39: N/A | BI39: N/A | BJ39: N/A | BK39: N/A | BL39: N/A | BM39: N/A | BN39: N/A | BO39: N/A | BP39: N/A | BQ39: N/A | BR39: N/A | BS39: N/A | BT39: N/A | BU39: N/A
B40: No | C40: N/A | D40: N/A | E40: N/A | F40: N/A | G40: N/A | H40: N/A | I40: N/A | J40: N/A | K40: N/A | L40: N/A | M40: N/A | N40: N/A | O40: N/A | P40: N/A | Q40: N/A | R40: N/A | S40: N/A | T40: N/A | U40: N/A | BB40: No | BC40: N/A | BD40: N/A | BE40: N/A | BF40: N/A | BG40: N/A | BH40: N/A | BI40: N/A | BJ40: N/A | BK40: N/A | BL40: N/A | BM40: N/A | BN40: N/A | BO40: N/A | BP40: N/A | BQ40: N/A | BR40: N/A | BS40: N/A | BT40: N/A | BU40: N/A
A41: Water point at more than 30 minutes | B41: Yes | C41: 1.523523802 | D41: 1.524902733 | E41: 1.526051404 | F41: 1.241165172 | G41: 0.6555996354 | H41: 1.248384146 | I41: 2.050293985 | J41: 0.6596063104 | K41: 1.221638147 | L41: 0.5711153574 | M41: 0.7808737371 | N41: 2.401766166 | O41: 1.398893582 | P41: 1.446919223 | Q41: 1.469836944 | R41: 0.7354023414 | S41: 1.151838027 | T41: 0.8165107641 | U41: 2.385566926 | BA41: Water point at more than 30 minutes | BB41: Yes | BC41: N/A | BD41: N/A | BE41: N/A | BF41: N/A | BG41: N/A | BH41: N/A | BI41: N/A | BJ41: N/A | BK41: N/A | BL41: N/A | BM41: N/A | BN41: N/A | BO41: N/A | BP41: N/A | BQ41: N/A | BR41: N/A | BS41: N/A | BT41: N/A | BU41: N/A
B42: No | C42: 98.4764762 | D42: 98.47509727 | E42: 98.4739486 | F42: 98.75883483 | G42: 99.34440036 | H42: 98.75161585 | I42: 97.94970601 | J42: 99.34039369 | K42: 98.77836185 | L42: 99.42888464 | M42: 99.21912626 | N42: 97.59823383 | O42: 98.60110642 | P42: 98.55308078 | Q42: 98.53016306 | R42: 99.26459766 | S42: 98.84816197 | T42: 99.18348924 | U42: 97.61443307 | BB42: No | BC42: N/A | BD42: N/A | BE42: N/A | BF42: N/A | BG42: N/A | BH42: N/A | BI42: N/A | BJ42: N/A | BK42: N/A | BL42: N/A | BM42: N/A | BN42: N/A | BO42: N/A | BP42: N/A | BQ42: N/A | BR42: N/A | BS42: N/A | BT42: N/A | BU42: N/A
A43: Water source available when needed | B43: Yes | C43: N/A | D43: N/A | E43: N/A | F43: N/A | G43: N/A | H43: N/A | I43: N/A | J43: N/A | K43: N/A | L43: N/A | M43: N/A | N43: N/A | O43: N/A | P43: N/A | Q43: N/A | R43: N/A | S43: N/A | T43: N/A | U43: N/A | BA43: Water source available when needed | BB43: Yes | BC43: N/A | BD43: N/A | BE43: N/A | BF43: N/A | BG43: N/A | BH43: N/A | BI43: N/A | BJ43: N/A | BK43: N/A | BL43: N/A | BM43: N/A | BN43: N/A | BO43: N/A | BP43: N/A | BQ43: N/A | BR43: N/A | BS43: N/A | BT43: N/A | BU43: N/A
B44: No | C44: N/A | D44: N/A | E44: N/A | F44: N/A | G44: N/A | H44: N/A | I44: N/A | J44: N/A | K44: N/A | L44: N/A | M44: N/A | N44: N/A | O44: N/A | P44: N/A | Q44: N/A | R44: N/A | S44: N/A | T44: N/A | U44: N/A | BB44: No | BC44: N/A | BD44: N/A | BE44: N/A | BF44: N/A | BG44: N/A | BH44: N/A | BI44: N/A | BJ44: N/A | BK44: N/A | BL44: N/A | BM44: N/A | BN44: N/A | BO44: N/A | BP44: N/A | BQ44: N/A | BR44: N/A | BS44: N/A | BT44: N/A | BU44: N/A
A45: Improved water source available when needed | B45: Yes | C45: N/A | D45: N/A | E45: N/A | F45: N/A | G45: N/A | H45: N/A | I45: N/A | J45: N/A | K45: N/A | L45: N/A | M45: N/A | N45: N/A | O45: N/A | P45: N/A | Q45: N/A | R45: N/A | S45: N/A | T45: N/A | U45: N/A | BA45: Improved water source available when needed | BB45: Yes | BC45: N/A | BD45: N/A | BE45: N/A | BF45: N/A | BG45: N/A | BH45: N/A | BI45: N/A | BJ45: N/A | BK45: N/A | BL45: N/A | BM45: N/A | BN45: N/A | BO45: N/A | BP45: N/A | BQ45: N/A | BR45: N/A | BS45: N/A | BT45: N/A | BU45: N/A
B46: No | C46: N/A | D46: N/A | E46: N/A | F46: N/A | G46: N/A | H46: N/A | I46: N/A | J46: N/A | K46: N/A | L46: N/A | M46: N/A | N46: N/A | O46: N/A | P46: N/A | Q46: N/A | R46: N/A | S46: N/A | T46: N/A | U46: N/A | BB46: No | BC46: N/A | BD46: N/A | BE46: N/A | BF46: N/A | BG46: N/A | BH46: N/A | BI46: N/A | BJ46: N/A | BK46: N/A | BL46: N/A | BM46: N/A | BN46: N/A | BO46: N/A | BP46: N/A | BQ46: N/A | BR46: N/A | BS46: N/A | BT46: N/A | BU46: N/A
A47: Microbiological quality at point of collection | B47: Not contaminated (No E. coli in 100 mL) | C47: N/A | D47: N/A | E47: N/A | F47: N/A | G47: N/A | H47: N/A | I47: N/A | J47: N/A | K47: N/A | L47: N/A | M47: N/A | N47: N/A | O47: N/A | P47: N/A | Q47: N/A | R47: N/A | S47: N/A | T47: N/A | U47: N/A | BA47: Microbiological quality at point of collection | BB47: Not contaminated (No E. coli in 100 mL) | BC47: N/A | BD47: N/A | BE47: N/A | BF47: N/A | BG47: N/A | BH47: N/A | BI47: N/A | BJ47: N/A | BK47: N/A | BL47: N/A | BM47: N/A | BN47: N/A | BO47: N/A | BP47: N/A | BQ47: N/A | BR47: N/A | BS47: N/A | BT47: N/A | BU47: N/A
B48: Contaminated (E. coli detected in 100 mL) | C48: N/A | D48: N/A | E48: N/A | F48: N/A | G48: N/A | H48: N/A | I48: N/A | J48: N/A | K48: N/A | L48: N/A | M48: N/A | N48: N/A | O48: N/A | P48: N/A | Q48: N/A | R48: N/A | S48: N/A | T48: N/A | U48: N/A | BB48: Contaminated (E. coli detected in 100 mL) | BC48: N/A | BD48: N/A | BE48: N/A | BF48: N/A | BG48: N/A | BH48: N/A | BI48: N/A | BJ48: N/A | BK48: N/A | BL48: N/A | BM48: N/A | BN48: N/A | BO48: N/A | BP48: N/A | BQ48: N/A | BR48: N/A | BS48: N/A | BT48: N/A | BU48: N/A
B49: Highly contaminated (>100 CFU/100 mL) | C49: N/A | D49: N/A | E49: N/A | F49: N/A | G49: N/A | H49: N/A | I49: N/A | J49: N/A | K49: N/A | L49: N/A | M49: N/A | N49: N/A | O49: N/A | P49: N/A | Q49: N/A | R49: N/A | S49: N/A | T49: N/A | U49: N/A | BB49: Highly contaminated (>100 CFU/100 mL) | BC49: N/A | BD49: N/A | BE49: N/A | BF49: N/A | BG49: N/A | BH49: N/A | BI49: N/A | BJ49: N/A | BK49: N/A | BL49: N/A | BM49: N/A | BN49: N/A | BO49: N/A | BP49: N/A | BQ49: N/A | BR49: N/A | BS49: N/A | BT49: N/A | BU49: N/A
A50: Microbiological quality of improved water sources at point of collection | B50: Not contaminated (No E. coli in 100 mL) | C50: N/A | D50: N/A | E50: N/A | F50: N/A | G50: N/A | H50: N/A | I50: N/A | J50: N/A | K50: N/A | L50: N/A | M50: N/A | N50: N/A | O50: N/A | P50: N/A | Q50: N/A | R50: N/A | S50: N/A | T50: N/A | U50: N/A | BA50: Microbiological quality of improved water sources at point of collection | BB50: Not contaminated (No E. coli in 100 mL) | BC50: N/A | BD50: N/A | BE50: N/A | BF50: N/A | BG50: N/A | BH50: N/A | BI50: N/A | BJ50: N/A | BK50: N/A | BL50: N/A | BM50: N/A | BN50: N/A | BO50: N/A | BP50: N/A | BQ50: N/A | BR50: N/A | BS50: N/A | BT50: N/A | BU50: N/A
B51: Contaminated (E. coli detected in 100 mL) | C51: N/A | D51: N/A | E51: N/A | F51: N/A | G51: N/A | H51: N/A | I51: N/A | J51: N/A | K51: N/A | L51: N/A | M51: N/A | N51: N/A | O51: N/A | P51: N/A | Q51: N/A | R51: N/A | S51: N/A | T51: N/A | U51: N/A | BB51: Contaminated (E. coli detected in 100 mL) | BC51: N/A | BD51: N/A | BE51: N/A | BF51: N/A | BG51: N/A | BH51: N/A | BI51: N/A | BJ51: N/A | BK51: N/A | BL51: N/A | BM51: N/A | BN51: N/A | BO51: N/A | BP51: N/A | BQ51: N/A | BR51: N/A | BS51: N/A | BT51: N/A | BU51: N/A
B52: Highly contaminated (>100 CFU/100 mL) | C52: N/A | D52: N/A | E52: N/A | F52: N/A | G52: N/A | H52: N/A | I52: N/A | J52: N/A | K52: N/A | L52: N/A | M52: N/A | N52: N/A | O52: N/A | P52: N/A | Q52: N/A | R52: N/A | S52: N/A | T52: N/A | U52: N/A | BB52: Highly contaminated (>100 CFU/100 mL) | BC52: N/A | BD52: N/A | BE52: N/A | BF52: N/A | BG52: N/A | BH52: N/A | BI52: N/A | BJ52: N/A | BK52: N/A | BL52: N/A | BM52: N/A | BN52: N/A | BO52: N/A | BP52: N/A | BQ52: N/A | BR52: N/A | BS52: N/A | BT52: N/A | BU52: N/A
A53: Microbiological quality of piped on premises at point of collection | B53: Not contaminated (No E. coli in 100 mL) | C53: N/A | D53: N/A | E53: N/A | F53: N/A | G53: N/A | H53: N/A | I53: N/A | J53: N/A | K53: N/A | L53: N/A | M53: N/A | N53: N/A | O53: N/A | P53: N/A | Q53: N/A | R53: N/A | S53: N/A | T53: N/A | U53: N/A | BA53: Microbiological quality of piped on premises at point of collection | BB53: Not contaminated (No E. coli in 100 mL) | BC53: N/A | BD53: N/A | BE53: N/A | BF53: N/A | BG53: N/A | BH53: N/A | BI53: N/A | BJ53: N/A | BK53: N/A | BL53: N/A | BM53: N/A | BN53: N/A | BO53: N/A | BP53: N/A | BQ53: N/A | BR53: N/A | BS53: N/A | BT53: N/A | BU53: N/A
B54: Contaminated (E. coli detected in 100 mL) | C54: N/A | D54: N/A | E54: N/A | F54: N/A | G54: N/A | H54: N/A | I54: N/A | J54: N/A | K54: N/A | L54: N/A | M54: N/A | N54: N/A | O54: N/A | P54: N/A | Q54: N/A | R54: N/A | S54: N/A | T54: N/A | U54: N/A | BB54: Contaminated (E. coli detected in 100 mL) | BC54: N/A | BD54: N/A | BE54: N/A | BF54: N/A | BG54: N/A | BH54: N/A | BI54: N/A | BJ54: N/A | BK54: N/A | BL54: N/A | BM54: N/A | BN54: N/A | BO54: N/A | BP54: N/A | BQ54: N/A | BR54: N/A | BS54: N/A | BT54: N/A | BU54: N/A
B55: Highly contaminated (>100 CFU/100 mL) | C55: N/A | D55: N/A | E55: N/A | F55: N/A | G55: N/A | H55: N/A | I55: N/A | J55: N/A | K55: N/A | L55: N/A | M55: N/A | N55: N/A | O55: N/A | P55: N/A | Q55: N/A | R55: N/A | S55: N/A | T55: N/A | U55: N/A | BB55: Highly contaminated (>100 CFU/100 mL) | BC55: N/A | BD55: N/A | BE55: N/A | BF55: N/A | BG55: N/A | BH55: N/A | BI55: N/A | BJ55: N/A | BK55: N/A | BL55: N/A | BM55: N/A | BN55: N/A | BO55: N/A | BP55: N/A | BQ55: N/A | BR55: N/A | BS55: N/A | BT55: N/A | BU55: N/A
C56: NATIONAL wealth index quintile | H56: URBAN wealth index quintile | M56: RURAL wealth index quintile | R56: SUB-REGIONS: | BA56: Raw numbers of respondents: | BB56: Use of drinking water sources | BC56: NATIONAL wealth index quintile | BH56: URBAN wealth index quintile | BM56: RURAL wealth index quintile | BR56: SUB-REGIONS:
A57: Percentage based on weighted population | C57: Poorest | D57: Poor | E57: Middle | F57: Rich | G57: Richest | H57: Poorest | I57: Poor | J57: Middle | K57: Rich | L57: Richest | M57: Poorest | N57: Poor | O57: Middle | P57: Rich | Q57: Richest | R57: Belgrade | S57: South and East Serbia | T57: Sumadija and West Serbia | U57: Vojvodina | BA57: Water data, raw numbers (weighted) | BC57: Poorest | BD57: Poor | BE57: Middle | BF57: Rich | BG57: Richest | BH57: Poorest | BI57: Poor | BJ57: Middle | BK57: Rich | BL57: Richest | BM57: Poorest | BN57: Poor | BO57: Middle | BP57: Rich | BQ57: Richest | BR57: Belgrade | BS57: South and East Serbia | BT57: Sumadija and West Serbia | BU57: Vojvodina
A58: Main source of drinking water | B58: Piped into dwelling | C58: 77.62968765 | D58: 78.80448235 | E58: 83.34285853 | F58: 85.31733137 | G58: 80.57095823 | H58: 86.98475631 | I58: 85.48967508 | J58: 85.03970043 | K58: 80.878904 | L58: 81.45770037 | M58: 78.42824963 | N58: 77.98882116 | O58: 77.47426154 | P58: 78.19589044 | Q58: 73.11644116 | R58: 83.54063394 | S58: 86.23515663 | T58: 86.42466363 | U58: 69.15741272
B59: Piped into compound, yard or plot | C59: 2.63949352 | D59: 0.4825119519 | E59: 0.1130124814 | F59: 0 | G59: 0 | H59: 0.7212128715 | I59: 0 | J59: 0 | K59: 0 | L59: 0 | M59: 4.747920575 | N59: 0.609959846 | O59: 1.137202005 | P59: 0.3648199669 | Q59: 0 | R59: 0.06904411895 | S59: 1.523115311 | T59: 0.5825414107 | U59: 0.4391999957
B60: Piped to neighbour | C60: 1.364346907 | D60: 0.1469945536 | E60: 0 | F60: 0 | G60: 0.0218185762 | H60: 1.212915172 | I60: 0 | J60: 0 | K60: 0.03695518351 | L60: 0 | M60: 1.584090555 | N60: 0 | O60: 0.3586094469 | P60: 0 | Q60: 0 | R60: 0.5060903789 | S60: 0.4322812319 | T60: 0.1068613283 | U60: 0.2338859433
B61: Public tap / standpipe | C61: 1.057492941 | D61: 1.312046938 | E61: 1.088014597 | F61: 0.9011373858 | G61: 0.6252234056 | H61: 1.415671285 | I61: 1.098448398 | J61: 0.9964176339 | K61: 0.9993703048 | L61: 0.1338783194 | M61: 1.075142587 | N61: 0.7975670178 | O61: 0.8273390738 | P61: 2.148316267 | Q61: 0.6266565963 | R61: 0.1848679835 | S61: 0.958559627 | T61: 0.2808580331 | U61: 2.460028564
B62: Tube well, Borehole | C62: 3.736666627 | D62: 2.961475018 | E62: 1.130928002 | F62: 0.2359610296 | G62: 0.4450449178 | H62: 0.9329747051 | I62: 0.3472961571 | J62: 0.3035067614 | K62: 0.04420187252 | L62: 0.7535975672 | M62: 3.148904738 | N62: 4.3957774 | O62: 2.630078042 | P62: 3.414091752 | Q62: 3.762461536 | R62: 1.461313046 | S62: 1.928879082 | T62: 0.9937050783 | U62: 2.440876825
B63: Protected well | C63: 5.240139073 | D63: 4.589628214 | E63: 2.260048807 | F63: 0.3182606039 | G63: 0.2312687207 | H63: 0.6550111188 | I63: 0.2007602312 | J63: 0.4381420724 | K63: 0 | L63: 0.3916088878 | M63: 6.293800351 | N63: 5.617862565 | O63: 4.28903051 | P63: 5.557161814 | Q63: 6.683668211 | R63: 2.155904508 | S63: 3.821321058 | T63: 3.883321105 | U63: 0.3142262178
B64: Unprotected well | C64: 0.8817887195 | D64: 0.04258204112 | E64: 0.2357434396 | F64: 0.0324848075 | G64: 0 | H64: 0.09993784253 | I64: 0 | J64: 0.05490805166 | K64: 0 | L64: 0 | M64: 1.584761966 | N64: 0.5686763672 | O64: 0.1038835918 | P64: 0 | Q64: 0.4327686878 | R64: 0.02557211563 | S64: 0.3270687144 | T64: 0.5389323785 | U64: 0.03198731109
B65: Protected spring | C65: 1.308885611 | D65: 2.273077396 | E65: 1.788226364 | F65: 2.121604472 | G65: 1.005158396 | H65: 1.068034751 | I65: 2.347906087 | J65: 2.070302784 | K65: 1.165151914 | L65: 1.245798727 | M65: 0.9432472405 | N65: 1.643057273 | O65: 3.303750035 | P65: 1.356427028 | Q65: 2.112014303 | R65: 1.027448769 | S65: 1.414906471 | T65: 1.496085289 | U65: 2.728669596
B66: Unprotected spring | C66: 0.1950095644 | D66: 0.1600356741 | E66: 0 | F66: 0 | G66: 0 | H66: 0 | I66: 0 | J66: 0 | K66: 0 | L66: 0 | M66: 0.06552203069 | N66: 0.333877363 | O66: 0.07694114106 | P66: 0 | Q66: 0.3909133979 | R66: 0 | S66: 0.02709915778 | T66: 0.01951884957 | U66: 0.2229298885
B67: Tanker-truck | C67: 0.02476578045 | D67: 0 | E67: 0 | F67: 0 | G67: 0 | H67: 0 | I67: 0 | J67: 0 | K67: 0 | L67: 0 | M67: 0 | N67: 0 | O67: 0.06045307649 | P67: 0 | Q67: 0 | R67: 0 | S67: 0 | T67: 0 | U67: 0.01861440609
B68: Surface water (river, stream, dam, lake, pond, canal, irrigation channel) | C68: 0.080584207 | D68: 0 | E68: 0 | F68: 0 | G68: 0 | H68: 0 | I68: 0 | J68: 0 | K68: 0 | L68: 0 | M68: 0.06558840121 | N68: 0.1312563801 | O68: 0 | P68: 0 | Q68: 0 | R68: 0 | S68: 0 | T68: 0.05861586354 | U68: 0
B69: Bottled water | C69: 5.057035607 | D69: 9.22716586 | E69: 10.04116778 | F69: 11.07322033 | G69: 17.10052776 | H69: 6.529083625 | I69: 10.51591404 | J69: 11.09702227 | K69: 16.87541672 | L69: 16.01741613 | M69: 2.062771929 | N69: 6.62867164 | O69: 9.655591849 | P69: 8.963292733 | Q69: 12.87507611 | R69: 11.02912514 | S69: 3.033383433 | T69: 5.45165104 | U69: 21.79223198
B70: Other | C70: 0.7841037952 | D70: 0 | E70: 0 | F70: 0 | G70: 0 | H70: 0.3804023211 | I70: 0 | J70: 0 | K70: 0 | L70: 0 | M70: 0 | N70: 1.284472984 | O70: 0.08285969038 | P70: 0 | Q70: 0 | R70: 0 | S70: 0.2982292885 | T70: 0.1632459982 | U70: 0.1599365555
A108: =A1026 -> Serbia
A109: =A1034 -> 2014
A110: Use of sanitation facilities
A111: by wealth quintile and sub-national region
A112: Notes:
A113: WHO/UNICEF JMP customised wealth index excludes water,
A114: sanitation and hygiene assets.
A115: Survey used for analysis: | B115: =A1025 -> MICS14
A116: =B1030 -> 
A117: =B1029 -> 
A120: Use of sanitation facilities | C120: NATIONAL wealth index quintile | H120: URBAN wealth index quintile | M120: RURAL wealth index quintile | R120: SUB-REGIONS: | BA120: Raw numbers of respondents: | BB120: Use of sanitation facilities | BC120: NATIONAL wealth index quintile | BH120: URBAN wealth index quintile | BM120: RURAL wealth index quintile | BR120: SUB-REGIONS:
A121: Weighted percentage (used in graphs) | C121: Poorest | D121: Poor | E121: Middle | F121: Rich | G121: Richest | H121: Poorest | I121: Poor | J121: Middle | K121: Rich | L121: Richest | M121: Poorest | N121: Poor | O121: Middle | P121: Rich | Q121: Richest | R121: Belgrade | S121: South and East Serbia | T121: Sumadija and West Serbia | U121: Vojvodina | BA121: Sanitation data, raw numbers (weighted) | BC121: Poorest | BD121: Poor | BE121: Middle | BF121: Rich | BG121: Richest | BH121: Poorest | BI121: Poor | BJ121: Middle | BK121: Rich | BL121: Richest | BM121: Poorest | BN121: Poor | BO121: Middle | BP121: Rich | BQ121: Richest | BR121: Belgrade | BS121: South and East Serbia | BT121: Sumadija and West Serbia | BU121: Vojvodina
A122: Sanitation | B122: Improved | C122: 91.39006678 | D122: 97.30759951 | E122: 98.99416906 | F122: 99.7968263 | G122: 99.75665057 | H122: 97.75906217 | I122: 99.50468712 | J122: 99.85658281 | K122: 99.73646232 | L122: 99.85140369 | M122: 87.17172063 | N122: 94.43577899 | O122: 96.49947103 | P122: 98.01376568 | Q122: 97.47525187 | R122: 99.13529601 | S122: 96.30636511 | T122: 95.24122057 | U122: 99.29508045 | BA122: Sanitation | BB122: Improved | BC122: 3512.289125 | BD122: 3737.593939 | BE122: 3809.175825 | BF122: 3829.839439 | BG122: 3832.939205 | BH122: 2216.575076 | BI122: 2257.972092 | BJ122: 2267.17373 | BK122: 2262.533797 | BL122: 2265.732345 | BM122: 1372.045519 | BN122: 1485.477527 | BO122: 1519.321936 | BP122: 1542.239107 | BQ122: 1532.766401 | BR122: 4307.451531 | BS122: 4305.094572 | BT122: 5032.119962 | BU122: 5077.171466
B123: Not Improved | C123: 8.609933217 | D123: 2.692400487 | E123: 1.005830936 | F123: 0.2031737023 | G123: 0.2433494323 | H123: 2.240937831 | I123: 0.495312884 | J123: 0.1434171924 | K123: 0.2635376761 | L123: 0.1485963148 | M123: 12.82827937 | N123: 5.564221006 | O123: 3.500528971 | P123: 1.986234321 | Q123: 2.524748132 | R123: 0.8647039907 | S123: 3.693634893 | T123: 4.758779428 | U123: 0.7049195506 | BB123: Not Improved | BC123: 330.8956418 | BD123: 103.4153529 | BE123: 38.70315719 | BF123: 7.797068173 | BG123: 9.350189429 | BH123: 50.81070576 | BI123: 11.23969837 | BJ123: 3.256186843 | BK123: 5.978384283 | BL123: 3.371805146 | BM123: 201.9116188 | BN123: 87.52535691 | BO123: 55.11357106 | BP123: 31.25324514 | BQ123: 39.70083722 | BR123: 37.57158831 | BS123: 165.1131523 | BT123: 251.432613 | BU123: 36.04405588
A124: Sanitation ladder | B124: Basic | C124: =C122*C129/100 -> 89.80348054 | D124: =D122*D129/100 -> 96.96563834 | E124: =E122*E129/100 -> 98.34552423 | F124: 99.55688633 | G124: 99.57187657 | H124: 95.86459325 | I124: 99.1659828 | J124: 99.56055347 | K124: 99.66447077 | L124: 99.56160365 | M124: 85.14350013 | N124: 93.72319642 | O124: 96.1671955 | P124: 97.92220636 | Q124: 97.47525187 | R124: 98.83988027 | S124: 95.49788635 | T124: 94.33037366 | U124: 98.93778547 | BA124: Sanitation ladder | BB124: Basic | BC124: 3445.21601 | BD124: 3718.879999 | BE124: 3772.794142 | BF124: 3789.121814 | BG124: 3805.685822 | BH124: 2173.620157 | BI124: 2234.683289 | BJ124: 2238.937591 | BK124: 2255.878471 | BL124: 2239.614596 | BM124: 1335.382031 | BN124: 1474.268583 | BO124: 1507.163232 | BP124: 1540.798429 | BQ124: 1531.35141 | BR124: 4240.830728 | BS124: 4259.904371 | BT124: 4979.08594 | BU124: 5051.876748
B125: Limited | C125: =C122*C128/100 -> 1.586586242 | D125: =D122*D128/100 -> 0.3419611736 | E125: =E122*E128/100 -> 0.6486448347 | F125: 0.2399399687 | G125: 0.1847739994 | H125: 1.894468918 | I125: 0.3387043194 | J125: 0.296029341 | K125: 0.07199155273 | L125: 0.2898000331 | M125: 2.028220508 | N125: 0.7125825766 | O125: 0.3322755253 | P125: 0.09155931592 | Q125: 0 | R125: 0.2954157351 | S125: 0.8084787622 | T125: 0.91084691 | U125: 0.357294978 | BB125: Limited | BC125: 60.86771126 | BD125: 13.11508479 | BE125: 24.88372961 | BF125: 9.132083204 | BG125: 7.06215263 | BH125: 42.95491888 | BI125: 7.63262624 | BJ125: 6.657166886 | BK125: 1.629509419 | BL125: 6.518982824 | BM125: 31.81040498 | BN125: 11.20894448 | BO125: 5.207528951 | BP125: 1.440678834 | BQ125: 0 | BR125: 12.67512793 | BS125: 36.06406743 | BT125: 48.07767496 | BU125: 18.24389118
B126: Unimproved | C126: =100-C124-C125-C127 -> 8.060616058 | D126: =100-D124-D125-D127 -> 2.692400487 | E126: =100-E124-E125-E127 -> 1.005830936 | F126: 0.2031737023 | G126: 0.2433494323 | H126: 2.090143547 | I126: 0.495312884 | J126: 0.1434171924 | K126: 0.2635376761 | L126: 0.1485963148 | M126: 11.70291755 | N126: 5.564221006 | O126: 3.500528971 | P126: 1.986234321 | Q126: 2.524748132 | R126: 0.8402911167 | S126: 3.418340829 | T126: 4.740140991 | U126: 0.5724390988 | BB126: Unimproved | BC126: 309.8184558 | BD126: 103.4153529 | BE126: 38.70315719 | BF126: 7.797068173 | BG126: 9.350189429 | BH126: 47.39161761 | BI126: 11.23969837 | BJ126: 3.256186843 | BK126: 5.978384283 | BL126: 3.371805146 | BM126: 184.2535209 | BN126: 87.52535691 | BO126: 55.11357106 | BP126: 31.25324514 | BQ126: 39.70083722 | BR126: 36.52401297 | BS126: 152.8320595 | BT126: 250.4487652 | BU126: 29.27938582
B127: Open defecation | C127: 0.5493171589 | D127: 0 | E127: 0 | F127: 0 | G127: 0 | H127: 0.1507942838 | I127: 0 | J127: 0 | K127: 0 | L127: 0 | M127: 1.125361816 | N127: 0 | O127: 0 | P127: 0 | Q127: 0 | R127: 0.02441287404 | S127: 0.2752940641 | T127: 0.01863843677 | U127: 0.1324804518 | BB127: Open defecation | BC127: 21.07718602 | BD127: 0 | BE127: 0 | BF127: 0 | BG127: 0 | BH127: 3.419088149 | BI127: 0 | BJ127: 0 | BK127: 0 | BL127: 0 | BM127: 17.65809787 | BN127: 0 | BO127: 0 | BP127: 0 | BQ127: 0 | BR127: 1.047575332 | BS127: 12.28109281 | BT127: 0.9838478202 | BU127: 6.76467006
A128: Shared among Improved Sanitation | B128: Yes | C128: 1.736059835 | D128: 0.351422885 | E128: 0.6552353951 | F128: 0.2404284561 | G128: 0.1852247428 | H128: 1.937895962 | I128: 0.3403903165 | J128: 0.2964545077 | K128: 0.07218177891 | L128: 0.2902313062 | M128: 2.326695507 | N128: 0.7545684317 | O128: 0.3443288567 | P128: 0.09341475178 | Q128: 0 | R128: 0.297992488 | S128: 0.8394863219 | T128: 0.9563578717 | U128: 0.3598315006 | BA128: Shared among improved sanitation facilities | BB128: Yes | BC128: N/A | BD128: N/A | BE128: N/A | BF128: N/A | BG128: N/A | BH128: N/A | BI128: N/A | BJ128: N/A | BK128: N/A | BL128: N/A | BM128: N/A | BN128: N/A | BO128: N/A | BP128: N/A | BQ128: N/A | BR128: N/A | BS128: N/A | BT128: N/A | BU128: N/A
B129: No | C129: 98.26394017 | D129: 99.64857711 | E129: 99.3447646 | F129: 99.75957154 | G129: 99.81477526 | H129: 98.06210404 | I129: 99.65960968 | J129: 99.70354549 | K129: 99.92781822 | L129: 99.70976869 | M129: 97.67330449 | N129: 99.24543157 | O129: 99.65567114 | P129: 99.90658525 | Q129: 100 | R129: 99.70200751 | S129: 99.16051368 | T129: 99.04364213 | U129: 99.6401685 | BB129: No | BC129: N/A | BD129: N/A | BE129: N/A | BF129: N/A | BG129: N/A | BH129: N/A | BI129: N/A | BJ129: N/A | BK129: N/A | BL129: N/A | BM129: N/A | BN129: N/A | BO129: N/A | BP129: N/A | BQ129: N/A | BR129: N/A | BS129: N/A | BT129: N/A | BU129: N/A
A130: Manually calculated ratios | B130: Improved latrines
B131: Other
B132: Other
C133: NATIONAL wealth index quintile | H133: URBAN wealth index quintile | M133: RURAL wealth index quintile | R133: SUB-REGIONS: | BA133: Raw numbers of respondents: | BB133: Use of sanitation facilities | BC133: NATIONAL wealth index quintile | BH133: URBAN wealth index quintile | BM133: RURAL wealth index quintile | BR133: SUB-REGIONS:
A134: Percentage based on weighted population | C134: Poorest | D134: Poor | E134: Middle | F134: Rich | G134: Richest | H134: Poorest | I134: Poor | J134: Middle | K134: Rich | L134: Richest | M134: Poorest | N134: Poor | O134: Middle | P134: Rich | Q134: Richest | R134: Belgrade | S134: South and East Serbia | T134: Sumadija and West Serbia | U134: Vojvodina | BA134: Sanitation data, raw numbers (weighted) | BC134: Poorest | BD134: Poor | BE134: Middle | BF134: Rich | BG134: Richest | BH134: Poorest | BI134: Poor | BJ134: Middle | BK134: Rich | BL134: Richest | BM134: Poorest | BN134: Poor | BO134: Middle | BP134: Rich | BQ134: Richest | BR134: Belgrade | BS134: South and East Serbia | BT134: Sumadija and West Serbia | BU134: Vojvodina
A135: Sanitation type | B135: Sewer connection | C135: 21.77216856 | D135: 22.80395665 | E135: 66.54975001 | F135: 86.98359947 | G135: 87.73487002 | H135: 69.63331055 | I135: 84.8636555 | J135: 88.17155618 | K135: 85.10475004 | L135: 88.63924613 | M135: 15.82582375 | N135: 23.05964075 | O135: 21.14210718 | P135: 20.83428377 | Q135: 16.63841927 | R135: 73.02362874 | S135: 56.00687698 | T135: 55.95519126 | U135: 45.95158028 | BA135: Sanitation type | BB135: Sewer connection | BC135: N/A | BD135: N/A | BE135: N/A | BF135: N/A | BG135: N/A | BH135: N/A | BI135: N/A | BJ135: N/A | BK135: N/A | BL135: N/A | BM135: N/A | BN135: N/A | BO135: N/A | BP135: N/A | BQ135: N/A | BR135: N/A | BS135: N/A | BT135: N/A | BU135: N/A
B136: Septic tank connection | C136: 53.0134209 | D136: 68.84472706 | E136: 29.68933544 | F136: 12.81322682 | G136: 12.02178055 | H136: 21.89192372 | I136: 12.96558255 | J136: 11.68502663 | K136: 14.63171229 | L136: 11.21215755 | M136: 47.73066166 | N136: 61.81245054 | O136: 66.83095715 | P136: 74.07615523 | Q136: 75.94363388 | R136: 25.43501352 | S136: 28.35291344 | T136: 36.30737723 | U136: 48.63616108 | BB136: Septic tank connection | BC136: N/A | BD136: N/A | BE136: N/A | BF136: N/A | BG136: N/A | BH136: N/A | BI136: N/A | BJ136: N/A | BK136: N/A | BL136: N/A | BM136: N/A | BN136: N/A | BO136: N/A | BP136: N/A | BQ136: N/A | BR136: N/A | BS136: N/A | BT136: N/A | BU136: N/A
B137: Improved latrines | C137: 16.60447732 | D137: 5.658915802 | E137: 2.755083618 | F137: 0 | G137: 0 | H137: 6.233827898 | I137: 1.675449066 | J137: 0 | K137: 0 | L137: 0 | M137: 23.61523523 | N137: 9.56368771 | O137: 8.526406695 | P137: 3.103326679 | Q137: 4.893198716 | R137: 0.6766537481 | S137: 11.94657468 | T137: 2.978652082 | U137: 4.707339096 | BB137: Improved latrines | BC137: N/A | BD137: N/A | BE137: N/A | BF137: N/A | BG137: N/A | BH137: N/A | BI137: N/A | BJ137: N/A | BK137: N/A | BL137: N/A | BM137: N/A | BN137: N/A | BO137: N/A | BP137: N/A | BQ137: N/A | BR137: N/A | BS137: N/A | BT137: N/A | BU137: N/A
B138: Unimproved facilities | C138: 8.061503014 | D138: 2.692400487 | E138: 1.005830936 | F138: 0.2031737023 | G138: 0.2433494323 | H138: 2.090143547 | I138: 0.495312884 | J138: 0.1434171924 | K138: 0.2635376761 | L138: 0.1485963148 | M138: 11.70638745 | N138: 5.564221006 | O138: 3.500528971 | P138: 1.986234321 | Q138: 2.524748132 | R138: 0.8405942149 | S138: 3.418902854 | T138: 4.740158475 | U138: 0.5726217816 | BB138: Unimproved facilities | BC138: N/A | BD138: N/A | BE138: N/A | BF138: N/A | BG138: N/A | BH138: N/A | BI138: N/A | BJ138: N/A | BK138: N/A | BL138: N/A | BM138: N/A | BN138: N/A | BO138: N/A | BP138: N/A | BQ138: N/A | BR138: N/A | BS138: N/A | BT138: N/A | BU138: N/A
B139: Open defecation | C139: 0.5484302032 | D139: 0 | E139: 0 | F139: 0 | G139: 0 | H139: 0.1507942838 | I139: 0 | J139: 0 | K139: 0 | L139: 0 | M139: 1.121891915 | N139: 0 | O139: 0 | P139: 0 | Q139: 0 | R139: 0.02410977578 | S139: 0.2747320386 | T139: 0.01862095259 | U139: 0.132297769 | BB139: Open defecation | BC139: N/A | BD139: N/A | BE139: N/A | BF139: N/A | BG139: N/A | BH139: N/A | BI139: N/A | BJ139: N/A | BK139: N/A | BL139: N/A | BM139: N/A | BN139: N/A | BO139: N/A | BP139: N/A | BQ139: N/A | BR139: N/A | BS139: N/A | BT139: N/A | BU139: N/A
